{"text_format":"1","workbook":"xlsx","n_sheets":4,"sheets":["MANUAL","Hoja de Trabajo ","Cédula de Totales","Hoja consulta"],"not_rendered":{"charts":0,"images":5,"macros":1,"external_links":0,"defined_names":19,"comments":0,"pivot_tables":0},"unopened":[],"bounds":{"document_bytes":16777216,"sheet_cells":100000,"rows_first":2000,"rows_last":500,"rows_between":2000,"halvings":0,"cell_chars":16384,"cell_head_chars":4096},"cells_cut":0,"cells_raw":0,"read":"whole","date_system":"1900"}

{"sheet":"MANUAL","index":0,"n_rows":99,"n_cols":13,"rows_kept":99,"cut":false,"hidden":false,"merged":[[60,2,60,10],[43,2,43,10],[65,1,65,4],[57,2,57,10],[58,2,58,10],[59,2,59,10],[53,2,53,10],[54,2,54,10],[56,2,56,10],[61,1,61,10],[49,2,49,10],[50,2,50,10],[66,1,66,4],[67,1,67,4],[62,1,62,4],[63,1,63,4],[64,1,64,4],[78,1,78,4],[69,1,69,4],[68,6,71,9],[70,1,70,4],[71,1,71,4],[72,1,72,4],[68,1,68,4],[73,1,73,4],[75,1,75,4],[76,1,76,4],[77,1,77,4],[74,1,74,4],[45,12,47,13],[0,0,0,17],[1,0,1,17],[2,0,2,17],[3,0,3,17],[4,0,4,17],[34,0,34,7],[37,2,37,10],[38,2,38,10],[39,2,39,10],[40,2,40,10],[36,1,36,10],[79,1,79,4],[80,1,80,4],[81,1,81,5],[82,1,82,7],[83,1,83,7],[84,0,84,10],[98,2,98,8],[96,2,96,8],[81,6,81,7],[91,2,91,8],[92,2,92,8],[93,2,93,8],[97,2,97,8],[85,0,86,10],[81,8,82,10],[88,1,89,10],[57,0,59,0],[53,0,56,0],[37,0,43,0],[55,2,55,10],[44,2,44,10],[44,0,48,0],[51,0,52,0],[45,2,45,10],[46,2,46,10],[47,2,47,10],[48,2,48,10],[51,2,51,10],[52,2,52,10],[41,2,41,10],[42,2,42,10],[49,0,50,0]]}
["INSTITUTO DE SALUD PÚBLICA DEL ESTADO DE GUANAJUATO"]
["COORDINACIÓN GENERAL DE ADMINISTRACIÓN Y FINANZAS"]
["DIRECCIÓN GENERAL DE ADMINISTRACIÓN"]
["DIRECCIÓN DE RECURSOS MATERIALES Y SERVICIOS GENERALES"]
["DEPARTAMENTO DE INVENTARIOS"]
[]
[]
["1.-Al abrir el achivo envía el siguiente mensaje el cual indica que si se permite habilitar las macros, clic OPCIONES"]
[]
[]
[]
["2.- Seleccionar HABILITAR  ESTE CONTENIDO  Y ACEPTAR"]
[]
[]
[]
[]
[]
[]
[]
[]
[]
[]
[]
[]
[]
[]
[]
[]
[]
[]
[]
[]
[]
[]
["LLENADO DE HOJA DE TRABAJO"]
[]
["No.","Consecutivo de Registros"]
["Marcas de Verificación\n(Solo Aplican OK, M, D, REU, BT, NR y NO_L)\n\n\n\n\n\n\n\n\n\n\n\n","OK","Existe físicamente el bien y se encuentra utilizado en condiciones buenas."]
[null,"M","Existe físicamente el bien y se encuentra sin uso por estar inservible, inutil o incosteable reparación, para baja."]
[null,"D","Existe físicamente el bien y se encuentra sin uso y  en condiciones buenas para disposición."]
[null,"REU","El bien fue reubicado y presenta formato y/o soporte documental. En caso de que la Reubicación sea dentro de la Unidad se anotará en la columna \"Observaciones MV\" la marca Reu_Int; si la reubicación es fuera de la unidad se anotará Reu_ext; en ambos casos se deben llenar las columnas \"Cambio de Unidad/Hospital\" , \"Cambio de Clave de Adscripción\" , \"nombre\" y \"RFC\" así como copia de los soportes, En caso de seleccionar las columnas \"D\" y \"E\" y no figure la Unidad responsable, anotara en la columnas de observaciones los datos de la Unidad responsable de la ubicacion del bien mueble. VER OBSERVACIONES MV (REU)"]
[null,"BT","El bien se encuentra en el Taller para mantenimiento o reparación. Al respecto deberá concentrar la información de la salida de la UR y el ingreso al Taller, en donde se verifique la descripción del activo que se esta verificando. A los documentos se le debe indicar el número consecutivo que se señala en la base, el cual puede obtener de la columna \"B\" de esta hoja."]
[null,"NR","Bien existente físicamente, sin embargo no se encuentra en la relación de activos que se encuentran bajo resguardo del resguardatario. Al respecto se registra de manera manual el activo a partir de la columna \"L\" hasta la \"N\" y P, en la columna \"AE\" se anotará el RFC Y Nombre de la persona a quien se le registrará el activo  y en la columna de \"Observaciones MV\" debe indicar los datos de la procedencia del activo. Ejemplo: COMPRA DIRECTA, COMODATO, DONACIÓN, REUBICACIÓN, PRESTAMO, DESCONOCIDO.\nEn los casos de COMPRA DIRECTA, COMODATO, DONACIÓN, REUBICACIÓN y PRESTAMO, deberá integrar el soporte documental de cada caso señalando a los documentos el número consecutivo que se señala en la base, el cual puede obtener de la columna \"A\" de esta hoja. VER OBSERVACIONES MV (NR)"]
[null,"NO_L","No Localizado, Una vez terminado el Levantamiento de Inventario, todas las casillas donde no se anotó alguna de las marcas antes mencionadas, se seleccionará la marca NO_L para que se genere el número total de bienes No Localizados en la Cédula de Totales. La Unidad tendrá que realizar una segunda busqueda de estos bienes para determinar el motivo por el cual no se encontró e informar al Departamento de Inventarios el estatus final de estos mismos y la documentación que lo ampará. (Acta ante el MP en caso de Robo, Formato de Baja, en caso de haberlos entregado en algún proceso, etc.). NO SE DARÄN DE BAJA SIN LA DEBIDA INVESTIGACIÓN DE LA UNIDAD ASÍ COMO LA REVISIÓN Y AUTORIZACIÓN DEL DEPARTAMENTO DE INVENTARIOS. "]
["Observaciones MV\n(NR)\n\n\n\n\n\n\n\n","Compra Directa","Se seleccionará COMPRA DIRECTA cuando se localice un bien, que no se encuentra registrado en el Inventario de la Unidad y que se tiene la documentación correspondiente que ampara la adquisición del bien. Se adjuntará dicha documentación en físico así como el formato de alta correspondiente al momento de entregar el Inventario 2017 al Departamento de Inventarios para su respectiva alta."]
[null,"Comodato","Se seleccionará COMODATO cuando se localice un bien, que no se encuentra registrado en el Inventario de la Unidad y que se tiene la documentación LEGAL correspondiente que ampara  el CONTRATO DE COMODATO ENTRE LAS PARTES y autorizado por el Área Jurídica de ISAPEG. Se adjuntará dicha documentación en físico  correspondiente al momento de entregar el Inventario 2017 al Departamento de Inventarios para su conocimiento.",null,null,null,null,null,null,null,null,null,"\n\n\n\n\nMARCAS DE VERIFICACIÓN A UTILIZAR PARA EL LEVANTAMIENTO DE INVENTARIOS\n\n\n\n\n\n\n"]
[null,"Donación","Se seleccionará DONACIÓN cuando se localice un bien, que no se encuentra registrado en el Inventario de la Unidad y que se tiene la documentación correspondiente que ampara la DONACIÓN DEL BIEN A ISAPEG por parte de un tercero. Se adjuntará dicha documentación en físico así como el formato de alta correspondiente al momento de entregar el Inventario 2017 al Departamento de Inventarios para su respectiva alta."]
[null,"Préstamo","Se seleccionará PRÉSTAMO cuando se localice un bien, que no se encuentra registrado en el Inventario de la Unidad y que se tiene la documentación  correspondiente que ampara  el PRÉSTAMO ENTRE LAS UNIDADES de ISAPEG. Se adjuntará dicha documentación en físico al momento de entregar el Inventario 2017 al Departamento de Inventarios para su conocimiento. SE SUGIERE ACTUALIZAR A LA BREVEDAD EL TEMA PARA SU REUBICACIÓN DEL BIEN O EN SU CASO LA DEVOLUCIÓN DEL BIEN."]
[null,"Desconocido","Se seleccionará DESCONOCIDO cuando se localice un bien, que no se encuentra registrado en el Inventario de la Unidad y que no se tiene la documentación  e información correspondiente que ampare la llegada del bien a la Unidad. Se adjuntará el Acta donde se señale la investigación realizada por la unidad sobre el (los) bien (es) así como  el formato de alta correspondiente al momento de entregar el Inventario 2017 al Departamento de Inventarios para su respectiva alta."]
["Observaciones MV\n(M)\n\n","SINIESTRADO","Se seleccionará SINIESTRADO, Cuando el bien sea determinado por robo, extravió  o por un incidente interno, Se adjuntara el Acta ante el Ministerio Público y la documentación correspondiente al proceso."]
[null,"CENTRO DE ACOPIO","Se seleccionará CENTRO DE ACOPIO, Cuando el bien ya ha sido entregado en el proceso activo de bajas en el centro de acopio determinado por el Departamento de Inventarios."]
["Observaciones MV\n(REU)\n\n","Reu_ Int","Se seleccionará Reu_Int cuando el bien requiere cambio de resguardatario dentro de la misma Unidad.Se adjuntará el formato de reubicación, debidamente requisitado y firmado por las partes que participaron en el proceso, en físico al momento de entregar el Inventario 2017 al Departamento de Inventarios."]
[null,"REU_ext.","Se seleccionará REU_ext. cuando el bien requiere cambio de resguardatario de la Unidad a otra Unidad adscrita al ISAPEG.Se adjuntará el formato de reubicación, debidamente requisitado y firmado por las partes que participaron en el proceso, en físico al momento de entregar el Inventario 2017 al Departamento de Inventarios."]
["En caso de (REU) del Activo\n\n\n\n","Cambio de Unidad Hospitalaria"," Se Anotará la Unidad a la que se le reubicó el bien, de acuerdo al listado pre cargado por el Departamento de Inventarios. Se adjuntará el formato de reubicación, debidamente requisitado y firmado por las partes que participaron en el proceso, en físico al momento de entregar el Inventario 2017 al Departamento de Inventarios."]
[null,"Cambio de Clave de Adscripción","Se anotará la Clave de acuerdo a la Unidad que se seleccionó en la columna CAMBIO DE UNIDAD HOSPITALARIA, de acuerdo al listado pre cargado por el DI. Se adjuntará el formato de reubicación, debidamente requisitado y firmado por las partes que participaron en el proceso, en físico al momento de entregar el Inventario 2017 al Departamento de Inventarios."]
[null,"NOMBRE del nuevo Resguardante."," Se Anotará el nombre  de la Persona a la que se le reubicó el bien. Se adjuntará el formato de reubicación, debidamente requisitado y firmado por las partes que participaron en el proceso, en físico al momento de entregar el Inventario 2017 al Departamento de Inventarios."]
[null,"R.F.C. del nuevo Resguardante.","Se anotará el R.F.C. de la Persona a la que se le reubicó el bien Se adjuntará el formato de reubicación, debidamente requisitado y firmado por las partes que participaron en el proceso, en físico al momento de entregar el Inventario 2017 al Departamento de Inventarios."]
["Marcas Etiqueta\n(Solo Aplica CE, CX, SE)","CE","El bien se encuentra con etiqueta y ésta corresponde al activo registrado."]
[null,"CX","El bien se encuentra con etiqueta y ésta no corresponde al activo registrado."]
[null,"SE","El bien sin etiqueta o etiqueta dañada."]
["Marca Serie \n(solo aplica #S)","#S","El número de serie que indica el formato no corresponde al verificado en el activo. Se debe anotar en la columna de \"Serie Verificada\" el número de serie que se observa en físico. Obtener fotografía."]
["Serie Verificada","En caso de que la serie del bien fisicamente sea diferente  a la que se tiene registrada en el resguardo"]
["Nombre de Adscripción","Ejemplo: HOSPITAL GENERAL SILAO"]
["Procedencia","Solo aplican: Estatal, Federal"]
["CABMS","Ejemplo: I180000162"]
["Num_Prog","Ejemplo:  200"]
["Cantidad","Solo aplica: 1"]
["Nombre ","Nombre del activo"]
["Descripcion ","Descripcion del Activo",null,null,null,null,"SE OBTIENEN DE LA PLATAFORMA:\nSISTEMA ELECTRÓNICO DE INVENTARIOS \"SEI\""]
["Serie","Serie del Activo"]
["Marca","Marca del Activo"]
["Modelo","Modelo del Activo"]
["Material","Material del Activo "]
["Color","Color del Activo"]
["Costo","Costo del Bien"]
["Orden Contrato","Numero de Contrato"]
["Factura HEDA","Número de Factura"]
["HEDA","Número de Heda"]
["Año","Año del Heda"]
["Resguardatario","R.F.C. y Nombre del resguardatario"]
["Clave de Adscripción",1134370000]
["CAMBS COMPLETA","Procedencia + Cambs + Num_Prog =   Cambs Completa",null,null,null,null,"E-I180000162-200",null,"PROCESO AUTOMATICO"]
["Status","Solo aplican: Localizado, Localizado Pendiente de Inventariar, No Localizado"]
["OBSERVACION","Campo libre para anotaciones"]
[]
["UNA VEZ TERMINADO EL LLENADO DE LA \"HOJA DE TRABAJO\", VERIFICAR LOS TOTALES DE LA HOJA \"CÉDULA DE TOTALES\", YA QUE ESTOS SE LLENAN AUTOMATICAMENTE"]
[]
[]
["NOTA IMPORTANTE:  \n","EL LEVANTAMIENTO DE INVENTARIOS 2019 SE TENDRÁ QUE APEGAR A LAS INSTRUCCIONES ASÍ COMO AL FORMATO MISMO DE ESTE ARCHIVO, EN CASO CONTRARIO SE TOMARÁ COMO INCUMPLIMIENTO DEL MISMO."]
[]
[]
["DUDAS O ACLARACIONES: ",null,"DEPARTAMENTO DE INVENTARIOS DE ISAPEG"]
[null,null,"Carretera Guanajuato - Juventino Rosas Km. 9.5"]
[null,null,"Guanajuato, Gto."]
[]
[null,null,"C.P. Arturo Guillermo González Álvarez"]
[null,null,"Jefe de Verificación Física de Inventarios de ISAPEG"]
[null,null,"Teléfono: 473 73 3 12 64     Ext. 103"]
[null,null,"email: aggonzaleza@guanajuato.gob.mx"]

{"sheet":"Hoja de Trabajo ","index":1,"n_rows":71000,"n_cols":36,"rows_kept":2250,"cut":true,"hidden":true,"merged":[[13,24,14,24],[13,35,14,35],[13,30,14,30],[13,31,14,31],[13,32,14,32],[13,33,14,33],[13,34,14,34],[13,29,14,29],[13,28,14,28],[13,27,14,27],[13,26,14,26],[13,25,14,25],[13,18,14,18],[13,19,14,19],[13,20,14,20],[13,21,14,21],[13,23,14,23],[13,22,14,22],[13,14,14,14],[13,16,14,16],[13,15,14,15],[13,17,14,17],[12,5,12,6],[13,7,14,7],[13,8,14,8],[13,9,14,9],[13,10,14,10],[13,11,14,11],[13,12,14,12],[13,13,14,13],[6,6,6,7],[13,0,14,0],[13,1,14,1],[13,2,14,2],[13,3,13,6],[7,6,7,9],[9,6,9,9],[8,6,8,9],[10,6,10,9],[11,6,11,9]],"bounds":{"rows_first":1000,"rows_last":250,"rows_between":1000,"halvings":1}}
["OK",null,"COMPRA DIRECTA",null,null,"INSTITUTO DE SALUD PÚBLICA DEL ESTADO DE GUANAJUATO",null,"CE","#S",null,null,"E"]
["M",null,"COMODATO",null,null,"COORDINACIÓN GENERAL DE ADMINISTRACIÓN Y FINANZAS",null,"SE",null,null,null,"F"]
["REU",null,"DONACION",null,null,"DIRECCIÓN GENERAL DE ADMINISTRACIÓN",null,"CX"]
["BT",null,"PRESTAMO",null,null,"DIRECCIÓN DE RECURSOS MATERIALES Y SERVICIOS GENERALES"]
["NR",null,"DESCONOCIDO",null,null,"DEPARTAMENTO DE INVENTARIOS"]
["D",null,"REU_INT",null,null,"RELACION DE BIENES MUEBLES DEL ",{"$f":"IF(K16>=\"A\",K16,\"\")","v":""}]
["NO_L",null,"REU_EXT",null,null,{"$f":"IF(AH16>=1,AH16,\"\")","v":""},"GUANAJUATO "]
[null,null,"SINIESTRADO",null,null,"REALIZO:"]
[null,null,"CENTRO DE ACOPIO",null,null,"MUNICIPIO (16):","GUANAJUATO "]
[null,null,null,null,null,"ENTIDAD (17):","INSTITUTO DE SALUD PÚBLICA DEL ESTADO DE GUANAJUATO"]
[null,null,null,null,null,"SOCIEDAD (18):","ISPG"]
[null,"ANEXO I",null,null,null,"FECHA DE LEVANTAMIENTO DE INVENTARIO: "]
[null,null,null,null,null,null,null,null,null,null,null,null,null,null,"CANTIDAD\n(1)","DESCRIPCIÓN\n(2)",null,"SERIE\n(3)","MARCA\n(4)","MODELO\n(5)","MATERIAL\n(6)","COLOR\n(7)",null,"PEDIDO\n(8)","NUM. DE POSICIÓN O PARTIDA DE PEDIDO (9)","NUM. DE FACTURA (10)","FECHA DE FACTURA (11)","CODIFICACIÓN (12)","SUB NÚMERO (13)",null,null,null,"NUMERO INTERNO\n(14)","UNIDAD RESP.\n(15)"]
["No.","\" Marcas de Verificación","Observaciones\n MV","En caso de (REU) del Activo anote los datos siguientes (Cambio de Unidad/ Hospital, Cambio de Clave de Adscripción, Nombre y R.F.C.)",null,null,null,"Marcas Etiqueta","Marca Serie","Serie Verificada","Nombre de Adscripción","PROCEDENCIA","CABMS","Num_Prog","Cantidad","Nombre","Descripcion","Serie","Marca","Modelo","Material","Color","Costo","Orden\nContrato",null,"Factura HEDA",null,null,null,"HEDA","Año","RESGUARDATARIOS","CAMBS COMPLETA","Clave de Adscripción","Status","OBSERVACIONES"]
[null,null,null,"Cambio de Unidad/Hospital","Cambio de Clave de Adscripción","Nombre","R F C"]
[1,null,null,null,null,null,null,null,null,null,null,null,null,null,1,null,null,null,null,null,null,null,null,null,null,null,null,null,null,null,null,null,{"$f":"CONCATENATE(L16,\"-\",M16,\"-\",N16)","v":"--"},null,{"$f":"IF(B16=\"M\",\"LOCALIZADO\",IF(B16=\"OK\",\"LOCALIZADO\",IF(B16=\"D\",\"LOCALIZADO\",IF(B16=\"BT\",\"LOCALIZADO\",IF(B16=\"NR\",\"LOCALIZADO PENDIENTE DE INVENTARIAR\",IF(B16=\"REU\",\"LOCALIZADO\",IF(B16=\"NO_L\",\"NO_LOCALIZADO\",IF(ISBLANK(B16),\" \",\"NO\"))))))))","v":" "}]
[2,null,null,null,null,null,null,null,null,null,null,null,null,null,1,null,null,null,null,null,null,null,null,null,null,null,null,null,null,null,null,null,"--",null,{"$f":"IF(B17=\"M\",\"LOCALIZADO\",IF(B17=\"OK\",\"LOCALIZADO\",IF(B17=\"D\",\"LOCALIZADO\",IF(B17=\"BT\",\"LOCALIZADO\",IF(B17=\"NR\",\"LOCALIZADO PENDIENTE DE INVENTARIAR\",IF(B17=\"REU\",\"LOCALIZADO\",IF(B17=\"NO_L\",\"NO_LOCALIZADO\",IF(ISBLANK(B17),\" \",\"NO\"))))))))","v":" "}]
[3,null,null,null,null,null,null,null,null,null,null,null,null,null,1,null,null,null,null,null,null,null,null,null,null,null,null,null,null,null,null,null,"--",null," "]
[4,null,null,null,null,null,null,null,null,null,null,null,null,null,1,null,null,null,null,null,null,null,null,null,null,null,null,null,null,null,null,null,"--",null," "]
[5,null,null,null,null,null,null,null,null,null,null,null,null,null,1,null,null,null,null,null,null,null,null,null,null,null,null,null,null,null,null,null,"--",null," "]
[6,null,null,null,null,null,null,null,null,null,null,null,null,null,1,null,null,null,null,null,null,null,null,null,null,null,null,null,null,null,null,null,"--",null," "]
[7,null,null,null,null,null,null,null,null,null,null,null,null,null,1,null,null,null,null,null,null,null,null,null,null,null,null,null,null,null,null,null,"--",null," "]
[8,null,null,null,null,null,null,null,null,null,null,null,null,null,1,null,null,null,null,null,null,null,null,null,null,null,null,null,null,null,null,null,"--",null," "]
[9,null,null,null,null,null,null,null,null,null,null,null,null,null,1,null,null,null,null,null,null,null,null,null,null,null,null,null,null,null,null,null,"--",null," "]
[10,null,null,null,null,null,null,null,null,null,null,null,null,null,1,null,null,null,null,null,null,null,null,null,null,null,null,null,null,null,null,null,"--",null," "]
[11,null,null,null,null,null,null,null,null,null,null,null,null,null,1,null,null,null,null,null,null,null,null,null,null,null,null,null,null,null,null,null,"--",null," "]
[12,null,null,null,null,null,null,null,null,null,null,null,null,null,1,null,null,null,null,null,null,null,null,null,null,null,null,null,null,null,null,null,"--",null," "]
[13,null,null,null,null,null,null,null,null,null,null,null,null,null,1,null,null,null,null,null,null,null,null,null,null,null,null,null,null,null,null,null,"--",null," "]
[14,null,null,null,null,null,null,null,null,null,null,null,null,null,1,null,null,null,null,null,null,null,null,null,null,null,null,null,null,null,null,null,"--",null," "]
[15,null,null,null,null,null,null,null,null,null,null,null,null,null,1,null,null,null,null,null,null,null,null,null,null,null,null,null,null,null,null,null,"--",null," "]
[16,null,null,null,null,null,null,null,null,null,null,null,null,null,1,null,null,null,null,null,null,null,null,null,null,null,null,null,null,null,null,null,"--",null," "]
[17,null,null,null,null,null,null,null,null,null,null,null,null,null,1,null,null,null,null,null,null,null,null,null,null,null,null,null,null,null,null,null,"--",null," "]
[18,null,null,null,null,null,null,null,null,null,null,null,null,null,1,null,null,null,null,null,null,null,null,null,null,null,null,null,null,null,null,null,"--",null," "]
[19,null,null,null,null,null,null,null,null,null,null,null,null,null,1,null,null,null,null,null,null,null,null,null,null,null,null,null,null,null,null,null,"--",null," "]
[20,null,null,null,null,null,null,null,null,null,null,null,null,null,1,null,null,null,null,null,null,null,null,null,null,null,null,null,null,null,null,null,"--",null," "]
[21,null,null,null,null,null,null,null,null,null,null,null,null,null,1,null,null,null,null,null,null,null,null,null,null,null,null,null,null,null,null,null,"--",null," "]
[22,null,null,null,null,null,null,null,null,null,null,null,null,null,1,null,null,null,null,null,null,null,null,null,null,null,null,null,null,null,null,null,"--",null," "]
[23,null,null,null,null,null,null,null,null,null,null,null,null,null,1,null,null,null,null,null,null,null,null,null,null,null,null,null,null,null,null,null,"--",null," "]
[24,null,null,null,null,null,null,null,null,null,null,null,null,null,1,null,null,null,null,null,null,null,null,null,null,null,null,null,null,null,null,null,"--",null," "]
[25,null,null,null,null,null,null,null,null,null,null,null,null,null,1,null,null,null,null,null,null,null,null,null,null,null,null,null,null,null,null,null,"--",null," "]
[26,null,null,null,null,null,null,null,null,null,null,null,null,null,1,null,null,null,null,null,null,null,null,null,null,null,null,null,null,null,null,null,"--",null," "]
[27,null,null,null,null,null,null,null,null,null,null,null,null,null,1,null,null,null,null,null,null,null,null,null,null,null,null,null,null,null,null,null,"--",null," "]
[28,null,null,null,null,null,null,null,null,null,null,null,null,null,1,null,null,null,null,null,null,null,null,null,null,null,null,null,null,null,null,null,"--",null," "]
[29,null,null,null,null,null,null,null,null,null,null,null,null,null,1,null,null,null,null,null,null,null,null,null,null,null,null,null,null,null,null,null,"--",null," "]
[30,null,null,null,null,null,null,null,null,null,null,null,null,null,1,null,null,null,null,null,null,null,null,null,null,null,null,null,null,null,null,null,"--",null," "]
[31,null,null,null,null,null,null,null,null,null,null,null,null,null,1,null,null,null,null,null,null,null,null,null,null,null,null,null,null,null,null,null,"--",null," "]
[32,null,null,null,null,null,null,null,null,null,null,null,null,null,1,null,null,null,null,null,null,null,null,null,null,null,null,null,null,null,null,null,"--",null," "]
[33,null,null,null,null,null,null,null,null,null,null,null,null,null,1,null,null,null,null,null,null,null,null,null,null,null,null,null,null,null,null,null,"--",null," "]
[34,null,null,null,null,null,null,null,null,null,null,null,null,null,1,null,null,null,null,null,null,null,null,null,null,null,null,null,null,null,null,null,"--",null," "]
[35,null,null,null,null,null,null,null,null,null,null,null,null,null,1,null,null,null,null,null,null,null,null,null,null,null,null,null,null,null,null,null,"--",null," "]
[36,null,null,null,null,null,null,null,null,null,null,null,null,null,1,null,null,null,null,null,null,null,null,null,null,null,null,null,null,null,null,null,"--",null," "]
[37,null,null,null,null,null,null,null,null,null,null,null,null,null,1,null,null,null,null,null,null,null,null,null,null,null,null,null,null,null,null,null,"--",null," "]
[38,null,null,null,null,null,null,null,null,null,null,null,null,null,1,null,null,null,null,null,null,null,null,null,null,null,null,null,null,null,null,null,"--",null," "]
[39,null,null,null,null,null,null,null,null,null,null,null,null,null,1,null,null,null,null,null,null,null,null,null,null,null,null,null,null,null,null,null,"--",null," "]
[40,null,null,null,null,null,null,null,null,null,null,null,null,null,1,null,null,null,null,null,null,null,null,null,null,null,null,null,null,null,null,null,"--",null," "]
[41,null,null,null,null,null,null,null,null,null,null,null,null,null,1,null,null,null,null,null,null,null,null,null,null,null,null,null,null,null,null,null,"--",null," "]
[42,null,null,null,null,null,null,null,null,null,null,null,null,null,1,null,null,null,null,null,null,null,null,null,null,null,null,null,null,null,null,null,"--",null," "]
[43,null,null,null,null,null,null,null,null,null,null,null,null,null,1,null,null,null,null,null,null,null,null,null,null,null,null,null,null,null,null,null,"--",null," "]
[44,null,null,null,null,null,null,null,null,null,null,null,null,null,1,null,null,null,null,null,null,null,null,null,null,null,null,null,null,null,null,null,"--",null," "]
[45,null,null,null,null,null,null,null,null,null,null,null,null,null,1,null,null,null,null,null,null,null,null,null,null,null,null,null,null,null,null,null,"--",null," "]
[46,null,null,null,null,null,null,null,null,null,null,null,null,null,1,null,null,null,null,null,null,null,null,null,null,null,null,null,null,null,null,null,"--",null," "]
[47,null,null,null,null,null,null,null,null,null,null,null,null,null,1,null,null,null,null,null,null,null,null,null,null,null,null,null,null,null,null,null,"--",null," "]
[48,null,null,null,null,null,null,null,null,null,null,null,null,null,1,null,null,null,null,null,null,null,null,null,null,null,null,null,null,null,null,null,"--",null," "]
[49,null,null,null,null,null,null,null,null,null,null,null,null,null,1,null,null,null,null,null,null,null,null,null,null,null,null,null,null,null,null,null,"--",null," "]
[50,null,null,null,null,null,null,null,null,null,null,null,null,null,1,null,null,null,null,null,null,null,null,null,null,null,null,null,null,null,null,null,"--",null," "]
[51,null,null,null,null,null,null,null,null,null,null,null,null,null,1,null,null,null,null,null,null,null,null,null,null,null,null,null,null,null,null,null,"--",null," "]
[52,null,null,null,null,null,null,null,null,null,null,null,null,null,1,null,null,null,null,null,null,null,null,null,null,null,null,null,null,null,null,null,"--",null," "]
[53,null,null,null,null,null,null,null,null,null,null,null,null,null,1,null,null,null,null,null,null,null,null,null,null,null,null,null,null,null,null,null,"--",null," "]
[54,null,null,null,null,null,null,null,null,null,null,null,null,null,1,null,null,null,null,null,null,null,null,null,null,null,null,null,null,null,null,null,"--",null," "]
[55,null,null,null,null,null,null,null,null,null,null,null,null,null,1,null,null,null,null,null,null,null,null,null,null,null,null,null,null,null,null,null,"--",null," "]
[56,null,null,null,null,null,null,null,null,null,null,null,null,null,1,null,null,null,null,null,null,null,null,null,null,null,null,null,null,null,null,null,"--",null," "]
[57,null,null,null,null,null,null,null,null,null,null,null,null,null,1,null,null,null,null,null,null,null,null,null,null,null,null,null,null,null,null,null,"--",null," "]
[58,null,null,null,null,null,null,null,null,null,null,null,null,null,1,null,null,null,null,null,null,null,null,null,null,null,null,null,null,null,null,null,"--",null," "]
[59,null,null,null,null,null,null,null,null,null,null,null,null,null,1,null,null,null,null,null,null,null,null,null,null,null,null,null,null,null,null,null,"--",null," "]
[60,null,null,null,null,null,null,null,null,null,null,null,null,null,1,null,null,null,null,null,null,null,null,null,null,null,null,null,null,null,null,null,"--",null," "]
[61,null,null,null,null,null,null,null,null,null,null,null,null,null,1,null,null,null,null,null,null,null,null,null,null,null,null,null,null,null,null,null,"--",null," "]
[62,null,null,null,null,null,null,null,null,null,null,null,null,null,1,null,null,null,null,null,null,null,null,null,null,null,null,null,null,null,null,null,"--",null," "]
[63,null,null,null,null,null,null,null,null,null,null,null,null,null,1,null,null,null,null,null,null,null,null,null,null,null,null,null,null,null,null,null,"--",null," "]
[64,null,null,null,null,null,null,null,null,null,null,null,null,null,1,null,null,null,null,null,null,null,null,null,null,null,null,null,null,null,null,null,"--",null," "]
[65,null,null,null,null,null,null,null,null,null,null,null,null,null,1,null,null,null,null,null,null,null,null,null,null,null,null,null,null,null,null,null,{"$f":"CONCATENATE(L80,\"-\",M80,\"-\",N80)","v":"--"},null," "]
[66,null,null,null,null,null,null,null,null,null,null,null,null,null,1,null,null,null,null,null,null,null,null,null,null,null,null,null,null,null,null,null,"--",null,{"$f":"IF(B81=\"M\",\"LOCALIZADO\",IF(B81=\"OK\",\"LOCALIZADO\",IF(B81=\"D\",\"LOCALIZADO\",IF(B81=\"BT\",\"LOCALIZADO\",IF(B81=\"NR\",\"LOCALIZADO PENDIENTE DE INVENTARIAR\",IF(B81=\"REU\",\"LOCALIZADO\",IF(B81=\"NO_L\",\"NO_LOCALIZADO\",IF(ISBLANK(B81),\" \",\"NO\"))))))))","v":" "}]
[67,null,null,null,null,null,null,null,null,null,null,null,null,null,1,null,null,null,null,null,null,null,null,null,null,null,null,null,null,null,null,null,"--",null," "]
[68,null,null,null,null,null,null,null,null,null,null,null,null,null,1,null,null,null,null,null,null,null,null,null,null,null,null,null,null,null,null,null,"--",null," "]
[69,null,null,null,null,null,null,null,null,null,null,null,null,null,1,null,null,null,null,null,null,null,null,null,null,null,null,null,null,null,null,null,"--",null," "]
[70,null,null,null,null,null,null,null,null,null,null,null,null,null,1,null,null,null,null,null,null,null,null,null,null,null,null,null,null,null,null,null,"--",null," "]
[71,null,null,null,null,null,null,null,null,null,null,null,null,null,1,null,null,null,null,null,null,null,null,null,null,null,null,null,null,null,null,null,"--",null," "]
[72,null,null,null,null,null,null,null,null,null,null,null,null,null,1,null,null,null,null,null,null,null,null,null,null,null,null,null,null,null,null,null,"--",null," "]
[73,null,null,null,null,null,null,null,null,null,null,null,null,null,1,null,null,null,null,null,null,null,null,null,null,null,null,null,null,null,null,null,"--",null," "]
[74,null,null,null,null,null,null,null,null,null,null,null,null,null,1,null,null,null,null,null,null,null,null,null,null,null,null,null,null,null,null,null,"--",null," "]
[75,null,null,null,null,null,null,null,null,null,null,null,null,null,1,null,null,null,null,null,null,null,null,null,null,null,null,null,null,null,null,null,"--",null," "]
[76,null,null,null,null,null,null,null,null,null,null,null,null,null,1,null,null,null,null,null,null,null,null,null,null,null,null,null,null,null,null,null,"--",null," "]
[77,null,null,null,null,null,null,null,null,null,null,null,null,null,1,null,null,null,null,null,null,null,null,null,null,null,null,null,null,null,null,null,"--",null," "]
[78,null,null,null,null,null,null,null,null,null,null,null,null,null,1,null,null,null,null,null,null,null,null,null,null,null,null,null,null,null,null,null,"--",null," "]
[79,null,null,null,null,null,null,null,null,null,null,null,null,null,1,null,null,null,null,null,null,null,null,null,null,null,null,null,null,null,null,null,"--",null," "]
[80,null,null,null,null,null,null,null,null,null,null,null,null,null,1,null,null,null,null,null,null,null,null,null,null,null,null,null,null,null,null,null,"--",null," "]
[81,null,null,null,null,null,null,null,null,null,null,null,null,null,1,null,null,null,null,null,null,null,null,null,null,null,null,null,null,null,null,null,"--",null," "]
[82,null,null,null,null,null,null,null,null,null,null,null,null,null,1,null,null,null,null,null,null,null,null,null,null,null,null,null,null,null,null,null,"--",null," "]
[83,null,null,null,null,null,null,null,null,null,null,null,null,null,1,null,null,null,null,null,null,null,null,null,null,null,null,null,null,null,null,null,"--",null," "]
[84,null,null,null,null,null,null,null,null,null,null,null,null,null,1,null,null,null,null,null,null,null,null,null,null,null,null,null,null,null,null,null,"--",null," "]
[85,null,null,null,null,null,null,null,null,null,null,null,null,null,1,null,null,null,null,null,null,null,null,null,null,null,null,null,null,null,null,null,"--",null," "]
[86,null,null,null,null,null,null,null,null,null,null,null,null,null,1,null,null,null,null,null,null,null,null,null,null,null,null,null,null,null,null,null,"--",null," "]
[87,null,null,null,null,null,null,null,null,null,null,null,null,null,1,null,null,null,null,null,null,null,null,null,null,null,null,null,null,null,null,null,"--",null," "]
[88,null,null,null,null,null,null,null,null,null,null,null,null,null,1,null,null,null,null,null,null,null,null,null,null,null,null,null,null,null,null,null,"--",null," "]
[89,null,null,null,null,null,null,null,null,null,null,null,null,null,1,null,null,null,null,null,null,null,null,null,null,null,null,null,null,null,null,null,"--",null," "]
[90,null,null,null,null,null,null,null,null,null,null,null,null,null,1,null,null,null,null,null,null,null,null,null,null,null,null,null,null,null,null,null,"--",null," "]
[91,null,null,null,null,null,null,null,null,null,null,null,null,null,1,null,null,null,null,null,null,null,null,null,null,null,null,null,null,null,null,null,"--",null," "]
[92,null,null,null,null,null,null,null,null,null,null,null,null,null,1,null,null,null,null,null,null,null,null,null,null,null,null,null,null,null,null,null,"--",null," "]
[93,null,null,null,null,null,null,null,null,null,null,null,null,null,1,null,null,null,null,null,null,null,null,null,null,null,null,null,null,null,null,null,"--",null," "]
[94,null,null,null,null,null,null,null,null,null,null,null,null,null,1,null,null,null,null,null,null,null,null,null,null,null,null,null,null,null,null,null,"--",null," "]
[95,null,null,null,null,null,null,null,null,null,null,null,null,null,1,null,null,null,null,null,null,null,null,null,null,null,null,null,null,null,null,null,"--",null," "]
[96,null,null,null,null,null,null,null,null,null,null,null,null,null,1,null,null,null,null,null,null,null,null,null,null,null,null,null,null,null,null,null,"--",null," "]
[97,null,null,null,null,null,null,null,null,null,null,null,null,null,1,null,null,null,null,null,null,null,null,null,null,null,null,null,null,null,null,null,"--",null," "]
[98,null,null,null,null,null,null,null,null,null,null,null,null,null,1,null,null,null,null,null,null,null,null,null,null,null,null,null,null,null,null,null,"--",null," "]
[99,null,null,null,null,null,null,null,null,null,null,null,null,null,1,null,null,null,null,null,null,null,null,null,null,null,null,null,null,null,null,null,"--",null," "]
[100,null,null,null,null,null,null,null,null,null,null,null,null,null,1,null,null,null,null,null,null,null,null,null,null,null,null,null,null,null,null,null,"--",null," "]
[101,null,null,null,null,null,null,null,null,null,null,null,null,null,1,null,null,null,null,null,null,null,null,null,null,null,null,null,null,null,null,null,"--",null," "]
[102,null,null,null,null,null,null,null,null,null,null,null,null,null,1,null,null,null,null,null,null,null,null,null,null,null,null,null,null,null,null,null,"--",null," "]
[103,null,null,null,null,null,null,null,null,null,null,null,null,null,1,null,null,null,null,null,null,null,null,null,null,null,null,null,null,null,null,null,"--",null," "]
[104,null,null,null,null,null,null,null,null,null,null,null,null,null,1,null,null,null,null,null,null,null,null,null,null,null,null,null,null,null,null,null,"--",null," "]
[105,null,null,null,null,null,null,null,null,null,null,null,null,null,1,null,null,null,null,null,null,null,null,null,null,null,null,null,null,null,null,null,"--",null," "]
[106,null,null,null,null,null,null,null,null,null,null,null,null,null,1,null,null,null,null,null,null,null,null,null,null,null,null,null,null,null,null,null,"--",null," "]
[107,null,null,null,null,null,null,null,null,null,null,null,null,null,1,null,null,null,null,null,null,null,null,null,null,null,null,null,null,null,null,null,"--",null," "]
[108,null,null,null,null,null,null,null,null,null,null,null,null,null,1,null,null,null,null,null,null,null,null,null,null,null,null,null,null,null,null,null,"--",null," "]
[109,null,null,null,null,null,null,null,null,null,null,null,null,null,1,null,null,null,null,null,null,null,null,null,null,null,null,null,null,null,null,null,"--",null," "]
[110,null,null,null,null,null,null,null,null,null,null,null,null,null,1,null,null,null,null,null,null,null,null,null,null,null,null,null,null,null,null,null,"--",null," "]
[111,null,null,null,null,null,null,null,null,null,null,null,null,null,1,null,null,null,null,null,null,null,null,null,null,null,null,null,null,null,null,null,"--",null," "]
[112,null,null,null,null,null,null,null,null,null,null,null,null,null,1,null,null,null,null,null,null,null,null,null,null,null,null,null,null,null,null,null,"--",null," "]
[113,null,null,null,null,null,null,null,null,null,null,null,null,null,1,null,null,null,null,null,null,null,null,null,null,null,null,null,null,null,null,null,"--",null," "]
[114,null,null,null,null,null,null,null,null,null,null,null,null,null,1,null,null,null,null,null,null,null,null,null,null,null,null,null,null,null,null,null,"--",null," "]
[115,null,null,null,null,null,null,null,null,null,null,null,null,null,1,null,null,null,null,null,null,null,null,null,null,null,null,null,null,null,null,null,"--",null," "]
[116,null,null,null,null,null,null,null,null,null,null,null,null,null,1,null,null,null,null,null,null,null,null,null,null,null,null,null,null,null,null,null,"--",null," "]
[117,null,null,null,null,null,null,null,null,null,null,null,null,null,1,null,null,null,null,null,null,null,null,null,null,null,null,null,null,null,null,null,"--",null," "]
[118,null,null,null,null,null,null,null,null,null,null,null,null,null,1,null,null,null,null,null,null,null,null,null,null,null,null,null,null,null,null,null,"--",null," "]
[119,null,null,null,null,null,null,null,null,null,null,null,null,null,1,null,null,null,null,null,null,null,null,null,null,null,null,null,null,null,null,null,"--",null," "]
[120,null,null,null,null,null,null,null,null,null,null,null,null,null,1,null,null,null,null,null,null,null,null,null,null,null,null,null,null,null,null,null,"--",null," "]
[121,null,null,null,null,null,null,null,null,null,null,null,null,null,1,null,null,null,null,null,null,null,null,null,null,null,null,null,null,null,null,null,"--",null," "]
[122,null,null,null,null,null,null,null,null,null,null,null,null,null,1,null,null,null,null,null,null,null,null,null,null,null,null,null,null,null,null,null,"--",null," "]
[123,null,null,null,null,null,null,null,null,null,null,null,null,null,1,null,null,null,null,null,null,null,null,null,null,null,null,null,null,null,null,null,"--",null," "]
[124,null,null,null,null,null,null,null,null,null,null,null,null,null,1,null,null,null,null,null,null,null,null,null,null,null,null,null,null,null,null,null,"--",null," "]
[125,null,null,null,null,null,null,null,null,null,null,null,null,null,1,null,null,null,null,null,null,null,null,null,null,null,null,null,null,null,null,null,"--",null," "]
[126,null,null,null,null,null,null,null,null,null,null,null,null,null,1,null,null,null,null,null,null,null,null,null,null,null,null,null,null,null,null,null,"--",null," "]
[127,null,null,null,null,null,null,null,null,null,null,null,null,null,1,null,null,null,null,null,null,null,null,null,null,null,null,null,null,null,null,null,"--",null," "]
[128,null,null,null,null,null,null,null,null,null,null,null,null,null,1,null,null,null,null,null,null,null,null,null,null,null,null,null,null,null,null,null,"--",null," "]
[129,null,null,null,null,null,null,null,null,null,null,null,null,null,1,null,null,null,null,null,null,null,null,null,null,null,null,null,null,null,null,null,{"$f":"CONCATENATE(L144,\"-\",M144,\"-\",N144)","v":"--"},null," "]
[130,null,null,null,null,null,null,null,null,null,null,null,null,null,1,null,null,null,null,null,null,null,null,null,null,null,null,null,null,null,null,null,"--",null,{"$f":"IF(B145=\"M\",\"LOCALIZADO\",IF(B145=\"OK\",\"LOCALIZADO\",IF(B145=\"D\",\"LOCALIZADO\",IF(B145=\"BT\",\"LOCALIZADO\",IF(B145=\"NR\",\"LOCALIZADO PENDIENTE DE INVENTARIAR\",IF(B145=\"REU\",\"LOCALIZADO\",IF(B145=\"NO_L\",\"NO_LOCALIZADO\",IF(ISBLANK(B145),\" \",\"NO\"))))))))","v":" "}]
[131,null,null,null,null,null,null,null,null,null,null,null,null,null,1,null,null,null,null,null,null,null,null,null,null,null,null,null,null,null,null,null,"--",null," "]
[132,null,null,null,null,null,null,null,null,null,null,null,null,null,1,null,null,null,null,null,null,null,null,null,null,null,null,null,null,null,null,null,"--",null," "]
[133,null,null,null,null,null,null,null,null,null,null,null,null,null,1,null,null,null,null,null,null,null,null,null,null,null,null,null,null,null,null,null,"--",null," "]
[134,null,null,null,null,null,null,null,null,null,null,null,null,null,1,null,null,null,null,null,null,null,null,null,null,null,null,null,null,null,null,null,"--",null," "]
[135,null,null,null,null,null,null,null,null,null,null,null,null,null,1,null,null,null,null,null,null,null,null,null,null,null,null,null,null,null,null,null,"--",null," "]
[136,null,null,null,null,null,null,null,null,null,null,null,null,null,1,null,null,null,null,null,null,null,null,null,null,null,null,null,null,null,null,null,"--",null," "]
[137,null,null,null,null,null,null,null,null,null,null,null,null,null,1,null,null,null,null,null,null,null,null,null,null,null,null,null,null,null,null,null,"--",null," "]
[138,null,null,null,null,null,null,null,null,null,null,null,null,null,1,null,null,null,null,null,null,null,null,null,null,null,null,null,null,null,null,null,"--",null," "]
[139,null,null,null,null,null,null,null,null,null,null,null,null,null,1,null,null,null,null,null,null,null,null,null,null,null,null,null,null,null,null,null,"--",null," "]
[140,null,null,null,null,null,null,null,null,null,null,null,null,null,1,null,null,null,null,null,null,null,null,null,null,null,null,null,null,null,null,null,"--",null," "]
[141,null,null,null,null,null,null,null,null,null,null,null,null,null,1,null,null,null,null,null,null,null,null,null,null,null,null,null,null,null,null,null,"--",null," "]
[142,null,null,null,null,null,null,null,null,null,null,null,null,null,1,null,null,null,null,null,null,null,null,null,null,null,null,null,null,null,null,null,"--",null," "]
[143,null,null,null,null,null,null,null,null,null,null,null,null,null,1,null,null,null,null,null,null,null,null,null,null,null,null,null,null,null,null,null,"--",null," "]
[144,null,null,null,null,null,null,null,null,null,null,null,null,null,1,null,null,null,null,null,null,null,null,null,null,null,null,null,null,null,null,null,"--",null," "]
[145,null,null,null,null,null,null,null,null,null,null,null,null,null,1,null,null,null,null,null,null,null,null,null,null,null,null,null,null,null,null,null,"--",null," "]
[146,null,null,null,null,null,null,null,null,null,null,null,null,null,1,null,null,null,null,null,null,null,null,null,null,null,null,null,null,null,null,null,"--",null," "]
[147,null,null,null,null,null,null,null,null,null,null,null,null,null,1,null,null,null,null,null,null,null,null,null,null,null,null,null,null,null,null,null,"--",null," "]
[148,null,null,null,null,null,null,null,null,null,null,null,null,null,1,null,null,null,null,null,null,null,null,null,null,null,null,null,null,null,null,null,"--",null," "]
[149,null,null,null,null,null,null,null,null,null,null,null,null,null,1,null,null,null,null,null,null,null,null,null,null,null,null,null,null,null,null,null,"--",null," "]
[150,null,null,null,null,null,null,null,null,null,null,null,null,null,1,null,null,null,null,null,null,null,null,null,null,null,null,null,null,null,null,null,"--",null," "]
[151,null,null,null,null,null,null,null,null,null,null,null,null,null,1,null,null,null,null,null,null,null,null,null,null,null,null,null,null,null,null,null,"--",null," "]
[152,null,null,null,null,null,null,null,null,null,null,null,null,null,1,null,null,null,null,null,null,null,null,null,null,null,null,null,null,null,null,null,"--",null," "]
[153,null,null,null,null,null,null,null,null,null,null,null,null,null,1,null,null,null,null,null,null,null,null,null,null,null,null,null,null,null,null,null,"--",null," "]
[154,null,null,null,null,null,null,null,null,null,null,null,null,null,1,null,null,null,null,null,null,null,null,null,null,null,null,null,null,null,null,null,"--",null," "]
[155,null,null,null,null,null,null,null,null,null,null,null,null,null,1,null,null,null,null,null,null,null,null,null,null,null,null,null,null,null,null,null,"--",null," "]
[156,null,null,null,null,null,null,null,null,null,null,null,null,null,1,null,null,null,null,null,null,null,null,null,null,null,null,null,null,null,null,null,"--",null," "]
[157,null,null,null,null,null,null,null,null,null,null,null,null,null,1,null,null,null,null,null,null,null,null,null,null,null,null,null,null,null,null,null,"--",null," "]
[158,null,null,null,null,null,null,null,null,null,null,null,null,null,1,null,null,null,null,null,null,null,null,null,null,null,null,null,null,null,null,null,"--",null," "]
[159,null,null,null,null,null,null,null,null,null,null,null,null,null,1,null,null,null,null,null,null,null,null,null,null,null,null,null,null,null,null,null,"--",null," "]
[160,null,null,null,null,null,null,null,null,null,null,null,null,null,1,null,null,null,null,null,null,null,null,null,null,null,null,null,null,null,null,null,"--",null," "]
[161,null,null,null,null,null,null,null,null,null,null,null,null,null,1,null,null,null,null,null,null,null,null,null,null,null,null,null,null,null,null,null,"--",null," "]
[162,null,null,null,null,null,null,null,null,null,null,null,null,null,1,null,null,null,null,null,null,null,null,null,null,null,null,null,null,null,null,null,"--",null," "]
[163,null,null,null,null,null,null,null,null,null,null,null,null,null,1,null,null,null,null,null,null,null,null,null,null,null,null,null,null,null,null,null,"--",null," "]
[164,null,null,null,null,null,null,null,null,null,null,null,null,null,1,null,null,null,null,null,null,null,null,null,null,null,null,null,null,null,null,null,"--",null," "]
[165,null,null,null,null,null,null,null,null,null,null,null,null,null,1,null,null,null,null,null,null,null,null,null,null,null,null,null,null,null,null,null,"--",null," "]
[166,null,null,null,null,null,null,null,null,null,null,null,null,null,1,null,null,null,null,null,null,null,null,null,null,null,null,null,null,null,null,null,"--",null," "]
[167,null,null,null,null,null,null,null,null,null,null,null,null,null,1,null,null,null,null,null,null,null,null,null,null,null,null,null,null,null,null,null,"--",null," "]
[168,null,null,null,null,null,null,null,null,null,null,null,null,null,1,null,null,null,null,null,null,null,null,null,null,null,null,null,null,null,null,null,"--",null," "]
[169,null,null,null,null,null,null,null,null,null,null,null,null,null,1,null,null,null,null,null,null,null,null,null,null,null,null,null,null,null,null,null,"--",null," "]
[170,null,null,null,null,null,null,null,null,null,null,null,null,null,1,null,null,null,null,null,null,null,null,null,null,null,null,null,null,null,null,null,"--",null," "]
[171,null,null,null,null,null,null,null,null,null,null,null,null,null,1,null,null,null,null,null,null,null,null,null,null,null,null,null,null,null,null,null,"--",null," "]
[172,null,null,null,null,null,null,null,null,null,null,null,null,null,1,null,null,null,null,null,null,null,null,null,null,null,null,null,null,null,null,null,"--",null," "]
[173,null,null,null,null,null,null,null,null,null,null,null,null,null,1,null,null,null,null,null,null,null,null,null,null,null,null,null,null,null,null,null,"--",null," "]
[174,null,null,null,null,null,null,null,null,null,null,null,null,null,1,null,null,null,null,null,null,null,null,null,null,null,null,null,null,null,null,null,"--",null," "]
[175,null,null,null,null,null,null,null,null,null,null,null,null,null,1,null,null,null,null,null,null,null,null,null,null,null,null,null,null,null,null,null,"--",null," "]
[176,null,null,null,null,null,null,null,null,null,null,null,null,null,1,null,null,null,null,null,null,null,null,null,null,null,null,null,null,null,null,null,"--",null," "]
[177,null,null,null,null,null,null,null,null,null,null,null,null,null,1,null,null,null,null,null,null,null,null,null,null,null,null,null,null,null,null,null,"--",null," "]
[178,null,null,null,null,null,null,null,null,null,null,null,null,null,1,null,null,null,null,null,null,null,null,null,null,null,null,null,null,null,null,null,"--",null," "]
[179,null,null,null,null,null,null,null,null,null,null,null,null,null,1,null,null,null,null,null,null,null,null,null,null,null,null,null,null,null,null,null,"--",null," "]
[180,null,null,null,null,null,null,null,null,null,null,null,null,null,1,null,null,null,null,null,null,null,null,null,null,null,null,null,null,null,null,null,"--",null," "]
[181,null,null,null,null,null,null,null,null,null,null,null,null,null,1,null,null,null,null,null,null,null,null,null,null,null,null,null,null,null,null,null,"--",null," "]
[182,null,null,null,null,null,null,null,null,null,null,null,null,null,1,null,null,null,null,null,null,null,null,null,null,null,null,null,null,null,null,null,"--",null," "]
[183,null,null,null,null,null,null,null,null,null,null,null,null,null,1,null,null,null,null,null,null,null,null,null,null,null,null,null,null,null,null,null,"--",null," "]
[184,null,null,null,null,null,null,null,null,null,null,null,null,null,1,null,null,null,null,null,null,null,null,null,null,null,null,null,null,null,null,null,"--",null," "]
[185,null,null,null,null,null,null,null,null,null,null,null,null,null,1,null,null,null,null,null,null,null,null,null,null,null,null,null,null,null,null,null,"--",null," "]
[186,null,null,null,null,null,null,null,null,null,null,null,null,null,1,null,null,null,null,null,null,null,null,null,null,null,null,null,null,null,null,null,"--",null," "]
[187,null,null,null,null,null,null,null,null,null,null,null,null,null,1,null,null,null,null,null,null,null,null,null,null,null,null,null,null,null,null,null,"--",null," "]
[188,null,null,null,null,null,null,null,null,null,null,null,null,null,1,null,null,null,null,null,null,null,null,null,null,null,null,null,null,null,null,null,"--",null," "]
[189,null,null,null,null,null,null,null,null,null,null,null,null,null,1,null,null,null,null,null,null,null,null,null,null,null,null,null,null,null,null,null,"--",null," "]
[190,null,null,null,null,null,null,null,null,null,null,null,null,null,1,null,null,null,null,null,null,null,null,null,null,null,null,null,null,null,null,null,"--",null," "]
[191,null,null,null,null,null,null,null,null,null,null,null,null,null,1,null,null,null,null,null,null,null,null,null,null,null,null,null,null,null,null,null,"--",null," "]
[192,null,null,null,null,null,null,null,null,null,null,null,null,null,1,null,null,null,null,null,null,null,null,null,null,null,null,null,null,null,null,null,"--",null," "]
[193,null,null,null,null,null,null,null,null,null,null,null,null,null,1,null,null,null,null,null,null,null,null,null,null,null,null,null,null,null,null,null,{"$f":"CONCATENATE(L208,\"-\",M208,\"-\",N208)","v":"--"},null," "]
[194,null,null,null,null,null,null,null,null,null,null,null,null,null,1,null,null,null,null,null,null,null,null,null,null,null,null,null,null,null,null,null,"--",null,{"$f":"IF(B209=\"M\",\"LOCALIZADO\",IF(B209=\"OK\",\"LOCALIZADO\",IF(B209=\"D\",\"LOCALIZADO\",IF(B209=\"BT\",\"LOCALIZADO\",IF(B209=\"NR\",\"LOCALIZADO PENDIENTE DE INVENTARIAR\",IF(B209=\"REU\",\"LOCALIZADO\",IF(B209=\"NO_L\",\"NO_LOCALIZADO\",IF(ISBLANK(B209),\" \",\"NO\"))))))))","v":" "}]
[195,null,null,null,null,null,null,null,null,null,null,null,null,null,1,null,null,null,null,null,null,null,null,null,null,null,null,null,null,null,null,null,"--",null," "]
[196,null,null,null,null,null,null,null,null,null,null,null,null,null,1,null,null,null,null,null,null,null,null,null,null,null,null,null,null,null,null,null,"--",null," "]
[197,null,null,null,null,null,null,null,null,null,null,null,null,null,1,null,null,null,null,null,null,null,null,null,null,null,null,null,null,null,null,null,"--",null," "]
[198,null,null,null,null,null,null,null,null,null,null,null,null,null,1,null,null,null,null,null,null,null,null,null,null,null,null,null,null,null,null,null,"--",null," "]
[199,null,null,null,null,null,null,null,null,null,null,null,null,null,1,null,null,null,null,null,null,null,null,null,null,null,null,null,null,null,null,null,"--",null," "]
[200,null,null,null,null,null,null,null,null,null,null,null,null,null,1,null,null,null,null,null,null,null,null,null,null,null,null,null,null,null,null,null,"--",null," "]
[201,null,null,null,null,null,null,null,null,null,null,null,null,null,1,null,null,null,null,null,null,null,null,null,null,null,null,null,null,null,null,null,"--",null," "]
[202,null,null,null,null,null,null,null,null,null,null,null,null,null,1,null,null,null,null,null,null,null,null,null,null,null,null,null,null,null,null,null,"--",null," "]
[203,null,null,null,null,null,null,null,null,null,null,null,null,null,1,null,null,null,null,null,null,null,null,null,null,null,null,null,null,null,null,null,"--",null," "]
[204,null,null,null,null,null,null,null,null,null,null,null,null,null,1,null,null,null,null,null,null,null,null,null,null,null,null,null,null,null,null,null,"--",null," "]
[205,null,null,null,null,null,null,null,null,null,null,null,null,null,1,null,null,null,null,null,null,null,null,null,null,null,null,null,null,null,null,null,"--",null," "]
[206,null,null,null,null,null,null,null,null,null,null,null,null,null,1,null,null,null,null,null,null,null,null,null,null,null,null,null,null,null,null,null,"--",null," "]
[207,null,null,null,null,null,null,null,null,null,null,null,null,null,1,null,null,null,null,null,null,null,null,null,null,null,null,null,null,null,null,null,"--",null," "]
[208,null,null,null,null,null,null,null,null,null,null,null,null,null,1,null,null,null,null,null,null,null,null,null,null,null,null,null,null,null,null,null,"--",null," "]
[209,null,null,null,null,null,null,null,null,null,null,null,null,null,1,null,null,null,null,null,null,null,null,null,null,null,null,null,null,null,null,null,"--",null," "]
[210,null,null,null,null,null,null,null,null,null,null,null,null,null,1,null,null,null,null,null,null,null,null,null,null,null,null,null,null,null,null,null,"--",null," "]
[211,null,null,null,null,null,null,null,null,null,null,null,null,null,1,null,null,null,null,null,null,null,null,null,null,null,null,null,null,null,null,null,"--",null," "]
[212,null,null,null,null,null,null,null,null,null,null,null,null,null,1,null,null,null,null,null,null,null,null,null,null,null,null,null,null,null,null,null,"--",null," "]
[213,null,null,null,null,null,null,null,null,null,null,null,null,null,1,null,null,null,null,null,null,null,null,null,null,null,null,null,null,null,null,null,"--",null," "]
[214,null,null,null,null,null,null,null,null,null,null,null,null,null,1,null,null,null,null,null,null,null,null,null,null,null,null,null,null,null,null,null,"--",null," "]
[215,null,null,null,null,null,null,null,null,null,null,null,null,null,1,null,null,null,null,null,null,null,null,null,null,null,null,null,null,null,null,null,"--",null," "]
[216,null,null,null,null,null,null,null,null,null,null,null,null,null,1,null,null,null,null,null,null,null,null,null,null,null,null,null,null,null,null,null,"--",null," "]
[217,null,null,null,null,null,null,null,null,null,null,null,null,null,1,null,null,null,null,null,null,null,null,null,null,null,null,null,null,null,null,null,"--",null," "]
[218,null,null,null,null,null,null,null,null,null,null,null,null,null,1,null,null,null,null,null,null,null,null,null,null,null,null,null,null,null,null,null,"--",null," "]
[219,null,null,null,null,null,null,null,null,null,null,null,null,null,1,null,null,null,null,null,null,null,null,null,null,null,null,null,null,null,null,null,"--",null," "]
[220,null,null,null,null,null,null,null,null,null,null,null,null,null,1,null,null,null,null,null,null,null,null,null,null,null,null,null,null,null,null,null,"--",null," "]
[221,null,null,null,null,null,null,null,null,null,null,null,null,null,1,null,null,null,null,null,null,null,null,null,null,null,null,null,null,null,null,null,"--",null," "]
[222,null,null,null,null,null,null,null,null,null,null,null,null,null,1,null,null,null,null,null,null,null,null,null,null,null,null,null,null,null,null,null,"--",null," "]
[223,null,null,null,null,null,null,null,null,null,null,null,null,null,1,null,null,null,null,null,null,null,null,null,null,null,null,null,null,null,null,null,"--",null," "]
[224,null,null,null,null,null,null,null,null,null,null,null,null,null,1,null,null,null,null,null,null,null,null,null,null,null,null,null,null,null,null,null,"--",null," "]
[225,null,null,null,null,null,null,null,null,null,null,null,null,null,1,null,null,null,null,null,null,null,null,null,null,null,null,null,null,null,null,null,"--",null," "]
[226,null,null,null,null,null,null,null,null,null,null,null,null,null,1,null,null,null,null,null,null,null,null,null,null,null,null,null,null,null,null,null,"--",null," "]
[227,null,null,null,null,null,null,null,null,null,null,null,null,null,1,null,null,null,null,null,null,null,null,null,null,null,null,null,null,null,null,null,"--",null," "]
[228,null,null,null,null,null,null,null,null,null,null,null,null,null,1,null,null,null,null,null,null,null,null,null,null,null,null,null,null,null,null,null,"--",null," "]
[229,null,null,null,null,null,null,null,null,null,null,null,null,null,1,null,null,null,null,null,null,null,null,null,null,null,null,null,null,null,null,null,"--",null," "]
[230,null,null,null,null,null,null,null,null,null,null,null,null,null,1,null,null,null,null,null,null,null,null,null,null,null,null,null,null,null,null,null,"--",null," "]
[231,null,null,null,null,null,null,null,null,null,null,null,null,null,1,null,null,null,null,null,null,null,null,null,null,null,null,null,null,null,null,null,"--",null," "]
[232,null,null,null,null,null,null,null,null,null,null,null,null,null,1,null,null,null,null,null,null,null,null,null,null,null,null,null,null,null,null,null,"--",null," "]
[233,null,null,null,null,null,null,null,null,null,null,null,null,null,1,null,null,null,null,null,null,null,null,null,null,null,null,null,null,null,null,null,"--",null," "]
[234,null,null,null,null,null,null,null,null,null,null,null,null,null,1,null,null,null,null,null,null,null,null,null,null,null,null,null,null,null,null,null,"--",null," "]
[235,null,null,null,null,null,null,null,null,null,null,null,null,null,1,null,null,null,null,null,null,null,null,null,null,null,null,null,null,null,null,null,"--",null," "]
[236,null,null,null,null,null,null,null,null,null,null,null,null,null,1,null,null,null,null,null,null,null,null,null,null,null,null,null,null,null,null,null,"--",null," "]
[237,null,null,null,null,null,null,null,null,null,null,null,null,null,1,null,null,null,null,null,null,null,null,null,null,null,null,null,null,null,null,null,"--",null," "]
[238,null,null,null,null,null,null,null,null,null,null,null,null,null,1,null,null,null,null,null,null,null,null,null,null,null,null,null,null,null,null,null,"--",null," "]
[239,null,null,null,null,null,null,null,null,null,null,null,null,null,1,null,null,null,null,null,null,null,null,null,null,null,null,null,null,null,null,null,"--",null," "]
[240,null,null,null,null,null,null,null,null,null,null,null,null,null,1,null,null,null,null,null,null,null,null,null,null,null,null,null,null,null,null,null,"--",null," "]
[241,null,null,null,null,null,null,null,null,null,null,null,null,null,1,null,null,null,null,null,null,null,null,null,null,null,null,null,null,null,null,null,"--",null," "]
[242,null,null,null,null,null,null,null,null,null,null,null,null,null,1,null,null,null,null,null,null,null,null,null,null,null,null,null,null,null,null,null,"--",null," "]
[243,null,null,null,null,null,null,null,null,null,null,null,null,null,1,null,null,null,null,null,null,null,null,null,null,null,null,null,null,null,null,null,"--",null," "]
[244,null,null,null,null,null,null,null,null,null,null,null,null,null,1,null,null,null,null,null,null,null,null,null,null,null,null,null,null,null,null,null,"--",null," "]
[245,null,null,null,null,null,null,null,null,null,null,null,null,null,1,null,null,null,null,null,null,null,null,null,null,null,null,null,null,null,null,null,"--",null," "]
[246,null,null,null,null,null,null,null,null,null,null,null,null,null,1,null,null,null,null,null,null,null,null,null,null,null,null,null,null,null,null,null,"--",null," "]
[247,null,null,null,null,null,null,null,null,null,null,null,null,null,1,null,null,null,null,null,null,null,null,null,null,null,null,null,null,null,null,null,"--",null," "]
[248,null,null,null,null,null,null,null,null,null,null,null,null,null,1,null,null,null,null,null,null,null,null,null,null,null,null,null,null,null,null,null,"--",null," "]
[249,null,null,null,null,null,null,null,null,null,null,null,null,null,1,null,null,null,null,null,null,null,null,null,null,null,null,null,null,null,null,null,"--",null," "]
[250,null,null,null,null,null,null,null,null,null,null,null,null,null,1,null,null,null,null,null,null,null,null,null,null,null,null,null,null,null,null,null,"--",null," "]
[251,null,null,null,null,null,null,null,null,null,null,null,null,null,1,null,null,null,null,null,null,null,null,null,null,null,null,null,null,null,null,null,"--",null," "]
[252,null,null,null,null,null,null,null,null,null,null,null,null,null,1,null,null,null,null,null,null,null,null,null,null,null,null,null,null,null,null,null,"--",null," "]
[253,null,null,null,null,null,null,null,null,null,null,null,null,null,1,null,null,null,null,null,null,null,null,null,null,null,null,null,null,null,null,null,"--",null," "]
[254,null,null,null,null,null,null,null,null,null,null,null,null,null,1,null,null,null,null,null,null,null,null,null,null,null,null,null,null,null,null,null,"--",null," "]
[255,null,null,null,null,null,null,null,null,null,null,null,null,null,1,null,null,null,null,null,null,null,null,null,null,null,null,null,null,null,null,null,"--",null," "]
[256,null,null,null,null,null,null,null,null,null,null,null,null,null,1,null,null,null,null,null,null,null,null,null,null,null,null,null,null,null,null,null,"--",null," "]
[257,null,null,null,null,null,null,null,null,null,null,null,null,null,1,null,null,null,null,null,null,null,null,null,null,null,null,null,null,null,null,null,{"$f":"CONCATENATE(L272,\"-\",M272,\"-\",N272)","v":"--"},null," "]
[258,null,null,null,null,null,null,null,null,null,null,null,null,null,1,null,null,null,null,null,null,null,null,null,null,null,null,null,null,null,null,null,"--",null,{"$f":"IF(B273=\"M\",\"LOCALIZADO\",IF(B273=\"OK\",\"LOCALIZADO\",IF(B273=\"D\",\"LOCALIZADO\",IF(B273=\"BT\",\"LOCALIZADO\",IF(B273=\"NR\",\"LOCALIZADO PENDIENTE DE INVENTARIAR\",IF(B273=\"REU\",\"LOCALIZADO\",IF(B273=\"NO_L\",\"NO_LOCALIZADO\",IF(ISBLANK(B273),\" \",\"NO\"))))))))","v":" "}]
[259,null,null,null,null,null,null,null,null,null,null,null,null,null,1,null,null,null,null,null,null,null,null,null,null,null,null,null,null,null,null,null,"--",null," "]
[260,null,null,null,null,null,null,null,null,null,null,null,null,null,1,null,null,null,null,null,null,null,null,null,null,null,null,null,null,null,null,null,"--",null," "]
[261,null,null,null,null,null,null,null,null,null,null,null,null,null,1,null,null,null,null,null,null,null,null,null,null,null,null,null,null,null,null,null,"--",null," "]
[262,null,null,null,null,null,null,null,null,null,null,null,null,null,1,null,null,null,null,null,null,null,null,null,null,null,null,null,null,null,null,null,"--",null," "]
[263,null,null,null,null,null,null,null,null,null,null,null,null,null,1,null,null,null,null,null,null,null,null,null,null,null,null,null,null,null,null,null,"--",null," "]
[264,null,null,null,null,null,null,null,null,null,null,null,null,null,1,null,null,null,null,null,null,null,null,null,null,null,null,null,null,null,null,null,"--",null," "]
[265,null,null,null,null,null,null,null,null,null,null,null,null,null,1,null,null,null,null,null,null,null,null,null,null,null,null,null,null,null,null,null,"--",null," "]
[266,null,null,null,null,null,null,null,null,null,null,null,null,null,1,null,null,null,null,null,null,null,null,null,null,null,null,null,null,null,null,null,"--",null," "]
[267,null,null,null,null,null,null,null,null,null,null,null,null,null,1,null,null,null,null,null,null,null,null,null,null,null,null,null,null,null,null,null,"--",null," "]
[268,null,null,null,null,null,null,null,null,null,null,null,null,null,1,null,null,null,null,null,null,null,null,null,null,null,null,null,null,null,null,null,"--",null," "]
[269,null,null,null,null,null,null,null,null,null,null,null,null,null,1,null,null,null,null,null,null,null,null,null,null,null,null,null,null,null,null,null,"--",null," "]
[270,null,null,null,null,null,null,null,null,null,null,null,null,null,1,null,null,null,null,null,null,null,null,null,null,null,null,null,null,null,null,null,"--",null," "]
[271,null,null,null,null,null,null,null,null,null,null,null,null,null,1,null,null,null,null,null,null,null,null,null,null,null,null,null,null,null,null,null,"--",null," "]
[272,null,null,null,null,null,null,null,null,null,null,null,null,null,1,null,null,null,null,null,null,null,null,null,null,null,null,null,null,null,null,null,"--",null," "]
[273,null,null,null,null,null,null,null,null,null,null,null,null,null,1,null,null,null,null,null,null,null,null,null,null,null,null,null,null,null,null,null,"--",null," "]
[274,null,null,null,null,null,null,null,null,null,null,null,null,null,1,null,null,null,null,null,null,null,null,null,null,null,null,null,null,null,null,null,"--",null," "]
[275,null,null,null,null,null,null,null,null,null,null,null,null,null,1,null,null,null,null,null,null,null,null,null,null,null,null,null,null,null,null,null,"--",null," "]
[276,null,null,null,null,null,null,null,null,null,null,null,null,null,1,null,null,null,null,null,null,null,null,null,null,null,null,null,null,null,null,null,"--",null," "]
[277,null,null,null,null,null,null,null,null,null,null,null,null,null,1,null,null,null,null,null,null,null,null,null,null,null,null,null,null,null,null,null,"--",null," "]
[278,null,null,null,null,null,null,null,null,null,null,null,null,null,1,null,null,null,null,null,null,null,null,null,null,null,null,null,null,null,null,null,"--",null," "]
[279,null,null,null,null,null,null,null,null,null,null,null,null,null,1,null,null,null,null,null,null,null,null,null,null,null,null,null,null,null,null,null,"--",null," "]
[280,null,null,null,null,null,null,null,null,null,null,null,null,null,1,null,null,null,null,null,null,null,null,null,null,null,null,null,null,null,null,null,"--",null," "]
[281,null,null,null,null,null,null,null,null,null,null,null,null,null,1,null,null,null,null,null,null,null,null,null,null,null,null,null,null,null,null,null,"--",null," "]
[282,null,null,null,null,null,null,null,null,null,null,null,null,null,1,null,null,null,null,null,null,null,null,null,null,null,null,null,null,null,null,null,"--",null," "]
[283,null,null,null,null,null,null,null,null,null,null,null,null,null,1,null,null,null,null,null,null,null,null,null,null,null,null,null,null,null,null,null,"--",null," "]
[284,null,null,null,null,null,null,null,null,null,null,null,null,null,1,null,null,null,null,null,null,null,null,null,null,null,null,null,null,null,null,null,"--",null," "]
[285,null,null,null,null,null,null,null,null,null,null,null,null,null,1,null,null,null,null,null,null,null,null,null,null,null,null,null,null,null,null,null,"--",null," "]
[286,null,null,null,null,null,null,null,null,null,null,null,null,null,1,null,null,null,null,null,null,null,null,null,null,null,null,null,null,null,null,null,"--",null," "]
[287,null,null,null,null,null,null,null,null,null,null,null,null,null,1,null,null,null,null,null,null,null,null,null,null,null,null,null,null,null,null,null,"--",null," "]
[288,null,null,null,null,null,null,null,null,null,null,null,null,null,1,null,null,null,null,null,null,null,null,null,null,null,null,null,null,null,null,null,"--",null," "]
[289,null,null,null,null,null,null,null,null,null,null,null,null,null,1,null,null,null,null,null,null,null,null,null,null,null,null,null,null,null,null,null,"--",null," "]
[290,null,null,null,null,null,null,null,null,null,null,null,null,null,1,null,null,null,null,null,null,null,null,null,null,null,null,null,null,null,null,null,"--",null," "]
[291,null,null,null,null,null,null,null,null,null,null,null,null,null,1,null,null,null,null,null,null,null,null,null,null,null,null,null,null,null,null,null,"--",null," "]
[292,null,null,null,null,null,null,null,null,null,null,null,null,null,1,null,null,null,null,null,null,null,null,null,null,null,null,null,null,null,null,null,"--",null," "]
[293,null,null,null,null,null,null,null,null,null,null,null,null,null,1,null,null,null,null,null,null,null,null,null,null,null,null,null,null,null,null,null,"--",null," "]
[294,null,null,null,null,null,null,null,null,null,null,null,null,null,1,null,null,null,null,null,null,null,null,null,null,null,null,null,null,null,null,null,"--",null," "]
[295,null,null,null,null,null,null,null,null,null,null,null,null,null,1,null,null,null,null,null,null,null,null,null,null,null,null,null,null,null,null,null,"--",null," "]
[296,null,null,null,null,null,null,null,null,null,null,null,null,null,1,null,null,null,null,null,null,null,null,null,null,null,null,null,null,null,null,null,"--",null," "]
[297,null,null,null,null,null,null,null,null,null,null,null,null,null,1,null,null,null,null,null,null,null,null,null,null,null,null,null,null,null,null,null,"--",null," "]
[298,null,null,null,null,null,null,null,null,null,null,null,null,null,1,null,null,null,null,null,null,null,null,null,null,null,null,null,null,null,null,null,"--",null," "]
[299,null,null,null,null,null,null,null,null,null,null,null,null,null,1,null,null,null,null,null,null,null,null,null,null,null,null,null,null,null,null,null,"--",null," "]
[300,null,null,null,null,null,null,null,null,null,null,null,null,null,1,null,null,null,null,null,null,null,null,null,null,null,null,null,null,null,null,null,"--",null," "]
[301,null,null,null,null,null,null,null,null,null,null,null,null,null,1,null,null,null,null,null,null,null,null,null,null,null,null,null,null,null,null,null,"--",null," "]
[302,null,null,null,null,null,null,null,null,null,null,null,null,null,1,null,null,null,null,null,null,null,null,null,null,null,null,null,null,null,null,null,"--",null," "]
[303,null,null,null,null,null,null,null,null,null,null,null,null,null,1,null,null,null,null,null,null,null,null,null,null,null,null,null,null,null,null,null,"--",null," "]
[304,null,null,null,null,null,null,null,null,null,null,null,null,null,1,null,null,null,null,null,null,null,null,null,null,null,null,null,null,null,null,null,"--",null," "]
[305,null,null,null,null,null,null,null,null,null,null,null,null,null,1,null,null,null,null,null,null,null,null,null,null,null,null,null,null,null,null,null,"--",null," "]
[306,null,null,null,null,null,null,null,null,null,null,null,null,null,1,null,null,null,null,null,null,null,null,null,null,null,null,null,null,null,null,null,"--",null," "]
[307,null,null,null,null,null,null,null,null,null,null,null,null,null,1,null,null,null,null,null,null,null,null,null,null,null,null,null,null,null,null,null,"--",null," "]
[308,null,null,null,null,null,null,null,null,null,null,null,null,null,1,null,null,null,null,null,null,null,null,null,null,null,null,null,null,null,null,null,"--",null," "]
[309,null,null,null,null,null,null,null,null,null,null,null,null,null,1,null,null,null,null,null,null,null,null,null,null,null,null,null,null,null,null,null,"--",null," "]
[310,null,null,null,null,null,null,null,null,null,null,null,null,null,1,null,null,null,null,null,null,null,null,null,null,null,null,null,null,null,null,null,"--",null," "]
[311,null,null,null,null,null,null,null,null,null,null,null,null,null,1,null,null,null,null,null,null,null,null,null,null,null,null,null,null,null,null,null,"--",null," "]
[312,null,null,null,null,null,null,null,null,null,null,null,null,null,1,null,null,null,null,null,null,null,null,null,null,null,null,null,null,null,null,null,"--",null," "]
[313,null,null,null,null,null,null,null,null,null,null,null,null,null,1,null,null,null,null,null,null,null,null,null,null,null,null,null,null,null,null,null,"--",null," "]
[314,null,null,null,null,null,null,null,null,null,null,null,null,null,1,null,null,null,null,null,null,null,null,null,null,null,null,null,null,null,null,null,"--",null," "]
[315,null,null,null,null,null,null,null,null,null,null,null,null,null,1,null,null,null,null,null,null,null,null,null,null,null,null,null,null,null,null,null,"--",null," "]
[316,null,null,null,null,null,null,null,null,null,null,null,null,null,1,null,null,null,null,null,null,null,null,null,null,null,null,null,null,null,null,null,"--",null," "]
[317,null,null,null,null,null,null,null,null,null,null,null,null,null,1,null,null,null,null,null,null,null,null,null,null,null,null,null,null,null,null,null,"--",null," "]
[318,null,null,null,null,null,null,null,null,null,null,null,null,null,1,null,null,null,null,null,null,null,null,null,null,null,null,null,null,null,null,null,"--",null," "]
[319,null,null,null,null,null,null,null,null,null,null,null,null,null,1,null,null,null,null,null,null,null,null,null,null,null,null,null,null,null,null,null,"--",null," "]
[320,null,null,null,null,null,null,null,null,null,null,null,null,null,1,null,null,null,null,null,null,null,null,null,null,null,null,null,null,null,null,null,"--",null," "]
[321,null,null,null,null,null,null,null,null,null,null,null,null,null,1,null,null,null,null,null,null,null,null,null,null,null,null,null,null,null,null,null,{"$f":"CONCATENATE(L336,\"-\",M336,\"-\",N336)","v":"--"},null," "]
[322,null,null,null,null,null,null,null,null,null,null,null,null,null,1,null,null,null,null,null,null,null,null,null,null,null,null,null,null,null,null,null,"--",null,{"$f":"IF(B337=\"M\",\"LOCALIZADO\",IF(B337=\"OK\",\"LOCALIZADO\",IF(B337=\"D\",\"LOCALIZADO\",IF(B337=\"BT\",\"LOCALIZADO\",IF(B337=\"NR\",\"LOCALIZADO PENDIENTE DE INVENTARIAR\",IF(B337=\"REU\",\"LOCALIZADO\",IF(B337=\"NO_L\",\"NO_LOCALIZADO\",IF(ISBLANK(B337),\" \",\"NO\"))))))))","v":" "}]
[323,null,null,null,null,null,null,null,null,null,null,null,null,null,1,null,null,null,null,null,null,null,null,null,null,null,null,null,null,null,null,null,"--",null," "]
[324,null,null,null,null,null,null,null,null,null,null,null,null,null,1,null,null,null,null,null,null,null,null,null,null,null,null,null,null,null,null,null,"--",null," "]
[325,null,null,null,null,null,null,null,null,null,null,null,null,null,1,null,null,null,null,null,null,null,null,null,null,null,null,null,null,null,null,null,"--",null," "]
[326,null,null,null,null,null,null,null,null,null,null,null,null,null,1,null,null,null,null,null,null,null,null,null,null,null,null,null,null,null,null,null,"--",null," "]
[327,null,null,null,null,null,null,null,null,null,null,null,null,null,1,null,null,null,null,null,null,null,null,null,null,null,null,null,null,null,null,null,"--",null," "]
[328,null,null,null,null,null,null,null,null,null,null,null,null,null,1,null,null,null,null,null,null,null,null,null,null,null,null,null,null,null,null,null,"--",null," "]
[329,null,null,null,null,null,null,null,null,null,null,null,null,null,1,null,null,null,null,null,null,null,null,null,null,null,null,null,null,null,null,null,"--",null," "]
[330,null,null,null,null,null,null,null,null,null,null,null,null,null,1,null,null,null,null,null,null,null,null,null,null,null,null,null,null,null,null,null,"--",null," "]
[331,null,null,null,null,null,null,null,null,null,null,null,null,null,1,null,null,null,null,null,null,null,null,null,null,null,null,null,null,null,null,null,"--",null," "]
[332,null,null,null,null,null,null,null,null,null,null,null,null,null,1,null,null,null,null,null,null,null,null,null,null,null,null,null,null,null,null,null,"--",null," "]
[333,null,null,null,null,null,null,null,null,null,null,null,null,null,1,null,null,null,null,null,null,null,null,null,null,null,null,null,null,null,null,null,"--",null," "]
[334,null,null,null,null,null,null,null,null,null,null,null,null,null,1,null,null,null,null,null,null,null,null,null,null,null,null,null,null,null,null,null,"--",null," "]
[335,null,null,null,null,null,null,null,null,null,null,null,null,null,1,null,null,null,null,null,null,null,null,null,null,null,null,null,null,null,null,null,"--",null," "]
[336,null,null,null,null,null,null,null,null,null,null,null,null,null,1,null,null,null,null,null,null,null,null,null,null,null,null,null,null,null,null,null,"--",null," "]
[337,null,null,null,null,null,null,null,null,null,null,null,null,null,1,null,null,null,null,null,null,null,null,null,null,null,null,null,null,null,null,null,"--",null," "]
[338,null,null,null,null,null,null,null,null,null,null,null,null,null,1,null,null,null,null,null,null,null,null,null,null,null,null,null,null,null,null,null,"--",null," "]
[339,null,null,null,null,null,null,null,null,null,null,null,null,null,1,null,null,null,null,null,null,null,null,null,null,null,null,null,null,null,null,null,"--",null," "]
[340,null,null,null,null,null,null,null,null,null,null,null,null,null,1,null,null,null,null,null,null,null,null,null,null,null,null,null,null,null,null,null,"--",null," "]
[341,null,null,null,null,null,null,null,null,null,null,null,null,null,1,null,null,null,null,null,null,null,null,null,null,null,null,null,null,null,null,null,"--",null," "]
[342,null,null,null,null,null,null,null,null,null,null,null,null,null,1,null,null,null,null,null,null,null,null,null,null,null,null,null,null,null,null,null,"--",null," "]
[343,null,null,null,null,null,null,null,null,null,null,null,null,null,1,null,null,null,null,null,null,null,null,null,null,null,null,null,null,null,null,null,"--",null," "]
[344,null,null,null,null,null,null,null,null,null,null,null,null,null,1,null,null,null,null,null,null,null,null,null,null,null,null,null,null,null,null,null,"--",null," "]
[345,null,null,null,null,null,null,null,null,null,null,null,null,null,1,null,null,null,null,null,null,null,null,null,null,null,null,null,null,null,null,null,"--",null," "]
[346,null,null,null,null,null,null,null,null,null,null,null,null,null,1,null,null,null,null,null,null,null,null,null,null,null,null,null,null,null,null,null,"--",null," "]
[347,null,null,null,null,null,null,null,null,null,null,null,null,null,1,null,null,null,null,null,null,null,null,null,null,null,null,null,null,null,null,null,"--",null," "]
[348,null,null,null,null,null,null,null,null,null,null,null,null,null,1,null,null,null,null,null,null,null,null,null,null,null,null,null,null,null,null,null,"--",null," "]
[349,null,null,null,null,null,null,null,null,null,null,null,null,null,1,null,null,null,null,null,null,null,null,null,null,null,null,null,null,null,null,null,"--",null," "]
[350,null,null,null,null,null,null,null,null,null,null,null,null,null,1,null,null,null,null,null,null,null,null,null,null,null,null,null,null,null,null,null,"--",null," "]
[351,null,null,null,null,null,null,null,null,null,null,null,null,null,1,null,null,null,null,null,null,null,null,null,null,null,null,null,null,null,null,null,"--",null," "]
[352,null,null,null,null,null,null,null,null,null,null,null,null,null,1,null,null,null,null,null,null,null,null,null,null,null,null,null,null,null,null,null,"--",null," "]
[353,null,null,null,null,null,null,null,null,null,null,null,null,null,1,null,null,null,null,null,null,null,null,null,null,null,null,null,null,null,null,null,"--",null," "]
[354,null,null,null,null,null,null,null,null,null,null,null,null,null,1,null,null,null,null,null,null,null,null,null,null,null,null,null,null,null,null,null,"--",null," "]
[355,null,null,null,null,null,null,null,null,null,null,null,null,null,1,null,null,null,null,null,null,null,null,null,null,null,null,null,null,null,null,null,"--",null," "]
[356,null,null,null,null,null,null,null,null,null,null,null,null,null,1,null,null,null,null,null,null,null,null,null,null,null,null,null,null,null,null,null,"--",null," "]
[357,null,null,null,null,null,null,null,null,null,null,null,null,null,1,null,null,null,null,null,null,null,null,null,null,null,null,null,null,null,null,null,"--",null," "]
[358,null,null,null,null,null,null,null,null,null,null,null,null,null,1,null,null,null,null,null,null,null,null,null,null,null,null,null,null,null,null,null,"--",null," "]
[359,null,null,null,null,null,null,null,null,null,null,null,null,null,1,null,null,null,null,null,null,null,null,null,null,null,null,null,null,null,null,null,"--",null," "]
[360,null,null,null,null,null,null,null,null,null,null,null,null,null,1,null,null,null,null,null,null,null,null,null,null,null,null,null,null,null,null,null,"--",null," "]
[361,null,null,null,null,null,null,null,null,null,null,null,null,null,1,null,null,null,null,null,null,null,null,null,null,null,null,null,null,null,null,null,"--",null," "]
[362,null,null,null,null,null,null,null,null,null,null,null,null,null,1,null,null,null,null,null,null,null,null,null,null,null,null,null,null,null,null,null,"--",null," "]
[363,null,null,null,null,null,null,null,null,null,null,null,null,null,1,null,null,null,null,null,null,null,null,null,null,null,null,null,null,null,null,null,"--",null," "]
[364,null,null,null,null,null,null,null,null,null,null,null,null,null,1,null,null,null,null,null,null,null,null,null,null,null,null,null,null,null,null,null,"--",null," "]
[365,null,null,null,null,null,null,null,null,null,null,null,null,null,1,null,null,null,null,null,null,null,null,null,null,null,null,null,null,null,null,null,"--",null," "]
[366,null,null,null,null,null,null,null,null,null,null,null,null,null,1,null,null,null,null,null,null,null,null,null,null,null,null,null,null,null,null,null,"--",null," "]
[367,null,null,null,null,null,null,null,null,null,null,null,null,null,1,null,null,null,null,null,null,null,null,null,null,null,null,null,null,null,null,null,"--",null," "]
[368,null,null,null,null,null,null,null,null,null,null,null,null,null,1,null,null,null,null,null,null,null,null,null,null,null,null,null,null,null,null,null,"--",null," "]
[369,null,null,null,null,null,null,null,null,null,null,null,null,null,1,null,null,null,null,null,null,null,null,null,null,null,null,null,null,null,null,null,"--",null," "]
[370,null,null,null,null,null,null,null,null,null,null,null,null,null,1,null,null,null,null,null,null,null,null,null,null,null,null,null,null,null,null,null,"--",null," "]
[371,null,null,null,null,null,null,null,null,null,null,null,null,null,1,null,null,null,null,null,null,null,null,null,null,null,null,null,null,null,null,null,"--",null," "]
[372,null,null,null,null,null,null,null,null,null,null,null,null,null,1,null,null,null,null,null,null,null,null,null,null,null,null,null,null,null,null,null,"--",null," "]
[373,null,null,null,null,null,null,null,null,null,null,null,null,null,1,null,null,null,null,null,null,null,null,null,null,null,null,null,null,null,null,null,"--",null," "]
[374,null,null,null,null,null,null,null,null,null,null,null,null,null,1,null,null,null,null,null,null,null,null,null,null,null,null,null,null,null,null,null,"--",null," "]
[375,null,null,null,null,null,null,null,null,null,null,null,null,null,1,null,null,null,null,null,null,null,null,null,null,null,null,null,null,null,null,null,"--",null," "]
[376,null,null,null,null,null,null,null,null,null,null,null,null,null,1,null,null,null,null,null,null,null,null,null,null,null,null,null,null,null,null,null,"--",null," "]
[377,null,null,null,null,null,null,null,null,null,null,null,null,null,1,null,null,null,null,null,null,null,null,null,null,null,null,null,null,null,null,null,"--",null," "]
[378,null,null,null,null,null,null,null,null,null,null,null,null,null,1,null,null,null,null,null,null,null,null,null,null,null,null,null,null,null,null,null,"--",null," "]
[379,null,null,null,null,null,null,null,null,null,null,null,null,null,1,null,null,null,null,null,null,null,null,null,null,null,null,null,null,null,null,null,"--",null," "]
[380,null,null,null,null,null,null,null,null,null,null,null,null,null,1,null,null,null,null,null,null,null,null,null,null,null,null,null,null,null,null,null,"--",null," "]
[381,null,null,null,null,null,null,null,null,null,null,null,null,null,1,null,null,null,null,null,null,null,null,null,null,null,null,null,null,null,null,null,"--",null," "]
[382,null,null,null,null,null,null,null,null,null,null,null,null,null,1,null,null,null,null,null,null,null,null,null,null,null,null,null,null,null,null,null,"--",null," "]
[383,null,null,null,null,null,null,null,null,null,null,null,null,null,1,null,null,null,null,null,null,null,null,null,null,null,null,null,null,null,null,null,"--",null," "]
[384,null,null,null,null,null,null,null,null,null,null,null,null,null,1,null,null,null,null,null,null,null,null,null,null,null,null,null,null,null,null,null,"--",null," "]
[385,null,null,null,null,null,null,null,null,null,null,null,null,null,1,null,null,null,null,null,null,null,null,null,null,null,null,null,null,null,null,null,{"$f":"CONCATENATE(L400,\"-\",M400,\"-\",N400)","v":"--"},null," "]
[386,null,null,null,null,null,null,null,null,null,null,null,null,null,1,null,null,null,null,null,null,null,null,null,null,null,null,null,null,null,null,null,"--",null,{"$f":"IF(B401=\"M\",\"LOCALIZADO\",IF(B401=\"OK\",\"LOCALIZADO\",IF(B401=\"D\",\"LOCALIZADO\",IF(B401=\"BT\",\"LOCALIZADO\",IF(B401=\"NR\",\"LOCALIZADO PENDIENTE DE INVENTARIAR\",IF(B401=\"REU\",\"LOCALIZADO\",IF(B401=\"NO_L\",\"NO_LOCALIZADO\",IF(ISBLANK(B401),\" \",\"NO\"))))))))","v":" "}]
[387,null,null,null,null,null,null,null,null,null,null,null,null,null,1,null,null,null,null,null,null,null,null,null,null,null,null,null,null,null,null,null,"--",null," "]
[388,null,null,null,null,null,null,null,null,null,null,null,null,null,1,null,null,null,null,null,null,null,null,null,null,null,null,null,null,null,null,null,"--",null," "]
[389,null,null,null,null,null,null,null,null,null,null,null,null,null,1,null,null,null,null,null,null,null,null,null,null,null,null,null,null,null,null,null,"--",null," "]
[390,null,null,null,null,null,null,null,null,null,null,null,null,null,1,null,null,null,null,null,null,null,null,null,null,null,null,null,null,null,null,null,"--",null," "]
[391,null,null,null,null,null,null,null,null,null,null,null,null,null,1,null,null,null,null,null,null,null,null,null,null,null,null,null,null,null,null,null,"--",null," "]
[392,null,null,null,null,null,null,null,null,null,null,null,null,null,1,null,null,null,null,null,null,null,null,null,null,null,null,null,null,null,null,null,"--",null," "]
[393,null,null,null,null,null,null,null,null,null,null,null,null,null,1,null,null,null,null,null,null,null,null,null,null,null,null,null,null,null,null,null,"--",null," "]
[394,null,null,null,null,null,null,null,null,null,null,null,null,null,1,null,null,null,null,null,null,null,null,null,null,null,null,null,null,null,null,null,"--",null," "]
[395,null,null,null,null,null,null,null,null,null,null,null,null,null,1,null,null,null,null,null,null,null,null,null,null,null,null,null,null,null,null,null,"--",null," "]
[396,null,null,null,null,null,null,null,null,null,null,null,null,null,1,null,null,null,null,null,null,null,null,null,null,null,null,null,null,null,null,null,"--",null," "]
[397,null,null,null,null,null,null,null,null,null,null,null,null,null,1,null,null,null,null,null,null,null,null,null,null,null,null,null,null,null,null,null,"--",null," "]
[398,null,null,null,null,null,null,null,null,null,null,null,null,null,1,null,null,null,null,null,null,null,null,null,null,null,null,null,null,null,null,null,"--",null," "]
[399,null,null,null,null,null,null,null,null,null,null,null,null,null,1,null,null,null,null,null,null,null,null,null,null,null,null,null,null,null,null,null,"--",null," "]
[400,null,null,null,null,null,null,null,null,null,null,null,null,null,1,null,null,null,null,null,null,null,null,null,null,null,null,null,null,null,null,null,"--",null," "]
[401,null,null,null,null,null,null,null,null,null,null,null,null,null,1,null,null,null,null,null,null,null,null,null,null,null,null,null,null,null,null,null,"--",null," "]
[402,null,null,null,null,null,null,null,null,null,null,null,null,null,1,null,null,null,null,null,null,null,null,null,null,null,null,null,null,null,null,null,"--",null," "]
[403,null,null,null,null,null,null,null,null,null,null,null,null,null,1,null,null,null,null,null,null,null,null,null,null,null,null,null,null,null,null,null,"--",null," "]
[404,null,null,null,null,null,null,null,null,null,null,null,null,null,1,null,null,null,null,null,null,null,null,null,null,null,null,null,null,null,null,null,"--",null," "]
[405,null,null,null,null,null,null,null,null,null,null,null,null,null,1,null,null,null,null,null,null,null,null,null,null,null,null,null,null,null,null,null,"--",null," "]
[406,null,null,null,null,null,null,null,null,null,null,null,null,null,1,null,null,null,null,null,null,null,null,null,null,null,null,null,null,null,null,null,"--",null," "]
[407,null,null,null,null,null,null,null,null,null,null,null,null,null,1,null,null,null,null,null,null,null,null,null,null,null,null,null,null,null,null,null,"--",null," "]
[408,null,null,null,null,null,null,null,null,null,null,null,null,null,1,null,null,null,null,null,null,null,null,null,null,null,null,null,null,null,null,null,"--",null," "]
[409,null,null,null,null,null,null,null,null,null,null,null,null,null,1,null,null,null,null,null,null,null,null,null,null,null,null,null,null,null,null,null,"--",null," "]
[410,null,null,null,null,null,null,null,null,null,null,null,null,null,1,null,null,null,null,null,null,null,null,null,null,null,null,null,null,null,null,null,"--",null," "]
[411,null,null,null,null,null,null,null,null,null,null,null,null,null,1,null,null,null,null,null,null,null,null,null,null,null,null,null,null,null,null,null,"--",null," "]
[412,null,null,null,null,null,null,null,null,null,null,null,null,null,1,null,null,null,null,null,null,null,null,null,null,null,null,null,null,null,null,null,"--",null," "]
[413,null,null,null,null,null,null,null,null,null,null,null,null,null,1,null,null,null,null,null,null,null,null,null,null,null,null,null,null,null,null,null,"--",null," "]
[414,null,null,null,null,null,null,null,null,null,null,null,null,null,1,null,null,null,null,null,null,null,null,null,null,null,null,null,null,null,null,null,"--",null," "]
[415,null,null,null,null,null,null,null,null,null,null,null,null,null,1,null,null,null,null,null,null,null,null,null,null,null,null,null,null,null,null,null,"--",null," "]
[416,null,null,null,null,null,null,null,null,null,null,null,null,null,1,null,null,null,null,null,null,null,null,null,null,null,null,null,null,null,null,null,"--",null," "]
[417,null,null,null,null,null,null,null,null,null,null,null,null,null,1,null,null,null,null,null,null,null,null,null,null,null,null,null,null,null,null,null,"--",null," "]
[418,null,null,null,null,null,null,null,null,null,null,null,null,null,1,null,null,null,null,null,null,null,null,null,null,null,null,null,null,null,null,null,"--",null," "]
[419,null,null,null,null,null,null,null,null,null,null,null,null,null,1,null,null,null,null,null,null,null,null,null,null,null,null,null,null,null,null,null,"--",null," "]
[420,null,null,null,null,null,null,null,null,null,null,null,null,null,1,null,null,null,null,null,null,null,null,null,null,null,null,null,null,null,null,null,"--",null," "]
[421,null,null,null,null,null,null,null,null,null,null,null,null,null,1,null,null,null,null,null,null,null,null,null,null,null,null,null,null,null,null,null,"--",null," "]
[422,null,null,null,null,null,null,null,null,null,null,null,null,null,1,null,null,null,null,null,null,null,null,null,null,null,null,null,null,null,null,null,"--",null," "]
[423,null,null,null,null,null,null,null,null,null,null,null,null,null,1,null,null,null,null,null,null,null,null,null,null,null,null,null,null,null,null,null,"--",null," "]
[424,null,null,null,null,null,null,null,null,null,null,null,null,null,1,null,null,null,null,null,null,null,null,null,null,null,null,null,null,null,null,null,"--",null," "]
[425,null,null,null,null,null,null,null,null,null,null,null,null,null,1,null,null,null,null,null,null,null,null,null,null,null,null,null,null,null,null,null,"--",null," "]
[426,null,null,null,null,null,null,null,null,null,null,null,null,null,1,null,null,null,null,null,null,null,null,null,null,null,null,null,null,null,null,null,"--",null," "]
[427,null,null,null,null,null,null,null,null,null,null,null,null,null,1,null,null,null,null,null,null,null,null,null,null,null,null,null,null,null,null,null,"--",null," "]
[428,null,null,null,null,null,null,null,null,null,null,null,null,null,1,null,null,null,null,null,null,null,null,null,null,null,null,null,null,null,null,null,"--",null," "]
[429,null,null,null,null,null,null,null,null,null,null,null,null,null,1,null,null,null,null,null,null,null,null,null,null,null,null,null,null,null,null,null,"--",null," "]
[430,null,null,null,null,null,null,null,null,null,null,null,null,null,1,null,null,null,null,null,null,null,null,null,null,null,null,null,null,null,null,null,"--",null," "]
[431,null,null,null,null,null,null,null,null,null,null,null,null,null,1,null,null,null,null,null,null,null,null,null,null,null,null,null,null,null,null,null,"--",null," "]
[432,null,null,null,null,null,null,null,null,null,null,null,null,null,1,null,null,null,null,null,null,null,null,null,null,null,null,null,null,null,null,null,"--",null," "]
[433,null,null,null,null,null,null,null,null,null,null,null,null,null,1,null,null,null,null,null,null,null,null,null,null,null,null,null,null,null,null,null,"--",null," "]
[434,null,null,null,null,null,null,null,null,null,null,null,null,null,1,null,null,null,null,null,null,null,null,null,null,null,null,null,null,null,null,null,"--",null," "]
[435,null,null,null,null,null,null,null,null,null,null,null,null,null,1,null,null,null,null,null,null,null,null,null,null,null,null,null,null,null,null,null,"--",null," "]
[436,null,null,null,null,null,null,null,null,null,null,null,null,null,1,null,null,null,null,null,null,null,null,null,null,null,null,null,null,null,null,null,"--",null," "]
[437,null,null,null,null,null,null,null,null,null,null,null,null,null,1,null,null,null,null,null,null,null,null,null,null,null,null,null,null,null,null,null,"--",null," "]
[438,null,null,null,null,null,null,null,null,null,null,null,null,null,1,null,null,null,null,null,null,null,null,null,null,null,null,null,null,null,null,null,"--",null," "]
[439,null,null,null,null,null,null,null,null,null,null,null,null,null,1,null,null,null,null,null,null,null,null,null,null,null,null,null,null,null,null,null,"--",null," "]
[440,null,null,null,null,null,null,null,null,null,null,null,null,null,1,null,null,null,null,null,null,null,null,null,null,null,null,null,null,null,null,null,"--",null," "]
[441,null,null,null,null,null,null,null,null,null,null,null,null,null,1,null,null,null,null,null,null,null,null,null,null,null,null,null,null,null,null,null,"--",null," "]
[442,null,null,null,null,null,null,null,null,null,null,null,null,null,1,null,null,null,null,null,null,null,null,null,null,null,null,null,null,null,null,null,"--",null," "]
[443,null,null,null,null,null,null,null,null,null,null,null,null,null,1,null,null,null,null,null,null,null,null,null,null,null,null,null,null,null,null,null,"--",null," "]
[444,null,null,null,null,null,null,null,null,null,null,null,null,null,1,null,null,null,null,null,null,null,null,null,null,null,null,null,null,null,null,null,"--",null," "]
[445,null,null,null,null,null,null,null,null,null,null,null,null,null,1,null,null,null,null,null,null,null,null,null,null,null,null,null,null,null,null,null,"--",null," "]
[446,null,null,null,null,null,null,null,null,null,null,null,null,null,1,null,null,null,null,null,null,null,null,null,null,null,null,null,null,null,null,null,"--",null," "]
[447,null,null,null,null,null,null,null,null,null,null,null,null,null,1,null,null,null,null,null,null,null,null,null,null,null,null,null,null,null,null,null,"--",null," "]
[448,null,null,null,null,null,null,null,null,null,null,null,null,null,1,null,null,null,null,null,null,null,null,null,null,null,null,null,null,null,null,null,"--",null," "]
[449,null,null,null,null,null,null,null,null,null,null,null,null,null,1,null,null,null,null,null,null,null,null,null,null,null,null,null,null,null,null,null,{"$f":"CONCATENATE(L464,\"-\",M464,\"-\",N464)","v":"--"},null," "]
[450,null,null,null,null,null,null,null,null,null,null,null,null,null,1,null,null,null,null,null,null,null,null,null,null,null,null,null,null,null,null,null,"--",null,{"$f":"IF(B465=\"M\",\"LOCALIZADO\",IF(B465=\"OK\",\"LOCALIZADO\",IF(B465=\"D\",\"LOCALIZADO\",IF(B465=\"BT\",\"LOCALIZADO\",IF(B465=\"NR\",\"LOCALIZADO PENDIENTE DE INVENTARIAR\",IF(B465=\"REU\",\"LOCALIZADO\",IF(B465=\"NO_L\",\"NO_LOCALIZADO\",IF(ISBLANK(B465),\" \",\"NO\"))))))))","v":" "}]
[451,null,null,null,null,null,null,null,null,null,null,null,null,null,1,null,null,null,null,null,null,null,null,null,null,null,null,null,null,null,null,null,"--",null," "]
[452,null,null,null,null,null,null,null,null,null,null,null,null,null,1,null,null,null,null,null,null,null,null,null,null,null,null,null,null,null,null,null,"--",null," "]
[453,null,null,null,null,null,null,null,null,null,null,null,null,null,1,null,null,null,null,null,null,null,null,null,null,null,null,null,null,null,null,null,"--",null," "]
[454,null,null,null,null,null,null,null,null,null,null,null,null,null,1,null,null,null,null,null,null,null,null,null,null,null,null,null,null,null,null,null,"--",null," "]
[455,null,null,null,null,null,null,null,null,null,null,null,null,null,1,null,null,null,null,null,null,null,null,null,null,null,null,null,null,null,null,null,"--",null," "]
[456,null,null,null,null,null,null,null,null,null,null,null,null,null,1,null,null,null,null,null,null,null,null,null,null,null,null,null,null,null,null,null,"--",null," "]
[457,null,null,null,null,null,null,null,null,null,null,null,null,null,1,null,null,null,null,null,null,null,null,null,null,null,null,null,null,null,null,null,"--",null," "]
[458,null,null,null,null,null,null,null,null,null,null,null,null,null,1,null,null,null,null,null,null,null,null,null,null,null,null,null,null,null,null,null,"--",null," "]
[459,null,null,null,null,null,null,null,null,null,null,null,null,null,1,null,null,null,null,null,null,null,null,null,null,null,null,null,null,null,null,null,"--",null," "]
[460,null,null,null,null,null,null,null,null,null,null,null,null,null,1,null,null,null,null,null,null,null,null,null,null,null,null,null,null,null,null,null,"--",null," "]
[461,null,null,null,null,null,null,null,null,null,null,null,null,null,1,null,null,null,null,null,null,null,null,null,null,null,null,null,null,null,null,null,"--",null," "]
[462,null,null,null,null,null,null,null,null,null,null,null,null,null,1,null,null,null,null,null,null,null,null,null,null,null,null,null,null,null,null,null,"--",null," "]
[463,null,null,null,null,null,null,null,null,null,null,null,null,null,1,null,null,null,null,null,null,null,null,null,null,null,null,null,null,null,null,null,"--",null," "]
[464,null,null,null,null,null,null,null,null,null,null,null,null,null,1,null,null,null,null,null,null,null,null,null,null,null,null,null,null,null,null,null,"--",null," "]
[465,null,null,null,null,null,null,null,null,null,null,null,null,null,1,null,null,null,null,null,null,null,null,null,null,null,null,null,null,null,null,null,"--",null," "]
[466,null,null,null,null,null,null,null,null,null,null,null,null,null,1,null,null,null,null,null,null,null,null,null,null,null,null,null,null,null,null,null,"--",null," "]
[467,null,null,null,null,null,null,null,null,null,null,null,null,null,1,null,null,null,null,null,null,null,null,null,null,null,null,null,null,null,null,null,"--",null," "]
[468,null,null,null,null,null,null,null,null,null,null,null,null,null,1,null,null,null,null,null,null,null,null,null,null,null,null,null,null,null,null,null,"--",null," "]
[469,null,null,null,null,null,null,null,null,null,null,null,null,null,1,null,null,null,null,null,null,null,null,null,null,null,null,null,null,null,null,null,"--",null," "]
[470,null,null,null,null,null,null,null,null,null,null,null,null,null,1,null,null,null,null,null,null,null,null,null,null,null,null,null,null,null,null,null,"--",null," "]
[471,null,null,null,null,null,null,null,null,null,null,null,null,null,1,null,null,null,null,null,null,null,null,null,null,null,null,null,null,null,null,null,"--",null," "]
[472,null,null,null,null,null,null,null,null,null,null,null,null,null,1,null,null,null,null,null,null,null,null,null,null,null,null,null,null,null,null,null,"--",null," "]
[473,null,null,null,null,null,null,null,null,null,null,null,null,null,1,null,null,null,null,null,null,null,null,null,null,null,null,null,null,null,null,null,"--",null," "]
[474,null,null,null,null,null,null,null,null,null,null,null,null,null,1,null,null,null,null,null,null,null,null,null,null,null,null,null,null,null,null,null,"--",null," "]
[475,null,null,null,null,null,null,null,null,null,null,null,null,null,1,null,null,null,null,null,null,null,null,null,null,null,null,null,null,null,null,null,"--",null," "]
[476,null,null,null,null,null,null,null,null,null,null,null,null,null,1,null,null,null,null,null,null,null,null,null,null,null,null,null,null,null,null,null,"--",null," "]
[477,null,null,null,null,null,null,null,null,null,null,null,null,null,1,null,null,null,null,null,null,null,null,null,null,null,null,null,null,null,null,null,"--",null," "]
[478,null,null,null,null,null,null,null,null,null,null,null,null,null,1,null,null,null,null,null,null,null,null,null,null,null,null,null,null,null,null,null,"--",null," "]
[479,null,null,null,null,null,null,null,null,null,null,null,null,null,1,null,null,null,null,null,null,null,null,null,null,null,null,null,null,null,null,null,"--",null," "]
[480,null,null,null,null,null,null,null,null,null,null,null,null,null,1,null,null,null,null,null,null,null,null,null,null,null,null,null,null,null,null,null,"--",null," "]
[481,null,null,null,null,null,null,null,null,null,null,null,null,null,1,null,null,null,null,null,null,null,null,null,null,null,null,null,null,null,null,null,"--",null," "]
[482,null,null,null,null,null,null,null,null,null,null,null,null,null,1,null,null,null,null,null,null,null,null,null,null,null,null,null,null,null,null,null,"--",null," "]
[483,null,null,null,null,null,null,null,null,null,null,null,null,null,1,null,null,null,null,null,null,null,null,null,null,null,null,null,null,null,null,null,"--",null," "]
[484,null,null,null,null,null,null,null,null,null,null,null,null,null,1,null,null,null,null,null,null,null,null,null,null,null,null,null,null,null,null,null,"--",null," "]
[485,null,null,null,null,null,null,null,null,null,null,null,null,null,1,null,null,null,null,null,null,null,null,null,null,null,null,null,null,null,null,null,"--",null," "]
[486,null,null,null,null,null,null,null,null,null,null,null,null,null,1,null,null,null,null,null,null,null,null,null,null,null,null,null,null,null,null,null,"--",null," "]
[487,null,null,null,null,null,null,null,null,null,null,null,null,null,1,null,null,null,null,null,null,null,null,null,null,null,null,null,null,null,null,null,"--",null," "]
[488,null,null,null,null,null,null,null,null,null,null,null,null,null,1,null,null,null,null,null,null,null,null,null,null,null,null,null,null,null,null,null,"--",null," "]
[489,null,null,null,null,null,null,null,null,null,null,null,null,null,1,null,null,null,null,null,null,null,null,null,null,null,null,null,null,null,null,null,"--",null," "]
[490,null,null,null,null,null,null,null,null,null,null,null,null,null,1,null,null,null,null,null,null,null,null,null,null,null,null,null,null,null,null,null,"--",null," "]
[491,null,null,null,null,null,null,null,null,null,null,null,null,null,1,null,null,null,null,null,null,null,null,null,null,null,null,null,null,null,null,null,"--",null," "]
[492,null,null,null,null,null,null,null,null,null,null,null,null,null,1,null,null,null,null,null,null,null,null,null,null,null,null,null,null,null,null,null,"--",null," "]
[493,null,null,null,null,null,null,null,null,null,null,null,null,null,1,null,null,null,null,null,null,null,null,null,null,null,null,null,null,null,null,null,"--",null," "]
[494,null,null,null,null,null,null,null,null,null,null,null,null,null,1,null,null,null,null,null,null,null,null,null,null,null,null,null,null,null,null,null,"--",null," "]
[495,null,null,null,null,null,null,null,null,null,null,null,null,null,1,null,null,null,null,null,null,null,null,null,null,null,null,null,null,null,null,null,"--",null," "]
[496,null,null,null,null,null,null,null,null,null,null,null,null,null,1,null,null,null,null,null,null,null,null,null,null,null,null,null,null,null,null,null,"--",null," "]
[497,null,null,null,null,null,null,null,null,null,null,null,null,null,1,null,null,null,null,null,null,null,null,null,null,null,null,null,null,null,null,null,"--",null," "]
[498,null,null,null,null,null,null,null,null,null,null,null,null,null,1,null,null,null,null,null,null,null,null,null,null,null,null,null,null,null,null,null,"--",null," "]
[499,null,null,null,null,null,null,null,null,null,null,null,null,null,1,null,null,null,null,null,null,null,null,null,null,null,null,null,null,null,null,null,"--",null," "]
[500,null,null,null,null,null,null,null,null,null,null,null,null,null,1,null,null,null,null,null,null,null,null,null,null,null,null,null,null,null,null,null,"--",null," "]
[501,null,null,null,null,null,null,null,null,null,null,null,null,null,1,null,null,null,null,null,null,null,null,null,null,null,null,null,null,null,null,null,"--",null," "]
[502,null,null,null,null,null,null,null,null,null,null,null,null,null,1,null,null,null,null,null,null,null,null,null,null,null,null,null,null,null,null,null,"--",null," "]
[503,null,null,null,null,null,null,null,null,null,null,null,null,null,1,null,null,null,null,null,null,null,null,null,null,null,null,null,null,null,null,null,"--",null," "]
[504,null,null,null,null,null,null,null,null,null,null,null,null,null,1,null,null,null,null,null,null,null,null,null,null,null,null,null,null,null,null,null,"--",null," "]
[505,null,null,null,null,null,null,null,null,null,null,null,null,null,1,null,null,null,null,null,null,null,null,null,null,null,null,null,null,null,null,null,"--",null," "]
[506,null,null,null,null,null,null,null,null,null,null,null,null,null,1,null,null,null,null,null,null,null,null,null,null,null,null,null,null,null,null,null,"--",null," "]
[507,null,null,null,null,null,null,null,null,null,null,null,null,null,1,null,null,null,null,null,null,null,null,null,null,null,null,null,null,null,null,null,"--",null," "]
[508,null,null,null,null,null,null,null,null,null,null,null,null,null,1,null,null,null,null,null,null,null,null,null,null,null,null,null,null,null,null,null,"--",null," "]
[509,null,null,null,null,null,null,null,null,null,null,null,null,null,1,null,null,null,null,null,null,null,null,null,null,null,null,null,null,null,null,null,"--",null," "]
[510,null,null,null,null,null,null,null,null,null,null,null,null,null,1,null,null,null,null,null,null,null,null,null,null,null,null,null,null,null,null,null,"--",null," "]
[511,null,null,null,null,null,null,null,null,null,null,null,null,null,1,null,null,null,null,null,null,null,null,null,null,null,null,null,null,null,null,null,"--",null," "]
[512,null,null,null,null,null,null,null,null,null,null,null,null,null,1,null,null,null,null,null,null,null,null,null,null,null,null,null,null,null,null,null,"--",null," "]
[513,null,null,null,null,null,null,null,null,null,null,null,null,null,1,null,null,null,null,null,null,null,null,null,null,null,null,null,null,null,null,null,{"$f":"CONCATENATE(L528,\"-\",M528,\"-\",N528)","v":"--"},null," "]
[514,null,null,null,null,null,null,null,null,null,null,null,null,null,1,null,null,null,null,null,null,null,null,null,null,null,null,null,null,null,null,null,"--",null,{"$f":"IF(B529=\"M\",\"LOCALIZADO\",IF(B529=\"OK\",\"LOCALIZADO\",IF(B529=\"D\",\"LOCALIZADO\",IF(B529=\"BT\",\"LOCALIZADO\",IF(B529=\"NR\",\"LOCALIZADO PENDIENTE DE INVENTARIAR\",IF(B529=\"REU\",\"LOCALIZADO\",IF(B529=\"NO_L\",\"NO_LOCALIZADO\",IF(ISBLANK(B529),\" \",\"NO\"))))))))","v":" "}]
[515,null,null,null,null,null,null,null,null,null,null,null,null,null,1,null,null,null,null,null,null,null,null,null,null,null,null,null,null,null,null,null,"--",null," "]
[516,null,null,null,null,null,null,null,null,null,null,null,null,null,1,null,null,null,null,null,null,null,null,null,null,null,null,null,null,null,null,null,"--",null," "]
[517,null,null,null,null,null,null,null,null,null,null,null,null,null,1,null,null,null,null,null,null,null,null,null,null,null,null,null,null,null,null,null,"--",null," "]
[518,null,null,null,null,null,null,null,null,null,null,null,null,null,1,null,null,null,null,null,null,null,null,null,null,null,null,null,null,null,null,null,"--",null," "]
[519,null,null,null,null,null,null,null,null,null,null,null,null,null,1,null,null,null,null,null,null,null,null,null,null,null,null,null,null,null,null,null,"--",null," "]
[520,null,null,null,null,null,null,null,null,null,null,null,null,null,1,null,null,null,null,null,null,null,null,null,null,null,null,null,null,null,null,null,"--",null," "]
[521,null,null,null,null,null,null,null,null,null,null,null,null,null,1,null,null,null,null,null,null,null,null,null,null,null,null,null,null,null,null,null,"--",null," "]
[522,null,null,null,null,null,null,null,null,null,null,null,null,null,1,null,null,null,null,null,null,null,null,null,null,null,null,null,null,null,null,null,"--",null," "]
[523,null,null,null,null,null,null,null,null,null,null,null,null,null,1,null,null,null,null,null,null,null,null,null,null,null,null,null,null,null,null,null,"--",null," "]
[524,null,null,null,null,null,null,null,null,null,null,null,null,null,1,null,null,null,null,null,null,null,null,null,null,null,null,null,null,null,null,null,"--",null," "]
[525,null,null,null,null,null,null,null,null,null,null,null,null,null,1,null,null,null,null,null,null,null,null,null,null,null,null,null,null,null,null,null,"--",null," "]
[526,null,null,null,null,null,null,null,null,null,null,null,null,null,1,null,null,null,null,null,null,null,null,null,null,null,null,null,null,null,null,null,"--",null," "]
[527,null,null,null,null,null,null,null,null,null,null,null,null,null,1,null,null,null,null,null,null,null,null,null,null,null,null,null,null,null,null,null,"--",null," "]
[528,null,null,null,null,null,null,null,null,null,null,null,null,null,1,null,null,null,null,null,null,null,null,null,null,null,null,null,null,null,null,null,"--",null," "]
[529,null,null,null,null,null,null,null,null,null,null,null,null,null,1,null,null,null,null,null,null,null,null,null,null,null,null,null,null,null,null,null,"--",null," "]
[530,null,null,null,null,null,null,null,null,null,null,null,null,null,1,null,null,null,null,null,null,null,null,null,null,null,null,null,null,null,null,null,"--",null," "]
[531,null,null,null,null,null,null,null,null,null,null,null,null,null,1,null,null,null,null,null,null,null,null,null,null,null,null,null,null,null,null,null,"--",null," "]
[532,null,null,null,null,null,null,null,null,null,null,null,null,null,1,null,null,null,null,null,null,null,null,null,null,null,null,null,null,null,null,null,"--",null," "]
[533,null,null,null,null,null,null,null,null,null,null,null,null,null,1,null,null,null,null,null,null,null,null,null,null,null,null,null,null,null,null,null,"--",null," "]
[534,null,null,null,null,null,null,null,null,null,null,null,null,null,1,null,null,null,null,null,null,null,null,null,null,null,null,null,null,null,null,null,"--",null," "]
[535,null,null,null,null,null,null,null,null,null,null,null,null,null,1,null,null,null,null,null,null,null,null,null,null,null,null,null,null,null,null,null,"--",null," "]
[536,null,null,null,null,null,null,null,null,null,null,null,null,null,1,null,null,null,null,null,null,null,null,null,null,null,null,null,null,null,null,null,"--",null," "]
[537,null,null,null,null,null,null,null,null,null,null,null,null,null,1,null,null,null,null,null,null,null,null,null,null,null,null,null,null,null,null,null,"--",null," "]
[538,null,null,null,null,null,null,null,null,null,null,null,null,null,1,null,null,null,null,null,null,null,null,null,null,null,null,null,null,null,null,null,"--",null," "]
[539,null,null,null,null,null,null,null,null,null,null,null,null,null,1,null,null,null,null,null,null,null,null,null,null,null,null,null,null,null,null,null,"--",null," "]
[540,null,null,null,null,null,null,null,null,null,null,null,null,null,1,null,null,null,null,null,null,null,null,null,null,null,null,null,null,null,null,null,"--",null," "]
[541,null,null,null,null,null,null,null,null,null,null,null,null,null,1,null,null,null,null,null,null,null,null,null,null,null,null,null,null,null,null,null,"--",null," "]
[542,null,null,null,null,null,null,null,null,null,null,null,null,null,1,null,null,null,null,null,null,null,null,null,null,null,null,null,null,null,null,null,"--",null," "]
[543,null,null,null,null,null,null,null,null,null,null,null,null,null,1,null,null,null,null,null,null,null,null,null,null,null,null,null,null,null,null,null,"--",null," "]
[544,null,null,null,null,null,null,null,null,null,null,null,null,null,1,null,null,null,null,null,null,null,null,null,null,null,null,null,null,null,null,null,"--",null," "]
[545,null,null,null,null,null,null,null,null,null,null,null,null,null,1,null,null,null,null,null,null,null,null,null,null,null,null,null,null,null,null,null,"--",null," "]
[546,null,null,null,null,null,null,null,null,null,null,null,null,null,1,null,null,null,null,null,null,null,null,null,null,null,null,null,null,null,null,null,"--",null," "]
[547,null,null,null,null,null,null,null,null,null,null,null,null,null,1,null,null,null,null,null,null,null,null,null,null,null,null,null,null,null,null,null,"--",null," "]
[548,null,null,null,null,null,null,null,null,null,null,null,null,null,1,null,null,null,null,null,null,null,null,null,null,null,null,null,null,null,null,null,"--",null," "]
[549,null,null,null,null,null,null,null,null,null,null,null,null,null,1,null,null,null,null,null,null,null,null,null,null,null,null,null,null,null,null,null,"--",null," "]
[550,null,null,null,null,null,null,null,null,null,null,null,null,null,1,null,null,null,null,null,null,null,null,null,null,null,null,null,null,null,null,null,"--",null," "]
[551,null,null,null,null,null,null,null,null,null,null,null,null,null,1,null,null,null,null,null,null,null,null,null,null,null,null,null,null,null,null,null,"--",null," "]
[552,null,null,null,null,null,null,null,null,null,null,null,null,null,1,null,null,null,null,null,null,null,null,null,null,null,null,null,null,null,null,null,"--",null," "]
[553,null,null,null,null,null,null,null,null,null,null,null,null,null,1,null,null,null,null,null,null,null,null,null,null,null,null,null,null,null,null,null,"--",null," "]
[554,null,null,null,null,null,null,null,null,null,null,null,null,null,1,null,null,null,null,null,null,null,null,null,null,null,null,null,null,null,null,null,"--",null," "]
[555,null,null,null,null,null,null,null,null,null,null,null,null,null,1,null,null,null,null,null,null,null,null,null,null,null,null,null,null,null,null,null,"--",null," "]
[556,null,null,null,null,null,null,null,null,null,null,null,null,null,1,null,null,null,null,null,null,null,null,null,null,null,null,null,null,null,null,null,"--",null," "]
[557,null,null,null,null,null,null,null,null,null,null,null,null,null,1,null,null,null,null,null,null,null,null,null,null,null,null,null,null,null,null,null,"--",null," "]
[558,null,null,null,null,null,null,null,null,null,null,null,null,null,1,null,null,null,null,null,null,null,null,null,null,null,null,null,null,null,null,null,"--",null," "]
[559,null,null,null,null,null,null,null,null,null,null,null,null,null,1,null,null,null,null,null,null,null,null,null,null,null,null,null,null,null,null,null,"--",null," "]
[560,null,null,null,null,null,null,null,null,null,null,null,null,null,1,null,null,null,null,null,null,null,null,null,null,null,null,null,null,null,null,null,"--",null," "]
[561,null,null,null,null,null,null,null,null,null,null,null,null,null,1,null,null,null,null,null,null,null,null,null,null,null,null,null,null,null,null,null,"--",null," "]
[562,null,null,null,null,null,null,null,null,null,null,null,null,null,1,null,null,null,null,null,null,null,null,null,null,null,null,null,null,null,null,null,"--",null," "]
[563,null,null,null,null,null,null,null,null,null,null,null,null,null,1,null,null,null,null,null,null,null,null,null,null,null,null,null,null,null,null,null,"--",null," "]
[564,null,null,null,null,null,null,null,null,null,null,null,null,null,1,null,null,null,null,null,null,null,null,null,null,null,null,null,null,null,null,null,"--",null," "]
[565,null,null,null,null,null,null,null,null,null,null,null,null,null,1,null,null,null,null,null,null,null,null,null,null,null,null,null,null,null,null,null,"--",null," "]
[566,null,null,null,null,null,null,null,null,null,null,null,null,null,1,null,null,null,null,null,null,null,null,null,null,null,null,null,null,null,null,null,"--",null," "]
[567,null,null,null,null,null,null,null,null,null,null,null,null,null,1,null,null,null,null,null,null,null,null,null,null,null,null,null,null,null,null,null,"--",null," "]
[568,null,null,null,null,null,null,null,null,null,null,null,null,null,1,null,null,null,null,null,null,null,null,null,null,null,null,null,null,null,null,null,"--",null," "]
[569,null,null,null,null,null,null,null,null,null,null,null,null,null,1,null,null,null,null,null,null,null,null,null,null,null,null,null,null,null,null,null,"--",null," "]
[570,null,null,null,null,null,null,null,null,null,null,null,null,null,1,null,null,null,null,null,null,null,null,null,null,null,null,null,null,null,null,null,"--",null," "]
[571,null,null,null,null,null,null,null,null,null,null,null,null,null,1,null,null,null,null,null,null,null,null,null,null,null,null,null,null,null,null,null,"--",null," "]
[572,null,null,null,null,null,null,null,null,null,null,null,null,null,1,null,null,null,null,null,null,null,null,null,null,null,null,null,null,null,null,null,"--",null," "]
[573,null,null,null,null,null,null,null,null,null,null,null,null,null,1,null,null,null,null,null,null,null,null,null,null,null,null,null,null,null,null,null,"--",null," "]
[574,null,null,null,null,null,null,null,null,null,null,null,null,null,1,null,null,null,null,null,null,null,null,null,null,null,null,null,null,null,null,null,"--",null," "]
[575,null,null,null,null,null,null,null,null,null,null,null,null,null,1,null,null,null,null,null,null,null,null,null,null,null,null,null,null,null,null,null,"--",null," "]
[576,null,null,null,null,null,null,null,null,null,null,null,null,null,1,null,null,null,null,null,null,null,null,null,null,null,null,null,null,null,null,null,"--",null," "]
[577,null,null,null,null,null,null,null,null,null,null,null,null,null,1,null,null,null,null,null,null,null,null,null,null,null,null,null,null,null,null,null,{"$f":"CONCATENATE(L592,\"-\",M592,\"-\",N592)","v":"--"},null," "]
[578,null,null,null,null,null,null,null,null,null,null,null,null,null,1,null,null,null,null,null,null,null,null,null,null,null,null,null,null,null,null,null,"--",null,{"$f":"IF(B593=\"M\",\"LOCALIZADO\",IF(B593=\"OK\",\"LOCALIZADO\",IF(B593=\"D\",\"LOCALIZADO\",IF(B593=\"BT\",\"LOCALIZADO\",IF(B593=\"NR\",\"LOCALIZADO PENDIENTE DE INVENTARIAR\",IF(B593=\"REU\",\"LOCALIZADO\",IF(B593=\"NO_L\",\"NO_LOCALIZADO\",IF(ISBLANK(B593),\" \",\"NO\"))))))))","v":" "}]
[579,null,null,null,null,null,null,null,null,null,null,null,null,null,1,null,null,null,null,null,null,null,null,null,null,null,null,null,null,null,null,null,"--",null," "]
[580,null,null,null,null,null,null,null,null,null,null,null,null,null,1,null,null,null,null,null,null,null,null,null,null,null,null,null,null,null,null,null,"--",null," "]
[581,null,null,null,null,null,null,null,null,null,null,null,null,null,1,null,null,null,null,null,null,null,null,null,null,null,null,null,null,null,null,null,"--",null," "]
[582,null,null,null,null,null,null,null,null,null,null,null,null,null,1,null,null,null,null,null,null,null,null,null,null,null,null,null,null,null,null,null,"--",null," "]
[583,null,null,null,null,null,null,null,null,null,null,null,null,null,1,null,null,null,null,null,null,null,null,null,null,null,null,null,null,null,null,null,"--",null," "]
[584,null,null,null,null,null,null,null,null,null,null,null,null,null,1,null,null,null,null,null,null,null,null,null,null,null,null,null,null,null,null,null,"--",null," "]
[585,null,null,null,null,null,null,null,null,null,null,null,null,null,1,null,null,null,null,null,null,null,null,null,null,null,null,null,null,null,null,null,"--",null," "]
[586,null,null,null,null,null,null,null,null,null,null,null,null,null,1,null,null,null,null,null,null,null,null,null,null,null,null,null,null,null,null,null,"--",null," "]
[587,null,null,null,null,null,null,null,null,null,null,null,null,null,1,null,null,null,null,null,null,null,null,null,null,null,null,null,null,null,null,null,"--",null," "]
[588,null,null,null,null,null,null,null,null,null,null,null,null,null,1,null,null,null,null,null,null,null,null,null,null,null,null,null,null,null,null,null,"--",null," "]
[589,null,null,null,null,null,null,null,null,null,null,null,null,null,1,null,null,null,null,null,null,null,null,null,null,null,null,null,null,null,null,null,"--",null," "]
[590,null,null,null,null,null,null,null,null,null,null,null,null,null,1,null,null,null,null,null,null,null,null,null,null,null,null,null,null,null,null,null,"--",null," "]
[591,null,null,null,null,null,null,null,null,null,null,null,null,null,1,null,null,null,null,null,null,null,null,null,null,null,null,null,null,null,null,null,"--",null," "]
[592,null,null,null,null,null,null,null,null,null,null,null,null,null,1,null,null,null,null,null,null,null,null,null,null,null,null,null,null,null,null,null,"--",null," "]
[593,null,null,null,null,null,null,null,null,null,null,null,null,null,1,null,null,null,null,null,null,null,null,null,null,null,null,null,null,null,null,null,"--",null," "]
[594,null,null,null,null,null,null,null,null,null,null,null,null,null,1,null,null,null,null,null,null,null,null,null,null,null,null,null,null,null,null,null,"--",null," "]
[595,null,null,null,null,null,null,null,null,null,null,null,null,null,1,null,null,null,null,null,null,null,null,null,null,null,null,null,null,null,null,null,"--",null," "]
[596,null,null,null,null,null,null,null,null,null,null,null,null,null,1,null,null,null,null,null,null,null,null,null,null,null,null,null,null,null,null,null,"--",null," "]
[597,null,null,null,null,null,null,null,null,null,null,null,null,null,1,null,null,null,null,null,null,null,null,null,null,null,null,null,null,null,null,null,"--",null," "]
[598,null,null,null,null,null,null,null,null,null,null,null,null,null,1,null,null,null,null,null,null,null,null,null,null,null,null,null,null,null,null,null,"--",null," "]
[599,null,null,null,null,null,null,null,null,null,null,null,null,null,1,null,null,null,null,null,null,null,null,null,null,null,null,null,null,null,null,null,"--",null," "]
[600,null,null,null,null,null,null,null,null,null,null,null,null,null,1,null,null,null,null,null,null,null,null,null,null,null,null,null,null,null,null,null,"--",null," "]
[601,null,null,null,null,null,null,null,null,null,null,null,null,null,1,null,null,null,null,null,null,null,null,null,null,null,null,null,null,null,null,null,"--",null," "]
[602,null,null,null,null,null,null,null,null,null,null,null,null,null,1,null,null,null,null,null,null,null,null,null,null,null,null,null,null,null,null,null,"--",null," "]
[603,null,null,null,null,null,null,null,null,null,null,null,null,null,1,null,null,null,null,null,null,null,null,null,null,null,null,null,null,null,null,null,"--",null," "]
[604,null,null,null,null,null,null,null,null,null,null,null,null,null,1,null,null,null,null,null,null,null,null,null,null,null,null,null,null,null,null,null,"--",null," "]
[605,null,null,null,null,null,null,null,null,null,null,null,null,null,1,null,null,null,null,null,null,null,null,null,null,null,null,null,null,null,null,null,"--",null," "]
[606,null,null,null,null,null,null,null,null,null,null,null,null,null,1,null,null,null,null,null,null,null,null,null,null,null,null,null,null,null,null,null,"--",null," "]
[607,null,null,null,null,null,null,null,null,null,null,null,null,null,1,null,null,null,null,null,null,null,null,null,null,null,null,null,null,null,null,null,"--",null," "]
[608,null,null,null,null,null,null,null,null,null,null,null,null,null,1,null,null,null,null,null,null,null,null,null,null,null,null,null,null,null,null,null,"--",null," "]
[609,null,null,null,null,null,null,null,null,null,null,null,null,null,1,null,null,null,null,null,null,null,null,null,null,null,null,null,null,null,null,null,"--",null," "]
[610,null,null,null,null,null,null,null,null,null,null,null,null,null,1,null,null,null,null,null,null,null,null,null,null,null,null,null,null,null,null,null,"--",null," "]
[611,null,null,null,null,null,null,null,null,null,null,null,null,null,1,null,null,null,null,null,null,null,null,null,null,null,null,null,null,null,null,null,"--",null," "]
[612,null,null,null,null,null,null,null,null,null,null,null,null,null,1,null,null,null,null,null,null,null,null,null,null,null,null,null,null,null,null,null,"--",null," "]
[613,null,null,null,null,null,null,null,null,null,null,null,null,null,1,null,null,null,null,null,null,null,null,null,null,null,null,null,null,null,null,null,"--",null," "]
[614,null,null,null,null,null,null,null,null,null,null,null,null,null,1,null,null,null,null,null,null,null,null,null,null,null,null,null,null,null,null,null,"--",null," "]
[615,null,null,null,null,null,null,null,null,null,null,null,null,null,1,null,null,null,null,null,null,null,null,null,null,null,null,null,null,null,null,null,"--",null," "]
[616,null,null,null,null,null,null,null,null,null,null,null,null,null,1,null,null,null,null,null,null,null,null,null,null,null,null,null,null,null,null,null,"--",null," "]
[617,null,null,null,null,null,null,null,null,null,null,null,null,null,1,null,null,null,null,null,null,null,null,null,null,null,null,null,null,null,null,null,"--",null," "]
[618,null,null,null,null,null,null,null,null,null,null,null,null,null,1,null,null,null,null,null,null,null,null,null,null,null,null,null,null,null,null,null,"--",null," "]
[619,null,null,null,null,null,null,null,null,null,null,null,null,null,1,null,null,null,null,null,null,null,null,null,null,null,null,null,null,null,null,null,"--",null," "]
[620,null,null,null,null,null,null,null,null,null,null,null,null,null,1,null,null,null,null,null,null,null,null,null,null,null,null,null,null,null,null,null,"--",null," "]
[621,null,null,null,null,null,null,null,null,null,null,null,null,null,1,null,null,null,null,null,null,null,null,null,null,null,null,null,null,null,null,null,"--",null," "]
[622,null,null,null,null,null,null,null,null,null,null,null,null,null,1,null,null,null,null,null,null,null,null,null,null,null,null,null,null,null,null,null,"--",null," "]
[623,null,null,null,null,null,null,null,null,null,null,null,null,null,1,null,null,null,null,null,null,null,null,null,null,null,null,null,null,null,null,null,"--",null," "]
[624,null,null,null,null,null,null,null,null,null,null,null,null,null,1,null,null,null,null,null,null,null,null,null,null,null,null,null,null,null,null,null,"--",null," "]
[625,null,null,null,null,null,null,null,null,null,null,null,null,null,1,null,null,null,null,null,null,null,null,null,null,null,null,null,null,null,null,null,"--",null," "]
[626,null,null,null,null,null,null,null,null,null,null,null,null,null,1,null,null,null,null,null,null,null,null,null,null,null,null,null,null,null,null,null,"--",null," "]
[627,null,null,null,null,null,null,null,null,null,null,null,null,null,1,null,null,null,null,null,null,null,null,null,null,null,null,null,null,null,null,null,"--",null," "]
[628,null,null,null,null,null,null,null,null,null,null,null,null,null,1,null,null,null,null,null,null,null,null,null,null,null,null,null,null,null,null,null,"--",null," "]
[629,null,null,null,null,null,null,null,null,null,null,null,null,null,1,null,null,null,null,null,null,null,null,null,null,null,null,null,null,null,null,null,"--",null," "]
[630,null,null,null,null,null,null,null,null,null,null,null,null,null,1,null,null,null,null,null,null,null,null,null,null,null,null,null,null,null,null,null,"--",null," "]
[631,null,null,null,null,null,null,null,null,null,null,null,null,null,1,null,null,null,null,null,null,null,null,null,null,null,null,null,null,null,null,null,"--",null," "]
[632,null,null,null,null,null,null,null,null,null,null,null,null,null,1,null,null,null,null,null,null,null,null,null,null,null,null,null,null,null,null,null,"--",null," "]
[633,null,null,null,null,null,null,null,null,null,null,null,null,null,1,null,null,null,null,null,null,null,null,null,null,null,null,null,null,null,null,null,"--",null," "]
[634,null,null,null,null,null,null,null,null,null,null,null,null,null,1,null,null,null,null,null,null,null,null,null,null,null,null,null,null,null,null,null,"--",null," "]
[635,null,null,null,null,null,null,null,null,null,null,null,null,null,1,null,null,null,null,null,null,null,null,null,null,null,null,null,null,null,null,null,"--",null," "]
[636,null,null,null,null,null,null,null,null,null,null,null,null,null,1,null,null,null,null,null,null,null,null,null,null,null,null,null,null,null,null,null,"--",null," "]
[637,null,null,null,null,null,null,null,null,null,null,null,null,null,1,null,null,null,null,null,null,null,null,null,null,null,null,null,null,null,null,null,"--",null," "]
[638,null,null,null,null,null,null,null,null,null,null,null,null,null,1,null,null,null,null,null,null,null,null,null,null,null,null,null,null,null,null,null,"--",null," "]
[639,null,null,null,null,null,null,null,null,null,null,null,null,null,1,null,null,null,null,null,null,null,null,null,null,null,null,null,null,null,null,null,"--",null," "]
[640,null,null,null,null,null,null,null,null,null,null,null,null,null,1,null,null,null,null,null,null,null,null,null,null,null,null,null,null,null,null,null,"--",null," "]
[641,null,null,null,null,null,null,null,null,null,null,null,null,null,1,null,null,null,null,null,null,null,null,null,null,null,null,null,null,null,null,null,{"$f":"CONCATENATE(L656,\"-\",M656,\"-\",N656)","v":"--"},null," "]
[642,null,null,null,null,null,null,null,null,null,null,null,null,null,1,null,null,null,null,null,null,null,null,null,null,null,null,null,null,null,null,null,"--",null,{"$f":"IF(B657=\"M\",\"LOCALIZADO\",IF(B657=\"OK\",\"LOCALIZADO\",IF(B657=\"D\",\"LOCALIZADO\",IF(B657=\"BT\",\"LOCALIZADO\",IF(B657=\"NR\",\"LOCALIZADO PENDIENTE DE INVENTARIAR\",IF(B657=\"REU\",\"LOCALIZADO\",IF(B657=\"NO_L\",\"NO_LOCALIZADO\",IF(ISBLANK(B657),\" \",\"NO\"))))))))","v":" "}]
[643,null,null,null,null,null,null,null,null,null,null,null,null,null,1,null,null,null,null,null,null,null,null,null,null,null,null,null,null,null,null,null,"--",null," "]
[644,null,null,null,null,null,null,null,null,null,null,null,null,null,1,null,null,null,null,null,null,null,null,null,null,null,null,null,null,null,null,null,"--",null," "]
[645,null,null,null,null,null,null,null,null,null,null,null,null,null,1,null,null,null,null,null,null,null,null,null,null,null,null,null,null,null,null,null,"--",null," "]
[646,null,null,null,null,null,null,null,null,null,null,null,null,null,1,null,null,null,null,null,null,null,null,null,null,null,null,null,null,null,null,null,"--",null," "]
[647,null,null,null,null,null,null,null,null,null,null,null,null,null,1,null,null,null,null,null,null,null,null,null,null,null,null,null,null,null,null,null,"--",null," "]
[648,null,null,null,null,null,null,null,null,null,null,null,null,null,1,null,null,null,null,null,null,null,null,null,null,null,null,null,null,null,null,null,"--",null," "]
[649,null,null,null,null,null,null,null,null,null,null,null,null,null,1,null,null,null,null,null,null,null,null,null,null,null,null,null,null,null,null,null,"--",null," "]
[650,null,null,null,null,null,null,null,null,null,null,null,null,null,1,null,null,null,null,null,null,null,null,null,null,null,null,null,null,null,null,null,"--",null," "]
[651,null,null,null,null,null,null,null,null,null,null,null,null,null,1,null,null,null,null,null,null,null,null,null,null,null,null,null,null,null,null,null,"--",null," "]
[652,null,null,null,null,null,null,null,null,null,null,null,null,null,1,null,null,null,null,null,null,null,null,null,null,null,null,null,null,null,null,null,"--",null," "]
[653,null,null,null,null,null,null,null,null,null,null,null,null,null,1,null,null,null,null,null,null,null,null,null,null,null,null,null,null,null,null,null,"--",null," "]
[654,null,null,null,null,null,null,null,null,null,null,null,null,null,1,null,null,null,null,null,null,null,null,null,null,null,null,null,null,null,null,null,"--",null," "]
[655,null,null,null,null,null,null,null,null,null,null,null,null,null,1,null,null,null,null,null,null,null,null,null,null,null,null,null,null,null,null,null,"--",null," "]
[656,null,null,null,null,null,null,null,null,null,null,null,null,null,1,null,null,null,null,null,null,null,null,null,null,null,null,null,null,null,null,null,"--",null," "]
[657,null,null,null,null,null,null,null,null,null,null,null,null,null,1,null,null,null,null,null,null,null,null,null,null,null,null,null,null,null,null,null,"--",null," "]
[658,null,null,null,null,null,null,null,null,null,null,null,null,null,1,null,null,null,null,null,null,null,null,null,null,null,null,null,null,null,null,null,"--",null," "]
[659,null,null,null,null,null,null,null,null,null,null,null,null,null,1,null,null,null,null,null,null,null,null,null,null,null,null,null,null,null,null,null,"--",null," "]
[660,null,null,null,null,null,null,null,null,null,null,null,null,null,1,null,null,null,null,null,null,null,null,null,null,null,null,null,null,null,null,null,"--",null," "]
[661,null,null,null,null,null,null,null,null,null,null,null,null,null,1,null,null,null,null,null,null,null,null,null,null,null,null,null,null,null,null,null,"--",null," "]
[662,null,null,null,null,null,null,null,null,null,null,null,null,null,1,null,null,null,null,null,null,null,null,null,null,null,null,null,null,null,null,null,"--",null," "]
[663,null,null,null,null,null,null,null,null,null,null,null,null,null,1,null,null,null,null,null,null,null,null,null,null,null,null,null,null,null,null,null,"--",null," "]
[664,null,null,null,null,null,null,null,null,null,null,null,null,null,1,null,null,null,null,null,null,null,null,null,null,null,null,null,null,null,null,null,"--",null," "]
[665,null,null,null,null,null,null,null,null,null,null,null,null,null,1,null,null,null,null,null,null,null,null,null,null,null,null,null,null,null,null,null,"--",null," "]
[666,null,null,null,null,null,null,null,null,null,null,null,null,null,1,null,null,null,null,null,null,null,null,null,null,null,null,null,null,null,null,null,"--",null," "]
[667,null,null,null,null,null,null,null,null,null,null,null,null,null,1,null,null,null,null,null,null,null,null,null,null,null,null,null,null,null,null,null,"--",null," "]
[668,null,null,null,null,null,null,null,null,null,null,null,null,null,1,null,null,null,null,null,null,null,null,null,null,null,null,null,null,null,null,null,"--",null," "]
[669,null,null,null,null,null,null,null,null,null,null,null,null,null,1,null,null,null,null,null,null,null,null,null,null,null,null,null,null,null,null,null,"--",null," "]
[670,null,null,null,null,null,null,null,null,null,null,null,null,null,1,null,null,null,null,null,null,null,null,null,null,null,null,null,null,null,null,null,"--",null," "]
[671,null,null,null,null,null,null,null,null,null,null,null,null,null,1,null,null,null,null,null,null,null,null,null,null,null,null,null,null,null,null,null,"--",null," "]
[672,null,null,null,null,null,null,null,null,null,null,null,null,null,1,null,null,null,null,null,null,null,null,null,null,null,null,null,null,null,null,null,"--",null," "]
[673,null,null,null,null,null,null,null,null,null,null,null,null,null,1,null,null,null,null,null,null,null,null,null,null,null,null,null,null,null,null,null,"--",null," "]
[674,null,null,null,null,null,null,null,null,null,null,null,null,null,1,null,null,null,null,null,null,null,null,null,null,null,null,null,null,null,null,null,"--",null," "]
[675,null,null,null,null,null,null,null,null,null,null,null,null,null,1,null,null,null,null,null,null,null,null,null,null,null,null,null,null,null,null,null,"--",null," "]
[676,null,null,null,null,null,null,null,null,null,null,null,null,null,1,null,null,null,null,null,null,null,null,null,null,null,null,null,null,null,null,null,"--",null," "]
[677,null,null,null,null,null,null,null,null,null,null,null,null,null,1,null,null,null,null,null,null,null,null,null,null,null,null,null,null,null,null,null,"--",null," "]
[678,null,null,null,null,null,null,null,null,null,null,null,null,null,1,null,null,null,null,null,null,null,null,null,null,null,null,null,null,null,null,null,"--",null," "]
[679,null,null,null,null,null,null,null,null,null,null,null,null,null,1,null,null,null,null,null,null,null,null,null,null,null,null,null,null,null,null,null,"--",null," "]
[680,null,null,null,null,null,null,null,null,null,null,null,null,null,1,null,null,null,null,null,null,null,null,null,null,null,null,null,null,null,null,null,"--",null," "]
[681,null,null,null,null,null,null,null,null,null,null,null,null,null,1,null,null,null,null,null,null,null,null,null,null,null,null,null,null,null,null,null,"--",null," "]
[682,null,null,null,null,null,null,null,null,null,null,null,null,null,1,null,null,null,null,null,null,null,null,null,null,null,null,null,null,null,null,null,"--",null," "]
[683,null,null,null,null,null,null,null,null,null,null,null,null,null,1,null,null,null,null,null,null,null,null,null,null,null,null,null,null,null,null,null,"--",null," "]
[684,null,null,null,null,null,null,null,null,null,null,null,null,null,1,null,null,null,null,null,null,null,null,null,null,null,null,null,null,null,null,null,"--",null," "]
[685,null,null,null,null,null,null,null,null,null,null,null,null,null,1,null,null,null,null,null,null,null,null,null,null,null,null,null,null,null,null,null,"--",null," "]
[686,null,null,null,null,null,null,null,null,null,null,null,null,null,1,null,null,null,null,null,null,null,null,null,null,null,null,null,null,null,null,null,"--",null," "]
[687,null,null,null,null,null,null,null,null,null,null,null,null,null,1,null,null,null,null,null,null,null,null,null,null,null,null,null,null,null,null,null,"--",null," "]
[688,null,null,null,null,null,null,null,null,null,null,null,null,null,1,null,null,null,null,null,null,null,null,null,null,null,null,null,null,null,null,null,"--",null," "]
[689,null,null,null,null,null,null,null,null,null,null,null,null,null,1,null,null,null,null,null,null,null,null,null,null,null,null,null,null,null,null,null,"--",null," "]
[690,null,null,null,null,null,null,null,null,null,null,null,null,null,1,null,null,null,null,null,null,null,null,null,null,null,null,null,null,null,null,null,"--",null," "]
[691,null,null,null,null,null,null,null,null,null,null,null,null,null,1,null,null,null,null,null,null,null,null,null,null,null,null,null,null,null,null,null,"--",null," "]
[692,null,null,null,null,null,null,null,null,null,null,null,null,null,1,null,null,null,null,null,null,null,null,null,null,null,null,null,null,null,null,null,"--",null," "]
[693,null,null,null,null,null,null,null,null,null,null,null,null,null,1,null,null,null,null,null,null,null,null,null,null,null,null,null,null,null,null,null,"--",null," "]
[694,null,null,null,null,null,null,null,null,null,null,null,null,null,1,null,null,null,null,null,null,null,null,null,null,null,null,null,null,null,null,null,"--",null," "]
[695,null,null,null,null,null,null,null,null,null,null,null,null,null,1,null,null,null,null,null,null,null,null,null,null,null,null,null,null,null,null,null,"--",null," "]
[696,null,null,null,null,null,null,null,null,null,null,null,null,null,1,null,null,null,null,null,null,null,null,null,null,null,null,null,null,null,null,null,"--",null," "]
[697,null,null,null,null,null,null,null,null,null,null,null,null,null,1,null,null,null,null,null,null,null,null,null,null,null,null,null,null,null,null,null,"--",null," "]
[698,null,null,null,null,null,null,null,null,null,null,null,null,null,1,null,null,null,null,null,null,null,null,null,null,null,null,null,null,null,null,null,"--",null," "]
[699,null,null,null,null,null,null,null,null,null,null,null,null,null,1,null,null,null,null,null,null,null,null,null,null,null,null,null,null,null,null,null,"--",null," "]
[700,null,null,null,null,null,null,null,null,null,null,null,null,null,1,null,null,null,null,null,null,null,null,null,null,null,null,null,null,null,null,null,"--",null," "]
[701,null,null,null,null,null,null,null,null,null,null,null,null,null,1,null,null,null,null,null,null,null,null,null,null,null,null,null,null,null,null,null,"--",null," "]
[702,null,null,null,null,null,null,null,null,null,null,null,null,null,1,null,null,null,null,null,null,null,null,null,null,null,null,null,null,null,null,null,"--",null," "]
[703,null,null,null,null,null,null,null,null,null,null,null,null,null,1,null,null,null,null,null,null,null,null,null,null,null,null,null,null,null,null,null,"--",null," "]
[704,null,null,null,null,null,null,null,null,null,null,null,null,null,1,null,null,null,null,null,null,null,null,null,null,null,null,null,null,null,null,null,"--",null," "]
[705,null,null,null,null,null,null,null,null,null,null,null,null,null,1,null,null,null,null,null,null,null,null,null,null,null,null,null,null,null,null,null,{"$f":"CONCATENATE(L720,\"-\",M720,\"-\",N720)","v":"--"},null," "]
[706,null,null,null,null,null,null,null,null,null,null,null,null,null,1,null,null,null,null,null,null,null,null,null,null,null,null,null,null,null,null,null,"--",null,{"$f":"IF(B721=\"M\",\"LOCALIZADO\",IF(B721=\"OK\",\"LOCALIZADO\",IF(B721=\"D\",\"LOCALIZADO\",IF(B721=\"BT\",\"LOCALIZADO\",IF(B721=\"NR\",\"LOCALIZADO PENDIENTE DE INVENTARIAR\",IF(B721=\"REU\",\"LOCALIZADO\",IF(B721=\"NO_L\",\"NO_LOCALIZADO\",IF(ISBLANK(B721),\" \",\"NO\"))))))))","v":" "}]
[707,null,null,null,null,null,null,null,null,null,null,null,null,null,1,null,null,null,null,null,null,null,null,null,null,null,null,null,null,null,null,null,"--",null," "]
[708,null,null,null,null,null,null,null,null,null,null,null,null,null,1,null,null,null,null,null,null,null,null,null,null,null,null,null,null,null,null,null,"--",null," "]
[709,null,null,null,null,null,null,null,null,null,null,null,null,null,1,null,null,null,null,null,null,null,null,null,null,null,null,null,null,null,null,null,"--",null," "]
[710,null,null,null,null,null,null,null,null,null,null,null,null,null,1,null,null,null,null,null,null,null,null,null,null,null,null,null,null,null,null,null,"--",null," "]
[711,null,null,null,null,null,null,null,null,null,null,null,null,null,1,null,null,null,null,null,null,null,null,null,null,null,null,null,null,null,null,null,"--",null," "]
[712,null,null,null,null,null,null,null,null,null,null,null,null,null,1,null,null,null,null,null,null,null,null,null,null,null,null,null,null,null,null,null,"--",null," "]
[713,null,null,null,null,null,null,null,null,null,null,null,null,null,1,null,null,null,null,null,null,null,null,null,null,null,null,null,null,null,null,null,"--",null," "]
[714,null,null,null,null,null,null,null,null,null,null,null,null,null,1,null,null,null,null,null,null,null,null,null,null,null,null,null,null,null,null,null,"--",null," "]
[715,null,null,null,null,null,null,null,null,null,null,null,null,null,1,null,null,null,null,null,null,null,null,null,null,null,null,null,null,null,null,null,"--",null," "]
[716,null,null,null,null,null,null,null,null,null,null,null,null,null,1,null,null,null,null,null,null,null,null,null,null,null,null,null,null,null,null,null,"--",null," "]
[717,null,null,null,null,null,null,null,null,null,null,null,null,null,1,null,null,null,null,null,null,null,null,null,null,null,null,null,null,null,null,null,"--",null," "]
[718,null,null,null,null,null,null,null,null,null,null,null,null,null,1,null,null,null,null,null,null,null,null,null,null,null,null,null,null,null,null,null,"--",null," "]
[719,null,null,null,null,null,null,null,null,null,null,null,null,null,1,null,null,null,null,null,null,null,null,null,null,null,null,null,null,null,null,null,"--",null," "]
[720,null,null,null,null,null,null,null,null,null,null,null,null,null,1,null,null,null,null,null,null,null,null,null,null,null,null,null,null,null,null,null,"--",null," "]
[721,null,null,null,null,null,null,null,null,null,null,null,null,null,1,null,null,null,null,null,null,null,null,null,null,null,null,null,null,null,null,null,"--",null," "]
[722,null,null,null,null,null,null,null,null,null,null,null,null,null,1,null,null,null,null,null,null,null,null,null,null,null,null,null,null,null,null,null,"--",null," "]
[723,null,null,null,null,null,null,null,null,null,null,null,null,null,1,null,null,null,null,null,null,null,null,null,null,null,null,null,null,null,null,null,"--",null," "]
[724,null,null,null,null,null,null,null,null,null,null,null,null,null,1,null,null,null,null,null,null,null,null,null,null,null,null,null,null,null,null,null,"--",null," "]
[725,null,null,null,null,null,null,null,null,null,null,null,null,null,1,null,null,null,null,null,null,null,null,null,null,null,null,null,null,null,null,null,"--",null," "]
[726,null,null,null,null,null,null,null,null,null,null,null,null,null,1,null,null,null,null,null,null,null,null,null,null,null,null,null,null,null,null,null,"--",null," "]
[727,null,null,null,null,null,null,null,null,null,null,null,null,null,1,null,null,null,null,null,null,null,null,null,null,null,null,null,null,null,null,null,"--",null," "]
[728,null,null,null,null,null,null,null,null,null,null,null,null,null,1,null,null,null,null,null,null,null,null,null,null,null,null,null,null,null,null,null,"--",null," "]
[729,null,null,null,null,null,null,null,null,null,null,null,null,null,1,null,null,null,null,null,null,null,null,null,null,null,null,null,null,null,null,null,"--",null," "]
[730,null,null,null,null,null,null,null,null,null,null,null,null,null,1,null,null,null,null,null,null,null,null,null,null,null,null,null,null,null,null,null,"--",null," "]
[731,null,null,null,null,null,null,null,null,null,null,null,null,null,1,null,null,null,null,null,null,null,null,null,null,null,null,null,null,null,null,null,"--",null," "]
[732,null,null,null,null,null,null,null,null,null,null,null,null,null,1,null,null,null,null,null,null,null,null,null,null,null,null,null,null,null,null,null,"--",null," "]
[733,null,null,null,null,null,null,null,null,null,null,null,null,null,1,null,null,null,null,null,null,null,null,null,null,null,null,null,null,null,null,null,"--",null," "]
[734,null,null,null,null,null,null,null,null,null,null,null,null,null,1,null,null,null,null,null,null,null,null,null,null,null,null,null,null,null,null,null,"--",null," "]
[735,null,null,null,null,null,null,null,null,null,null,null,null,null,1,null,null,null,null,null,null,null,null,null,null,null,null,null,null,null,null,null,"--",null," "]
[736,null,null,null,null,null,null,null,null,null,null,null,null,null,1,null,null,null,null,null,null,null,null,null,null,null,null,null,null,null,null,null,"--",null," "]
[737,null,null,null,null,null,null,null,null,null,null,null,null,null,1,null,null,null,null,null,null,null,null,null,null,null,null,null,null,null,null,null,"--",null," "]
[738,null,null,null,null,null,null,null,null,null,null,null,null,null,1,null,null,null,null,null,null,null,null,null,null,null,null,null,null,null,null,null,"--",null," "]
[739,null,null,null,null,null,null,null,null,null,null,null,null,null,1,null,null,null,null,null,null,null,null,null,null,null,null,null,null,null,null,null,"--",null," "]
[740,null,null,null,null,null,null,null,null,null,null,null,null,null,1,null,null,null,null,null,null,null,null,null,null,null,null,null,null,null,null,null,"--",null," "]
[741,null,null,null,null,null,null,null,null,null,null,null,null,null,1,null,null,null,null,null,null,null,null,null,null,null,null,null,null,null,null,null,"--",null," "]
[742,null,null,null,null,null,null,null,null,null,null,null,null,null,1,null,null,null,null,null,null,null,null,null,null,null,null,null,null,null,null,null,"--",null," "]
[743,null,null,null,null,null,null,null,null,null,null,null,null,null,1,null,null,null,null,null,null,null,null,null,null,null,null,null,null,null,null,null,"--",null," "]
[744,null,null,null,null,null,null,null,null,null,null,null,null,null,1,null,null,null,null,null,null,null,null,null,null,null,null,null,null,null,null,null,"--",null," "]
[745,null,null,null,null,null,null,null,null,null,null,null,null,null,1,null,null,null,null,null,null,null,null,null,null,null,null,null,null,null,null,null,"--",null," "]
[746,null,null,null,null,null,null,null,null,null,null,null,null,null,1,null,null,null,null,null,null,null,null,null,null,null,null,null,null,null,null,null,"--",null," "]
[747,null,null,null,null,null,null,null,null,null,null,null,null,null,1,null,null,null,null,null,null,null,null,null,null,null,null,null,null,null,null,null,"--",null," "]
[748,null,null,null,null,null,null,null,null,null,null,null,null,null,1,null,null,null,null,null,null,null,null,null,null,null,null,null,null,null,null,null,"--",null," "]
[749,null,null,null,null,null,null,null,null,null,null,null,null,null,1,null,null,null,null,null,null,null,null,null,null,null,null,null,null,null,null,null,"--",null," "]
[750,null,null,null,null,null,null,null,null,null,null,null,null,null,1,null,null,null,null,null,null,null,null,null,null,null,null,null,null,null,null,null,"--",null," "]
[751,null,null,null,null,null,null,null,null,null,null,null,null,null,1,null,null,null,null,null,null,null,null,null,null,null,null,null,null,null,null,null,"--",null," "]
[752,null,null,null,null,null,null,null,null,null,null,null,null,null,1,null,null,null,null,null,null,null,null,null,null,null,null,null,null,null,null,null,"--",null," "]
[753,null,null,null,null,null,null,null,null,null,null,null,null,null,1,null,null,null,null,null,null,null,null,null,null,null,null,null,null,null,null,null,"--",null," "]
[754,null,null,null,null,null,null,null,null,null,null,null,null,null,1,null,null,null,null,null,null,null,null,null,null,null,null,null,null,null,null,null,"--",null," "]
[755,null,null,null,null,null,null,null,null,null,null,null,null,null,1,null,null,null,null,null,null,null,null,null,null,null,null,null,null,null,null,null,"--",null," "]
[756,null,null,null,null,null,null,null,null,null,null,null,null,null,1,null,null,null,null,null,null,null,null,null,null,null,null,null,null,null,null,null,"--",null," "]
[757,null,null,null,null,null,null,null,null,null,null,null,null,null,1,null,null,null,null,null,null,null,null,null,null,null,null,null,null,null,null,null,"--",null," "]
[758,null,null,null,null,null,null,null,null,null,null,null,null,null,1,null,null,null,null,null,null,null,null,null,null,null,null,null,null,null,null,null,"--",null," "]
[759,null,null,null,null,null,null,null,null,null,null,null,null,null,1,null,null,null,null,null,null,null,null,null,null,null,null,null,null,null,null,null,"--",null," "]
[760,null,null,null,null,null,null,null,null,null,null,null,null,null,1,null,null,null,null,null,null,null,null,null,null,null,null,null,null,null,null,null,"--",null," "]
[761,null,null,null,null,null,null,null,null,null,null,null,null,null,1,null,null,null,null,null,null,null,null,null,null,null,null,null,null,null,null,null,"--",null," "]
[762,null,null,null,null,null,null,null,null,null,null,null,null,null,1,null,null,null,null,null,null,null,null,null,null,null,null,null,null,null,null,null,"--",null," "]
[763,null,null,null,null,null,null,null,null,null,null,null,null,null,1,null,null,null,null,null,null,null,null,null,null,null,null,null,null,null,null,null,"--",null," "]
[764,null,null,null,null,null,null,null,null,null,null,null,null,null,1,null,null,null,null,null,null,null,null,null,null,null,null,null,null,null,null,null,"--",null," "]
[765,null,null,null,null,null,null,null,null,null,null,null,null,null,1,null,null,null,null,null,null,null,null,null,null,null,null,null,null,null,null,null,"--",null," "]
[766,null,null,null,null,null,null,null,null,null,null,null,null,null,1,null,null,null,null,null,null,null,null,null,null,null,null,null,null,null,null,null,"--",null," "]
[767,null,null,null,null,null,null,null,null,null,null,null,null,null,1,null,null,null,null,null,null,null,null,null,null,null,null,null,null,null,null,null,"--",null," "]
[768,null,null,null,null,null,null,null,null,null,null,null,null,null,1,null,null,null,null,null,null,null,null,null,null,null,null,null,null,null,null,null,"--",null," "]
[769,null,null,null,null,null,null,null,null,null,null,null,null,null,1,null,null,null,null,null,null,null,null,null,null,null,null,null,null,null,null,null,{"$f":"CONCATENATE(L784,\"-\",M784,\"-\",N784)","v":"--"},null," "]
[770,null,null,null,null,null,null,null,null,null,null,null,null,null,1,null,null,null,null,null,null,null,null,null,null,null,null,null,null,null,null,null,"--",null,{"$f":"IF(B785=\"M\",\"LOCALIZADO\",IF(B785=\"OK\",\"LOCALIZADO\",IF(B785=\"D\",\"LOCALIZADO\",IF(B785=\"BT\",\"LOCALIZADO\",IF(B785=\"NR\",\"LOCALIZADO PENDIENTE DE INVENTARIAR\",IF(B785=\"REU\",\"LOCALIZADO\",IF(B785=\"NO_L\",\"NO_LOCALIZADO\",IF(ISBLANK(B785),\" \",\"NO\"))))))))","v":" "}]
[771,null,null,null,null,null,null,null,null,null,null,null,null,null,1,null,null,null,null,null,null,null,null,null,null,null,null,null,null,null,null,null,"--",null," "]
[772,null,null,null,null,null,null,null,null,null,null,null,null,null,1,null,null,null,null,null,null,null,null,null,null,null,null,null,null,null,null,null,"--",null," "]
[773,null,null,null,null,null,null,null,null,null,null,null,null,null,1,null,null,null,null,null,null,null,null,null,null,null,null,null,null,null,null,null,"--",null," "]
[774,null,null,null,null,null,null,null,null,null,null,null,null,null,1,null,null,null,null,null,null,null,null,null,null,null,null,null,null,null,null,null,"--",null," "]
[775,null,null,null,null,null,null,null,null,null,null,null,null,null,1,null,null,null,null,null,null,null,null,null,null,null,null,null,null,null,null,null,"--",null," "]
[776,null,null,null,null,null,null,null,null,null,null,null,null,null,1,null,null,null,null,null,null,null,null,null,null,null,null,null,null,null,null,null,"--",null," "]
[777,null,null,null,null,null,null,null,null,null,null,null,null,null,1,null,null,null,null,null,null,null,null,null,null,null,null,null,null,null,null,null,"--",null," "]
[778,null,null,null,null,null,null,null,null,null,null,null,null,null,1,null,null,null,null,null,null,null,null,null,null,null,null,null,null,null,null,null,"--",null," "]
[779,null,null,null,null,null,null,null,null,null,null,null,null,null,1,null,null,null,null,null,null,null,null,null,null,null,null,null,null,null,null,null,"--",null," "]
[780,null,null,null,null,null,null,null,null,null,null,null,null,null,1,null,null,null,null,null,null,null,null,null,null,null,null,null,null,null,null,null,"--",null," "]
[781,null,null,null,null,null,null,null,null,null,null,null,null,null,1,null,null,null,null,null,null,null,null,null,null,null,null,null,null,null,null,null,"--",null," "]
[782,null,null,null,null,null,null,null,null,null,null,null,null,null,1,null,null,null,null,null,null,null,null,null,null,null,null,null,null,null,null,null,"--",null," "]
[783,null,null,null,null,null,null,null,null,null,null,null,null,null,1,null,null,null,null,null,null,null,null,null,null,null,null,null,null,null,null,null,"--",null," "]
[784,null,null,null,null,null,null,null,null,null,null,null,null,null,1,null,null,null,null,null,null,null,null,null,null,null,null,null,null,null,null,null,"--",null," "]
[785,null,null,null,null,null,null,null,null,null,null,null,null,null,1,null,null,null,null,null,null,null,null,null,null,null,null,null,null,null,null,null,"--",null," "]
[786,null,null,null,null,null,null,null,null,null,null,null,null,null,1,null,null,null,null,null,null,null,null,null,null,null,null,null,null,null,null,null,"--",null," "]
[787,null,null,null,null,null,null,null,null,null,null,null,null,null,1,null,null,null,null,null,null,null,null,null,null,null,null,null,null,null,null,null,"--",null," "]
[788,null,null,null,null,null,null,null,null,null,null,null,null,null,1,null,null,null,null,null,null,null,null,null,null,null,null,null,null,null,null,null,"--",null," "]
[789,null,null,null,null,null,null,null,null,null,null,null,null,null,1,null,null,null,null,null,null,null,null,null,null,null,null,null,null,null,null,null,"--",null," "]
[790,null,null,null,null,null,null,null,null,null,null,null,null,null,1,null,null,null,null,null,null,null,null,null,null,null,null,null,null,null,null,null,"--",null," "]
[791,null,null,null,null,null,null,null,null,null,null,null,null,null,1,null,null,null,null,null,null,null,null,null,null,null,null,null,null,null,null,null,"--",null," "]
[792,null,null,null,null,null,null,null,null,null,null,null,null,null,1,null,null,null,null,null,null,null,null,null,null,null,null,null,null,null,null,null,"--",null," "]
[793,null,null,null,null,null,null,null,null,null,null,null,null,null,1,null,null,null,null,null,null,null,null,null,null,null,null,null,null,null,null,null,"--",null," "]
[794,null,null,null,null,null,null,null,null,null,null,null,null,null,1,null,null,null,null,null,null,null,null,null,null,null,null,null,null,null,null,null,"--",null," "]
[795,null,null,null,null,null,null,null,null,null,null,null,null,null,1,null,null,null,null,null,null,null,null,null,null,null,null,null,null,null,null,null,"--",null," "]
[796,null,null,null,null,null,null,null,null,null,null,null,null,null,1,null,null,null,null,null,null,null,null,null,null,null,null,null,null,null,null,null,"--",null," "]
[797,null,null,null,null,null,null,null,null,null,null,null,null,null,1,null,null,null,null,null,null,null,null,null,null,null,null,null,null,null,null,null,"--",null," "]
[798,null,null,null,null,null,null,null,null,null,null,null,null,null,1,null,null,null,null,null,null,null,null,null,null,null,null,null,null,null,null,null,"--",null," "]
[799,null,null,null,null,null,null,null,null,null,null,null,null,null,1,null,null,null,null,null,null,null,null,null,null,null,null,null,null,null,null,null,"--",null," "]
[800,null,null,null,null,null,null,null,null,null,null,null,null,null,1,null,null,null,null,null,null,null,null,null,null,null,null,null,null,null,null,null,"--",null," "]
[801,null,null,null,null,null,null,null,null,null,null,null,null,null,1,null,null,null,null,null,null,null,null,null,null,null,null,null,null,null,null,null,"--",null," "]
[802,null,null,null,null,null,null,null,null,null,null,null,null,null,1,null,null,null,null,null,null,null,null,null,null,null,null,null,null,null,null,null,"--",null," "]
[803,null,null,null,null,null,null,null,null,null,null,null,null,null,1,null,null,null,null,null,null,null,null,null,null,null,null,null,null,null,null,null,"--",null," "]
[804,null,null,null,null,null,null,null,null,null,null,null,null,null,1,null,null,null,null,null,null,null,null,null,null,null,null,null,null,null,null,null,"--",null," "]
[805,null,null,null,null,null,null,null,null,null,null,null,null,null,1,null,null,null,null,null,null,null,null,null,null,null,null,null,null,null,null,null,"--",null," "]
[806,null,null,null,null,null,null,null,null,null,null,null,null,null,1,null,null,null,null,null,null,null,null,null,null,null,null,null,null,null,null,null,"--",null," "]
[807,null,null,null,null,null,null,null,null,null,null,null,null,null,1,null,null,null,null,null,null,null,null,null,null,null,null,null,null,null,null,null,"--",null," "]
[808,null,null,null,null,null,null,null,null,null,null,null,null,null,1,null,null,null,null,null,null,null,null,null,null,null,null,null,null,null,null,null,"--",null," "]
[809,null,null,null,null,null,null,null,null,null,null,null,null,null,1,null,null,null,null,null,null,null,null,null,null,null,null,null,null,null,null,null,"--",null," "]
[810,null,null,null,null,null,null,null,null,null,null,null,null,null,1,null,null,null,null,null,null,null,null,null,null,null,null,null,null,null,null,null,"--",null," "]
[811,null,null,null,null,null,null,null,null,null,null,null,null,null,1,null,null,null,null,null,null,null,null,null,null,null,null,null,null,null,null,null,"--",null," "]
[812,null,null,null,null,null,null,null,null,null,null,null,null,null,1,null,null,null,null,null,null,null,null,null,null,null,null,null,null,null,null,null,"--",null," "]
[813,null,null,null,null,null,null,null,null,null,null,null,null,null,1,null,null,null,null,null,null,null,null,null,null,null,null,null,null,null,null,null,"--",null," "]
[814,null,null,null,null,null,null,null,null,null,null,null,null,null,1,null,null,null,null,null,null,null,null,null,null,null,null,null,null,null,null,null,"--",null," "]
[815,null,null,null,null,null,null,null,null,null,null,null,null,null,1,null,null,null,null,null,null,null,null,null,null,null,null,null,null,null,null,null,"--",null," "]
[816,null,null,null,null,null,null,null,null,null,null,null,null,null,1,null,null,null,null,null,null,null,null,null,null,null,null,null,null,null,null,null,"--",null," "]
[817,null,null,null,null,null,null,null,null,null,null,null,null,null,1,null,null,null,null,null,null,null,null,null,null,null,null,null,null,null,null,null,"--",null," "]
[818,null,null,null,null,null,null,null,null,null,null,null,null,null,1,null,null,null,null,null,null,null,null,null,null,null,null,null,null,null,null,null,"--",null," "]
[819,null,null,null,null,null,null,null,null,null,null,null,null,null,1,null,null,null,null,null,null,null,null,null,null,null,null,null,null,null,null,null,"--",null," "]
[820,null,null,null,null,null,null,null,null,null,null,null,null,null,1,null,null,null,null,null,null,null,null,null,null,null,null,null,null,null,null,null,"--",null," "]
[821,null,null,null,null,null,null,null,null,null,null,null,null,null,1,null,null,null,null,null,null,null,null,null,null,null,null,null,null,null,null,null,"--",null," "]
[822,null,null,null,null,null,null,null,null,null,null,null,null,null,1,null,null,null,null,null,null,null,null,null,null,null,null,null,null,null,null,null,"--",null," "]
[823,null,null,null,null,null,null,null,null,null,null,null,null,null,1,null,null,null,null,null,null,null,null,null,null,null,null,null,null,null,null,null,"--",null," "]
[824,null,null,null,null,null,null,null,null,null,null,null,null,null,1,null,null,null,null,null,null,null,null,null,null,null,null,null,null,null,null,null,"--",null," "]
[825,null,null,null,null,null,null,null,null,null,null,null,null,null,1,null,null,null,null,null,null,null,null,null,null,null,null,null,null,null,null,null,"--",null," "]
[826,null,null,null,null,null,null,null,null,null,null,null,null,null,1,null,null,null,null,null,null,null,null,null,null,null,null,null,null,null,null,null,"--",null," "]
[827,null,null,null,null,null,null,null,null,null,null,null,null,null,1,null,null,null,null,null,null,null,null,null,null,null,null,null,null,null,null,null,"--",null," "]
[828,null,null,null,null,null,null,null,null,null,null,null,null,null,1,null,null,null,null,null,null,null,null,null,null,null,null,null,null,null,null,null,"--",null," "]
[829,null,null,null,null,null,null,null,null,null,null,null,null,null,1,null,null,null,null,null,null,null,null,null,null,null,null,null,null,null,null,null,"--",null," "]
[830,null,null,null,null,null,null,null,null,null,null,null,null,null,1,null,null,null,null,null,null,null,null,null,null,null,null,null,null,null,null,null,"--",null," "]
[831,null,null,null,null,null,null,null,null,null,null,null,null,null,1,null,null,null,null,null,null,null,null,null,null,null,null,null,null,null,null,null,"--",null," "]
[832,null,null,null,null,null,null,null,null,null,null,null,null,null,1,null,null,null,null,null,null,null,null,null,null,null,null,null,null,null,null,null,"--",null," "]
[833,null,null,null,null,null,null,null,null,null,null,null,null,null,1,null,null,null,null,null,null,null,null,null,null,null,null,null,null,null,null,null,{"$f":"CONCATENATE(L848,\"-\",M848,\"-\",N848)","v":"--"},null," "]
[834,null,null,null,null,null,null,null,null,null,null,null,null,null,1,null,null,null,null,null,null,null,null,null,null,null,null,null,null,null,null,null,"--",null,{"$f":"IF(B849=\"M\",\"LOCALIZADO\",IF(B849=\"OK\",\"LOCALIZADO\",IF(B849=\"D\",\"LOCALIZADO\",IF(B849=\"BT\",\"LOCALIZADO\",IF(B849=\"NR\",\"LOCALIZADO PENDIENTE DE INVENTARIAR\",IF(B849=\"REU\",\"LOCALIZADO\",IF(B849=\"NO_L\",\"NO_LOCALIZADO\",IF(ISBLANK(B849),\" \",\"NO\"))))))))","v":" "}]
[835,null,null,null,null,null,null,null,null,null,null,null,null,null,1,null,null,null,null,null,null,null,null,null,null,null,null,null,null,null,null,null,"--",null," "]
[836,null,null,null,null,null,null,null,null,null,null,null,null,null,1,null,null,null,null,null,null,null,null,null,null,null,null,null,null,null,null,null,"--",null," "]
[837,null,null,null,null,null,null,null,null,null,null,null,null,null,1,null,null,null,null,null,null,null,null,null,null,null,null,null,null,null,null,null,"--",null," "]
[838,null,null,null,null,null,null,null,null,null,null,null,null,null,1,null,null,null,null,null,null,null,null,null,null,null,null,null,null,null,null,null,"--",null," "]
[839,null,null,null,null,null,null,null,null,null,null,null,null,null,1,null,null,null,null,null,null,null,null,null,null,null,null,null,null,null,null,null,"--",null," "]
[840,null,null,null,null,null,null,null,null,null,null,null,null,null,1,null,null,null,null,null,null,null,null,null,null,null,null,null,null,null,null,null,"--",null," "]
[841,null,null,null,null,null,null,null,null,null,null,null,null,null,1,null,null,null,null,null,null,null,null,null,null,null,null,null,null,null,null,null,"--",null," "]
[842,null,null,null,null,null,null,null,null,null,null,null,null,null,1,null,null,null,null,null,null,null,null,null,null,null,null,null,null,null,null,null,"--",null," "]
[843,null,null,null,null,null,null,null,null,null,null,null,null,null,1,null,null,null,null,null,null,null,null,null,null,null,null,null,null,null,null,null,"--",null," "]
[844,null,null,null,null,null,null,null,null,null,null,null,null,null,1,null,null,null,null,null,null,null,null,null,null,null,null,null,null,null,null,null,"--",null," "]
[845,null,null,null,null,null,null,null,null,null,null,null,null,null,1,null,null,null,null,null,null,null,null,null,null,null,null,null,null,null,null,null,"--",null," "]
[846,null,null,null,null,null,null,null,null,null,null,null,null,null,1,null,null,null,null,null,null,null,null,null,null,null,null,null,null,null,null,null,"--",null," "]
[847,null,null,null,null,null,null,null,null,null,null,null,null,null,1,null,null,null,null,null,null,null,null,null,null,null,null,null,null,null,null,null,"--",null," "]
[848,null,null,null,null,null,null,null,null,null,null,null,null,null,1,null,null,null,null,null,null,null,null,null,null,null,null,null,null,null,null,null,"--",null," "]
[849,null,null,null,null,null,null,null,null,null,null,null,null,null,1,null,null,null,null,null,null,null,null,null,null,null,null,null,null,null,null,null,"--",null," "]
[850,null,null,null,null,null,null,null,null,null,null,null,null,null,1,null,null,null,null,null,null,null,null,null,null,null,null,null,null,null,null,null,"--",null," "]
[851,null,null,null,null,null,null,null,null,null,null,null,null,null,1,null,null,null,null,null,null,null,null,null,null,null,null,null,null,null,null,null,"--",null," "]
[852,null,null,null,null,null,null,null,null,null,null,null,null,null,1,null,null,null,null,null,null,null,null,null,null,null,null,null,null,null,null,null,"--",null," "]
[853,null,null,null,null,null,null,null,null,null,null,null,null,null,1,null,null,null,null,null,null,null,null,null,null,null,null,null,null,null,null,null,"--",null," "]
[854,null,null,null,null,null,null,null,null,null,null,null,null,null,1,null,null,null,null,null,null,null,null,null,null,null,null,null,null,null,null,null,"--",null," "]
[855,null,null,null,null,null,null,null,null,null,null,null,null,null,1,null,null,null,null,null,null,null,null,null,null,null,null,null,null,null,null,null,"--",null," "]
[856,null,null,null,null,null,null,null,null,null,null,null,null,null,1,null,null,null,null,null,null,null,null,null,null,null,null,null,null,null,null,null,"--",null," "]
[857,null,null,null,null,null,null,null,null,null,null,null,null,null,1,null,null,null,null,null,null,null,null,null,null,null,null,null,null,null,null,null,"--",null," "]
[858,null,null,null,null,null,null,null,null,null,null,null,null,null,1,null,null,null,null,null,null,null,null,null,null,null,null,null,null,null,null,null,"--",null," "]
[859,null,null,null,null,null,null,null,null,null,null,null,null,null,1,null,null,null,null,null,null,null,null,null,null,null,null,null,null,null,null,null,"--",null," "]
[860,null,null,null,null,null,null,null,null,null,null,null,null,null,1,null,null,null,null,null,null,null,null,null,null,null,null,null,null,null,null,null,"--",null," "]
[861,null,null,null,null,null,null,null,null,null,null,null,null,null,1,null,null,null,null,null,null,null,null,null,null,null,null,null,null,null,null,null,"--",null," "]
[862,null,null,null,null,null,null,null,null,null,null,null,null,null,1,null,null,null,null,null,null,null,null,null,null,null,null,null,null,null,null,null,"--",null," "]
[863,null,null,null,null,null,null,null,null,null,null,null,null,null,1,null,null,null,null,null,null,null,null,null,null,null,null,null,null,null,null,null,"--",null," "]
[864,null,null,null,null,null,null,null,null,null,null,null,null,null,1,null,null,null,null,null,null,null,null,null,null,null,null,null,null,null,null,null,"--",null," "]
[865,null,null,null,null,null,null,null,null,null,null,null,null,null,1,null,null,null,null,null,null,null,null,null,null,null,null,null,null,null,null,null,"--",null," "]
[866,null,null,null,null,null,null,null,null,null,null,null,null,null,1,null,null,null,null,null,null,null,null,null,null,null,null,null,null,null,null,null,"--",null," "]
[867,null,null,null,null,null,null,null,null,null,null,null,null,null,1,null,null,null,null,null,null,null,null,null,null,null,null,null,null,null,null,null,"--",null," "]
[868,null,null,null,null,null,null,null,null,null,null,null,null,null,1,null,null,null,null,null,null,null,null,null,null,null,null,null,null,null,null,null,"--",null," "]
[869,null,null,null,null,null,null,null,null,null,null,null,null,null,1,null,null,null,null,null,null,null,null,null,null,null,null,null,null,null,null,null,"--",null," "]
[870,null,null,null,null,null,null,null,null,null,null,null,null,null,1,null,null,null,null,null,null,null,null,null,null,null,null,null,null,null,null,null,"--",null," "]
[871,null,null,null,null,null,null,null,null,null,null,null,null,null,1,null,null,null,null,null,null,null,null,null,null,null,null,null,null,null,null,null,"--",null," "]
[872,null,null,null,null,null,null,null,null,null,null,null,null,null,1,null,null,null,null,null,null,null,null,null,null,null,null,null,null,null,null,null,"--",null," "]
[873,null,null,null,null,null,null,null,null,null,null,null,null,null,1,null,null,null,null,null,null,null,null,null,null,null,null,null,null,null,null,null,"--",null," "]
[874,null,null,null,null,null,null,null,null,null,null,null,null,null,1,null,null,null,null,null,null,null,null,null,null,null,null,null,null,null,null,null,"--",null," "]
[875,null,null,null,null,null,null,null,null,null,null,null,null,null,1,null,null,null,null,null,null,null,null,null,null,null,null,null,null,null,null,null,"--",null," "]
[876,null,null,null,null,null,null,null,null,null,null,null,null,null,1,null,null,null,null,null,null,null,null,null,null,null,null,null,null,null,null,null,"--",null," "]
[877,null,null,null,null,null,null,null,null,null,null,null,null,null,1,null,null,null,null,null,null,null,null,null,null,null,null,null,null,null,null,null,"--",null," "]
[878,null,null,null,null,null,null,null,null,null,null,null,null,null,1,null,null,null,null,null,null,null,null,null,null,null,null,null,null,null,null,null,"--",null," "]
[879,null,null,null,null,null,null,null,null,null,null,null,null,null,1,null,null,null,null,null,null,null,null,null,null,null,null,null,null,null,null,null,"--",null," "]
[880,null,null,null,null,null,null,null,null,null,null,null,null,null,1,null,null,null,null,null,null,null,null,null,null,null,null,null,null,null,null,null,"--",null," "]
[881,null,null,null,null,null,null,null,null,null,null,null,null,null,1,null,null,null,null,null,null,null,null,null,null,null,null,null,null,null,null,null,"--",null," "]
[882,null,null,null,null,null,null,null,null,null,null,null,null,null,1,null,null,null,null,null,null,null,null,null,null,null,null,null,null,null,null,null,"--",null," "]
[883,null,null,null,null,null,null,null,null,null,null,null,null,null,1,null,null,null,null,null,null,null,null,null,null,null,null,null,null,null,null,null,"--",null," "]
[884,null,null,null,null,null,null,null,null,null,null,null,null,null,1,null,null,null,null,null,null,null,null,null,null,null,null,null,null,null,null,null,"--",null," "]
[885,null,null,null,null,null,null,null,null,null,null,null,null,null,1,null,null,null,null,null,null,null,null,null,null,null,null,null,null,null,null,null,"--",null," "]
[886,null,null,null,null,null,null,null,null,null,null,null,null,null,1,null,null,null,null,null,null,null,null,null,null,null,null,null,null,null,null,null,"--",null," "]
[887,null,null,null,null,null,null,null,null,null,null,null,null,null,1,null,null,null,null,null,null,null,null,null,null,null,null,null,null,null,null,null,"--",null," "]
[888,null,null,null,null,null,null,null,null,null,null,null,null,null,1,null,null,null,null,null,null,null,null,null,null,null,null,null,null,null,null,null,"--",null," "]
[889,null,null,null,null,null,null,null,null,null,null,null,null,null,1,null,null,null,null,null,null,null,null,null,null,null,null,null,null,null,null,null,"--",null," "]
[890,null,null,null,null,null,null,null,null,null,null,null,null,null,1,null,null,null,null,null,null,null,null,null,null,null,null,null,null,null,null,null,"--",null," "]
[891,null,null,null,null,null,null,null,null,null,null,null,null,null,1,null,null,null,null,null,null,null,null,null,null,null,null,null,null,null,null,null,"--",null," "]
[892,null,null,null,null,null,null,null,null,null,null,null,null,null,1,null,null,null,null,null,null,null,null,null,null,null,null,null,null,null,null,null,"--",null," "]
[893,null,null,null,null,null,null,null,null,null,null,null,null,null,1,null,null,null,null,null,null,null,null,null,null,null,null,null,null,null,null,null,"--",null," "]
[894,null,null,null,null,null,null,null,null,null,null,null,null,null,1,null,null,null,null,null,null,null,null,null,null,null,null,null,null,null,null,null,"--",null," "]
[895,null,null,null,null,null,null,null,null,null,null,null,null,null,1,null,null,null,null,null,null,null,null,null,null,null,null,null,null,null,null,null,"--",null," "]
[896,null,null,null,null,null,null,null,null,null,null,null,null,null,1,null,null,null,null,null,null,null,null,null,null,null,null,null,null,null,null,null,"--",null," "]
[897,null,null,null,null,null,null,null,null,null,null,null,null,null,1,null,null,null,null,null,null,null,null,null,null,null,null,null,null,null,null,null,{"$f":"CONCATENATE(L912,\"-\",M912,\"-\",N912)","v":"--"},null," "]
[898,null,null,null,null,null,null,null,null,null,null,null,null,null,1,null,null,null,null,null,null,null,null,null,null,null,null,null,null,null,null,null,"--",null,{"$f":"IF(B913=\"M\",\"LOCALIZADO\",IF(B913=\"OK\",\"LOCALIZADO\",IF(B913=\"D\",\"LOCALIZADO\",IF(B913=\"BT\",\"LOCALIZADO\",IF(B913=\"NR\",\"LOCALIZADO PENDIENTE DE INVENTARIAR\",IF(B913=\"REU\",\"LOCALIZADO\",IF(B913=\"NO_L\",\"NO_LOCALIZADO\",IF(ISBLANK(B913),\" \",\"NO\"))))))))","v":" "}]
[899,null,null,null,null,null,null,null,null,null,null,null,null,null,1,null,null,null,null,null,null,null,null,null,null,null,null,null,null,null,null,null,"--",null," "]
[900,null,null,null,null,null,null,null,null,null,null,null,null,null,1,null,null,null,null,null,null,null,null,null,null,null,null,null,null,null,null,null,"--",null," "]
[901,null,null,null,null,null,null,null,null,null,null,null,null,null,1,null,null,null,null,null,null,null,null,null,null,null,null,null,null,null,null,null,"--",null," "]
[902,null,null,null,null,null,null,null,null,null,null,null,null,null,1,null,null,null,null,null,null,null,null,null,null,null,null,null,null,null,null,null,"--",null," "]
[903,null,null,null,null,null,null,null,null,null,null,null,null,null,1,null,null,null,null,null,null,null,null,null,null,null,null,null,null,null,null,null,"--",null," "]
[904,null,null,null,null,null,null,null,null,null,null,null,null,null,1,null,null,null,null,null,null,null,null,null,null,null,null,null,null,null,null,null,"--",null," "]
[905,null,null,null,null,null,null,null,null,null,null,null,null,null,1,null,null,null,null,null,null,null,null,null,null,null,null,null,null,null,null,null,"--",null," "]
[906,null,null,null,null,null,null,null,null,null,null,null,null,null,1,null,null,null,null,null,null,null,null,null,null,null,null,null,null,null,null,null,"--",null," "]
[907,null,null,null,null,null,null,null,null,null,null,null,null,null,1,null,null,null,null,null,null,null,null,null,null,null,null,null,null,null,null,null,"--",null," "]
[908,null,null,null,null,null,null,null,null,null,null,null,null,null,1,null,null,null,null,null,null,null,null,null,null,null,null,null,null,null,null,null,"--",null," "]
[909,null,null,null,null,null,null,null,null,null,null,null,null,null,1,null,null,null,null,null,null,null,null,null,null,null,null,null,null,null,null,null,"--",null," "]
[910,null,null,null,null,null,null,null,null,null,null,null,null,null,1,null,null,null,null,null,null,null,null,null,null,null,null,null,null,null,null,null,"--",null," "]
[911,null,null,null,null,null,null,null,null,null,null,null,null,null,1,null,null,null,null,null,null,null,null,null,null,null,null,null,null,null,null,null,"--",null," "]
[912,null,null,null,null,null,null,null,null,null,null,null,null,null,1,null,null,null,null,null,null,null,null,null,null,null,null,null,null,null,null,null,"--",null," "]
[913,null,null,null,null,null,null,null,null,null,null,null,null,null,1,null,null,null,null,null,null,null,null,null,null,null,null,null,null,null,null,null,"--",null," "]
[914,null,null,null,null,null,null,null,null,null,null,null,null,null,1,null,null,null,null,null,null,null,null,null,null,null,null,null,null,null,null,null,"--",null," "]
[915,null,null,null,null,null,null,null,null,null,null,null,null,null,1,null,null,null,null,null,null,null,null,null,null,null,null,null,null,null,null,null,"--",null," "]
[916,null,null,null,null,null,null,null,null,null,null,null,null,null,1,null,null,null,null,null,null,null,null,null,null,null,null,null,null,null,null,null,"--",null," "]
[917,null,null,null,null,null,null,null,null,null,null,null,null,null,1,null,null,null,null,null,null,null,null,null,null,null,null,null,null,null,null,null,"--",null," "]
[918,null,null,null,null,null,null,null,null,null,null,null,null,null,1,null,null,null,null,null,null,null,null,null,null,null,null,null,null,null,null,null,"--",null," "]
[919,null,null,null,null,null,null,null,null,null,null,null,null,null,1,null,null,null,null,null,null,null,null,null,null,null,null,null,null,null,null,null,"--",null," "]
[920,null,null,null,null,null,null,null,null,null,null,null,null,null,1,null,null,null,null,null,null,null,null,null,null,null,null,null,null,null,null,null,"--",null," "]
[921,null,null,null,null,null,null,null,null,null,null,null,null,null,1,null,null,null,null,null,null,null,null,null,null,null,null,null,null,null,null,null,"--",null," "]
[922,null,null,null,null,null,null,null,null,null,null,null,null,null,1,null,null,null,null,null,null,null,null,null,null,null,null,null,null,null,null,null,"--",null," "]
[923,null,null,null,null,null,null,null,null,null,null,null,null,null,1,null,null,null,null,null,null,null,null,null,null,null,null,null,null,null,null,null,"--",null," "]
[924,null,null,null,null,null,null,null,null,null,null,null,null,null,1,null,null,null,null,null,null,null,null,null,null,null,null,null,null,null,null,null,"--",null," "]
[925,null,null,null,null,null,null,null,null,null,null,null,null,null,1,null,null,null,null,null,null,null,null,null,null,null,null,null,null,null,null,null,"--",null," "]
[926,null,null,null,null,null,null,null,null,null,null,null,null,null,1,null,null,null,null,null,null,null,null,null,null,null,null,null,null,null,null,null,"--",null," "]
[927,null,null,null,null,null,null,null,null,null,null,null,null,null,1,null,null,null,null,null,null,null,null,null,null,null,null,null,null,null,null,null,"--",null," "]
[928,null,null,null,null,null,null,null,null,null,null,null,null,null,1,null,null,null,null,null,null,null,null,null,null,null,null,null,null,null,null,null,"--",null," "]
[929,null,null,null,null,null,null,null,null,null,null,null,null,null,1,null,null,null,null,null,null,null,null,null,null,null,null,null,null,null,null,null,"--",null," "]
[930,null,null,null,null,null,null,null,null,null,null,null,null,null,1,null,null,null,null,null,null,null,null,null,null,null,null,null,null,null,null,null,"--",null," "]
[931,null,null,null,null,null,null,null,null,null,null,null,null,null,1,null,null,null,null,null,null,null,null,null,null,null,null,null,null,null,null,null,"--",null," "]
[932,null,null,null,null,null,null,null,null,null,null,null,null,null,1,null,null,null,null,null,null,null,null,null,null,null,null,null,null,null,null,null,"--",null," "]
[933,null,null,null,null,null,null,null,null,null,null,null,null,null,1,null,null,null,null,null,null,null,null,null,null,null,null,null,null,null,null,null,"--",null," "]
[934,null,null,null,null,null,null,null,null,null,null,null,null,null,1,null,null,null,null,null,null,null,null,null,null,null,null,null,null,null,null,null,"--",null," "]
[935,null,null,null,null,null,null,null,null,null,null,null,null,null,1,null,null,null,null,null,null,null,null,null,null,null,null,null,null,null,null,null,"--",null," "]
[936,null,null,null,null,null,null,null,null,null,null,null,null,null,1,null,null,null,null,null,null,null,null,null,null,null,null,null,null,null,null,null,"--",null," "]
[937,null,null,null,null,null,null,null,null,null,null,null,null,null,1,null,null,null,null,null,null,null,null,null,null,null,null,null,null,null,null,null,"--",null," "]
[938,null,null,null,null,null,null,null,null,null,null,null,null,null,1,null,null,null,null,null,null,null,null,null,null,null,null,null,null,null,null,null,"--",null," "]
[939,null,null,null,null,null,null,null,null,null,null,null,null,null,1,null,null,null,null,null,null,null,null,null,null,null,null,null,null,null,null,null,"--",null," "]
[940,null,null,null,null,null,null,null,null,null,null,null,null,null,1,null,null,null,null,null,null,null,null,null,null,null,null,null,null,null,null,null,"--",null," "]
[941,null,null,null,null,null,null,null,null,null,null,null,null,null,1,null,null,null,null,null,null,null,null,null,null,null,null,null,null,null,null,null,"--",null," "]
[942,null,null,null,null,null,null,null,null,null,null,null,null,null,1,null,null,null,null,null,null,null,null,null,null,null,null,null,null,null,null,null,"--",null," "]
[943,null,null,null,null,null,null,null,null,null,null,null,null,null,1,null,null,null,null,null,null,null,null,null,null,null,null,null,null,null,null,null,"--",null," "]
[944,null,null,null,null,null,null,null,null,null,null,null,null,null,1,null,null,null,null,null,null,null,null,null,null,null,null,null,null,null,null,null,"--",null," "]
[945,null,null,null,null,null,null,null,null,null,null,null,null,null,1,null,null,null,null,null,null,null,null,null,null,null,null,null,null,null,null,null,"--",null," "]
[946,null,null,null,null,null,null,null,null,null,null,null,null,null,1,null,null,null,null,null,null,null,null,null,null,null,null,null,null,null,null,null,"--",null," "]
[947,null,null,null,null,null,null,null,null,null,null,null,null,null,1,null,null,null,null,null,null,null,null,null,null,null,null,null,null,null,null,null,"--",null," "]
[948,null,null,null,null,null,null,null,null,null,null,null,null,null,1,null,null,null,null,null,null,null,null,null,null,null,null,null,null,null,null,null,"--",null," "]
[949,null,null,null,null,null,null,null,null,null,null,null,null,null,1,null,null,null,null,null,null,null,null,null,null,null,null,null,null,null,null,null,"--",null," "]
[950,null,null,null,null,null,null,null,null,null,null,null,null,null,1,null,null,null,null,null,null,null,null,null,null,null,null,null,null,null,null,null,"--",null," "]
[951,null,null,null,null,null,null,null,null,null,null,null,null,null,1,null,null,null,null,null,null,null,null,null,null,null,null,null,null,null,null,null,"--",null," "]
[952,null,null,null,null,null,null,null,null,null,null,null,null,null,1,null,null,null,null,null,null,null,null,null,null,null,null,null,null,null,null,null,"--",null," "]
[953,null,null,null,null,null,null,null,null,null,null,null,null,null,1,null,null,null,null,null,null,null,null,null,null,null,null,null,null,null,null,null,"--",null," "]
[954,null,null,null,null,null,null,null,null,null,null,null,null,null,1,null,null,null,null,null,null,null,null,null,null,null,null,null,null,null,null,null,"--",null," "]
[955,null,null,null,null,null,null,null,null,null,null,null,null,null,1,null,null,null,null,null,null,null,null,null,null,null,null,null,null,null,null,null,"--",null," "]
[956,null,null,null,null,null,null,null,null,null,null,null,null,null,1,null,null,null,null,null,null,null,null,null,null,null,null,null,null,null,null,null,"--",null," "]
[957,null,null,null,null,null,null,null,null,null,null,null,null,null,1,null,null,null,null,null,null,null,null,null,null,null,null,null,null,null,null,null,"--",null," "]
[958,null,null,null,null,null,null,null,null,null,null,null,null,null,1,null,null,null,null,null,null,null,null,null,null,null,null,null,null,null,null,null,"--",null," "]
[959,null,null,null,null,null,null,null,null,null,null,null,null,null,1,null,null,null,null,null,null,null,null,null,null,null,null,null,null,null,null,null,"--",null," "]
[960,null,null,null,null,null,null,null,null,null,null,null,null,null,1,null,null,null,null,null,null,null,null,null,null,null,null,null,null,null,null,null,"--",null," "]
[961,null,null,null,null,null,null,null,null,null,null,null,null,null,1,null,null,null,null,null,null,null,null,null,null,null,null,null,null,null,null,null,{"$f":"CONCATENATE(L976,\"-\",M976,\"-\",N976)","v":"--"},null," "]
[962,null,null,null,null,null,null,null,null,null,null,null,null,null,1,null,null,null,null,null,null,null,null,null,null,null,null,null,null,null,null,null,"--",null,{"$f":"IF(B977=\"M\",\"LOCALIZADO\",IF(B977=\"OK\",\"LOCALIZADO\",IF(B977=\"D\",\"LOCALIZADO\",IF(B977=\"BT\",\"LOCALIZADO\",IF(B977=\"NR\",\"LOCALIZADO PENDIENTE DE INVENTARIAR\",IF(B977=\"REU\",\"LOCALIZADO\",IF(B977=\"NO_L\",\"NO_LOCALIZADO\",IF(ISBLANK(B977),\" \",\"NO\"))))))))","v":" "}]
[963,null,null,null,null,null,null,null,null,null,null,null,null,null,1,null,null,null,null,null,null,null,null,null,null,null,null,null,null,null,null,null,"--",null," "]
[964,null,null,null,null,null,null,null,null,null,null,null,null,null,1,null,null,null,null,null,null,null,null,null,null,null,null,null,null,null,null,null,"--",null," "]
[965,null,null,null,null,null,null,null,null,null,null,null,null,null,1,null,null,null,null,null,null,null,null,null,null,null,null,null,null,null,null,null,"--",null," "]
[966,null,null,null,null,null,null,null,null,null,null,null,null,null,1,null,null,null,null,null,null,null,null,null,null,null,null,null,null,null,null,null,"--",null," "]
[967,null,null,null,null,null,null,null,null,null,null,null,null,null,1,null,null,null,null,null,null,null,null,null,null,null,null,null,null,null,null,null,"--",null," "]
[968,null,null,null,null,null,null,null,null,null,null,null,null,null,1,null,null,null,null,null,null,null,null,null,null,null,null,null,null,null,null,null,"--",null," "]
[969,null,null,null,null,null,null,null,null,null,null,null,null,null,1,null,null,null,null,null,null,null,null,null,null,null,null,null,null,null,null,null,"--",null," "]
[970,null,null,null,null,null,null,null,null,null,null,null,null,null,1,null,null,null,null,null,null,null,null,null,null,null,null,null,null,null,null,null,"--",null," "]
[971,null,null,null,null,null,null,null,null,null,null,null,null,null,1,null,null,null,null,null,null,null,null,null,null,null,null,null,null,null,null,null,"--",null," "]
[972,null,null,null,null,null,null,null,null,null,null,null,null,null,1,null,null,null,null,null,null,null,null,null,null,null,null,null,null,null,null,null,"--",null," "]
[973,null,null,null,null,null,null,null,null,null,null,null,null,null,1,null,null,null,null,null,null,null,null,null,null,null,null,null,null,null,null,null,"--",null," "]
[974,null,null,null,null,null,null,null,null,null,null,null,null,null,1,null,null,null,null,null,null,null,null,null,null,null,null,null,null,null,null,null,"--",null," "]
[975,null,null,null,null,null,null,null,null,null,null,null,null,null,1,null,null,null,null,null,null,null,null,null,null,null,null,null,null,null,null,null,"--",null," "]
[976,null,null,null,null,null,null,null,null,null,null,null,null,null,1,null,null,null,null,null,null,null,null,null,null,null,null,null,null,null,null,null,"--",null," "]
[977,null,null,null,null,null,null,null,null,null,null,null,null,null,1,null,null,null,null,null,null,null,null,null,null,null,null,null,null,null,null,null,"--",null," "]
[978,null,null,null,null,null,null,null,null,null,null,null,null,null,1,null,null,null,null,null,null,null,null,null,null,null,null,null,null,null,null,null,"--",null," "]
[979,null,null,null,null,null,null,null,null,null,null,null,null,null,1,null,null,null,null,null,null,null,null,null,null,null,null,null,null,null,null,null,"--",null," "]
[980,null,null,null,null,null,null,null,null,null,null,null,null,null,1,null,null,null,null,null,null,null,null,null,null,null,null,null,null,null,null,null,"--",null," "]
[981,null,null,null,null,null,null,null,null,null,null,null,null,null,1,null,null,null,null,null,null,null,null,null,null,null,null,null,null,null,null,null,"--",null," "]
[982,null,null,null,null,null,null,null,null,null,null,null,null,null,1,null,null,null,null,null,null,null,null,null,null,null,null,null,null,null,null,null,"--",null," "]
[983,null,null,null,null,null,null,null,null,null,null,null,null,null,1,null,null,null,null,null,null,null,null,null,null,null,null,null,null,null,null,null,"--",null," "]
[984,null,null,null,null,null,null,null,null,null,null,null,null,null,1,null,null,null,null,null,null,null,null,null,null,null,null,null,null,null,null,null,"--",null," "]
[985,null,null,null,null,null,null,null,null,null,null,null,null,null,1,null,null,null,null,null,null,null,null,null,null,null,null,null,null,null,null,null,"--",null," "]
[1049,null,null,null,null,null,null,null,null,null,null,null,null,null,1,null,null,null,null,null,null,null,null,null,null,null,null,null,null,null,null,null,"--",null," "]
[1071,null,null,null,null,null,null,null,null,null,null,null,null,null,1,null,null,null,null,null,null,null,null,null,null,null,null,null,null,null,null,null,"--",null," "]
[1156,null,null,null,null,null,null,null,null,null,null,null,null,null,1,null,null,null,null,null,null,null,null,null,null,null,null,null,null,null,null,null,"--",null," "]
[1217,null,null,null,null,null,null,null,null,null,null,null,null,null,1,null,null,null,null,null,null,null,null,null,null,null,null,null,null,null,null,null,{"$f":"CONCATENATE(L1232,\"-\",M1232,\"-\",N1232)","v":"--"},null," "]
[1279,null,null,null,null,null,null,null,null,null,null,null,null,null,1,null,null,null,null,null,null,null,null,null,null,null,null,null,null,null,null,null,"--",null," "]
[1386,null,null,null,null,null,null,null,null,null,null,null,null,null,1,null,null,null,null,null,null,null,null,null,null,null,null,null,null,null,null,null,"--",null," "]
[1447,null,null,null,null,null,null,null,null,null,null,null,null,null,1,null,null,null,null,null,null,null,null,null,null,null,null,null,null,null,null,null,"--",null," "]
[1532,null,null,null,null,null,null,null,null,null,null,null,null,null,1,null,null,null,null,null,null,null,null,null,null,null,null,null,null,null,null,null,"--",null," "]
[1578,null,null,null,null,null,null,null,null,null,null,null,null,null,1,null,null,null,null,null,null,null,null,null,null,null,null,null,null,null,null,null,"--",null," "]
[1677,null,null,null,null,null,null,null,null,null,null,null,null,null,1,null,null,null,null,null,null,null,null,null,null,null,null,null,null,null,null,null,"--",null," "]
[1692,null,null,null,null,null,null,null,null,null,null,null,null,null,1,null,null,null,null,null,null,null,null,null,null,null,null,null,null,null,null,null,"--",null," "]
[1753,null,null,null,null,null,null,null,null,null,null,null,null,null,1,null,null,null,null,null,null,null,null,null,null,null,null,null,null,null,null,null,"--",null," "]
[1888,null,null,null,null,null,null,null,null,null,null,null,null,null,1,null,null,null,null,null,null,null,null,null,null,null,null,null,null,null,null,null,"--",null," "]
[1922,null,null,null,null,null,null,null,null,null,null,null,null,null,1,null,null,null,null,null,null,null,null,null,null,null,null,null,null,null,null,null,"--",null,{"$f":"IF(B1937=\"M\",\"LOCALIZADO\",IF(B1937=\"OK\",\"LOCALIZADO\",IF(B1937=\"D\",\"LOCALIZADO\",IF(B1937=\"BT\",\"LOCALIZADO\",IF(B1937=\"NR\",\"LOCALIZADO PENDIENTE DE INVENTARIAR\",IF(B1937=\"REU\",\"LOCALIZADO\",IF(B1937=\"NO_L\",\"NO_LOCALIZADO\",IF(ISBLANK(B1937),\" \",\"NO\"))))))))","v":" "}]
[1983,null,null,null,null,null,null,null,null,null,null,null,null,null,1,null,null,null,null,null,null,null,null,null,null,null,null,null,null,null,null,null,"--",null," "]
[2068,null,null,null,null,null,null,null,null,null,null,null,null,null,1,null,null,null,null,null,null,null,null,null,null,null,null,null,null,null,null,null,"--",null," "]
[2118,null,null,null,null,null,null,null,null,null,null,null,null,null,1,null,null,null,null,null,null,null,null,null,null,null,null,null,null,null,null,null,"--",null," "]
[2213,null,null,null,null,null,null,null,null,null,null,null,null,null,1,null,null,null,null,null,null,null,null,null,null,null,null,null,null,null,null,null,"--",null," "]
[2298,null,null,null,null,null,null,null,null,null,null,null,null,null,1,null,null,null,null,null,null,null,null,null,null,null,null,null,null,null,null,null,"--",null," "]
[2359,null,null,null,null,null,null,null,null,null,null,null,null,null,1,null,null,null,null,null,null,null,null,null,null,null,null,null,null,null,null,null,"--",null," "]
[2428,null,null,null,null,null,null,null,null,null,null,null,null,null,1,null,null,null,null,null,null,null,null,null,null,null,null,null,null,null,null,null,"--",null," "]
[2504,null,null,null,null,null,null,null,null,null,null,null,null,null,1,null,null,null,null,null,null,null,null,null,null,null,null,null,null,null,null,null,"--",null," "]
[2589,null,null,null,null,null,null,null,null,null,null,null,null,null,1,null,null,null,null,null,null,null,null,null,null,null,null,null,null,null,null,null,"--",null," "]
[2604,null,null,null,null,null,null,null,null,null,null,null,null,null,1,null,null,null,null,null,null,null,null,null,null,null,null,null,null,null,null,null,"--",null," "]
[2727,null,null,null,null,null,null,null,null,null,null,null,null,null,1,null,null,null,null,null,null,null,null,null,null,null,null,null,null,null,null,null,"--",null," "]
[2749,null,null,null,null,null,null,null,null,null,null,null,null,null,1,null,null,null,null,null,null,null,null,null,null,null,null,null,null,null,null,null,"--",null," "]
[2834,null,null,null,null,null,null,null,null,null,null,null,null,null,1,null,null,null,null,null,null,null,null,null,null,null,null,null,null,null,null,null,"--",null," "]
[2895,null,null,null,null,null,null,null,null,null,null,null,null,null,1,null,null,null,null,null,null,null,null,null,null,null,null,null,null,null,null,null,"--",null," "]
[2968,null,null,null,null,null,null,null,null,null,null,null,null,null,1,null,null,null,null,null,null,null,null,null,null,null,null,null,null,null,null,null,"--",null," "]
[3040,null,null,null,null,null,null,null,null,null,null,null,null,null,1,null,null,null,null,null,null,null,null,null,null,null,null,null,null,null,null,null,"--",null," "]
[3125,null,null,null,null,null,null,null,null,null,null,null,null,null,1,null,null,null,null,null,null,null,null,null,null,null,null,null,null,null,null,null,"--",null," "]
[3210,null,null,null,null,null,null,null,null,null,null,null,null,null,1,null,null,null,null,null,null,null,null,null,null,null,null,null,null,null,null,null,"--",null," "]
[3267,null,null,null,null,null,null,null,null,null,null,null,null,null,1,null,null,null,null,null,null,null,null,null,null,null,null,null,null,null,null,null,"--",null," "]
[3355,null,null,null,null,null,null,null,null,null,null,null,null,null,1,null,null,null,null,null,null,null,null,null,null,null,null,null,null,null,null,null,"--",null," "]
[3370,null,null,null,null,null,null,null,null,null,null,null,null,null,1,null,null,null,null,null,null,null,null,null,null,null,null,null,null,null,null,null,"--",null," "]
[3431,null,null,null,null,null,null,null,null,null,null,null,null,null,1,null,null,null,null,null,null,null,null,null,null,null,null,null,null,null,null,null,"--",null," "]
[3508,null,null,null,null,null,null,null,null,null,null,null,null,null,1,null,null,null,null,null,null,null,null,null,null,null,null,null,null,null,null,null,"--",null," "]
[3576,null,null,null,null,null,null,null,null,null,null,null,null,null,1,null,null,null,null,null,null,null,null,null,null,null,null,null,null,null,null,null,"--",null," "]
[3661,null,null,null,null,null,null,null,null,null,null,null,null,null,1,null,null,null,null,null,null,null,null,null,null,null,null,null,null,null,null,null,"--",null," "]
[3746,null,null,null,null,null,null,null,null,null,null,null,null,null,1,null,null,null,null,null,null,null,null,null,null,null,null,null,null,null,null,null,"--",null," "]
[3807,null,null,null,null,null,null,null,null,null,null,null,null,null,1,null,null,null,null,null,null,null,null,null,null,null,null,null,null,null,null,null,"--",null," "]
[3891,null,null,null,null,null,null,null,null,null,null,null,null,null,1,null,null,null,null,null,null,null,null,null,null,null,null,null,null,null,null,null,"--",null," "]
[3952,null,null,null,null,null,null,null,null,null,null,null,null,null,1,null,null,null,null,null,null,null,null,null,null,null,null,null,null,null,null,null,"--",null," "]
[4037,null,null,null,null,null,null,null,null,null,null,null,null,null,1,null,null,null,null,null,null,null,null,null,null,null,null,null,null,null,null,null,"--",null," "]
[4117,null,null,null,null,null,null,null,null,null,null,null,null,null,1,null,null,null,null,null,null,null,null,null,null,null,null,null,null,null,null,null,"--",null," "]
[4182,null,null,null,null,null,null,null,null,null,null,null,null,null,1,null,null,null,null,null,null,null,null,null,null,null,null,null,null,null,null,null,"--",null," "]
[4197,null,null,null,null,null,null,null,null,null,null,null,null,null,1,null,null,null,null,null,null,null,null,null,null,null,null,null,null,null,null,null,"--",null," "]
[4282,null,null,null,null,null,null,null,null,null,null,null,null,null,1,null,null,null,null,null,null,null,null,null,null,null,null,null,null,null,null,null,"--",null," "]
[4347,null,null,null,null,null,null,null,null,null,null,null,null,null,1,null,null,null,null,null,null,null,null,null,null,null,null,null,null,null,null,null,"--",null," "]
[4427,null,null,null,null,null,null,null,null,null,null,null,null,null,1,null,null,null,null,null,null,null,null,null,null,null,null,null,null,null,null,null,"--",null," "]
[4488,null,null,null,null,null,null,null,null,null,null,null,null,null,1,null,null,null,null,null,null,null,null,null,null,null,null,null,null,null,null,null,"--",null," "]
[4573,null,null,null,null,null,null,null,null,null,null,null,null,null,1,null,null,null,null,null,null,null,null,null,null,null,null,null,null,null,null,null,"--",null," "]
[4657,null,null,null,null,null,null,null,null,null,null,null,null,null,1,null,null,null,null,null,null,null,null,null,null,null,null,null,null,null,null,null,"--",null," "]
[4718,null,null,null,null,null,null,null,null,null,null,null,null,null,1,null,null,null,null,null,null,null,null,null,null,null,null,null,null,null,null,null,"--",null," "]
[4803,null,null,null,null,null,null,null,null,null,null,null,null,null,1,null,null,null,null,null,null,null,null,null,null,null,null,null,null,null,null,null,"--",null," "]
[4864,null,null,null,null,null,null,null,null,null,null,null,null,null,1,null,null,null,null,null,null,null,null,null,null,null,null,null,null,null,null,null,"--",null," "]
[4956,null,null,null,null,null,null,null,null,null,null,null,null,null,1,null,null,null,null,null,null,null,null,null,null,null,null,null,null,null,null,null,"--",null," "]
[4963,null,null,null,null,null,null,null,null,null,null,null,null,null,1,null,null,null,null,null,null,null,null,null,null,null,null,null,null,null,null,null,"--",null," "]
[5094,null,null,null,null,null,null,null,null,null,null,null,null,null,1,null,null,null,null,null,null,null,null,null,null,null,null,null,null,null,null,null,"--",null," "]
[5109,null,null,null,null,null,null,null,null,null,null,null,null,null,1,null,null,null,null,null,null,null,null,null,null,null,null,null,null,null,null,null,"--",null," "]
[5197,null,null,null,null,null,null,null,null,null,null,null,null,null,1,null,null,null,null,null,null,null,null,null,null,null,null,null,null,null,null,null,"--",null," "]
[5254,null,null,null,null,null,null,null,null,null,null,null,null,null,1,null,null,null,null,null,null,null,null,null,null,null,null,null,null,null,null,null,"--",null," "]
[5339,null,null,null,null,null,null,null,null,null,null,null,null,null,1,null,null,null,null,null,null,null,null,null,null,null,null,null,null,null,null,null,"--",null," "]
[5400,null,null,null,null,null,null,null,null,null,null,null,null,null,1,null,null,null,null,null,null,null,null,null,null,null,null,null,null,null,null,null,"--",null," "]
[5496,null,null,null,null,null,null,null,null,null,null,null,null,null,1,null,null,null,null,null,null,null,null,null,null,null,null,null,null,null,null,null,"--",null," "]
[5569,null,null,null,null,null,null,null,null,null,null,null,null,null,1,null,null,null,null,null,null,null,null,null,null,null,null,null,null,null,null,null,{"$f":"CONCATENATE(L5584,\"-\",M5584,\"-\",N5584)","v":"--"},null," "]
[5630,null,null,null,null,null,null,null,null,null,null,null,null,null,1,null,null,null,null,null,null,null,null,null,null,null,null,null,null,null,null,null,"--",null," "]
[5715,null,null,null,null,null,null,null,null,null,null,null,null,null,1,null,null,null,null,null,null,null,null,null,null,null,null,null,null,null,null,null,"--",null," "]
[5737,null,null,null,null,null,null,null,null,null,null,null,null,null,1,null,null,null,null,null,null,null,null,null,null,null,null,null,null,null,null,null,"--",null," "]
[5860,null,null,null,null,null,null,null,null,null,null,null,null,null,1,null,null,null,null,null,null,null,null,null,null,null,null,null,null,null,null,null,"--",null," "]
[5875,null,null,null,null,null,null,null,null,null,null,null,null,null,1,null,null,null,null,null,null,null,null,null,null,null,null,null,null,null,null,null,"--",null," "]
[6006,null,null,null,null,null,null,null,null,null,null,null,null,null,1,null,null,null,null,null,null,null,null,null,null,null,null,null,null,null,null,null,"--",null," "]
[6036,null,null,null,null,null,null,null,null,null,null,null,null,null,1,null,null,null,null,null,null,null,null,null,null,null,null,null,null,null,null,null,"--",null," "]
[6105,null,null,null,null,null,null,null,null,null,null,null,null,null,1,null,null,null,null,null,null,null,null,null,null,null,null,null,null,null,null,null,"--",null," "]
[6166,null,null,null,null,null,null,null,null,null,null,null,null,null,1,null,null,null,null,null,null,null,null,null,null,null,null,null,null,null,null,null,"--",null," "]
[6251,null,null,null,null,null,null,null,null,null,null,null,null,null,1,null,null,null,null,null,null,null,null,null,null,null,null,null,null,null,null,null,"--",null," "]
[6335,null,null,null,null,null,null,null,null,null,null,null,null,null,1,null,null,null,null,null,null,null,null,null,null,null,null,null,null,null,null,null,"--",null," "]
[6396,null,null,null,null,null,null,null,null,null,null,null,null,null,1,null,null,null,null,null,null,null,null,null,null,null,null,null,null,null,null,null,"--",null," "]
[6481,null,null,null,null,null,null,null,null,null,null,null,null,null,1,null,null,null,null,null,null,null,null,null,null,null,null,null,null,null,null,null,"--",null," "]
[6542,null,null,null,null,null,null,null,null,null,null,null,null,null,1,null,null,null,null,null,null,null,null,null,null,null,null,null,null,null,null,null,"--",null," "]
[6576,null,null,null,null,null,null,null,null,null,null,null,null,null,1,null,null,null,null,null,null,null,null,null,null,null,null,null,null,null,null,null,"--",null," "]
[6641,null,null,null,null,null,null,null,null,null,null,null,null,null,1,null,null,null,null,null,null,null,null,null,null,null,null,null,null,null,null,null,"--",null," "]
[6772,null,null,null,null,null,null,null,null,null,null,null,null,null,1,null,null,null,null,null,null,null,null,null,null,null,null,null,null,null,null,null,"--",null," "]
[6787,null,null,null,null,null,null,null,null,null,null,null,null,null,1,null,null,null,null,null,null,null,null,null,null,null,null,null,null,null,null,null,"--",null," "]
[6875,null,null,null,null,null,null,null,null,null,null,null,null,null,1,null,null,null,null,null,null,null,null,null,null,null,null,null,null,null,null,null,"--",null," "]
[6932,null,null,null,null,null,null,null,null,null,null,null,null,null,1,null,null,null,null,null,null,null,null,null,null,null,null,null,null,null,null,null,"--",null," "]
[7017,null,null,null,null,null,null,null,null,null,null,null,null,null,1,null,null,null,null,null,null,null,null,null,null,null,null,null,null,null,null,null,"--",null," "]
[7078,null,null,null,null,null,null,null,null,null,null,null,null,null,1,null,null,null,null,null,null,null,null,null,null,null,null,null,null,null,null,null,"--",null," "]
[7185,null,null,null,null,null,null,null,null,null,null,null,null,null,1,null,null,null,null,null,null,null,null,null,null,null,null,null,null,null,null,null,"--",null," "]
[7247,null,null,null,null,null,null,null,null,null,null,null,null,null,1,null,null,null,null,null,null,null,null,null,null,null,null,null,null,null,null,null,"--",null," "]
[7308,null,null,null,null,null,null,null,null,null,null,null,null,null,1,null,null,null,null,null,null,null,null,null,null,null,null,null,null,null,null,null,"--",null," "]
[7393,null,null,null,null,null,null,null,null,null,null,null,null,null,1,null,null,null,null,null,null,null,null,null,null,null,null,null,null,null,null,null,"--",null," "]
[7415,null,null,null,null,null,null,null,null,null,null,null,null,null,1,null,null,null,null,null,null,null,null,null,null,null,null,null,null,null,null,null,"--",null," "]
[7538,null,null,null,null,null,null,null,null,null,null,null,null,null,1,null,null,null,null,null,null,null,null,null,null,null,null,null,null,null,null,null,"--",null," "]
[7553,null,null,null,null,null,null,null,null,null,null,null,null,null,1,null,null,null,null,null,null,null,null,null,null,null,null,null,null,null,null,null,{"$f":"CONCATENATE(L7568,\"-\",M7568,\"-\",N7568)","v":"--"},null," "]
[7614,null,null,null,null,null,null,null,null,null,null,null,null,null,1,null,null,null,null,null,null,null,null,null,null,null,null,null,null,null,null,null,"--",null," "]
[7725,null,null,null,null,null,null,null,null,null,null,null,null,null,1,null,null,null,null,null,null,null,null,null,null,null,null,null,null,null,null,null,"--",null," "]
[7759,null,null,null,null,null,null,null,null,null,null,null,null,null,1,null,null,null,null,null,null,null,null,null,null,null,null,null,null,null,null,null,"--",null," "]
[7844,null,null,null,null,null,null,null,null,null,null,null,null,null,1,null,null,null,null,null,null,null,null,null,null,null,null,null,null,null,null,null,"--",null," "]
[7929,null,null,null,null,null,null,null,null,null,null,null,null,null,1,null,null,null,null,null,null,null,null,null,null,null,null,null,null,null,null,null,"--",null," "]
[8024,null,null,null,null,null,null,null,null,null,null,null,null,null,1,null,null,null,null,null,null,null,null,null,null,null,null,null,null,null,null,null,"--",null," "]
[8074,null,null,null,null,null,null,null,null,null,null,null,null,null,1,null,null,null,null,null,null,null,null,null,null,null,null,null,null,null,null,null,"--",null," "]
[8159,null,null,null,null,null,null,null,null,null,null,null,null,null,1,null,null,null,null,null,null,null,null,null,null,null,null,null,null,null,null,null,"--",null," "]
[8220,null,null,null,null,null,null,null,null,null,null,null,null,null,1,null,null,null,null,null,null,null,null,null,null,null,null,null,null,null,null,null,"--",null," "]
[8265,null,null,null,null,null,null,null,null,null,null,null,null,null,1,null,null,null,null,null,null,null,null,null,null,null,null,null,null,null,null,null,"--",null," "]
[8365,null,null,null,null,null,null,null,null,null,null,null,null,null,1,null,null,null,null,null,null,null,null,null,null,null,null,null,null,null,null,null,"--",null," "]
[8380,null,null,null,null,null,null,null,null,null,null,null,null,null,1,null,null,null,null,null,null,null,null,null,null,null,null,null,null,null,null,null,"--",null," "]
[8465,null,null,null,null,null,null,null,null,null,null,null,null,null,1,null,null,null,null,null,null,null,null,null,null,null,null,null,null,null,null,null,"--",null," "]
[8564,null,null,null,null,null,null,null,null,null,null,null,null,null,1,null,null,null,null,null,null,null,null,null,null,null,null,null,null,null,null,null,"--",null," "]
[8610,null,null,null,null,null,null,null,null,null,null,null,null,null,1,null,null,null,null,null,null,null,null,null,null,null,null,null,null,null,null,null,"--",null," "]
[8671,null,null,null,null,null,null,null,null,null,null,null,null,null,1,null,null,null,null,null,null,null,null,null,null,null,null,null,null,null,null,null,"--",null," "]
[8756,null,null,null,null,null,null,null,null,null,null,null,null,null,1,null,null,null,null,null,null,null,null,null,null,null,null,null,null,null,null,null,"--",null," "]
[8805,null,null,null,null,null,null,null,null,null,null,null,null,null,1,null,null,null,null,null,null,null,null,null,null,null,null,null,null,null,null,null,"--",null," "]
[8901,null,null,null,null,null,null,null,null,null,null,null,null,null,1,null,null,null,null,null,null,null,null,null,null,null,null,null,null,null,null,null,"--",null," "]
[8986,null,null,null,null,null,null,null,null,null,null,null,null,null,1,null,null,null,null,null,null,null,null,null,null,null,null,null,null,null,null,null,"--",null," "]
[9071,null,null,null,null,null,null,null,null,null,null,null,null,null,1,null,null,null,null,null,null,null,null,null,null,null,null,null,null,null,null,null,"--",null," "]
[9104,null,null,null,null,null,null,null,null,null,null,null,null,null,1,null,null,null,null,null,null,null,null,null,null,null,null,null,null,null,null,null,"--",null," "]
[9146,null,null,null,null,null,null,null,null,null,null,null,null,null,1,null,null,null,null,null,null,null,null,null,null,null,null,null,null,null,null,null,"--",null," "]
[9277,null,null,null,null,null,null,null,null,null,null,null,null,null,1,null,null,null,null,null,null,null,null,null,null,null,null,null,null,null,null,null,"--",null," "]
[9292,null,null,null,null,null,null,null,null,null,null,null,null,null,1,null,null,null,null,null,null,null,null,null,null,null,null,null,null,null,null,null,"--",null," "]
[9414,null,null,null,null,null,null,null,null,null,null,null,null,null,1,null,null,null,null,null,null,null,null,null,null,null,null,null,null,null,null,null,"--",null," "]
[9437,null,null,null,null,null,null,null,null,null,null,null,null,null,1,null,null,null,null,null,null,null,null,null,null,null,null,null,null,null,null,null,"--",null," "]
[9522,null,null,null,null,null,null,null,null,null,null,null,null,null,1,null,null,null,null,null,null,null,null,null,null,null,null,null,null,null,null,null,"--",null," "]
[9607,null,null,null,null,null,null,null,null,null,null,null,null,null,1,null,null,null,null,null,null,null,null,null,null,null,null,null,null,null,null,null,"--",null," "]
[9644,null,null,null,null,null,null,null,null,null,null,null,null,null,1,null,null,null,null,null,null,null,null,null,null,null,null,null,null,null,null,null,"--",null," "]
[9752,null,null,null,null,null,null,null,null,null,null,null,null,null,1,null,null,null,null,null,null,null,null,null,null,null,null,null,null,null,null,null,"--",null," "]
[9813,null,null,null,null,null,null,null,null,null,null,null,null,null,1,null,null,null,null,null,null,null,null,null,null,null,null,null,null,null,null,null,"--",null," "]
[9898,null,null,null,null,null,null,null,null,null,null,null,null,null,1,null,null,null,null,null,null,null,null,null,null,null,null,null,null,null,null,null,"--",null," "]
[9954,null,null,null,null,null,null,null,null,null,null,null,null,null,1,null,null,null,null,null,null,null,null,null,null,null,null,null,null,null,null,null,"--",null," "]
[10043,null,null,null,null,null,null,null,null,null,null,null,null,null,1,null,null,null,null,null,null,null,null,null,null,null,null,null,null,null,null,null,"--",null," "]
[10058,null,null,null,null,null,null,null,null,null,null,null,null,null,1,null,null,null,null,null,null,null,null,null,null,null,null,null,null,null,null,null,"--",null," "]
[10189,null,null,null,null,null,null,null,null,null,null,null,null,null,1,null,null,null,null,null,null,null,null,null,null,null,null,null,null,null,null,null,"--",null," "]
[10253,null,null,null,null,null,null,null,null,null,null,null,null,null,1,null,null,null,null,null,null,null,null,null,null,null,null,null,null,null,null,null,"--",null," "]
[10288,null,null,null,null,null,null,null,null,null,null,null,null,null,1,null,null,null,null,null,null,null,null,null,null,null,null,null,null,null,null,null,"--",null," "]
[10349,null,null,null,null,null,null,null,null,null,null,null,null,null,1,null,null,null,null,null,null,null,null,null,null,null,null,null,null,null,null,null,"--",null," "]
[10434,null,null,null,null,null,null,null,null,null,null,null,null,null,1,null,null,null,null,null,null,null,null,null,null,null,null,null,null,null,null,null,"--",null,{"$f":"IF(B10449=\"M\",\"LOCALIZADO\",IF(B10449=\"OK\",\"LOCALIZADO\",IF(B10449=\"D\",\"LOCALIZADO\",IF(B10449=\"BT\",\"LOCALIZADO\",IF(B10449=\"NR\",\"LOCALIZADO PENDIENTE DE INVENTARIAR\",IF(B10449=\"REU\",\"LOCALIZADO\",IF(B10449=\"NO_L\",\"NO_LOCALIZADO\",IF(ISBLANK(B10449),\" \",\"NO\"))))))))","v":" "}]
[10494,null,null,null,null,null,null,null,null,null,null,null,null,null,1,null,null,null,null,null,null,null,null,null,null,null,null,null,null,null,null,null,"--",null," "]
[10579,null,null,null,null,null,null,null,null,null,null,null,null,null,1,null,null,null,null,null,null,null,null,null,null,null,null,null,null,null,null,null,"--",null," "]
[10664,null,null,null,null,null,null,null,null,null,null,null,null,null,1,null,null,null,null,null,null,null,null,null,null,null,null,null,null,null,null,null,"--",null," "]
[10725,null,null,null,null,null,null,null,null,null,null,null,null,null,1,null,null,null,null,null,null,null,null,null,null,null,null,null,null,null,null,null,"--",null," "]
[10793,null,null,null,null,null,null,null,null,null,null,null,null,null,1,null,null,null,null,null,null,null,null,null,null,null,null,null,null,null,null,null,"--",null," "]
[10824,null,null,null,null,null,null,null,null,null,null,null,null,null,1,null,null,null,null,null,null,null,null,null,null,null,null,null,null,null,null,null,"--",null," "]
[10955,null,null,null,null,null,null,null,null,null,null,null,null,null,1,null,null,null,null,null,null,null,null,null,null,null,null,null,null,null,null,null,"--",null," "]
[10970,null,null,null,null,null,null,null,null,null,null,null,null,null,1,null,null,null,null,null,null,null,null,null,null,null,null,null,null,null,null,null,"--",null," "]
[11092,null,null,null,null,null,null,null,null,null,null,null,null,null,1,null,null,null,null,null,null,null,null,null,null,null,null,null,null,null,null,null,"--",null," "]
[11115,null,null,null,null,null,null,null,null,null,null,null,null,null,1,null,null,null,null,null,null,null,null,null,null,null,null,null,null,null,null,null,"--",null," "]
[11200,null,null,null,null,null,null,null,null,null,null,null,null,null,1,null,null,null,null,null,null,null,null,null,null,null,null,null,null,null,null,null,"--",null," "]
[11261,null,null,null,null,null,null,null,null,null,null,null,null,null,1,null,null,null,null,null,null,null,null,null,null,null,null,null,null,null,null,null,"--",null," "]
[11333,null,null,null,null,null,null,null,null,null,null,null,null,null,1,null,null,null,null,null,null,null,null,null,null,null,null,null,null,null,null,null,"--",null," "]
[11430,null,null,null,null,null,null,null,null,null,null,null,null,null,1,null,null,null,null,null,null,null,null,null,null,null,null,null,null,null,null,null,"--",null," "]
[11491,null,null,null,null,null,null,null,null,null,null,null,null,null,1,null,null,null,null,null,null,null,null,null,null,null,null,null,null,null,null,null,"--",null," "]
[11576,null,null,null,null,null,null,null,null,null,null,null,null,null,1,null,null,null,null,null,null,null,null,null,null,null,null,null,null,null,null,null,"--",null," "]
[11632,null,null,null,null,null,null,null,null,null,null,null,null,null,1,null,null,null,null,null,null,null,null,null,null,null,null,null,null,null,null,null,"--",null," "]
[11721,null,null,null,null,null,null,null,null,null,null,null,null,null,1,null,null,null,null,null,null,null,null,null,null,null,null,null,null,null,null,null,"--",null," "]
[11736,null,null,null,null,null,null,null,null,null,null,null,null,null,1,null,null,null,null,null,null,null,null,null,null,null,null,null,null,null,null,null,"--",null," "]
[11797,null,null,null,null,null,null,null,null,null,null,null,null,null,1,null,null,null,null,null,null,null,null,null,null,null,null,null,null,null,null,null,"--",null," "]
[11873,null,null,null,null,null,null,null,null,null,null,null,null,null,1,null,null,null,null,null,null,null,null,null,null,null,null,null,null,null,null,null,"--",null," "]
[11966,null,null,null,null,null,null,null,null,null,null,null,null,null,1,null,null,null,null,null,null,null,null,null,null,null,null,null,null,null,null,null,"--",null," "]
[12027,null,null,null,null,null,null,null,null,null,null,null,null,null,1,null,null,null,null,null,null,null,null,null,null,null,null,null,null,null,null,null,"--",null," "]
[12112,null,null,null,null,null,null,null,null,null,null,null,null,null,1,null,null,null,null,null,null,null,null,null,null,null,null,null,null,null,null,null,"--",null," "]
[12172,null,null,null,null,null,null,null,null,null,null,null,null,null,1,null,null,null,null,null,null,null,null,null,null,null,null,null,null,null,null,null,"--",null," "]
[12257,null,null,null,null,null,null,null,null,null,null,null,null,null,1,null,null,null,null,null,null,null,null,null,null,null,null,null,null,null,null,null,"--",null," "]
[12342,null,null,null,null,null,null,null,null,null,null,null,null,null,1,null,null,null,null,null,null,null,null,null,null,null,null,null,null,null,null,null,"--",null," "]
[12403,null,null,null,null,null,null,null,null,null,null,null,null,null,1,null,null,null,null,null,null,null,null,null,null,null,null,null,null,null,null,null,"--",null," "]
[12482,null,null,null,null,null,null,null,null,null,null,null,null,null,1,null,null,null,null,null,null,null,null,null,null,null,null,null,null,null,null,null,"--",null,{"$f":"IF(B12497=\"M\",\"LOCALIZADO\",IF(B12497=\"OK\",\"LOCALIZADO\",IF(B12497=\"D\",\"LOCALIZADO\",IF(B12497=\"BT\",\"LOCALIZADO\",IF(B12497=\"NR\",\"LOCALIZADO PENDIENTE DE INVENTARIAR\",IF(B12497=\"REU\",\"LOCALIZADO\",IF(B12497=\"NO_L\",\"NO_LOCALIZADO\",IF(ISBLANK(B12497),\" \",\"NO\"))))))))","v":" "}]
[12548,null,null,null,null,null,null,null,null,null,null,null,null,null,1,null,null,null,null,null,null,null,null,null,null,null,null,null,null,null,null,null,"--",null," "]
[12633,null,null,null,null,null,null,null,null,null,null,null,null,null,1,null,null,null,null,null,null,null,null,null,null,null,null,null,null,null,null,null,"--",null," "]
[12648,null,null,null,null,null,null,null,null,null,null,null,null,null,1,null,null,null,null,null,null,null,null,null,null,null,null,null,null,null,null,null,"--",null," "]
[12712,null,null,null,null,null,null,null,null,null,null,null,null,null,1,null,null,null,null,null,null,null,null,null,null,null,null,null,null,null,null,null,"--",null," "]
[12793,null,null,null,null,null,null,null,null,null,null,null,null,null,1,null,null,null,null,null,null,null,null,null,null,null,null,null,null,null,null,null,"--",null," "]
[12878,null,null,null,null,null,null,null,null,null,null,null,null,null,1,null,null,null,null,null,null,null,null,null,null,null,null,null,null,null,null,null,"--",null," "]
[12939,null,null,null,null,null,null,null,null,null,null,null,null,null,1,null,null,null,null,null,null,null,null,null,null,null,null,null,null,null,null,null,"--",null," "]
[13022,null,null,null,null,null,null,null,null,null,null,null,null,null,1,null,null,null,null,null,null,null,null,null,null,null,null,null,null,null,null,null,"--",null," "]
[13084,null,null,null,null,null,null,null,null,null,null,null,null,null,1,null,null,null,null,null,null,null,null,null,null,null,null,null,null,null,null,null,"--",null," "]
[13169,null,null,null,null,null,null,null,null,null,null,null,null,null,1,null,null,null,null,null,null,null,null,null,null,null,null,null,null,null,null,null,"--",null," "]
[13254,null,null,null,null,null,null,null,null,null,null,null,null,null,1,null,null,null,null,null,null,null,null,null,null,null,null,null,null,null,null,null,"--",null," "]
[13321,null,null,null,null,null,null,null,null,null,null,null,null,null,1,null,null,null,null,null,null,null,null,null,null,null,null,null,null,null,null,null,"--",null," "]
[13399,null,null,null,null,null,null,null,null,null,null,null,null,null,1,null,null,null,null,null,null,null,null,null,null,null,null,null,null,null,null,null,"--",null," "]
[13414,null,null,null,null,null,null,null,null,null,null,null,null,null,1,null,null,null,null,null,null,null,null,null,null,null,null,null,null,null,null,null,"--",null," "]
[13475,null,null,null,null,null,null,null,null,null,null,null,null,null,1,null,null,null,null,null,null,null,null,null,null,null,null,null,null,null,null,null,"--",null," "]
[13562,null,null,null,null,null,null,null,null,null,null,null,null,null,1,null,null,null,null,null,null,null,null,null,null,null,null,null,null,null,null,null,"--",null," "]
[13620,null,null,null,null,null,null,null,null,null,null,null,null,null,1,null,null,null,null,null,null,null,null,null,null,null,null,null,null,null,null,null,"--",null," "]
[13705,null,null,null,null,null,null,null,null,null,null,null,null,null,1,null,null,null,null,null,null,null,null,null,null,null,null,null,null,null,null,null,"--",null," "]
[13790,null,null,null,null,null,null,null,null,null,null,null,null,null,1,null,null,null,null,null,null,null,null,null,null,null,null,null,null,null,null,null,"--",null," "]
[13861,null,null,null,null,null,null,null,null,null,null,null,null,null,1,null,null,null,null,null,null,null,null,null,null,null,null,null,null,null,null,null,"--",null," "]
[13935,null,null,null,null,null,null,null,null,null,null,null,null,null,1,null,null,null,null,null,null,null,null,null,null,null,null,null,null,null,null,null,"--",null," "]
[13996,null,null,null,null,null,null,null,null,null,null,null,null,null,1,null,null,null,null,null,null,null,null,null,null,null,null,null,null,null,null,null,"--",null," "]
[14081,null,null,null,null,null,null,null,null,null,null,null,null,null,1,null,null,null,null,null,null,null,null,null,null,null,null,null,null,null,null,null,{"$f":"CONCATENATE(L14096,\"-\",M14096,\"-\",N14096)","v":"--"},null," "]
[14102,null,null,null,null,null,null,null,null,null,null,null,null,null,1,null,null,null,null,null,null,null,null,null,null,null,null,null,null,null,null,null,"--",null," "]
[14226,null,null,null,null,null,null,null,null,null,null,null,null,null,1,null,null,null,null,null,null,null,null,null,null,null,null,null,null,null,null,null,"--",null," "]
[14241,null,null,null,null,null,null,null,null,null,null,null,null,null,1,null,null,null,null,null,null,null,null,null,null,null,null,null,null,null,null,null,"--",null," "]
[14326,null,null,null,null,null,null,null,null,null,null,null,null,null,1,null,null,null,null,null,null,null,null,null,null,null,null,null,null,null,null,null,"--",null," "]
[14401,null,null,null,null,null,null,null,null,null,null,null,null,null,1,null,null,null,null,null,null,null,null,null,null,null,null,null,null,null,null,null,{"$f":"CONCATENATE(L14416,\"-\",M14416,\"-\",N14416)","v":"--"},null," "]
[14471,null,null,null,null,null,null,null,null,null,null,null,null,null,1,null,null,null,null,null,null,null,null,null,null,null,null,null,null,null,null,null,"--",null," "]
[14532,null,null,null,null,null,null,null,null,null,null,null,null,null,1,null,null,null,null,null,null,null,null,null,null,null,null,null,null,null,null,null,"--",null," "]
[14617,null,null,null,null,null,null,null,null,null,null,null,null,null,1,null,null,null,null,null,null,null,null,null,null,null,null,null,null,null,null,null,"--",null," "]
[14711,null,null,null,null,null,null,null,null,null,null,null,null,null,1,null,null,null,null,null,null,null,null,null,null,null,null,null,null,null,null,null,"--",null," "]
[14762,null,null,null,null,null,null,null,null,null,null,null,null,null,1,null,null,null,null,null,null,null,null,null,null,null,null,null,null,null,null,null,"--",null," "]
[14847,null,null,null,null,null,null,null,null,null,null,null,null,null,1,null,null,null,null,null,null,null,null,null,null,null,null,null,null,null,null,null,"--",null," "]
[14908,null,null,null,null,null,null,null,null,null,null,null,null,null,1,null,null,null,null,null,null,null,null,null,null,null,null,null,null,null,null,null,"--",null," "]
[14941,null,null,null,null,null,null,null,null,null,null,null,null,null,1,null,null,null,null,null,null,null,null,null,null,null,null,null,null,null,null,null,"--",null," "]
[15007,null,null,null,null,null,null,null,null,null,null,null,null,null,1,null,null,null,null,null,null,null,null,null,null,null,null,null,null,null,null,null,"--",null," "]
[15138,null,null,null,null,null,null,null,null,null,null,null,null,null,1,null,null,null,null,null,null,null,null,null,null,null,null,null,null,null,null,null,"--",null," "]
[15153,null,null,null,null,null,null,null,null,null,null,null,null,null,1,null,null,null,null,null,null,null,null,null,null,null,null,null,null,null,null,null,"--",null," "]
[15251,null,null,null,null,null,null,null,null,null,null,null,null,null,1,null,null,null,null,null,null,null,null,null,null,null,null,null,null,null,null,null,"--",null," "]
[15298,null,null,null,null,null,null,null,null,null,null,null,null,null,1,null,null,null,null,null,null,null,null,null,null,null,null,null,null,null,null,null,"--",null,{"$f":"IF(B15313=\"M\",\"LOCALIZADO\",IF(B15313=\"OK\",\"LOCALIZADO\",IF(B15313=\"D\",\"LOCALIZADO\",IF(B15313=\"BT\",\"LOCALIZADO\",IF(B15313=\"NR\",\"LOCALIZADO PENDIENTE DE INVENTARIAR\",IF(B15313=\"REU\",\"LOCALIZADO\",IF(B15313=\"NO_L\",\"NO_LOCALIZADO\",IF(ISBLANK(B15313),\" \",\"NO\"))))))))","v":" "}]
[15383,null,null,null,null,null,null,null,null,null,null,null,null,null,1,null,null,null,null,null,null,null,null,null,null,null,null,null,null,null,null,null,"--",null," "]
[15444,null,null,null,null,null,null,null,null,null,null,null,null,null,1,null,null,null,null,null,null,null,null,null,null,null,null,null,null,null,null,null,"--",null," "]
[15550,null,null,null,null,null,null,null,null,null,null,null,null,null,1,null,null,null,null,null,null,null,null,null,null,null,null,null,null,null,null,null,"--",null," "]
[15613,null,null,null,null,null,null,null,null,null,null,null,null,null,1,null,null,null,null,null,null,null,null,null,null,null,null,null,null,null,null,null,"--",null," "]
[15674,null,null,null,null,null,null,null,null,null,null,null,null,null,1,null,null,null,null,null,null,null,null,null,null,null,null,null,null,null,null,null,"--",null," "]
[15759,null,null,null,null,null,null,null,null,null,null,null,null,null,1,null,null,null,null,null,null,null,null,null,null,null,null,null,null,null,null,null,"--",null," "]
[15791,null,null,null,null,null,null,null,null,null,null,null,null,null,1,null,null,null,null,null,null,null,null,null,null,null,null,null,null,null,null,null,"--",null," "]
[15904,null,null,null,null,null,null,null,null,null,null,null,null,null,1,null,null,null,null,null,null,null,null,null,null,null,null,null,null,null,null,null,"--",null," "]
[15919,null,null,null,null,null,null,null,null,null,null,null,null,null,1,null,null,null,null,null,null,null,null,null,null,null,null,null,null,null,null,null,"--",null," "]
[16050,null,null,null,null,null,null,null,null,null,null,null,null,null,1,null,null,null,null,null,null,null,null,null,null,null,null,null,null,null,null,null,"--",null," "]
[16090,null,null,null,null,null,null,null,null,null,null,null,null,null,1,null,null,null,null,null,null,null,null,null,null,null,null,null,null,null,null,null,"--",null," "]
[16149,null,null,null,null,null,null,null,null,null,null,null,null,null,1,null,null,null,null,null,null,null,null,null,null,null,null,null,null,null,null,null,"--",null," "]
[16210,null,null,null,null,null,null,null,null,null,null,null,null,null,1,null,null,null,null,null,null,null,null,null,null,null,null,null,null,null,null,null,"--",null," "]
[16295,null,null,null,null,null,null,null,null,null,null,null,null,null,1,null,null,null,null,null,null,null,null,null,null,null,null,null,null,null,null,null,"--",null," "]
[16389,null,null,null,null,null,null,null,null,null,null,null,null,null,1,null,null,null,null,null,null,null,null,null,null,null,null,null,null,null,null,null,"--",null," "]
[16440,null,null,null,null,null,null,null,null,null,null,null,null,null,1,null,null,null,null,null,null,null,null,null,null,null,null,null,null,null,null,null,"--",null," "]
[16525,null,null,null,null,null,null,null,null,null,null,null,null,null,1,null,null,null,null,null,null,null,null,null,null,null,null,null,null,null,null,null,"--",null," "]
[16586,null,null,null,null,null,null,null,null,null,null,null,null,null,1,null,null,null,null,null,null,null,null,null,null,null,null,null,null,null,null,null,"--",null," "]
[16630,null,null,null,null,null,null,null,null,null,null,null,null,null,1,null,null,null,null,null,null,null,null,null,null,null,null,null,null,null,null,null,"--",null," "]
[16685,null,null,null,null,null,null,null,null,null,null,null,null,null,1,null,null,null,null,null,null,null,null,null,null,null,null,null,null,null,null,null,"--",null," "]
[16816,null,null,null,null,null,null,null,null,null,null,null,null,null,1,null,null,null,null,null,null,null,null,null,null,null,null,null,null,null,null,null,"--",null," "]
[16831,null,null,null,null,null,null,null,null,null,null,null,null,null,1,null,null,null,null,null,null,null,null,null,null,null,null,null,null,null,null,null,"--",null," "]
[16929,null,null,null,null,null,null,null,null,null,null,null,null,null,1,null,null,null,null,null,null,null,null,null,null,null,null,null,null,null,null,null,"--",null," "]
[16976,null,null,null,null,null,null,null,null,null,null,null,null,null,1,null,null,null,null,null,null,null,null,null,null,null,null,null,null,null,null,null,"--",null," "]
[17061,null,null,null,null,null,null,null,null,null,null,null,null,null,1,null,null,null,null,null,null,null,null,null,null,null,null,null,null,null,null,null,"--",null," "]
[17122,null,null,null,null,null,null,null,null,null,null,null,null,null,1,null,null,null,null,null,null,null,null,null,null,null,null,null,null,null,null,null,"--",null," "]
[17170,null,null,null,null,null,null,null,null,null,null,null,null,null,1,null,null,null,null,null,null,null,null,null,null,null,null,null,null,null,null,null,"--",null," "]
[17291,null,null,null,null,null,null,null,null,null,null,null,null,null,1,null,null,null,null,null,null,null,null,null,null,null,null,null,null,null,null,null,"--",null," "]
[17352,null,null,null,null,null,null,null,null,null,null,null,null,null,1,null,null,null,null,null,null,null,null,null,null,null,null,null,null,null,null,null,"--",null," "]
[17437,null,null,null,null,null,null,null,null,null,null,null,null,null,1,null,null,null,null,null,null,null,null,null,null,null,null,null,null,null,null,null,"--",null," "]
[17469,null,null,null,null,null,null,null,null,null,null,null,null,null,1,null,null,null,null,null,null,null,null,null,null,null,null,null,null,null,null,null,"--",null," "]
[17582,null,null,null,null,null,null,null,null,null,null,null,null,null,1,null,null,null,null,null,null,null,null,null,null,null,null,null,null,null,null,null,"--",null," "]
[17597,null,null,null,null,null,null,null,null,null,null,null,null,null,1,null,null,null,null,null,null,null,null,null,null,null,null,null,null,null,null,null,"--",null," "]
[17658,null,null,null,null,null,null,null,null,null,null,null,null,null,1,null,null,null,null,null,null,null,null,null,null,null,null,null,null,null,null,null,"--",null," "]
[17779,null,null,null,null,null,null,null,null,null,null,null,null,null,1,null,null,null,null,null,null,null,null,null,null,null,null,null,null,null,null,null,"--",null," "]
[17803,null,null,null,null,null,null,null,null,null,null,null,null,null,1,null,null,null,null,null,null,null,null,null,null,null,null,null,null,null,null,null,"--",null," "]
[17888,null,null,null,null,null,null,null,null,null,null,null,null,null,1,null,null,null,null,null,null,null,null,null,null,null,null,null,null,null,null,null,"--",null," "]
[17973,null,null,null,null,null,null,null,null,null,null,null,null,null,1,null,null,null,null,null,null,null,null,null,null,null,null,null,null,null,null,null,"--",null," "]
[18009,null,null,null,null,null,null,null,null,null,null,null,null,null,1,null,null,null,null,null,null,null,null,null,null,null,null,null,null,null,null,null,"--",null," "]
[18118,null,null,null,null,null,null,null,null,null,null,null,null,null,1,null,null,null,null,null,null,null,null,null,null,null,null,null,null,null,null,null,"--",null," "]
[18203,null,null,null,null,null,null,null,null,null,null,null,null,null,1,null,null,null,null,null,null,null,null,null,null,null,null,null,null,null,null,null,"--",null," "]
[18264,null,null,null,null,null,null,null,null,null,null,null,null,null,1,null,null,null,null,null,null,null,null,null,null,null,null,null,null,null,null,null,"--",null," "]
[18319,null,null,null,null,null,null,null,null,null,null,null,null,null,1,null,null,null,null,null,null,null,null,null,null,null,null,null,null,null,null,null,"--",null," "]
[18409,null,null,null,null,null,null,null,null,null,null,null,null,null,1,null,null,null,null,null,null,null,null,null,null,null,null,null,null,null,null,null,"--",null," "]
[18424,null,null,null,null,null,null,null,null,null,null,null,null,null,1,null,null,null,null,null,null,null,null,null,null,null,null,null,null,null,null,null,"--",null," "]
[18509,null,null,null,null,null,null,null,null,null,null,null,null,null,1,null,null,null,null,null,null,null,null,null,null,null,null,null,null,null,null,null,"--",null," "]
[18618,null,null,null,null,null,null,null,null,null,null,null,null,null,1,null,null,null,null,null,null,null,null,null,null,null,null,null,null,null,null,null,"--",null," "]
[18654,null,null,null,null,null,null,null,null,null,null,null,null,null,1,null,null,null,null,null,null,null,null,null,null,null,null,null,null,null,null,null,"--",null," "]
[18715,null,null,null,null,null,null,null,null,null,null,null,null,null,1,null,null,null,null,null,null,null,null,null,null,null,null,null,null,null,null,null,"--",null," "]
[18800,null,null,null,null,null,null,null,null,null,null,null,null,null,1,null,null,null,null,null,null,null,null,null,null,null,null,null,null,null,null,null,"--",null," "]
[18859,null,null,null,null,null,null,null,null,null,null,null,null,null,1,null,null,null,null,null,null,null,null,null,null,null,null,null,null,null,null,null,"--",null," "]
[18945,null,null,null,null,null,null,null,null,null,null,null,null,null,1,null,null,null,null,null,null,null,null,null,null,null,null,null,null,null,null,null,{"$f":"CONCATENATE(L18960,\"-\",M18960,\"-\",N18960)","v":"--"},null," "]
[19030,null,null,null,null,null,null,null,null,null,null,null,null,null,1,null,null,null,null,null,null,null,null,null,null,null,null,null,null,null,null,null,"--",null," "]
[19115,null,null,null,null,null,null,null,null,null,null,null,null,null,1,null,null,null,null,null,null,null,null,null,null,null,null,null,null,null,null,null,"--",null," "]
[19158,null,null,null,null,null,null,null,null,null,null,null,null,null,1,null,null,null,null,null,null,null,null,null,null,null,null,null,null,null,null,null,"--",null," "]
[19190,null,null,null,null,null,null,null,null,null,null,null,null,null,1,null,null,null,null,null,null,null,null,null,null,null,null,null,null,null,null,null,"--",null," "]
[19321,null,null,null,null,null,null,null,null,null,null,null,null,null,1,null,null,null,null,null,null,null,null,null,null,null,null,null,null,null,null,null,"--",null," "]
[19336,null,null,null,null,null,null,null,null,null,null,null,null,null,1,null,null,null,null,null,null,null,null,null,null,null,null,null,null,null,null,null,"--",null," "]
[19468,null,null,null,null,null,null,null,null,null,null,null,null,null,1,null,null,null,null,null,null,null,null,null,null,null,null,null,null,null,null,null,"--",null," "]
[19481,null,null,null,null,null,null,null,null,null,null,null,null,null,1,null,null,null,null,null,null,null,null,null,null,null,null,null,null,null,null,null,"--",null," "]
[19566,null,null,null,null,null,null,null,null,null,null,null,null,null,1,null,null,null,null,null,null,null,null,null,null,null,null,null,null,null,null,null,"--",null," "]
[19651,null,null,null,null,null,null,null,null,null,null,null,null,null,1,null,null,null,null,null,null,null,null,null,null,null,null,null,null,null,null,null,"--",null," "]
[19698,null,null,null,null,null,null,null,null,null,null,null,null,null,1,null,null,null,null,null,null,null,null,null,null,null,null,null,null,null,null,null,"--",null," "]
[19796,null,null,null,null,null,null,null,null,null,null,null,null,null,1,null,null,null,null,null,null,null,null,null,null,null,null,null,null,null,null,null,"--",null," "]
[19857,null,null,null,null,null,null,null,null,null,null,null,null,null,1,null,null,null,null,null,null,null,null,null,null,null,null,null,null,null,null,null,"--",null," "]
[19942,null,null,null,null,null,null,null,null,null,null,null,null,null,1,null,null,null,null,null,null,null,null,null,null,null,null,null,null,null,null,null,"--",null," "]
[20008,null,null,null,null,null,null,null,null,null,null,null,null,null,1,null,null,null,null,null,null,null,null,null,null,null,null,null,null,null,null,null,"--",null," "]
[20087,null,null,null,null,null,null,null,null,null,null,null,null,null,1,null,null,null,null,null,null,null,null,null,null,null,null,null,null,null,null,null,"--",null," "]
[20102,null,null,null,null,null,null,null,null,null,null,null,null,null,1,null,null,null,null,null,null,null,null,null,null,null,null,null,null,null,null,null,"--",null," "]
[20233,null,null,null,null,null,null,null,null,null,null,null,null,null,1,null,null,null,null,null,null,null,null,null,null,null,null,null,null,null,null,null,"--",null," "]
[20238,null,null,null,null,null,null,null,null,null,null,null,null,null,1,null,null,null,null,null,null,null,null,null,null,null,null,null,null,null,null,null,"--",null," "]
[20332,null,null,null,null,null,null,null,null,null,null,null,null,null,1,null,null,null,null,null,null,null,null,null,null,null,null,null,null,null,null,null,"--",null," "]
[20393,null,null,null,null,null,null,null,null,null,null,null,null,null,1,null,null,null,null,null,null,null,null,null,null,null,null,null,null,null,null,null,"--",null," "]
[20478,null,null,null,null,null,null,null,null,null,null,null,null,null,1,null,null,null,null,null,null,null,null,null,null,null,null,null,null,null,null,null,"--",null," "]
[20548,null,null,null,null,null,null,null,null,null,null,null,null,null,1,null,null,null,null,null,null,null,null,null,null,null,null,null,null,null,null,null,"--",null," "]
[20623,null,null,null,null,null,null,null,null,null,null,null,null,null,1,null,null,null,null,null,null,null,null,null,null,null,null,null,null,null,null,null,"--",null," "]
[20708,null,null,null,null,null,null,null,null,null,null,null,null,null,1,null,null,null,null,null,null,null,null,null,null,null,null,null,null,null,null,null,"--",null," "]
[20769,null,null,null,null,null,null,null,null,null,null,null,null,null,1,null,null,null,null,null,null,null,null,null,null,null,null,null,null,null,null,null,"--",null," "]
[20847,null,null,null,null,null,null,null,null,null,null,null,null,null,1,null,null,null,null,null,null,null,null,null,null,null,null,null,null,null,null,null,"--",null," "]
[20868,null,null,null,null,null,null,null,null,null,null,null,null,null,1,null,null,null,null,null,null,null,null,null,null,null,null,null,null,null,null,null,"--",null," "]
[20999,null,null,null,null,null,null,null,null,null,null,null,null,null,1,null,null,null,null,null,null,null,null,null,null,null,null,null,null,null,null,null,"--",null," "]
[21014,null,null,null,null,null,null,null,null,null,null,null,null,null,1,null,null,null,null,null,null,null,null,null,null,null,null,null,null,null,null,null,"--",null," "]
[21077,null,null,null,null,null,null,null,null,null,null,null,null,null,1,null,null,null,null,null,null,null,null,null,null,null,null,null,null,null,null,null,"--",null," "]
[21159,null,null,null,null,null,null,null,null,null,null,null,null,null,1,null,null,null,null,null,null,null,null,null,null,null,null,null,null,null,null,null,"--",null," "]
[21244,null,null,null,null,null,null,null,null,null,null,null,null,null,1,null,null,null,null,null,null,null,null,null,null,null,null,null,null,null,null,null,"--",null," "]
[21305,null,null,null,null,null,null,null,null,null,null,null,null,null,1,null,null,null,null,null,null,null,null,null,null,null,null,null,null,null,null,null,"--",null," "]
[21387,null,null,null,null,null,null,null,null,null,null,null,null,null,1,null,null,null,null,null,null,null,null,null,null,null,null,null,null,null,null,null,"--",null," "]
[21474,null,null,null,null,null,null,null,null,null,null,null,null,null,1,null,null,null,null,null,null,null,null,null,null,null,null,null,null,null,null,null,"--",null," "]
[21535,null,null,null,null,null,null,null,null,null,null,null,null,null,1,null,null,null,null,null,null,null,null,null,null,null,null,null,null,null,null,null,"--",null," "]
[21620,null,null,null,null,null,null,null,null,null,null,null,null,null,1,null,null,null,null,null,null,null,null,null,null,null,null,null,null,null,null,null,"--",null," "]
[21686,null,null,null,null,null,null,null,null,null,null,null,null,null,1,null,null,null,null,null,null,null,null,null,null,null,null,null,null,null,null,null,"--",null," "]
[21765,null,null,null,null,null,null,null,null,null,null,null,null,null,1,null,null,null,null,null,null,null,null,null,null,null,null,null,null,null,null,null,"--",null," "]
[21780,null,null,null,null,null,null,null,null,null,null,null,null,null,1,null,null,null,null,null,null,null,null,null,null,null,null,null,null,null,null,null,"--",null," "]
[21841,null,null,null,null,null,null,null,null,null,null,null,null,null,1,null,null,null,null,null,null,null,null,null,null,null,null,null,null,null,null,null,"--",null," "]
[21927,null,null,null,null,null,null,null,null,null,null,null,null,null,1,null,null,null,null,null,null,null,null,null,null,null,null,null,null,null,null,null,"--",null," "]
[22010,null,null,null,null,null,null,null,null,null,null,null,null,null,1,null,null,null,null,null,null,null,null,null,null,null,null,null,null,null,null,null,"--",null," "]
[22071,null,null,null,null,null,null,null,null,null,null,null,null,null,1,null,null,null,null,null,null,null,null,null,null,null,null,null,null,null,null,null,"--",null," "]
[22156,null,null,null,null,null,null,null,null,null,null,null,null,null,1,null,null,null,null,null,null,null,null,null,null,null,null,null,null,null,null,null,"--",null," "]
[22226,null,null,null,null,null,null,null,null,null,null,null,null,null,1,null,null,null,null,null,null,null,null,null,null,null,null,null,null,null,null,null,"--",null," "]
[22301,null,null,null,null,null,null,null,null,null,null,null,null,null,1,null,null,null,null,null,null,null,null,null,null,null,null,null,null,null,null,null,"--",null," "]
[22386,null,null,null,null,null,null,null,null,null,null,null,null,null,1,null,null,null,null,null,null,null,null,null,null,null,null,null,null,null,null,null,"--",null," "]
[22447,null,null,null,null,null,null,null,null,null,null,null,null,null,1,null,null,null,null,null,null,null,null,null,null,null,null,null,null,null,null,null,"--",null," "]
[22536,null,null,null,null,null,null,null,null,null,null,null,null,null,1,null,null,null,null,null,null,null,null,null,null,null,null,null,null,null,null,null,"--",null," "]
[22592,null,null,null,null,null,null,null,null,null,null,null,null,null,1,null,null,null,null,null,null,null,null,null,null,null,null,null,null,null,null,null,"--",null," "]
[22677,null,null,null,null,null,null,null,null,null,null,null,null,null,1,null,null,null,null,null,null,null,null,null,null,null,null,null,null,null,null,null,"--",null," "]
[22692,null,null,null,null,null,null,null,null,null,null,null,null,null,1,null,null,null,null,null,null,null,null,null,null,null,null,null,null,null,null,null,"--",null," "]
[22766,null,null,null,null,null,null,null,null,null,null,null,null,null,1,null,null,null,null,null,null,null,null,null,null,null,null,null,null,null,null,null,"--",null," "]
[22837,null,null,null,null,null,null,null,null,null,null,null,null,null,1,null,null,null,null,null,null,null,null,null,null,null,null,null,null,null,null,null,"--",null," "]
[22922,null,null,null,null,null,null,null,null,null,null,null,null,null,1,null,null,null,null,null,null,null,null,null,null,null,null,null,null,null,null,null,"--",null," "]
[22983,null,null,null,null,null,null,null,null,null,null,null,null,null,1,null,null,null,null,null,null,null,null,null,null,null,null,null,null,null,null,null,"--",null," "]
[23076,null,null,null,null,null,null,null,null,null,null,null,null,null,1,null,null,null,null,null,null,null,null,null,null,null,null,null,null,null,null,null,"--",null," "]
[23128,null,null,null,null,null,null,null,null,null,null,null,null,null,1,null,null,null,null,null,null,null,null,null,null,null,null,null,null,null,null,null,"--",null," "]
[23213,null,null,null,null,null,null,null,null,null,null,null,null,null,1,null,null,null,null,null,null,null,null,null,null,null,null,null,null,null,null,null,"--",null," "]
[23298,null,null,null,null,null,null,null,null,null,null,null,null,null,1,null,null,null,null,null,null,null,null,null,null,null,null,null,null,null,null,null,"--",null,{"$f":"IF(B23313=\"M\",\"LOCALIZADO\",IF(B23313=\"OK\",\"LOCALIZADO\",IF(B23313=\"D\",\"LOCALIZADO\",IF(B23313=\"BT\",\"LOCALIZADO\",IF(B23313=\"NR\",\"LOCALIZADO PENDIENTE DE INVENTARIAR\",IF(B23313=\"REU\",\"LOCALIZADO\",IF(B23313=\"NO_L\",\"NO_LOCALIZADO\",IF(ISBLANK(B23313),\" \",\"NO\"))))))))","v":" "}]
[23306,null,null,null,null,null,null,null,null,null,null,null,null,null,1,null,null,null,null,null,null,null,null,null,null,null,null,null,null,null,null,null,"--",null," "]
[23443,null,null,null,null,null,null,null,null,null,null,null,null,null,1,null,null,null,null,null,null,null,null,null,null,null,null,null,null,null,null,null,"--",null," "]
[23458,null,null,null,null,null,null,null,null,null,null,null,null,null,1,null,null,null,null,null,null,null,null,null,null,null,null,null,null,null,null,null,"--",null," "]
[23519,null,null,null,null,null,null,null,null,null,null,null,null,null,1,null,null,null,null,null,null,null,null,null,null,null,null,null,null,null,null,null,"--",null," "]
[23616,null,null,null,null,null,null,null,null,null,null,null,null,null,1,null,null,null,null,null,null,null,null,null,null,null,null,null,null,null,null,null,"--",null," "]
[23664,null,null,null,null,null,null,null,null,null,null,null,null,null,1,null,null,null,null,null,null,null,null,null,null,null,null,null,null,null,null,null,"--",null," "]
[23749,null,null,null,null,null,null,null,null,null,null,null,null,null,1,null,null,null,null,null,null,null,null,null,null,null,null,null,null,null,null,null,"--",null," "]
[23834,null,null,null,null,null,null,null,null,null,null,null,null,null,1,null,null,null,null,null,null,null,null,null,null,null,null,null,null,null,null,null,"--",null," "]
[23915,null,null,null,null,null,null,null,null,null,null,null,null,null,1,null,null,null,null,null,null,null,null,null,null,null,null,null,null,null,null,null,"--",null," "]
[23979,null,null,null,null,null,null,null,null,null,null,null,null,null,1,null,null,null,null,null,null,null,null,null,null,null,null,null,null,null,null,null,"--",null," "]
[24040,null,null,null,null,null,null,null,null,null,null,null,null,null,1,null,null,null,null,null,null,null,null,null,null,null,null,null,null,null,null,null,"--",null," "]
[24125,null,null,null,null,null,null,null,null,null,null,null,null,null,1,null,null,null,null,null,null,null,null,null,null,null,null,null,null,null,null,null,"--",null," "]
[24156,null,null,null,null,null,null,null,null,null,null,null,null,null,1,null,null,null,null,null,null,null,null,null,null,null,null,null,null,null,null,null,"--",null," "]
[24270,null,null,null,null,null,null,null,null,null,null,null,null,null,1,null,null,null,null,null,null,null,null,null,null,null,null,null,null,null,null,null,"--",null," "]
[24285,null,null,null,null,null,null,null,null,null,null,null,null,null,1,null,null,null,null,null,null,null,null,null,null,null,null,null,null,null,null,null,"--",null," "]
[24370,null,null,null,null,null,null,null,null,null,null,null,null,null,1,null,null,null,null,null,null,null,null,null,null,null,null,null,null,null,null,null,"--",null," "]
[24455,null,null,null,null,null,null,null,null,null,null,null,null,null,1,null,null,null,null,null,null,null,null,null,null,null,null,null,null,null,null,null,"--",null," "]
[24515,null,null,null,null,null,null,null,null,null,null,null,null,null,1,null,null,null,null,null,null,null,null,null,null,null,null,null,null,null,null,null,"--",null," "]
[24576,null,null,null,null,null,null,null,null,null,null,null,null,null,1,null,null,null,null,null,null,null,null,null,null,null,null,null,null,null,null,null,"--",null," "]
[24661,null,null,null,null,null,null,null,null,null,null,null,null,null,1,null,null,null,null,null,null,null,null,null,null,null,null,null,null,null,null,null,"--",null," "]
[24765,null,null,null,null,null,null,null,null,null,null,null,null,null,1,null,null,null,null,null,null,null,null,null,null,null,null,null,null,null,null,null,"--",null," "]
[24806,null,null,null,null,null,null,null,null,null,null,null,null,null,1,null,null,null,null,null,null,null,null,null,null,null,null,null,null,null,null,null,"--",null," "]
[24891,null,null,null,null,null,null,null,null,null,null,null,null,null,1,null,null,null,null,null,null,null,null,null,null,null,null,null,null,null,null,null,"--",null," "]
[24952,null,null,null,null,null,null,null,null,null,null,null,null,null,1,null,null,null,null,null,null,null,null,null,null,null,null,null,null,null,null,null,"--",null," "]
[24995,null,null,null,null,null,null,null,null,null,null,null,null,null,1,null,null,null,null,null,null,null,null,null,null,null,null,null,null,null,null,null,"--",null," "]
[25051,null,null,null,null,null,null,null,null,null,null,null,null,null,1,null,null,null,null,null,null,null,null,null,null,null,null,null,null,null,null,null,"--",null," "]
[25182,null,null,null,null,null,null,null,null,null,null,null,null,null,1,null,null,null,null,null,null,null,null,null,null,null,null,null,null,null,null,null,"--",null," "]
[25197,null,null,null,null,null,null,null,null,null,null,null,null,null,1,null,null,null,null,null,null,null,null,null,null,null,null,null,null,null,null,null,"--",null," "]
[25305,null,null,null,null,null,null,null,null,null,null,null,null,null,1,null,null,null,null,null,null,null,null,null,null,null,null,null,null,null,null,null,"--",null," "]
[25342,null,null,null,null,null,null,null,null,null,null,null,null,null,1,null,null,null,null,null,null,null,null,null,null,null,null,null,null,null,null,null,"--",null," "]
[25427,null,null,null,null,null,null,null,null,null,null,null,null,null,1,null,null,null,null,null,null,null,null,null,null,null,null,null,null,null,null,null,"--",null," "]
[25488,null,null,null,null,null,null,null,null,null,null,null,null,null,1,null,null,null,null,null,null,null,null,null,null,null,null,null,null,null,null,null,"--",null," "]
[25604,null,null,null,null,null,null,null,null,null,null,null,null,null,1,null,null,null,null,null,null,null,null,null,null,null,null,null,null,null,null,null,"--",null," "]
[25657,null,null,null,null,null,null,null,null,null,null,null,null,null,1,null,null,null,null,null,null,null,null,null,null,null,null,null,null,null,null,null,"--",null," "]
[25718,null,null,null,null,null,null,null,null,null,null,null,null,null,1,null,null,null,null,null,null,null,null,null,null,null,null,null,null,null,null,null,"--",null," "]
[25803,null,null,null,null,null,null,null,null,null,null,null,null,null,1,null,null,null,null,null,null,null,null,null,null,null,null,null,null,null,null,null,"--",null," "]
[25845,null,null,null,null,null,null,null,null,null,null,null,null,null,1,null,null,null,null,null,null,null,null,null,null,null,null,null,null,null,null,null,"--",null," "]
[25948,null,null,null,null,null,null,null,null,null,null,null,null,null,1,null,null,null,null,null,null,null,null,null,null,null,null,null,null,null,null,null,"--",null," "]
[25963,null,null,null,null,null,null,null,null,null,null,null,null,null,1,null,null,null,null,null,null,null,null,null,null,null,null,null,null,null,null,null,"--",null," "]
[26094,null,null,null,null,null,null,null,null,null,null,null,null,null,1,null,null,null,null,null,null,null,null,null,null,null,null,null,null,null,null,null,"--",null," "]
[26144,null,null,null,null,null,null,null,null,null,null,null,null,null,1,null,null,null,null,null,null,null,null,null,null,null,null,null,null,null,null,null,"--",null," "]
[26193,null,null,null,null,null,null,null,null,null,null,null,null,null,1,null,null,null,null,null,null,null,null,null,null,null,null,null,null,null,null,null,"--",null," "]
[26254,null,null,null,null,null,null,null,null,null,null,null,null,null,1,null,null,null,null,null,null,null,null,null,null,null,null,null,null,null,null,null,"--",null," "]
[26339,null,null,null,null,null,null,null,null,null,null,null,null,null,1,null,null,null,null,null,null,null,null,null,null,null,null,null,null,null,null,null,"--",null," "]
[26443,null,null,null,null,null,null,null,null,null,null,null,null,null,1,null,null,null,null,null,null,null,null,null,null,null,null,null,null,null,null,null,"--",null," "]
[26484,null,null,null,null,null,null,null,null,null,null,null,null,null,1,null,null,null,null,null,null,null,null,null,null,null,null,null,null,null,null,null,"--",null," "]
[26569,null,null,null,null,null,null,null,null,null,null,null,null,null,1,null,null,null,null,null,null,null,null,null,null,null,null,null,null,null,null,null,"--",null," "]
[26630,null,null,null,null,null,null,null,null,null,null,null,null,null,1,null,null,null,null,null,null,null,null,null,null,null,null,null,null,null,null,null,"--",null," "]
[26684,null,null,null,null,null,null,null,null,null,null,null,null,null,1,null,null,null,null,null,null,null,null,null,null,null,null,null,null,null,null,null,"--",null," "]
[26729,null,null,null,null,null,null,null,null,null,null,null,null,null,1,null,null,null,null,null,null,null,null,null,null,null,null,null,null,null,null,null,"--",null," "]
[26860,null,null,null,null,null,null,null,null,null,null,null,null,null,1,null,null,null,null,null,null,null,null,null,null,null,null,null,null,null,null,null,"--",null," "]
[26875,null,null,null,null,null,null,null,null,null,null,null,null,null,1,null,null,null,null,null,null,null,null,null,null,null,null,null,null,null,null,null,"--",null," "]
[26983,null,null,null,null,null,null,null,null,null,null,null,null,null,1,null,null,null,null,null,null,null,null,null,null,null,null,null,null,null,null,null,"--",null," "]
[27020,null,null,null,null,null,null,null,null,null,null,null,null,null,1,null,null,null,null,null,null,null,null,null,null,null,null,null,null,null,null,null,"--",null," "]
[27105,null,null,null,null,null,null,null,null,null,null,null,null,null,1,null,null,null,null,null,null,null,null,null,null,null,null,null,null,null,null,null,"--",null," "]
[27166,null,null,null,null,null,null,null,null,null,null,null,null,null,1,null,null,null,null,null,null,null,null,null,null,null,null,null,null,null,null,null,"--",null," "]
[27224,null,null,null,null,null,null,null,null,null,null,null,null,null,1,null,null,null,null,null,null,null,null,null,null,null,null,null,null,null,null,null,"--",null," "]
[27311,null,null,null,null,null,null,null,null,null,null,null,null,null,1,null,null,null,null,null,null,null,null,null,null,null,null,null,null,null,null,null,"--",null," "]
[27396,null,null,null,null,null,null,null,null,null,null,null,null,null,1,null,null,null,null,null,null,null,null,null,null,null,null,null,null,null,null,null,"--",null," "]
[27481,null,null,null,null,null,null,null,null,null,null,null,null,null,1,null,null,null,null,null,null,null,null,null,null,null,null,null,null,null,null,null,"--",null," "]
[27523,null,null,null,null,null,null,null,null,null,null,null,null,null,1,null,null,null,null,null,null,null,null,null,null,null,null,null,null,null,null,null,"--",null," "]
[27626,null,null,null,null,null,null,null,null,null,null,null,null,null,1,null,null,null,null,null,null,null,null,null,null,null,null,null,null,null,null,null,"--",null," "]
[27641,null,null,null,null,null,null,null,null,null,null,null,null,null,1,null,null,null,null,null,null,null,null,null,null,null,null,null,null,null,null,null,"--",null," "]
[27702,null,null,null,null,null,null,null,null,null,null,null,null,null,1,null,null,null,null,null,null,null,null,null,null,null,null,null,null,null,null,null,"--",null," "]
[27833,null,null,null,null,null,null,null,null,null,null,null,null,null,1,null,null,null,null,null,null,null,null,null,null,null,null,null,null,null,null,null,"--",null," "]
[27847,null,null,null,null,null,null,null,null,null,null,null,null,null,1,null,null,null,null,null,null,null,null,null,null,null,null,null,null,null,null,null,"--",null," "]
[27932,null,null,null,null,null,null,null,null,null,null,null,null,null,1,null,null,null,null,null,null,null,null,null,null,null,null,null,null,null,null,null,"--",null," "]
[28017,null,null,null,null,null,null,null,null,null,null,null,null,null,1,null,null,null,null,null,null,null,null,null,null,null,null,null,null,null,null,null,"--",null," "]
[28063,null,null,null,null,null,null,null,null,null,null,null,null,null,1,null,null,null,null,null,null,null,null,null,null,null,null,null,null,null,null,null,"--",null," "]
[28162,null,null,null,null,null,null,null,null,null,null,null,null,null,1,null,null,null,null,null,null,null,null,null,null,null,null,null,null,null,null,null,"--",null,{"$f":"IF(B28177=\"M\",\"LOCALIZADO\",IF(B28177=\"OK\",\"LOCALIZADO\",IF(B28177=\"D\",\"LOCALIZADO\",IF(B28177=\"BT\",\"LOCALIZADO\",IF(B28177=\"NR\",\"LOCALIZADO PENDIENTE DE INVENTARIAR\",IF(B28177=\"REU\",\"LOCALIZADO\",IF(B28177=\"NO_L\",\"NO_LOCALIZADO\",IF(ISBLANK(B28177),\" \",\"NO\"))))))))","v":" "}]
[28247,null,null,null,null,null,null,null,null,null,null,null,null,null,1,null,null,null,null,null,null,null,null,null,null,null,null,null,null,null,null,null,"--",null," "]
[28308,null,null,null,null,null,null,null,null,null,null,null,null,null,1,null,null,null,null,null,null,null,null,null,null,null,null,null,null,null,null,null,"--",null," "]
[28373,null,null,null,null,null,null,null,null,null,null,null,null,null,1,null,null,null,null,null,null,null,null,null,null,null,null,null,null,null,null,null,"--",null," "]
[28453,null,null,null,null,null,null,null,null,null,null,null,null,null,1,null,null,null,null,null,null,null,null,null,null,null,null,null,null,null,null,null,"--",null," "]
[28468,null,null,null,null,null,null,null,null,null,null,null,null,null,1,null,null,null,null,null,null,null,null,null,null,null,null,null,null,null,null,null,"--",null," "]
[28553,null,null,null,null,null,null,null,null,null,null,null,null,null,1,null,null,null,null,null,null,null,null,null,null,null,null,null,null,null,null,null,"--",null," "]
[28672,null,null,null,null,null,null,null,null,null,null,null,null,null,1,null,null,null,null,null,null,null,null,null,null,null,null,null,null,null,null,null,"--",null," "]
[28698,null,null,null,null,null,null,null,null,null,null,null,null,null,1,null,null,null,null,null,null,null,null,null,null,null,null,null,null,null,null,null,"--",null," "]
[28759,null,null,null,null,null,null,null,null,null,null,null,null,null,1,null,null,null,null,null,null,null,null,null,null,null,null,null,null,null,null,null,"--",null," "]
[28844,null,null,null,null,null,null,null,null,null,null,null,null,null,1,null,null,null,null,null,null,null,null,null,null,null,null,null,null,null,null,null,"--",null," "]
[28913,null,null,null,null,null,null,null,null,null,null,null,null,null,1,null,null,null,null,null,null,null,null,null,null,null,null,null,null,null,null,null,"--",null," "]
[28989,null,null,null,null,null,null,null,null,null,null,null,null,null,1,null,null,null,null,null,null,null,null,null,null,null,null,null,null,null,null,null,"--",null," "]
[29074,null,null,null,null,null,null,null,null,null,null,null,null,null,1,null,null,null,null,null,null,null,null,null,null,null,null,null,null,null,null,null,"--",null," "]
[29159,null,null,null,null,null,null,null,null,null,null,null,null,null,1,null,null,null,null,null,null,null,null,null,null,null,null,null,null,null,null,null,"--",null," "]
[29212,null,null,null,null,null,null,null,null,null,null,null,null,null,1,null,null,null,null,null,null,null,null,null,null,null,null,null,null,null,null,null,"--",null," "]
[29234,null,null,null,null,null,null,null,null,null,null,null,null,null,1,null,null,null,null,null,null,null,null,null,null,null,null,null,null,null,null,null,"--",null," "]
[29365,null,null,null,null,null,null,null,null,null,null,null,null,null,1,null,null,null,null,null,null,null,null,null,null,null,null,null,null,null,null,null,"--",null," "]
[29380,null,null,null,null,null,null,null,null,null,null,null,null,null,1,null,null,null,null,null,null,null,null,null,null,null,null,null,null,null,null,null,"--",null," "]
[29453,null,null,null,null,null,null,null,null,null,null,null,null,null,1,null,null,null,null,null,null,null,null,null,null,null,null,null,null,null,null,null,"--",null," "]
[29525,null,null,null,null,null,null,null,null,null,null,null,null,null,1,null,null,null,null,null,null,null,null,null,null,null,null,null,null,null,null,null,"--",null," "]
[29610,null,null,null,null,null,null,null,null,null,null,null,null,null,1,null,null,null,null,null,null,null,null,null,null,null,null,null,null,null,null,null,"--",null," "]
[29695,null,null,null,null,null,null,null,null,null,null,null,null,null,1,null,null,null,null,null,null,null,null,null,null,null,null,null,null,null,null,null,"--",null," "]
[29752,null,null,null,null,null,null,null,null,null,null,null,null,null,1,null,null,null,null,null,null,null,null,null,null,null,null,null,null,null,null,null,"--",null," "]
[29840,null,null,null,null,null,null,null,null,null,null,null,null,null,1,null,null,null,null,null,null,null,null,null,null,null,null,null,null,null,null,null,"--",null," "]
[29901,null,null,null,null,null,null,null,null,null,null,null,null,null,1,null,null,null,null,null,null,null,null,null,null,null,null,null,null,null,null,null,"--",null," "]
[29986,null,null,null,null,null,null,null,null,null,null,null,null,null,1,null,null,null,null,null,null,null,null,null,null,null,null,null,null,null,null,null,"--",null," "]
[30062,null,null,null,null,null,null,null,null,null,null,null,null,null,1,null,null,null,null,null,null,null,null,null,null,null,null,null,null,null,null,null,"--",null," "]
[30131,null,null,null,null,null,null,null,null,null,null,null,null,null,1,null,null,null,null,null,null,null,null,null,null,null,null,null,null,null,null,null,"--",null," "]
[30146,null,null,null,null,null,null,null,null,null,null,null,null,null,1,null,null,null,null,null,null,null,null,null,null,null,null,null,null,null,null,null,"--",null,{"$f":"IF(B30161=\"M\",\"LOCALIZADO\",IF(B30161=\"OK\",\"LOCALIZADO\",IF(B30161=\"D\",\"LOCALIZADO\",IF(B30161=\"BT\",\"LOCALIZADO\",IF(B30161=\"NR\",\"LOCALIZADO PENDIENTE DE INVENTARIAR\",IF(B30161=\"REU\",\"LOCALIZADO\",IF(B30161=\"NO_L\",\"NO_LOCALIZADO\",IF(ISBLANK(B30161),\" \",\"NO\"))))))))","v":" "}]
[30277,null,null,null,null,null,null,null,null,null,null,null,null,null,1,null,null,null,null,null,null,null,null,null,null,null,null,null,null,null,null,null,"--",null," "]
[30292,null,null,null,null,null,null,null,null,null,null,null,null,null,1,null,null,null,null,null,null,null,null,null,null,null,null,null,null,null,null,null,"--",null," "]
[30376,null,null,null,null,null,null,null,null,null,null,null,null,null,1,null,null,null,null,null,null,null,null,null,null,null,null,null,null,null,null,null,"--",null," "]
[30437,null,null,null,null,null,null,null,null,null,null,null,null,null,1,null,null,null,null,null,null,null,null,null,null,null,null,null,null,null,null,null,"--",null," "]
[30522,null,null,null,null,null,null,null,null,null,null,null,null,null,1,null,null,null,null,null,null,null,null,null,null,null,null,null,null,null,null,null,"--",null," "]
[30602,null,null,null,null,null,null,null,null,null,null,null,null,null,1,null,null,null,null,null,null,null,null,null,null,null,null,null,null,null,null,null,"--",null," "]
[30667,null,null,null,null,null,null,null,null,null,null,null,null,null,1,null,null,null,null,null,null,null,null,null,null,null,null,null,null,null,null,null,"--",null," "]
[30752,null,null,null,null,null,null,null,null,null,null,null,null,null,1,null,null,null,null,null,null,null,null,null,null,null,null,null,null,null,null,null,"--",null," "]
[30813,null,null,null,null,null,null,null,null,null,null,null,null,null,1,null,null,null,null,null,null,null,null,null,null,null,null,null,null,null,null,null,"--",null," "]
[30901,null,null,null,null,null,null,null,null,null,null,null,null,null,1,null,null,null,null,null,null,null,null,null,null,null,null,null,null,null,null,null,"--",null," "]
[30912,null,null,null,null,null,null,null,null,null,null,null,null,null,1,null,null,null,null,null,null,null,null,null,null,null,null,null,null,null,null,null,"--",null," "]
[31043,null,null,null,null,null,null,null,null,null,null,null,null,null,1,null,null,null,null,null,null,null,null,null,null,null,null,null,null,null,null,null,"--",null," "]
[31058,null,null,null,null,null,null,null,null,null,null,null,null,null,1,null,null,null,null,null,null,null,null,null,null,null,null,null,null,null,null,null,"--",null," "]
[31131,null,null,null,null,null,null,null,null,null,null,null,null,null,1,null,null,null,null,null,null,null,null,null,null,null,null,null,null,null,null,null,"--",null," "]
[31203,null,null,null,null,null,null,null,null,null,null,null,null,null,1,null,null,null,null,null,null,null,null,null,null,null,null,null,null,null,null,null,"--",null," "]
[31288,null,null,null,null,null,null,null,null,null,null,null,null,null,1,null,null,null,null,null,null,null,null,null,null,null,null,null,null,null,null,null,"--",null," "]
[31349,null,null,null,null,null,null,null,null,null,null,null,null,null,1,null,null,null,null,null,null,null,null,null,null,null,null,null,null,null,null,null,"--",null," "]
[31441,null,null,null,null,null,null,null,null,null,null,null,null,null,1,null,null,null,null,null,null,null,null,null,null,null,null,null,null,null,null,null,"--",null," "]
[31518,null,null,null,null,null,null,null,null,null,null,null,null,null,1,null,null,null,null,null,null,null,null,null,null,null,null,null,null,null,null,null,"--",null," "]
[31579,null,null,null,null,null,null,null,null,null,null,null,null,null,1,null,null,null,null,null,null,null,null,null,null,null,null,null,null,null,null,null,"--",null," "]
[31664,null,null,null,null,null,null,null,null,null,null,null,null,null,1,null,null,null,null,null,null,null,null,null,null,null,null,null,null,null,null,null,"--",null," "]
[31740,null,null,null,null,null,null,null,null,null,null,null,null,null,1,null,null,null,null,null,null,null,null,null,null,null,null,null,null,null,null,null,"--",null," "]
[31809,null,null,null,null,null,null,null,null,null,null,null,null,null,1,null,null,null,null,null,null,null,null,null,null,null,null,null,null,null,null,null,{"$f":"CONCATENATE(L31824,\"-\",M31824,\"-\",N31824)","v":"--"},null," "]
[31824,null,null,null,null,null,null,null,null,null,null,null,null,null,1,null,null,null,null,null,null,null,null,null,null,null,null,null,null,null,null,null,"--",null," "]
[31885,null,null,null,null,null,null,null,null,null,null,null,null,null,1,null,null,null,null,null,null,null,null,null,null,null,null,null,null,null,null,null,"--",null," "]
[31981,null,null,null,null,null,null,null,null,null,null,null,null,null,1,null,null,null,null,null,null,null,null,null,null,null,null,null,null,null,null,null,"--",null," "]
[32054,null,null,null,null,null,null,null,null,null,null,null,null,null,1,null,null,null,null,null,null,null,null,null,null,null,null,null,null,null,null,null,"--",null," "]
[32115,null,null,null,null,null,null,null,null,null,null,null,null,null,1,null,null,null,null,null,null,null,null,null,null,null,null,null,null,null,null,null,"--",null," "]
[32200,null,null,null,null,null,null,null,null,null,null,null,null,null,1,null,null,null,null,null,null,null,null,null,null,null,null,null,null,null,null,null,"--",null," "]
[32280,null,null,null,null,null,null,null,null,null,null,null,null,null,1,null,null,null,null,null,null,null,null,null,null,null,null,null,null,null,null,null,"--",null," "]
[32345,null,null,null,null,null,null,null,null,null,null,null,null,null,1,null,null,null,null,null,null,null,null,null,null,null,null,null,null,null,null,null,"--",null," "]
[32430,null,null,null,null,null,null,null,null,null,null,null,null,null,1,null,null,null,null,null,null,null,null,null,null,null,null,null,null,null,null,null,"--",null," "]
[32491,null,null,null,null,null,null,null,null,null,null,null,null,null,1,null,null,null,null,null,null,null,null,null,null,null,null,null,null,null,null,null,"--",null," "]
[32521,null,null,null,null,null,null,null,null,null,null,null,null,null,1,null,null,null,null,null,null,null,null,null,null,null,null,null,null,null,null,null,"--",null," "]
[32636,null,null,null,null,null,null,null,null,null,null,null,null,null,1,null,null,null,null,null,null,null,null,null,null,null,null,null,null,null,null,null,"--",null," "]
[32721,null,null,null,null,null,null,null,null,null,null,null,null,null,1,null,null,null,null,null,null,null,null,null,null,null,null,null,null,null,null,null,"--",null," "]
[32736,null,null,null,null,null,null,null,null,null,null,null,null,null,1,null,null,null,null,null,null,null,null,null,null,null,null,null,null,null,null,null,"--",null," "]
[32820,null,null,null,null,null,null,null,null,null,null,null,null,null,1,null,null,null,null,null,null,null,null,null,null,null,null,null,null,null,null,null,"--",null," "]
[32881,null,null,null,null,null,null,null,null,null,null,null,null,null,1,null,null,null,null,null,null,null,null,null,null,null,null,null,null,null,null,null,"--",null," "]
[32966,null,null,null,null,null,null,null,null,null,null,null,null,null,1,null,null,null,null,null,null,null,null,null,null,null,null,null,null,null,null,null,"--",null," "]
[33027,null,null,null,null,null,null,null,null,null,null,null,null,null,1,null,null,null,null,null,null,null,null,null,null,null,null,null,null,null,null,null,"--",null," "]
[33130,null,null,null,null,null,null,null,null,null,null,null,null,null,1,null,null,null,null,null,null,null,null,null,null,null,null,null,null,null,null,null,"--",null," "]
[33172,null,null,null,null,null,null,null,null,null,null,null,null,null,1,null,null,null,null,null,null,null,null,null,null,null,null,null,null,null,null,null,"--",null," "]
[33257,null,null,null,null,null,null,null,null,null,null,null,null,null,1,null,null,null,null,null,null,null,null,null,null,null,null,null,null,null,null,null,"--",null," "]
[33342,null,null,null,null,null,null,null,null,null,null,null,null,null,1,null,null,null,null,null,null,null,null,null,null,null,null,null,null,null,null,null,"--",null," "]
[33360,null,null,null,null,null,null,null,null,null,null,null,null,null,1,null,null,null,null,null,null,null,null,null,null,null,null,null,null,null,null,null,"--",null," "]
[33487,null,null,null,null,null,null,null,null,null,null,null,null,null,1,null,null,null,null,null,null,null,null,null,null,null,null,null,null,null,null,null,"--",null," "]
[33502,null,null,null,null,null,null,null,null,null,null,null,null,null,1,null,null,null,null,null,null,null,null,null,null,null,null,null,null,null,null,null,"--",null," "]
[33563,null,null,null,null,null,null,null,null,null,null,null,null,null,1,null,null,null,null,null,null,null,null,null,null,null,null,null,null,null,null,null,"--",null," "]
[33670,null,null,null,null,null,null,null,null,null,null,null,null,null,1,null,null,null,null,null,null,null,null,null,null,null,null,null,null,null,null,null,"--",null," "]
[33708,null,null,null,null,null,null,null,null,null,null,null,null,null,1,null,null,null,null,null,null,null,null,null,null,null,null,null,null,null,null,null,"--",null," "]
[33793,null,null,null,null,null,null,null,null,null,null,null,null,null,1,null,null,null,null,null,null,null,null,null,null,null,null,null,null,null,null,null,{"$f":"CONCATENATE(L33808,\"-\",M33808,\"-\",N33808)","v":"--"},null," "]
[33878,null,null,null,null,null,null,null,null,null,null,null,null,null,1,null,null,null,null,null,null,null,null,null,null,null,null,null,null,null,null,null,"--",null," "]
[33969,null,null,null,null,null,null,null,null,null,null,null,null,null,1,null,null,null,null,null,null,null,null,null,null,null,null,null,null,null,null,null,"--",null," "]
[34023,null,null,null,null,null,null,null,null,null,null,null,null,null,1,null,null,null,null,null,null,null,null,null,null,null,null,null,null,null,null,null,"--",null," "]
[34084,null,null,null,null,null,null,null,null,null,null,null,null,null,1,null,null,null,null,null,null,null,null,null,null,null,null,null,null,null,null,null,"--",null," "]
[34169,null,null,null,null,null,null,null,null,null,null,null,null,null,1,null,null,null,null,null,null,null,null,null,null,null,null,null,null,null,null,null,"--",null," "]
[34210,null,null,null,null,null,null,null,null,null,null,null,null,null,1,null,null,null,null,null,null,null,null,null,null,null,null,null,null,null,null,null,"--",null," "]
[34314,null,null,null,null,null,null,null,null,null,null,null,null,null,1,null,null,null,null,null,null,null,null,null,null,null,null,null,null,null,null,null,"--",null," "]
[34329,null,null,null,null,null,null,null,null,null,null,null,null,null,1,null,null,null,null,null,null,null,null,null,null,null,null,null,null,null,null,null,"--",null," "]
[34414,null,null,null,null,null,null,null,null,null,null,null,null,null,1,null,null,null,null,null,null,null,null,null,null,null,null,null,null,null,null,null,"--",null," "]
[34509,null,null,null,null,null,null,null,null,null,null,null,null,null,1,null,null,null,null,null,null,null,null,null,null,null,null,null,null,null,null,null,"--",null," "]
[34559,null,null,null,null,null,null,null,null,null,null,null,null,null,1,null,null,null,null,null,null,null,null,null,null,null,null,null,null,null,null,null,"--",null," "]
[34620,null,null,null,null,null,null,null,null,null,null,null,null,null,1,null,null,null,null,null,null,null,null,null,null,null,null,null,null,null,null,null,"--",null," "]
[34705,null,null,null,null,null,null,null,null,null,null,null,null,null,1,null,null,null,null,null,null,null,null,null,null,null,null,null,null,null,null,null,"--",null," "]
[34750,null,null,null,null,null,null,null,null,null,null,null,null,null,1,null,null,null,null,null,null,null,null,null,null,null,null,null,null,null,null,null,"--",null," "]
[34850,null,null,null,null,null,null,null,null,null,null,null,null,null,1,null,null,null,null,null,null,null,null,null,null,null,null,null,null,null,null,null,"--",null," "]
[34935,null,null,null,null,null,null,null,null,null,null,null,null,null,1,null,null,null,null,null,null,null,null,null,null,null,null,null,null,null,null,null,"--",null," "]
[34996,null,null,null,null,null,null,null,null,null,null,null,null,null,1,null,null,null,null,null,null,null,null,null,null,null,null,null,null,null,null,null,"--",null," "]
[35049,null,null,null,null,null,null,null,null,null,null,null,null,null,1,null,null,null,null,null,null,null,null,null,null,null,null,null,null,null,null,null,"--",null," "]
[35095,null,null,null,null,null,null,null,null,null,null,null,null,null,1,null,null,null,null,null,null,null,null,null,null,null,null,null,null,null,null,null,"--",null," "]
[35226,null,null,null,null,null,null,null,null,null,null,null,null,null,1,null,null,null,null,null,null,null,null,null,null,null,null,null,null,null,null,null,"--",null," "]
[35241,null,null,null,null,null,null,null,null,null,null,null,null,null,1,null,null,null,null,null,null,null,null,null,null,null,null,null,null,null,null,null,"--",null," "]
[35359,null,null,null,null,null,null,null,null,null,null,null,null,null,1,null,null,null,null,null,null,null,null,null,null,null,null,null,null,null,null,null,"--",null," "]
[35386,null,null,null,null,null,null,null,null,null,null,null,null,null,1,null,null,null,null,null,null,null,null,null,null,null,null,null,null,null,null,null,"--",null," "]
[35471,null,null,null,null,null,null,null,null,null,null,null,null,null,1,null,null,null,null,null,null,null,null,null,null,null,null,null,null,null,null,null,"--",null," "]
[35532,null,null,null,null,null,null,null,null,null,null,null,null,null,1,null,null,null,null,null,null,null,null,null,null,null,null,null,null,null,null,null,"--",null," "]
[35589,null,null,null,null,null,null,null,null,null,null,null,null,null,1,null,null,null,null,null,null,null,null,null,null,null,null,null,null,null,null,null,"--",null," "]
[35701,null,null,null,null,null,null,null,null,null,null,null,null,null,1,null,null,null,null,null,null,null,null,null,null,null,null,null,null,null,null,null,"--",null," "]
[35762,null,null,null,null,null,null,null,null,null,null,null,null,null,1,null,null,null,null,null,null,null,null,null,null,null,null,null,null,null,null,null,"--",null," "]
[35847,null,null,null,null,null,null,null,null,null,null,null,null,null,1,null,null,null,null,null,null,null,null,null,null,null,null,null,null,null,null,null,"--",null," "]
[35899,null,null,null,null,null,null,null,null,null,null,null,null,null,1,null,null,null,null,null,null,null,null,null,null,null,null,null,null,null,null,null,"--",null," "]
[35992,null,null,null,null,null,null,null,null,null,null,null,null,null,1,null,null,null,null,null,null,null,null,null,null,null,null,null,null,null,null,null,"--",null," "]
[36007,null,null,null,null,null,null,null,null,null,null,null,null,null,1,null,null,null,null,null,null,null,null,null,null,null,null,null,null,null,null,null,"--",null," "]
[36138,null,null,null,null,null,null,null,null,null,null,null,null,null,1,null,null,null,null,null,null,null,null,null,null,null,null,null,null,null,null,null,"--",null," "]
[36198,null,null,null,null,null,null,null,null,null,null,null,null,null,1,null,null,null,null,null,null,null,null,null,null,null,null,null,null,null,null,null,"--",null," "]
[36237,null,null,null,null,null,null,null,null,null,null,null,null,null,1,null,null,null,null,null,null,null,null,null,null,null,null,null,null,null,null,null,"--",null," "]
[36298,null,null,null,null,null,null,null,null,null,null,null,null,null,1,null,null,null,null,null,null,null,null,null,null,null,null,null,null,null,null,null,"--",null," "]
[36383,null,null,null,null,null,null,null,null,null,null,null,null,null,1,null,null,null,null,null,null,null,null,null,null,null,null,null,null,null,null,null,"--",null," "]
[36428,null,null,null,null,null,null,null,null,null,null,null,null,null,1,null,null,null,null,null,null,null,null,null,null,null,null,null,null,null,null,null,"--",null," "]
[36528,null,null,null,null,null,null,null,null,null,null,null,null,null,1,null,null,null,null,null,null,null,null,null,null,null,null,null,null,null,null,null,"--",null," "]
[36613,null,null,null,null,null,null,null,null,null,null,null,null,null,1,null,null,null,null,null,null,null,null,null,null,null,null,null,null,null,null,null,"--",null," "]
[36674,null,null,null,null,null,null,null,null,null,null,null,null,null,1,null,null,null,null,null,null,null,null,null,null,null,null,null,null,null,null,null,"--",null,{"$f":"IF(B36689=\"M\",\"LOCALIZADO\",IF(B36689=\"OK\",\"LOCALIZADO\",IF(B36689=\"D\",\"LOCALIZADO\",IF(B36689=\"BT\",\"LOCALIZADO\",IF(B36689=\"NR\",\"LOCALIZADO PENDIENTE DE INVENTARIAR\",IF(B36689=\"REU\",\"LOCALIZADO\",IF(B36689=\"NO_L\",\"NO_LOCALIZADO\",IF(ISBLANK(B36689),\" \",\"NO\"))))))))","v":" "}]
[36738,null,null,null,null,null,null,null,null,null,null,null,null,null,1,null,null,null,null,null,null,null,null,null,null,null,null,null,null,null,null,null,"--",null,{"$f":"IF(B36753=\"M\",\"LOCALIZADO\",IF(B36753=\"OK\",\"LOCALIZADO\",IF(B36753=\"D\",\"LOCALIZADO\",IF(B36753=\"BT\",\"LOCALIZADO\",IF(B36753=\"NR\",\"LOCALIZADO PENDIENTE DE INVENTARIAR\",IF(B36753=\"REU\",\"LOCALIZADO\",IF(B36753=\"NO_L\",\"NO_LOCALIZADO\",IF(ISBLANK(B36753),\" \",\"NO\"))))))))","v":" "}]
[36773,null,null,null,null,null,null,null,null,null,null,null,null,null,1,null,null,null,null,null,null,null,null,null,null,null,null,null,null,null,null,null,"--",null," "]
[36904,null,null,null,null,null,null,null,null,null,null,null,null,null,1,null,null,null,null,null,null,null,null,null,null,null,null,null,null,null,null,null,"--",null," "]
[36919,null,null,null,null,null,null,null,null,null,null,null,null,null,1,null,null,null,null,null,null,null,null,null,null,null,null,null,null,null,null,null,"--",null," "]
[37037,null,null,null,null,null,null,null,null,null,null,null,null,null,1,null,null,null,null,null,null,null,null,null,null,null,null,null,null,null,null,null,"--",null," "]
[37064,null,null,null,null,null,null,null,null,null,null,null,null,null,1,null,null,null,null,null,null,null,null,null,null,null,null,null,null,null,null,null,"--",null," "]
[37149,null,null,null,null,null,null,null,null,null,null,null,null,null,1,null,null,null,null,null,null,null,null,null,null,null,null,null,null,null,null,null,"--",null," "]
[37210,null,null,null,null,null,null,null,null,null,null,null,null,null,1,null,null,null,null,null,null,null,null,null,null,null,null,null,null,null,null,null,"--",null," "]
[37278,null,null,null,null,null,null,null,null,null,null,null,null,null,1,null,null,null,null,null,null,null,null,null,null,null,null,null,null,null,null,null,"--",null," "]
[37355,null,null,null,null,null,null,null,null,null,null,null,null,null,1,null,null,null,null,null,null,null,null,null,null,null,null,null,null,null,null,null,"--",null," "]
[37440,null,null,null,null,null,null,null,null,null,null,null,null,null,1,null,null,null,null,null,null,null,null,null,null,null,null,null,null,null,null,null,"--",null," "]
[37525,null,null,null,null,null,null,null,null,null,null,null,null,null,1,null,null,null,null,null,null,null,null,null,null,null,null,null,null,null,null,null,"--",null," "]
[37577,null,null,null,null,null,null,null,null,null,null,null,null,null,1,null,null,null,null,null,null,null,null,null,null,null,null,null,null,null,null,null,"--",null," "]
[37670,null,null,null,null,null,null,null,null,null,null,null,null,null,1,null,null,null,null,null,null,null,null,null,null,null,null,null,null,null,null,null,"--",null," "]
[37685,null,null,null,null,null,null,null,null,null,null,null,null,null,1,null,null,null,null,null,null,null,null,null,null,null,null,null,null,null,null,null,"--",null," "]
[37746,null,null,null,null,null,null,null,null,null,null,null,null,null,1,null,null,null,null,null,null,null,null,null,null,null,null,null,null,null,null,null,"--",null," "]
[37818,null,null,null,null,null,null,null,null,null,null,null,null,null,1,null,null,null,null,null,null,null,null,null,null,null,null,null,null,null,null,null,"--",null," "]
[37891,null,null,null,null,null,null,null,null,null,null,null,null,null,1,null,null,null,null,null,null,null,null,null,null,null,null,null,null,null,null,null,"--",null," "]
[37976,null,null,null,null,null,null,null,null,null,null,null,null,null,1,null,null,null,null,null,null,null,null,null,null,null,null,null,null,null,null,null,"--",null," "]
[38061,null,null,null,null,null,null,null,null,null,null,null,null,null,1,null,null,null,null,null,null,null,null,null,null,null,null,null,null,null,null,null,"--",null," "]
[38117,null,null,null,null,null,null,null,null,null,null,null,null,null,1,null,null,null,null,null,null,null,null,null,null,null,null,null,null,null,null,null,"--",null," "]
[38206,null,null,null,null,null,null,null,null,null,null,null,null,null,1,null,null,null,null,null,null,null,null,null,null,null,null,null,null,null,null,null,"--",null," "]
[38291,null,null,null,null,null,null,null,null,null,null,null,null,null,1,null,null,null,null,null,null,null,null,null,null,null,null,null,null,null,null,null,"--",null," "]
[38352,null,null,null,null,null,null,null,null,null,null,null,null,null,1,null,null,null,null,null,null,null,null,null,null,null,null,null,null,null,null,null,"--",null," "]
[38427,null,null,null,null,null,null,null,null,null,null,null,null,null,1,null,null,null,null,null,null,null,null,null,null,null,null,null,null,null,null,null,"--",null," "]
[38497,null,null,null,null,null,null,null,null,null,null,null,null,null,1,null,null,null,null,null,null,null,null,null,null,null,null,null,null,null,null,null,"--",null," "]
[38512,null,null,null,null,null,null,null,null,null,null,null,null,null,1,null,null,null,null,null,null,null,null,null,null,null,null,null,null,null,null,null,"--",null," "]
[38597,null,null,null,null,null,null,null,null,null,null,null,null,null,1,null,null,null,null,null,null,null,null,null,null,null,null,null,null,null,null,null,"--",null," "]
[38657,null,null,null,null,null,null,null,null,null,null,null,null,null,1,null,null,null,null,null,null,null,null,null,null,null,null,null,null,null,null,null,{"$f":"CONCATENATE(L38672,\"-\",M38672,\"-\",N38672)","v":"--"},null," "]
[38742,null,null,null,null,null,null,null,null,null,null,null,null,null,1,null,null,null,null,null,null,null,null,null,null,null,null,null,null,null,null,null,"--",null," "]
[38803,null,null,null,null,null,null,null,null,null,null,null,null,null,1,null,null,null,null,null,null,null,null,null,null,null,null,null,null,null,null,null,"--",null," "]
[38888,null,null,null,null,null,null,null,null,null,null,null,null,null,1,null,null,null,null,null,null,null,null,null,null,null,null,null,null,null,null,null,"--",null," "]
[38967,null,null,null,null,null,null,null,null,null,null,null,null,null,1,null,null,null,null,null,null,null,null,null,null,null,null,null,null,null,null,null,"--",null," "]
[39033,null,null,null,null,null,null,null,null,null,null,null,null,null,1,null,null,null,null,null,null,null,null,null,null,null,null,null,null,null,null,null,"--",null," "]
[39118,null,null,null,null,null,null,null,null,null,null,null,null,null,1,null,null,null,null,null,null,null,null,null,null,null,null,null,null,null,null,null,"--",null," "]
[39203,null,null,null,null,null,null,null,null,null,null,null,null,null,1,null,null,null,null,null,null,null,null,null,null,null,null,null,null,null,null,null,"--",null," "]
[39266,null,null,null,null,null,null,null,null,null,null,null,null,null,1,null,null,null,null,null,null,null,null,null,null,null,null,null,null,null,null,null,"--",null," "]
[39278,null,null,null,null,null,null,null,null,null,null,null,null,null,1,null,null,null,null,null,null,null,null,null,null,null,null,null,null,null,null,null,"--",null," "]
[39409,null,null,null,null,null,null,null,null,null,null,null,null,null,1,null,null,null,null,null,null,null,null,null,null,null,null,null,null,null,null,null,"--",null," "]
[39424,null,null,null,null,null,null,null,null,null,null,null,null,null,1,null,null,null,null,null,null,null,null,null,null,null,null,null,null,null,null,null,"--",null," "]
[39507,null,null,null,null,null,null,null,null,null,null,null,null,null,1,null,null,null,null,null,null,null,null,null,null,null,null,null,null,null,null,null,"--",null," "]
[39569,null,null,null,null,null,null,null,null,null,null,null,null,null,1,null,null,null,null,null,null,null,null,null,null,null,null,null,null,null,null,null,"--",null," "]
[39654,null,null,null,null,null,null,null,null,null,null,null,null,null,1,null,null,null,null,null,null,null,null,null,null,null,null,null,null,null,null,null,"--",null," "]
[39739,null,null,null,null,null,null,null,null,null,null,null,null,null,1,null,null,null,null,null,null,null,null,null,null,null,null,null,null,null,null,null,"--",null," "]
[39806,null,null,null,null,null,null,null,null,null,null,null,null,null,1,null,null,null,null,null,null,null,null,null,null,null,null,null,null,null,null,null,"--",null," "]
[39884,null,null,null,null,null,null,null,null,null,null,null,null,null,1,null,null,null,null,null,null,null,null,null,null,null,null,null,null,null,null,null,"--",null," "]
[39945,null,null,null,null,null,null,null,null,null,null,null,null,null,1,null,null,null,null,null,null,null,null,null,null,null,null,null,null,null,null,null,"--",null," "]
[40030,null,null,null,null,null,null,null,null,null,null,null,null,null,1,null,null,null,null,null,null,null,null,null,null,null,null,null,null,null,null,null,"--",null," "]
[40047,null,null,null,null,null,null,null,null,null,null,null,null,null,1,null,null,null,null,null,null,null,null,null,null,null,null,null,null,null,null,null,"--",null," "]
[40175,null,null,null,null,null,null,null,null,null,null,null,null,null,1,null,null,null,null,null,null,null,null,null,null,null,null,null,null,null,null,null,"--",null," "]
[40190,null,null,null,null,null,null,null,null,null,null,null,null,null,1,null,null,null,null,null,null,null,null,null,null,null,null,null,null,null,null,null,"--",null," "]
[40321,null,null,null,null,null,null,null,null,null,null,null,null,null,1,null,null,null,null,null,null,null,null,null,null,null,null,null,null,null,null,null,{"$f":"CONCATENATE(L40336,\"-\",M40336,\"-\",N40336)","v":"--"},null," "]
[40346,null,null,null,null,null,null,null,null,null,null,null,null,null,1,null,null,null,null,null,null,null,null,null,null,null,null,null,null,null,null,null,"--",null," "]
[40420,null,null,null,null,null,null,null,null,null,null,null,null,null,1,null,null,null,null,null,null,null,null,null,null,null,null,null,null,null,null,null,"--",null," "]
[40481,null,null,null,null,null,null,null,null,null,null,null,null,null,1,null,null,null,null,null,null,null,null,null,null,null,null,null,null,null,null,null,"--",null," "]
[40566,null,null,null,null,null,null,null,null,null,null,null,null,null,1,null,null,null,null,null,null,null,null,null,null,null,null,null,null,null,null,null,"--",null," "]
[40656,null,null,null,null,null,null,null,null,null,null,null,null,null,1,null,null,null,null,null,null,null,null,null,null,null,null,null,null,null,null,null,"--",null," "]
[40711,null,null,null,null,null,null,null,null,null,null,null,null,null,1,null,null,null,null,null,null,null,null,null,null,null,null,null,null,null,null,null,"--",null," "]
[40796,null,null,null,null,null,null,null,null,null,null,null,null,null,1,null,null,null,null,null,null,null,null,null,null,null,null,null,null,null,null,null,"--",null," "]
[40857,null,null,null,null,null,null,null,null,null,null,null,null,null,1,null,null,null,null,null,null,null,null,null,null,null,null,null,null,null,null,null,"--",null," "]
[40886,null,null,null,null,null,null,null,null,null,null,null,null,null,1,null,null,null,null,null,null,null,null,null,null,null,null,null,null,null,null,null,"--",null," "]
[40956,null,null,null,null,null,null,null,null,null,null,null,null,null,1,null,null,null,null,null,null,null,null,null,null,null,null,null,null,null,null,null,"--",null," "]
[41087,null,null,null,null,null,null,null,null,null,null,null,null,null,1,null,null,null,null,null,null,null,null,null,null,null,null,null,null,null,null,null,"--",null," "]
[41102,null,null,null,null,null,null,null,null,null,null,null,null,null,1,null,null,null,null,null,null,null,null,null,null,null,null,null,null,null,null,null,"--",null," "]
[41185,null,null,null,null,null,null,null,null,null,null,null,null,null,1,null,null,null,null,null,null,null,null,null,null,null,null,null,null,null,null,null,"--",null," "]
[41247,null,null,null,null,null,null,null,null,null,null,null,null,null,1,null,null,null,null,null,null,null,null,null,null,null,null,null,null,null,null,null,"--",null," "]
[41332,null,null,null,null,null,null,null,null,null,null,null,null,null,1,null,null,null,null,null,null,null,null,null,null,null,null,null,null,null,null,null,"--",null," "]
[41393,null,null,null,null,null,null,null,null,null,null,null,null,null,1,null,null,null,null,null,null,null,null,null,null,null,null,null,null,null,null,null,"--",null," "]
[41495,null,null,null,null,null,null,null,null,null,null,null,null,null,1,null,null,null,null,null,null,null,null,null,null,null,null,null,null,null,null,null,"--",null," "]
[41562,null,null,null,null,null,null,null,null,null,null,null,null,null,1,null,null,null,null,null,null,null,null,null,null,null,null,null,null,null,null,null,"--",null," "]
[41623,null,null,null,null,null,null,null,null,null,null,null,null,null,1,null,null,null,null,null,null,null,null,null,null,null,null,null,null,null,null,null,"--",null," "]
[41708,null,null,null,null,null,null,null,null,null,null,null,null,null,1,null,null,null,null,null,null,null,null,null,null,null,null,null,null,null,null,null,"--",null," "]
[41725,null,null,null,null,null,null,null,null,null,null,null,null,null,1,null,null,null,null,null,null,null,null,null,null,null,null,null,null,null,null,null,"--",null," "]
[41853,null,null,null,null,null,null,null,null,null,null,null,null,null,1,null,null,null,null,null,null,null,null,null,null,null,null,null,null,null,null,null,"--",null," "]
[41868,null,null,null,null,null,null,null,null,null,null,null,null,null,1,null,null,null,null,null,null,null,null,null,null,null,null,null,null,null,null,null,"--",null," "]
[41929,null,null,null,null,null,null,null,null,null,null,null,null,null,1,null,null,null,null,null,null,null,null,null,null,null,null,null,null,null,null,null,"--",null," "]
[42035,null,null,null,null,null,null,null,null,null,null,null,null,null,1,null,null,null,null,null,null,null,null,null,null,null,null,null,null,null,null,null,"--",null," "]
[42098,null,null,null,null,null,null,null,null,null,null,null,null,null,1,null,null,null,null,null,null,null,null,null,null,null,null,null,null,null,null,null,"--",null," "]
[42159,null,null,null,null,null,null,null,null,null,null,null,null,null,1,null,null,null,null,null,null,null,null,null,null,null,null,null,null,null,null,null,"--",null," "]
[42244,null,null,null,null,null,null,null,null,null,null,null,null,null,1,null,null,null,null,null,null,null,null,null,null,null,null,null,null,null,null,null,"--",null," "]
[42334,null,null,null,null,null,null,null,null,null,null,null,null,null,1,null,null,null,null,null,null,null,null,null,null,null,null,null,null,null,null,null,"--",null," "]
[42389,null,null,null,null,null,null,null,null,null,null,null,null,null,1,null,null,null,null,null,null,null,null,null,null,null,null,null,null,null,null,null,"--",null," "]
[42474,null,null,null,null,null,null,null,null,null,null,null,null,null,1,null,null,null,null,null,null,null,null,null,null,null,null,null,null,null,null,null,"--",null," "]
[42535,null,null,null,null,null,null,null,null,null,null,null,null,null,1,null,null,null,null,null,null,null,null,null,null,null,null,null,null,null,null,null,"--",null," "]
[42575,null,null,null,null,null,null,null,null,null,null,null,null,null,1,null,null,null,null,null,null,null,null,null,null,null,null,null,null,null,null,null,"--",null," "]
[42680,null,null,null,null,null,null,null,null,null,null,null,null,null,1,null,null,null,null,null,null,null,null,null,null,null,null,null,null,null,null,null,"--",null," "]
[42765,null,null,null,null,null,null,null,null,null,null,null,null,null,1,null,null,null,null,null,null,null,null,null,null,null,null,null,null,null,null,null,"--",null," "]
[42780,null,null,null,null,null,null,null,null,null,null,null,null,null,1,null,null,null,null,null,null,null,null,null,null,null,null,null,null,null,null,null,"--",null," "]
[42874,null,null,null,null,null,null,null,null,null,null,null,null,null,1,null,null,null,null,null,null,null,null,null,null,null,null,null,null,null,null,null,"--",null," "]
[42925,null,null,null,null,null,null,null,null,null,null,null,null,null,1,null,null,null,null,null,null,null,null,null,null,null,null,null,null,null,null,null,"--",null," "]
[43010,null,null,null,null,null,null,null,null,null,null,null,null,null,1,null,null,null,null,null,null,null,null,null,null,null,null,null,null,null,null,null,"--",null,{"$f":"IF(B43025=\"M\",\"LOCALIZADO\",IF(B43025=\"OK\",\"LOCALIZADO\",IF(B43025=\"D\",\"LOCALIZADO\",IF(B43025=\"BT\",\"LOCALIZADO\",IF(B43025=\"NR\",\"LOCALIZADO PENDIENTE DE INVENTARIAR\",IF(B43025=\"REU\",\"LOCALIZADO\",IF(B43025=\"NO_L\",\"NO_LOCALIZADO\",IF(ISBLANK(B43025),\" \",\"NO\"))))))))","v":" "}]
[43071,null,null,null,null,null,null,null,null,null,null,null,null,null,1,null,null,null,null,null,null,null,null,null,null,null,null,null,null,null,null,null,"--",null," "]
[43115,null,null,null,null,null,null,null,null,null,null,null,null,null,1,null,null,null,null,null,null,null,null,null,null,null,null,null,null,null,null,null,"--",null," "]
[43216,null,null,null,null,null,null,null,null,null,null,null,null,null,1,null,null,null,null,null,null,null,null,null,null,null,null,null,null,null,null,null,"--",null," "]
[43301,null,null,null,null,null,null,null,null,null,null,null,null,null,1,null,null,null,null,null,null,null,null,null,null,null,null,null,null,null,null,null,"--",null," "]
[43386,null,null,null,null,null,null,null,null,null,null,null,null,null,1,null,null,null,null,null,null,null,null,null,null,null,null,null,null,null,null,null,"--",null," "]
[43414,null,null,null,null,null,null,null,null,null,null,null,null,null,1,null,null,null,null,null,null,null,null,null,null,null,null,null,null,null,null,null,"--",null," "]
[43531,null,null,null,null,null,null,null,null,null,null,null,null,null,1,null,null,null,null,null,null,null,null,null,null,null,null,null,null,null,null,null,"--",null," "]
[43546,null,null,null,null,null,null,null,null,null,null,null,null,null,1,null,null,null,null,null,null,null,null,null,null,null,null,null,null,null,null,null,"--",null," "]
[43607,null,null,null,null,null,null,null,null,null,null,null,null,null,1,null,null,null,null,null,null,null,null,null,null,null,null,null,null,null,null,null,"--",null," "]
[43724,null,null,null,null,null,null,null,null,null,null,null,null,null,1,null,null,null,null,null,null,null,null,null,null,null,null,null,null,null,null,null,"--",null," "]
[43752,null,null,null,null,null,null,null,null,null,null,null,null,null,1,null,null,null,null,null,null,null,null,null,null,null,null,null,null,null,null,null,"--",null," "]
[43837,null,null,null,null,null,null,null,null,null,null,null,null,null,1,null,null,null,null,null,null,null,null,null,null,null,null,null,null,null,null,null,"--",null," "]
[43922,null,null,null,null,null,null,null,null,null,null,null,null,null,1,null,null,null,null,null,null,null,null,null,null,null,null,null,null,null,null,null,"--",null," "]
[43954,null,null,null,null,null,null,null,null,null,null,null,null,null,1,null,null,null,null,null,null,null,null,null,null,null,null,null,null,null,null,null,"--",null," "]
[44067,null,null,null,null,null,null,null,null,null,null,null,null,null,1,null,null,null,null,null,null,null,null,null,null,null,null,null,null,null,null,null,"--",null," "]
[44128,null,null,null,null,null,null,null,null,null,null,null,null,null,1,null,null,null,null,null,null,null,null,null,null,null,null,null,null,null,null,null,"--",null," "]
[44213,null,null,null,null,null,null,null,null,null,null,null,null,null,1,null,null,null,null,null,null,null,null,null,null,null,null,null,null,null,null,null,"--",null," "]
[44264,null,null,null,null,null,null,null,null,null,null,null,null,null,1,null,null,null,null,null,null,null,null,null,null,null,null,null,null,null,null,null,"--",null," "]
[44358,null,null,null,null,null,null,null,null,null,null,null,null,null,1,null,null,null,null,null,null,null,null,null,null,null,null,null,null,null,null,null,"--",null," "]
[44373,null,null,null,null,null,null,null,null,null,null,null,null,null,1,null,null,null,null,null,null,null,null,null,null,null,null,null,null,null,null,null,"--",null," "]
[44458,null,null,null,null,null,null,null,null,null,null,null,null,null,1,null,null,null,null,null,null,null,null,null,null,null,null,null,null,null,null,null,"--",null," "]
[44563,null,null,null,null,null,null,null,null,null,null,null,null,null,1,null,null,null,null,null,null,null,null,null,null,null,null,null,null,null,null,null,"--",null," "]
[44603,null,null,null,null,null,null,null,null,null,null,null,null,null,1,null,null,null,null,null,null,null,null,null,null,null,null,null,null,null,null,null,"--",null," "]
[44664,null,null,null,null,null,null,null,null,null,null,null,null,null,1,null,null,null,null,null,null,null,null,null,null,null,null,null,null,null,null,null,"--",null," "]
[44749,null,null,null,null,null,null,null,null,null,null,null,null,null,1,null,null,null,null,null,null,null,null,null,null,null,null,null,null,null,null,null,"--",null," "]
[44804,null,null,null,null,null,null,null,null,null,null,null,null,null,1,null,null,null,null,null,null,null,null,null,null,null,null,null,null,null,null,null,"--",null," "]
[44894,null,null,null,null,null,null,null,null,null,null,null,null,null,1,null,null,null,null,null,null,null,null,null,null,null,null,null,null,null,null,null,"--",null," "]
[44979,null,null,null,null,null,null,null,null,null,null,null,null,null,1,null,null,null,null,null,null,null,null,null,null,null,null,null,null,null,null,null,"--",null," "]
[45040,null,null,null,null,null,null,null,null,null,null,null,null,null,1,null,null,null,null,null,null,null,null,null,null,null,null,null,null,null,null,null,"--",null," "]
[45103,null,null,null,null,null,null,null,null,null,null,null,null,null,1,null,null,null,null,null,null,null,null,null,null,null,null,null,null,null,null,null,"--",null," "]
[45139,null,null,null,null,null,null,null,null,null,null,null,null,null,1,null,null,null,null,null,null,null,null,null,null,null,null,null,null,null,null,null,"--",null," "]
[45270,null,null,null,null,null,null,null,null,null,null,null,null,null,1,null,null,null,null,null,null,null,null,null,null,null,null,null,null,null,null,null,"--",null," "]
[45285,null,null,null,null,null,null,null,null,null,null,null,null,null,1,null,null,null,null,null,null,null,null,null,null,null,null,null,null,null,null,null,"--",null," "]
[45413,null,null,null,null,null,null,null,null,null,null,null,null,null,1,null,null,null,null,null,null,null,null,null,null,null,null,null,null,null,null,null,"--",null," "]
[45430,null,null,null,null,null,null,null,null,null,null,null,null,null,1,null,null,null,null,null,null,null,null,null,null,null,null,null,null,null,null,null,"--",null," "]
[45515,null,null,null,null,null,null,null,null,null,null,null,null,null,1,null,null,null,null,null,null,null,null,null,null,null,null,null,null,null,null,null,"--",null," "]
[45576,null,null,null,null,null,null,null,null,null,null,null,null,null,1,null,null,null,null,null,null,null,null,null,null,null,null,null,null,null,null,null,"--",null," "]
[45643,null,null,null,null,null,null,null,null,null,null,null,null,null,1,null,null,null,null,null,null,null,null,null,null,null,null,null,null,null,null,null,"--",null," "]
[45745,null,null,null,null,null,null,null,null,null,null,null,null,null,1,null,null,null,null,null,null,null,null,null,null,null,null,null,null,null,null,null,"--",null," "]
[45806,null,null,null,null,null,null,null,null,null,null,null,null,null,1,null,null,null,null,null,null,null,null,null,null,null,null,null,null,null,null,null,"--",null," "]
[45891,null,null,null,null,null,null,null,null,null,null,null,null,null,1,null,null,null,null,null,null,null,null,null,null,null,null,null,null,null,null,null,"--",null," "]
[45953,null,null,null,null,null,null,null,null,null,null,null,null,null,1,null,null,null,null,null,null,null,null,null,null,null,null,null,null,null,null,null,{"$f":"CONCATENATE(L45968,\"-\",M45968,\"-\",N45968)","v":"--"},null," "]
[46036,null,null,null,null,null,null,null,null,null,null,null,null,null,1,null,null,null,null,null,null,null,null,null,null,null,null,null,null,null,null,null,"--",null," "]
[46051,null,null,null,null,null,null,null,null,null,null,null,null,null,1,null,null,null,null,null,null,null,null,null,null,null,null,null,null,null,null,null,"--",null," "]
[46182,null,null,null,null,null,null,null,null,null,null,null,null,null,1,null,null,null,null,null,null,null,null,null,null,null,null,null,null,null,null,null,"--",null," "]
[46252,null,null,null,null,null,null,null,null,null,null,null,null,null,1,null,null,null,null,null,null,null,null,null,null,null,null,null,null,null,null,null,"--",null," "]
[46281,null,null,null,null,null,null,null,null,null,null,null,null,null,1,null,null,null,null,null,null,null,null,null,null,null,null,null,null,null,null,null,"--",null," "]
[46342,null,null,null,null,null,null,null,null,null,null,null,null,null,1,null,null,null,null,null,null,null,null,null,null,null,null,null,null,null,null,null,"--",null," "]
[46427,null,null,null,null,null,null,null,null,null,null,null,null,null,1,null,null,null,null,null,null,null,null,null,null,null,null,null,null,null,null,null,"--",null," "]
[46482,null,null,null,null,null,null,null,null,null,null,null,null,null,1,null,null,null,null,null,null,null,null,null,null,null,null,null,null,null,null,null,"--",null," "]
[46572,null,null,null,null,null,null,null,null,null,null,null,null,null,1,null,null,null,null,null,null,null,null,null,null,null,null,null,null,null,null,null,"--",null," "]
[46657,null,null,null,null,null,null,null,null,null,null,null,null,null,1,null,null,null,null,null,null,null,null,null,null,null,null,null,null,null,null,null,{"$f":"CONCATENATE(L46672,\"-\",M46672,\"-\",N46672)","v":"--"},null," "]
[46718,null,null,null,null,null,null,null,null,null,null,null,null,null,1,null,null,null,null,null,null,null,null,null,null,null,null,null,null,null,null,null,"--",null," "]
[46792,null,null,null,null,null,null,null,null,null,null,null,null,null,1,null,null,null,null,null,null,null,null,null,null,null,null,null,null,null,null,null,"--",null," "]
[46817,null,null,null,null,null,null,null,null,null,null,null,null,null,1,null,null,null,null,null,null,null,null,null,null,null,null,null,null,null,null,null,"--",null," "]
[46948,null,null,null,null,null,null,null,null,null,null,null,null,null,1,null,null,null,null,null,null,null,null,null,null,null,null,null,null,null,null,null,"--",null," "]
[46963,null,null,null,null,null,null,null,null,null,null,null,null,null,1,null,null,null,null,null,null,null,null,null,null,null,null,null,null,null,null,null,"--",null," "]
[47022,null,null,null,null,null,null,null,null,null,null,null,null,null,1,null,null,null,null,null,null,null,null,null,null,null,null,null,null,null,null,null,"--",null," "]
[47108,null,null,null,null,null,null,null,null,null,null,null,null,null,1,null,null,null,null,null,null,null,null,null,null,null,null,null,null,null,null,null,"--",null," "]
[47193,null,null,null,null,null,null,null,null,null,null,null,null,null,1,null,null,null,null,null,null,null,null,null,null,null,null,null,null,null,null,null,"--",null," "]
[47254,null,null,null,null,null,null,null,null,null,null,null,null,null,1,null,null,null,null,null,null,null,null,null,null,null,null,null,null,null,null,null,"--",null," "]
[47332,null,null,null,null,null,null,null,null,null,null,null,null,null,1,null,null,null,null,null,null,null,null,null,null,null,null,null,null,null,null,null,"--",null," "]
[47399,null,null,null,null,null,null,null,null,null,null,null,null,null,1,null,null,null,null,null,null,null,null,null,null,null,null,null,null,null,null,null,"--",null," "]
[47484,null,null,null,null,null,null,null,null,null,null,null,null,null,1,null,null,null,null,null,null,null,null,null,null,null,null,null,null,null,null,null,"--",null," "]
[47569,null,null,null,null,null,null,null,null,null,null,null,null,null,1,null,null,null,null,null,null,null,null,null,null,null,null,null,null,null,null,null,"--",null," "]
[47631,null,null,null,null,null,null,null,null,null,null,null,null,null,1,null,null,null,null,null,null,null,null,null,null,null,null,null,null,null,null,null,"--",null," "]
[47714,null,null,null,null,null,null,null,null,null,null,null,null,null,1,null,null,null,null,null,null,null,null,null,null,null,null,null,null,null,null,null,"--",null," "]
[47729,null,null,null,null,null,null,null,null,null,null,null,null,null,1,null,null,null,null,null,null,null,null,null,null,null,null,null,null,null,null,null,"--",null," "]
[47790,null,null,null,null,null,null,null,null,null,null,null,null,null,1,null,null,null,null,null,null,null,null,null,null,null,null,null,null,null,null,null,"--",null," "]
[47872,null,null,null,null,null,null,null,null,null,null,null,null,null,1,null,null,null,null,null,null,null,null,null,null,null,null,null,null,null,null,null,"--",null," "]
[47935,null,null,null,null,null,null,null,null,null,null,null,null,null,1,null,null,null,null,null,null,null,null,null,null,null,null,null,null,null,null,null,"--",null," "]
[48020,null,null,null,null,null,null,null,null,null,null,null,null,null,1,null,null,null,null,null,null,null,null,null,null,null,null,null,null,null,null,null,"--",null," "]
[48105,null,null,null,null,null,null,null,null,null,null,null,null,null,1,null,null,null,null,null,null,null,null,null,null,null,null,null,null,null,null,null,"--",null," "]
[48171,null,null,null,null,null,null,null,null,null,null,null,null,null,1,null,null,null,null,null,null,null,null,null,null,null,null,null,null,null,null,null,"--",null," "]
[48250,null,null,null,null,null,null,null,null,null,null,null,null,null,1,null,null,null,null,null,null,null,null,null,null,null,null,null,null,null,null,null,"--",null," "]
[48335,null,null,null,null,null,null,null,null,null,null,null,null,null,1,null,null,null,null,null,null,null,null,null,null,null,null,null,null,null,null,null,"--",null," "]
[48396,null,null,null,null,null,null,null,null,null,null,null,null,null,1,null,null,null,null,null,null,null,null,null,null,null,null,null,null,null,null,null,"--",null," "]
[48481,null,null,null,null,null,null,null,null,null,null,null,null,null,1,null,null,null,null,null,null,null,null,null,null,null,null,null,null,null,null,null,"--",null," "]
[48541,null,null,null,null,null,null,null,null,null,null,null,null,null,1,null,null,null,null,null,null,null,null,null,null,null,null,null,null,null,null,null,"--",null," "]
[48556,null,null,null,null,null,null,null,null,null,null,null,null,null,1,null,null,null,null,null,null,null,null,null,null,null,null,null,null,null,null,null,"--",null," "]
[48641,null,null,null,null,null,null,null,null,null,null,null,null,null,1,null,null,null,null,null,null,null,null,null,null,null,null,null,null,null,null,null,{"$f":"CONCATENATE(L48656,\"-\",M48656,\"-\",N48656)","v":"--"},null," "]
[48711,null,null,null,null,null,null,null,null,null,null,null,null,null,1,null,null,null,null,null,null,null,null,null,null,null,null,null,null,null,null,null,"--",null," "]
[48786,null,null,null,null,null,null,null,null,null,null,null,null,null,1,null,null,null,null,null,null,null,null,null,null,null,null,null,null,null,null,null,"--",null," "]
[48847,null,null,null,null,null,null,null,null,null,null,null,null,null,1,null,null,null,null,null,null,null,null,null,null,null,null,null,null,null,null,null,"--",null," "]
[48932,null,null,null,null,null,null,null,null,null,null,null,null,null,1,null,null,null,null,null,null,null,null,null,null,null,null,null,null,null,null,null,"--",null," "]
[49021,null,null,null,null,null,null,null,null,null,null,null,null,null,1,null,null,null,null,null,null,null,null,null,null,null,null,null,null,null,null,null,"--",null," "]
[49077,null,null,null,null,null,null,null,null,null,null,null,null,null,1,null,null,null,null,null,null,null,null,null,null,null,null,null,null,null,null,null,"--",null," "]
[49162,null,null,null,null,null,null,null,null,null,null,null,null,null,1,null,null,null,null,null,null,null,null,null,null,null,null,null,null,null,null,null,"--",null," "]
[49247,null,null,null,null,null,null,null,null,null,null,null,null,null,1,null,null,null,null,null,null,null,null,null,null,null,null,null,null,null,null,null,"--",null," "]
[49320,null,null,null,null,null,null,null,null,null,null,null,null,null,1,null,null,null,null,null,null,null,null,null,null,null,null,null,null,null,null,null,"--",null," "]
[49322,null,null,null,null,null,null,null,null,null,null,null,null,null,1,null,null,null,null,null,null,null,null,null,null,null,null,null,null,null,null,null,"--",null," "]
[49453,null,null,null,null,null,null,null,null,null,null,null,null,null,1,null,null,null,null,null,null,null,null,null,null,null,null,null,null,null,null,null,"--",null," "]
[49468,null,null,null,null,null,null,null,null,null,null,null,null,null,1,null,null,null,null,null,null,null,null,null,null,null,null,null,null,null,null,null,"--",null," "]
[49561,null,null,null,null,null,null,null,null,null,null,null,null,null,1,null,null,null,null,null,null,null,null,null,null,null,null,null,null,null,null,null,"--",null," "]
[49613,null,null,null,null,null,null,null,null,null,null,null,null,null,1,null,null,null,null,null,null,null,null,null,null,null,null,null,null,null,null,null,"--",null," "]
[49698,null,null,null,null,null,null,null,null,null,null,null,null,null,1,null,null,null,null,null,null,null,null,null,null,null,null,null,null,null,null,null,"--",null," "]
[49783,null,null,null,null,null,null,null,null,null,null,null,null,null,1,null,null,null,null,null,null,null,null,null,null,null,null,null,null,null,null,null,"--",null," "]
[49860,null,null,null,null,null,null,null,null,null,null,null,null,null,1,null,null,null,null,null,null,null,null,null,null,null,null,null,null,null,null,null,"--",null," "]
[49928,null,null,null,null,null,null,null,null,null,null,null,null,null,1,null,null,null,null,null,null,null,null,null,null,null,null,null,null,null,null,null,"--",null," "]
[49989,null,null,null,null,null,null,null,null,null,null,null,null,null,1,null,null,null,null,null,null,null,null,null,null,null,null,null,null,null,null,null,"--",null," "]
[50074,null,null,null,null,null,null,null,null,null,null,null,null,null,1,null,null,null,null,null,null,null,null,null,null,null,null,null,null,null,null,null,"--",null," "]
[50101,null,null,null,null,null,null,null,null,null,null,null,null,null,1,null,null,null,null,null,null,null,null,null,null,null,null,null,null,null,null,null,"--",null," "]
[50219,null,null,null,null,null,null,null,null,null,null,null,null,null,1,null,null,null,null,null,null,null,null,null,null,null,null,null,null,null,null,null,"--",null," "]
[50234,null,null,null,null,null,null,null,null,null,null,null,null,null,1,null,null,null,null,null,null,null,null,null,null,null,null,null,null,null,null,null,"--",null," "]
[50365,null,null,null,null,null,null,null,null,null,null,null,null,null,1,null,null,null,null,null,null,null,null,null,null,null,null,null,null,null,null,null,"--",null," "]
[50400,null,null,null,null,null,null,null,null,null,null,null,null,null,1,null,null,null,null,null,null,null,null,null,null,null,null,null,null,null,null,null,"--",null," "]
[50464,null,null,null,null,null,null,null,null,null,null,null,null,null,1,null,null,null,null,null,null,null,null,null,null,null,null,null,null,null,null,null,"--",null," "]
[50525,null,null,null,null,null,null,null,null,null,null,null,null,null,1,null,null,null,null,null,null,null,null,null,null,null,null,null,null,null,null,null,"--",null," "]
[50610,null,null,null,null,null,null,null,null,null,null,null,null,null,1,null,null,null,null,null,null,null,null,null,null,null,null,null,null,null,null,null,"--",null," "]
[50710,null,null,null,null,null,null,null,null,null,null,null,null,null,1,null,null,null,null,null,null,null,null,null,null,null,null,null,null,null,null,null,"--",null," "]
[50755,null,null,null,null,null,null,null,null,null,null,null,null,null,1,null,null,null,null,null,null,null,null,null,null,null,null,null,null,null,null,null,"--",null," "]
[50840,null,null,null,null,null,null,null,null,null,null,null,null,null,1,null,null,null,null,null,null,null,null,null,null,null,null,null,null,null,null,null,"--",null," "]
[50901,null,null,null,null,null,null,null,null,null,null,null,null,null,1,null,null,null,null,null,null,null,null,null,null,null,null,null,null,null,null,null,"--",null," "]
[50940,null,null,null,null,null,null,null,null,null,null,null,null,null,1,null,null,null,null,null,null,null,null,null,null,null,null,null,null,null,null,null,"--",null," "]
[51000,null,null,null,null,null,null,null,null,null,null,null,null,null,1,null,null,null,null,null,null,null,null,null,null,null,null,null,null,null,null,null,"--",null," "]
[51131,null,null,null,null,null,null,null,null,null,null,null,null,null,1,null,null,null,null,null,null,null,null,null,null,null,null,null,null,null,null,null,"--",null," "]
[51146,null,null,null,null,null,null,null,null,null,null,null,null,null,1,null,null,null,null,null,null,null,null,null,null,null,null,null,null,null,null,null,"--",null," "]
[51239,null,null,null,null,null,null,null,null,null,null,null,null,null,1,null,null,null,null,null,null,null,null,null,null,null,null,null,null,null,null,null,"--",null," "]
[51291,null,null,null,null,null,null,null,null,null,null,null,null,null,1,null,null,null,null,null,null,null,null,null,null,null,null,null,null,null,null,null,"--",null," "]
[51376,null,null,null,null,null,null,null,null,null,null,null,null,null,1,null,null,null,null,null,null,null,null,null,null,null,null,null,null,null,null,null,"--",null," "]
[51437,null,null,null,null,null,null,null,null,null,null,null,null,null,1,null,null,null,null,null,null,null,null,null,null,null,null,null,null,null,null,null,"--",null," "]
[51549,null,null,null,null,null,null,null,null,null,null,null,null,null,1,null,null,null,null,null,null,null,null,null,null,null,null,null,null,null,null,null,"--",null," "]
[51606,null,null,null,null,null,null,null,null,null,null,null,null,null,1,null,null,null,null,null,null,null,null,null,null,null,null,null,null,null,null,null,"--",null," "]
[51667,null,null,null,null,null,null,null,null,null,null,null,null,null,1,null,null,null,null,null,null,null,null,null,null,null,null,null,null,null,null,null,"--",null," "]
[51752,null,null,null,null,null,null,null,null,null,null,null,null,null,1,null,null,null,null,null,null,null,null,null,null,null,null,null,null,null,null,null,"--",null," "]
[51779,null,null,null,null,null,null,null,null,null,null,null,null,null,1,null,null,null,null,null,null,null,null,null,null,null,null,null,null,null,null,null,"--",null," "]
[51897,null,null,null,null,null,null,null,null,null,null,null,null,null,1,null,null,null,null,null,null,null,null,null,null,null,null,null,null,null,null,null,"--",null," "]
[51912,null,null,null,null,null,null,null,null,null,null,null,null,null,1,null,null,null,null,null,null,null,null,null,null,null,null,null,null,null,null,null,"--",null," "]
[51973,null,null,null,null,null,null,null,null,null,null,null,null,null,1,null,null,null,null,null,null,null,null,null,null,null,null,null,null,null,null,null,"--",null," "]
[52089,null,null,null,null,null,null,null,null,null,null,null,null,null,1,null,null,null,null,null,null,null,null,null,null,null,null,null,null,null,null,null,"--",null," "]
[52142,null,null,null,null,null,null,null,null,null,null,null,null,null,1,null,null,null,null,null,null,null,null,null,null,null,null,null,null,null,null,null,"--",null," "]
[52203,null,null,null,null,null,null,null,null,null,null,null,null,null,1,null,null,null,null,null,null,null,null,null,null,null,null,null,null,null,null,null,"--",null," "]
[52288,null,null,null,null,null,null,null,null,null,null,null,null,null,1,null,null,null,null,null,null,null,null,null,null,null,null,null,null,null,null,null,"--",null," "]
[52388,null,null,null,null,null,null,null,null,null,null,null,null,null,1,null,null,null,null,null,null,null,null,null,null,null,null,null,null,null,null,null,"--",null," "]
[52433,null,null,null,null,null,null,null,null,null,null,null,null,null,1,null,null,null,null,null,null,null,null,null,null,null,null,null,null,null,null,null,"--",null," "]
[52518,null,null,null,null,null,null,null,null,null,null,null,null,null,1,null,null,null,null,null,null,null,null,null,null,null,null,null,null,null,null,null,"--",null," "]
[52579,null,null,null,null,null,null,null,null,null,null,null,null,null,1,null,null,null,null,null,null,null,null,null,null,null,null,null,null,null,null,null,"--",null," "]
[52629,null,null,null,null,null,null,null,null,null,null,null,null,null,1,null,null,null,null,null,null,null,null,null,null,null,null,null,null,null,null,null,"--",null," "]
[52724,null,null,null,null,null,null,null,null,null,null,null,null,null,1,null,null,null,null,null,null,null,null,null,null,null,null,null,null,null,null,null,"--",null," "]
[52809,null,null,null,null,null,null,null,null,null,null,null,null,null,1,null,null,null,null,null,null,null,null,null,null,null,null,null,null,null,null,null,"--",null," "]
[52824,null,null,null,null,null,null,null,null,null,null,null,null,null,1,null,null,null,null,null,null,null,null,null,null,null,null,null,null,null,null,null,"--",null," "]
[52928,null,null,null,null,null,null,null,null,null,null,null,null,null,1,null,null,null,null,null,null,null,null,null,null,null,null,null,null,null,null,null,"--",null," "]
[52969,null,null,null,null,null,null,null,null,null,null,null,null,null,1,null,null,null,null,null,null,null,null,null,null,null,null,null,null,null,null,null,"--",null," "]
[53054,null,null,null,null,null,null,null,null,null,null,null,null,null,1,null,null,null,null,null,null,null,null,null,null,null,null,null,null,null,null,null,"--",null," "]
[53115,null,null,null,null,null,null,null,null,null,null,null,null,null,1,null,null,null,null,null,null,null,null,null,null,null,null,null,null,null,null,null,"--",null," "]
[53169,null,null,null,null,null,null,null,null,null,null,null,null,null,1,null,null,null,null,null,null,null,null,null,null,null,null,null,null,null,null,null,"--",null," "]
[53260,null,null,null,null,null,null,null,null,null,null,null,null,null,1,null,null,null,null,null,null,null,null,null,null,null,null,null,null,null,null,null,"--",null," "]
[53345,null,null,null,null,null,null,null,null,null,null,null,null,null,1,null,null,null,null,null,null,null,null,null,null,null,null,null,null,null,null,null,"--",null," "]
[53430,null,null,null,null,null,null,null,null,null,null,null,null,null,1,null,null,null,null,null,null,null,null,null,null,null,null,null,null,null,null,null,"--",null," "]
[53468,null,null,null,null,null,null,null,null,null,null,null,null,null,1,null,null,null,null,null,null,null,null,null,null,null,null,null,null,null,null,null,"--",null," "]
[53575,null,null,null,null,null,null,null,null,null,null,null,null,null,1,null,null,null,null,null,null,null,null,null,null,null,null,null,null,null,null,null,"--",null," "]
[53636,null,null,null,null,null,null,null,null,null,null,null,null,null,1,null,null,null,null,null,null,null,null,null,null,null,null,null,null,null,null,null,"--",null," "]
[53651,null,null,null,null,null,null,null,null,null,null,null,null,null,1,null,null,null,null,null,null,null,null,null,null,null,null,null,null,null,null,null,"--",null," "]
[53778,null,null,null,null,null,null,null,null,null,null,null,null,null,1,null,null,null,null,null,null,null,null,null,null,null,null,null,null,null,null,null,"--",null," "]
[53796,null,null,null,null,null,null,null,null,null,null,null,null,null,1,null,null,null,null,null,null,null,null,null,null,null,null,null,null,null,null,null,"--",null," "]
[53881,null,null,null,null,null,null,null,null,null,null,null,null,null,1,null,null,null,null,null,null,null,null,null,null,null,null,null,null,null,null,null,"--",null," "]
[53966,null,null,null,null,null,null,null,null,null,null,null,null,null,1,null,null,null,null,null,null,null,null,null,null,null,null,null,null,null,null,null,"--",null," "]
[54008,null,null,null,null,null,null,null,null,null,null,null,null,null,1,null,null,null,null,null,null,null,null,null,null,null,null,null,null,null,null,null,"--",null," "]
[54111,null,null,null,null,null,null,null,null,null,null,null,null,null,1,null,null,null,null,null,null,null,null,null,null,null,null,null,null,null,null,null,"--",null," "]
[54172,null,null,null,null,null,null,null,null,null,null,null,null,null,1,null,null,null,null,null,null,null,null,null,null,null,null,null,null,null,null,null,"--",null," "]
[54257,null,null,null,null,null,null,null,null,null,null,null,null,null,1,null,null,null,null,null,null,null,null,null,null,null,null,null,null,null,null,null,"--",null," "]
[54318,null,null,null,null,null,null,null,null,null,null,null,null,null,1,null,null,null,null,null,null,null,null,null,null,null,null,null,null,null,null,null,"--",null," "]
[54402,null,null,null,null,null,null,null,null,null,null,null,null,null,1,null,null,null,null,null,null,null,null,null,null,null,null,null,null,null,null,null,"--",null,{"$f":"IF(B54417=\"M\",\"LOCALIZADO\",IF(B54417=\"OK\",\"LOCALIZADO\",IF(B54417=\"D\",\"LOCALIZADO\",IF(B54417=\"BT\",\"LOCALIZADO\",IF(B54417=\"NR\",\"LOCALIZADO PENDIENTE DE INVENTARIAR\",IF(B54417=\"REU\",\"LOCALIZADO\",IF(B54417=\"NO_L\",\"NO_LOCALIZADO\",IF(ISBLANK(B54417),\" \",\"NO\"))))))))","v":" "}]
[54417,null,null,null,null,null,null,null,null,null,null,null,null,null,1,null,null,null,null,null,null,null,null,null,null,null,null,null,null,null,null,null,"--",null," "]
[54502,null,null,null,null,null,null,null,null,null,null,null,null,null,1,null,null,null,null,null,null,null,null,null,null,null,null,null,null,null,null,null,"--",null," "]
[54617,null,null,null,null,null,null,null,null,null,null,null,null,null,1,null,null,null,null,null,null,null,null,null,null,null,null,null,null,null,null,null,"--",null," "]
[54647,null,null,null,null,null,null,null,null,null,null,null,null,null,1,null,null,null,null,null,null,null,null,null,null,null,null,null,null,null,null,null,"--",null," "]
[54708,null,null,null,null,null,null,null,null,null,null,null,null,null,1,null,null,null,null,null,null,null,null,null,null,null,null,null,null,null,null,null,"--",null," "]
[54793,null,null,null,null,null,null,null,null,null,null,null,null,null,1,null,null,null,null,null,null,null,null,null,null,null,null,null,null,null,null,null,"--",null," "]
[54858,null,null,null,null,null,null,null,null,null,null,null,null,null,1,null,null,null,null,null,null,null,null,null,null,null,null,null,null,null,null,null,"--",null," "]
[54938,null,null,null,null,null,null,null,null,null,null,null,null,null,1,null,null,null,null,null,null,null,null,null,null,null,null,null,null,null,null,null,"--",null," "]
[55023,null,null,null,null,null,null,null,null,null,null,null,null,null,1,null,null,null,null,null,null,null,null,null,null,null,null,null,null,null,null,null,"--",null," "]
[55084,null,null,null,null,null,null,null,null,null,null,null,null,null,1,null,null,null,null,null,null,null,null,null,null,null,null,null,null,null,null,null,"--",null," "]
[55157,null,null,null,null,null,null,null,null,null,null,null,null,null,1,null,null,null,null,null,null,null,null,null,null,null,null,null,null,null,null,null,"--",null," "]
[55183,null,null,null,null,null,null,null,null,null,null,null,null,null,1,null,null,null,null,null,null,null,null,null,null,null,null,null,null,null,null,null,"--",null," "]
[55314,null,null,null,null,null,null,null,null,null,null,null,null,null,1,null,null,null,null,null,null,null,null,null,null,null,null,null,null,null,null,null,"--",null," "]
[55329,null,null,null,null,null,null,null,null,null,null,null,null,null,1,null,null,null,null,null,null,null,null,null,null,null,null,null,null,null,null,null,"--",null," "]
[55398,null,null,null,null,null,null,null,null,null,null,null,null,null,1,null,null,null,null,null,null,null,null,null,null,null,null,null,null,null,null,null,"--",null," "]
[55474,null,null,null,null,null,null,null,null,null,null,null,null,null,1,null,null,null,null,null,null,null,null,null,null,null,null,null,null,null,null,null,"--",null," "]
[55559,null,null,null,null,null,null,null,null,null,null,null,null,null,1,null,null,null,null,null,null,null,null,null,null,null,null,null,null,null,null,null,"--",null," "]
[55620,null,null,null,null,null,null,null,null,null,null,null,null,null,1,null,null,null,null,null,null,null,null,null,null,null,null,null,null,null,null,null,"--",null," "]
[55697,null,null,null,null,null,null,null,null,null,null,null,null,null,1,null,null,null,null,null,null,null,null,null,null,null,null,null,null,null,null,null,"--",null," "]
[55789,null,null,null,null,null,null,null,null,null,null,null,null,null,1,null,null,null,null,null,null,null,null,null,null,null,null,null,null,null,null,null,"--",null," "]
[55850,null,null,null,null,null,null,null,null,null,null,null,null,null,1,null,null,null,null,null,null,null,null,null,null,null,null,null,null,null,null,null,"--",null," "]
[55935,null,null,null,null,null,null,null,null,null,null,null,null,null,1,null,null,null,null,null,null,null,null,null,null,null,null,null,null,null,null,null,"--",null," "]
[56007,null,null,null,null,null,null,null,null,null,null,null,null,null,1,null,null,null,null,null,null,null,null,null,null,null,null,null,null,null,null,null,"--",null," "]
[56080,null,null,null,null,null,null,null,null,null,null,null,null,null,1,null,null,null,null,null,null,null,null,null,null,null,null,null,null,null,null,null,"--",null," "]
[56095,null,null,null,null,null,null,null,null,null,null,null,null,null,1,null,null,null,null,null,null,null,null,null,null,null,null,null,null,null,null,null,"--",null," "]
[56226,null,null,null,null,null,null,null,null,null,null,null,null,null,1,null,null,null,null,null,null,null,null,null,null,null,null,null,null,null,null,null,"--",null," "]
[56237,null,null,null,null,null,null,null,null,null,null,null,null,null,1,null,null,null,null,null,null,null,null,null,null,null,null,null,null,null,null,null,"--",null," "]
[56325,null,null,null,null,null,null,null,null,null,null,null,null,null,1,null,null,null,null,null,null,null,null,null,null,null,null,null,null,null,null,null,"--",null," "]
[56386,null,null,null,null,null,null,null,null,null,null,null,null,null,1,null,null,null,null,null,null,null,null,null,null,null,null,null,null,null,null,null,"--",null,{"$f":"IF(B56401=\"M\",\"LOCALIZADO\",IF(B56401=\"OK\",\"LOCALIZADO\",IF(B56401=\"D\",\"LOCALIZADO\",IF(B56401=\"BT\",\"LOCALIZADO\",IF(B56401=\"NR\",\"LOCALIZADO PENDIENTE DE INVENTARIAR\",IF(B56401=\"REU\",\"LOCALIZADO\",IF(B56401=\"NO_L\",\"NO_LOCALIZADO\",IF(ISBLANK(B56401),\" \",\"NO\"))))))))","v":" "}]
[56471,null,null,null,null,null,null,null,null,null,null,null,null,null,1,null,null,null,null,null,null,null,null,null,null,null,null,null,null,null,null,null,"--",null," "]
[56536,null,null,null,null,null,null,null,null,null,null,null,null,null,1,null,null,null,null,null,null,null,null,null,null,null,null,null,null,null,null,null,"--",null," "]
[56616,null,null,null,null,null,null,null,null,null,null,null,null,null,1,null,null,null,null,null,null,null,null,null,null,null,null,null,null,null,null,null,"--",null," "]
[56701,null,null,null,null,null,null,null,null,null,null,null,null,null,1,null,null,null,null,null,null,null,null,null,null,null,null,null,null,null,null,null,"--",null," "]
[56762,null,null,null,null,null,null,null,null,null,null,null,null,null,1,null,null,null,null,null,null,null,null,null,null,null,null,null,null,null,null,null,"--",null," "]
[56846,null,null,null,null,null,null,null,null,null,null,null,null,null,1,null,null,null,null,null,null,null,null,null,null,null,null,null,null,null,null,null,"--",null," "]
[56861,null,null,null,null,null,null,null,null,null,null,null,null,null,1,null,null,null,null,null,null,null,null,null,null,null,null,null,null,null,null,null,"--",null," "]
[56992,null,null,null,null,null,null,null,null,null,null,null,null,null,1,null,null,null,null,null,null,null,null,null,null,null,null,null,null,null,null,null,"--",null," "]
[57007,null,null,null,null,null,null,null,null,null,null,null,null,null,1,null,null,null,null,null,null,null,null,null,null,null,null,null,null,null,null,null,"--",null," "]
[57076,null,null,null,null,null,null,null,null,null,null,null,null,null,1,null,null,null,null,null,null,null,null,null,null,null,null,null,null,null,null,null,"--",null," "]
[57152,null,null,null,null,null,null,null,null,null,null,null,null,null,1,null,null,null,null,null,null,null,null,null,null,null,null,null,null,null,null,null,"--",null," "]
[57237,null,null,null,null,null,null,null,null,null,null,null,null,null,1,null,null,null,null,null,null,null,null,null,null,null,null,null,null,null,null,null,"--",null," "]
[57298,null,null,null,null,null,null,null,null,null,null,null,null,null,1,null,null,null,null,null,null,null,null,null,null,null,null,null,null,null,null,null,"--",null," "]
[57386,null,null,null,null,null,null,null,null,null,null,null,null,null,1,null,null,null,null,null,null,null,null,null,null,null,null,null,null,null,null,null,"--",null," "]
[57443,null,null,null,null,null,null,null,null,null,null,null,null,null,1,null,null,null,null,null,null,null,null,null,null,null,null,null,null,null,null,null,"--",null," "]
[57528,null,null,null,null,null,null,null,null,null,null,null,null,null,1,null,null,null,null,null,null,null,null,null,null,null,null,null,null,null,null,null,"--",null," "]
[57613,null,null,null,null,null,null,null,null,null,null,null,null,null,1,null,null,null,null,null,null,null,null,null,null,null,null,null,null,null,null,null,"--",null," "]
[57685,null,null,null,null,null,null,null,null,null,null,null,null,null,1,null,null,null,null,null,null,null,null,null,null,null,null,null,null,null,null,null,"--",null," "]
[57758,null,null,null,null,null,null,null,null,null,null,null,null,null,1,null,null,null,null,null,null,null,null,null,null,null,null,null,null,null,null,null,"--",null," "]
[57773,null,null,null,null,null,null,null,null,null,null,null,null,null,1,null,null,null,null,null,null,null,null,null,null,null,null,null,null,null,null,null,"--",null," "]
[57834,null,null,null,null,null,null,null,null,null,null,null,null,null,1,null,null,null,null,null,null,null,null,null,null,null,null,null,null,null,null,null,"--",null," "]
[57926,null,null,null,null,null,null,null,null,null,null,null,null,null,1,null,null,null,null,null,null,null,null,null,null,null,null,null,null,null,null,null,"--",null," "]
[57979,null,null,null,null,null,null,null,null,null,null,null,null,null,1,null,null,null,null,null,null,null,null,null,null,null,null,null,null,null,null,null,"--",null," "]
[58064,null,null,null,null,null,null,null,null,null,null,null,null,null,1,null,null,null,null,null,null,null,null,null,null,null,null,null,null,null,null,null,"--",null," "]
[58149,null,null,null,null,null,null,null,null,null,null,null,null,null,1,null,null,null,null,null,null,null,null,null,null,null,null,null,null,null,null,null,"--",null," "]
[58225,null,null,null,null,null,null,null,null,null,null,null,null,null,1,null,null,null,null,null,null,null,null,null,null,null,null,null,null,null,null,null,"--",null," "]
[58294,null,null,null,null,null,null,null,null,null,null,null,null,null,1,null,null,null,null,null,null,null,null,null,null,null,null,null,null,null,null,null,"--",null," "]
[58379,null,null,null,null,null,null,null,null,null,null,null,null,null,1,null,null,null,null,null,null,null,null,null,null,null,null,null,null,null,null,null,"--",null," "]
[58440,null,null,null,null,null,null,null,null,null,null,null,null,null,1,null,null,null,null,null,null,null,null,null,null,null,null,null,null,null,null,null,"--",null," "]
[58466,null,null,null,null,null,null,null,null,null,null,null,null,null,1,null,null,null,null,null,null,null,null,null,null,null,null,null,null,null,null,null,"--",null," "]
[58585,null,null,null,null,null,null,null,null,null,null,null,null,null,1,null,null,null,null,null,null,null,null,null,null,null,null,null,null,null,null,null,"--",null," "]
[58600,null,null,null,null,null,null,null,null,null,null,null,null,null,1,null,null,null,null,null,null,null,null,null,null,null,null,null,null,null,null,null,"--",null," "]
[58685,null,null,null,null,null,null,null,null,null,null,null,null,null,1,null,null,null,null,null,null,null,null,null,null,null,null,null,null,null,null,null,"--",null," "]
[58765,null,null,null,null,null,null,null,null,null,null,null,null,null,1,null,null,null,null,null,null,null,null,null,null,null,null,null,null,null,null,null,"--",null," "]
[58830,null,null,null,null,null,null,null,null,null,null,null,null,null,1,null,null,null,null,null,null,null,null,null,null,null,null,null,null,null,null,null,"--",null," "]
[58891,null,null,null,null,null,null,null,null,null,null,null,null,null,1,null,null,null,null,null,null,null,null,null,null,null,null,null,null,null,null,null,"--",null," "]
[58976,null,null,null,null,null,null,null,null,null,null,null,null,null,1,null,null,null,null,null,null,null,null,null,null,null,null,null,null,null,null,null,"--",null," "]
[59075,null,null,null,null,null,null,null,null,null,null,null,null,null,1,null,null,null,null,null,null,null,null,null,null,null,null,null,null,null,null,null,"--",null," "]
[59121,null,null,null,null,null,null,null,null,null,null,null,null,null,1,null,null,null,null,null,null,null,null,null,null,null,null,null,null,null,null,null,"--",null," "]
[59206,null,null,null,null,null,null,null,null,null,null,null,null,null,1,null,null,null,null,null,null,null,null,null,null,null,null,null,null,null,null,null,"--",null," "]
[59291,null,null,null,null,null,null,null,null,null,null,null,null,null,1,null,null,null,null,null,null,null,null,null,null,null,null,null,null,null,null,null,"--",null," "]
[59305,null,null,null,null,null,null,null,null,null,null,null,null,null,1,null,null,null,null,null,null,null,null,null,null,null,null,null,null,null,null,null,"--",null," "]
[59366,null,null,null,null,null,null,null,null,null,null,null,null,null,1,null,null,null,null,null,null,null,null,null,null,null,null,null,null,null,null,null,"--",null," "]
[59497,null,null,null,null,null,null,null,null,null,null,null,null,null,1,null,null,null,null,null,null,null,null,null,null,null,null,null,null,null,null,null,"--",null," "]
[59512,null,null,null,null,null,null,null,null,null,null,null,null,null,1,null,null,null,null,null,null,null,null,null,null,null,null,null,null,null,null,null,"--",null," "]
[59615,null,null,null,null,null,null,null,null,null,null,null,null,null,1,null,null,null,null,null,null,null,null,null,null,null,null,null,null,null,null,null,"--",null," "]
[59657,null,null,null,null,null,null,null,null,null,null,null,null,null,1,null,null,null,null,null,null,null,null,null,null,null,null,null,null,null,null,null,"--",null," "]
[59742,null,null,null,null,null,null,null,null,null,null,null,null,null,1,null,null,null,null,null,null,null,null,null,null,null,null,null,null,null,null,null,"--",null," "]
[59827,null,null,null,null,null,null,null,null,null,null,null,null,null,1,null,null,null,null,null,null,null,null,null,null,null,null,null,null,null,null,null,"--",null," "]
[59914,null,null,null,null,null,null,null,null,null,null,null,null,null,1,null,null,null,null,null,null,null,null,null,null,null,null,null,null,null,null,null,"--",null," "]
[59972,null,null,null,null,null,null,null,null,null,null,null,null,null,1,null,null,null,null,null,null,null,null,null,null,null,null,null,null,null,null,null,"--",null," "]
[60033,null,null,null,null,null,null,null,null,null,null,null,null,null,1,null,null,null,null,null,null,null,null,null,null,null,null,null,null,null,null,null,{"$f":"CONCATENATE(L60048,\"-\",M60048,\"-\",N60048)","v":"--"},null," "]
[60118,null,null,null,null,null,null,null,null,null,null,null,null,null,1,null,null,null,null,null,null,null,null,null,null,null,null,null,null,null,null,null,"--",null," "]
[60155,null,null,null,null,null,null,null,null,null,null,null,null,null,1,null,null,null,null,null,null,null,null,null,null,null,null,null,null,null,null,null,"--",null," "]
[60263,null,null,null,null,null,null,null,null,null,null,null,null,null,1,null,null,null,null,null,null,null,null,null,null,null,null,null,null,null,null,null,"--",null," "]
[60278,null,null,null,null,null,null,null,null,null,null,null,null,null,1,null,null,null,null,null,null,null,null,null,null,null,null,null,null,null,null,null,"--",null," "]
[60409,null,null,null,null,null,null,null,null,null,null,null,null,null,1,null,null,null,null,null,null,null,null,null,null,null,null,null,null,null,null,null,"--",null," "]
[60454,null,null,null,null,null,null,null,null,null,null,null,null,null,1,null,null,null,null,null,null,null,null,null,null,null,null,null,null,null,null,null,"--",null," "]
[60508,null,null,null,null,null,null,null,null,null,null,null,null,null,1,null,null,null,null,null,null,null,null,null,null,null,null,null,null,null,null,null,"--",null," "]
[60569,null,null,null,null,null,null,null,null,null,null,null,null,null,1,null,null,null,null,null,null,null,null,null,null,null,null,null,null,null,null,null,"--",null," "]
[60654,null,null,null,null,null,null,null,null,null,null,null,null,null,1,null,null,null,null,null,null,null,null,null,null,null,null,null,null,null,null,null,"--",null," "]
[60695,null,null,null,null,null,null,null,null,null,null,null,null,null,1,null,null,null,null,null,null,null,null,null,null,null,null,null,null,null,null,null,"--",null," "]
[60799,null,null,null,null,null,null,null,null,null,null,null,null,null,1,null,null,null,null,null,null,null,null,null,null,null,null,null,null,null,null,null,"--",null," "]
[60884,null,null,null,null,null,null,null,null,null,null,null,null,null,1,null,null,null,null,null,null,null,null,null,null,null,null,null,null,null,null,null,"--",null," "]
[60945,null,null,null,null,null,null,null,null,null,null,null,null,null,1,null,null,null,null,null,null,null,null,null,null,null,null,null,null,null,null,null,"--",null," "]
[60994,null,null,null,null,null,null,null,null,null,null,null,null,null,1,null,null,null,null,null,null,null,null,null,null,null,null,null,null,null,null,null,"--",null,{"$f":"IF(B61009=\"M\",\"LOCALIZADO\",IF(B61009=\"OK\",\"LOCALIZADO\",IF(B61009=\"D\",\"LOCALIZADO\",IF(B61009=\"BT\",\"LOCALIZADO\",IF(B61009=\"NR\",\"LOCALIZADO PENDIENTE DE INVENTARIAR\",IF(B61009=\"REU\",\"LOCALIZADO\",IF(B61009=\"NO_L\",\"NO_LOCALIZADO\",IF(ISBLANK(B61009),\" \",\"NO\"))))))))","v":" "}]
[61044,null,null,null,null,null,null,null,null,null,null,null,null,null,1,null,null,null,null,null,null,null,null,null,null,null,null,null,null,null,null,null,"--",null," "]
[61175,null,null,null,null,null,null,null,null,null,null,null,null,null,1,null,null,null,null,null,null,null,null,null,null,null,null,null,null,null,null,null,"--",null," "]
[61190,null,null,null,null,null,null,null,null,null,null,null,null,null,1,null,null,null,null,null,null,null,null,null,null,null,null,null,null,null,null,null,"--",null," "]
[61293,null,null,null,null,null,null,null,null,null,null,null,null,null,1,null,null,null,null,null,null,null,null,null,null,null,null,null,null,null,null,null,"--",null," "]
[61335,null,null,null,null,null,null,null,null,null,null,null,null,null,1,null,null,null,null,null,null,null,null,null,null,null,null,null,null,null,null,null,"--",null," "]
[61420,null,null,null,null,null,null,null,null,null,null,null,null,null,1,null,null,null,null,null,null,null,null,null,null,null,null,null,null,null,null,null,"--",null," "]
[61481,null,null,null,null,null,null,null,null,null,null,null,null,null,1,null,null,null,null,null,null,null,null,null,null,null,null,null,null,null,null,null,"--",null," "]
[61534,null,null,null,null,null,null,null,null,null,null,null,null,null,1,null,null,null,null,null,null,null,null,null,null,null,null,null,null,null,null,null,"--",null," "]
[61650,null,null,null,null,null,null,null,null,null,null,null,null,null,1,null,null,null,null,null,null,null,null,null,null,null,null,null,null,null,null,null,"--",null," "]
[61711,null,null,null,null,null,null,null,null,null,null,null,null,null,1,null,null,null,null,null,null,null,null,null,null,null,null,null,null,null,null,null,"--",null," "]
[61796,null,null,null,null,null,null,null,null,null,null,null,null,null,1,null,null,null,null,null,null,null,null,null,null,null,null,null,null,null,null,null,"--",null," "]
[61833,null,null,null,null,null,null,null,null,null,null,null,null,null,1,null,null,null,null,null,null,null,null,null,null,null,null,null,null,null,null,null,"--",null," "]
[61941,null,null,null,null,null,null,null,null,null,null,null,null,null,1,null,null,null,null,null,null,null,null,null,null,null,null,null,null,null,null,null,"--",null," "]
[61956,null,null,null,null,null,null,null,null,null,null,null,null,null,1,null,null,null,null,null,null,null,null,null,null,null,null,null,null,null,null,null,"--",null," "]
[62017,null,null,null,null,null,null,null,null,null,null,null,null,null,1,null,null,null,null,null,null,null,null,null,null,null,null,null,null,null,null,null,{"$f":"CONCATENATE(L62032,\"-\",M62032,\"-\",N62032)","v":"--"},null," "]
[62143,null,null,null,null,null,null,null,null,null,null,null,null,null,1,null,null,null,null,null,null,null,null,null,null,null,null,null,null,null,null,null,"--",null," "]
[62186,null,null,null,null,null,null,null,null,null,null,null,null,null,1,null,null,null,null,null,null,null,null,null,null,null,null,null,null,null,null,null,"--",null," "]
[62247,null,null,null,null,null,null,null,null,null,null,null,null,null,1,null,null,null,null,null,null,null,null,null,null,null,null,null,null,null,null,null,"--",null," "]
[62332,null,null,null,null,null,null,null,null,null,null,null,null,null,1,null,null,null,null,null,null,null,null,null,null,null,null,null,null,null,null,null,"--",null," "]
[62373,null,null,null,null,null,null,null,null,null,null,null,null,null,1,null,null,null,null,null,null,null,null,null,null,null,null,null,null,null,null,null,"--",null," "]
[62477,null,null,null,null,null,null,null,null,null,null,null,null,null,1,null,null,null,null,null,null,null,null,null,null,null,null,null,null,null,null,null,"--",null," "]
[62562,null,null,null,null,null,null,null,null,null,null,null,null,null,1,null,null,null,null,null,null,null,null,null,null,null,null,null,null,null,null,null,"--",null," "]
[62623,null,null,null,null,null,null,null,null,null,null,null,null,null,1,null,null,null,null,null,null,null,null,null,null,null,null,null,null,null,null,null,"--",null," "]
[62683,null,null,null,null,null,null,null,null,null,null,null,null,null,1,null,null,null,null,null,null,null,null,null,null,null,null,null,null,null,null,null,"--",null," "]
[62768,null,null,null,null,null,null,null,null,null,null,null,null,null,1,null,null,null,null,null,null,null,null,null,null,null,null,null,null,null,null,null,"--",null," "]
[62853,null,null,null,null,null,null,null,null,null,null,null,null,null,1,null,null,null,null,null,null,null,null,null,null,null,null,null,null,null,null,null,"--",null," "]
[62868,null,null,null,null,null,null,null,null,null,null,null,null,null,1,null,null,null,null,null,null,null,null,null,null,null,null,null,null,null,null,null,"--",null," "]
[62982,null,null,null,null,null,null,null,null,null,null,null,null,null,1,null,null,null,null,null,null,null,null,null,null,null,null,null,null,null,null,null,"--",null," "]
[63013,null,null,null,null,null,null,null,null,null,null,null,null,null,1,null,null,null,null,null,null,null,null,null,null,null,null,null,null,null,null,null,"--",null," "]
[63098,null,null,null,null,null,null,null,null,null,null,null,null,null,1,null,null,null,null,null,null,null,null,null,null,null,null,null,null,null,null,null,"--",null," "]
[63159,null,null,null,null,null,null,null,null,null,null,null,null,null,1,null,null,null,null,null,null,null,null,null,null,null,null,null,null,null,null,null,"--",null," "]
[63223,null,null,null,null,null,null,null,null,null,null,null,null,null,1,null,null,null,null,null,null,null,null,null,null,null,null,null,null,null,null,null,"--",null," "]
[63304,null,null,null,null,null,null,null,null,null,null,null,null,null,1,null,null,null,null,null,null,null,null,null,null,null,null,null,null,null,null,null,"--",null," "]
[63389,null,null,null,null,null,null,null,null,null,null,null,null,null,1,null,null,null,null,null,null,null,null,null,null,null,null,null,null,null,null,null,"--",null," "]
[63474,null,null,null,null,null,null,null,null,null,null,null,null,null,1,null,null,null,null,null,null,null,null,null,null,null,null,null,null,null,null,null,"--",null," "]
[63522,null,null,null,null,null,null,null,null,null,null,null,null,null,1,null,null,null,null,null,null,null,null,null,null,null,null,null,null,null,null,null,"--",null," "]
[63619,null,null,null,null,null,null,null,null,null,null,null,null,null,1,null,null,null,null,null,null,null,null,null,null,null,null,null,null,null,null,null,"--",null," "]
[63680,null,null,null,null,null,null,null,null,null,null,null,null,null,1,null,null,null,null,null,null,null,null,null,null,null,null,null,null,null,null,null,"--",null," "]
[63695,null,null,null,null,null,null,null,null,null,null,null,null,null,1,null,null,null,null,null,null,null,null,null,null,null,null,null,null,null,null,null,"--",null," "]
[63763,null,null,null,null,null,null,null,null,null,null,null,null,null,1,null,null,null,null,null,null,null,null,null,null,null,null,null,null,null,null,null,"--",null," "]
[63840,null,null,null,null,null,null,null,null,null,null,null,null,null,1,null,null,null,null,null,null,null,null,null,null,null,null,null,null,null,null,null,"--",null," "]
[63925,null,null,null,null,null,null,null,null,null,null,null,null,null,1,null,null,null,null,null,null,null,null,null,null,null,null,null,null,null,null,null,"--",null," "]
[64010,null,null,null,null,null,null,null,null,null,null,null,null,null,1,null,null,null,null,null,null,null,null,null,null,null,null,null,null,null,null,null,"--",null," "]
[64062,null,null,null,null,null,null,null,null,null,null,null,null,null,1,null,null,null,null,null,null,null,null,null,null,null,null,null,null,null,null,null,"--",null," "]
[64155,null,null,null,null,null,null,null,null,null,null,null,null,null,1,null,null,null,null,null,null,null,null,null,null,null,null,null,null,null,null,null,"--",null," "]
[64216,null,null,null,null,null,null,null,null,null,null,null,null,null,1,null,null,null,null,null,null,null,null,null,null,null,null,null,null,null,null,null,"--",null," "]
[64301,null,null,null,null,null,null,null,null,null,null,null,null,null,1,null,null,null,null,null,null,null,null,null,null,null,null,null,null,null,null,null,"--",null," "]
[64372,null,null,null,null,null,null,null,null,null,null,null,null,null,1,null,null,null,null,null,null,null,null,null,null,null,null,null,null,null,null,null,"--",null," "]
[64446,null,null,null,null,null,null,null,null,null,null,null,null,null,1,null,null,null,null,null,null,null,null,null,null,null,null,null,null,null,null,null,"--",null," "]
[64461,null,null,null,null,null,null,null,null,null,null,null,null,null,1,null,null,null,null,null,null,null,null,null,null,null,null,null,null,null,null,null,"--",null," "]
[64546,null,null,null,null,null,null,null,null,null,null,null,null,null,1,null,null,null,null,null,null,null,null,null,null,null,null,null,null,null,null,null,"--",null," "]
[64602,null,null,null,null,null,null,null,null,null,null,null,null,null,1,null,null,null,null,null,null,null,null,null,null,null,null,null,null,null,null,null,"--",null," "]
[64691,null,null,null,null,null,null,null,null,null,null,null,null,null,1,null,null,null,null,null,null,null,null,null,null,null,null,null,null,null,null,null,"--",null," "]
[64752,null,null,null,null,null,null,null,null,null,null,null,null,null,1,null,null,null,null,null,null,null,null,null,null,null,null,null,null,null,null,null,"--",null," "]
[64837,null,null,null,null,null,null,null,null,null,null,null,null,null,1,null,null,null,null,null,null,null,null,null,null,null,null,null,null,null,null,null,"--",null," "]
[64912,null,null,null,null,null,null,null,null,null,null,null,null,null,1,null,null,null,null,null,null,null,null,null,null,null,null,null,null,null,null,null,"--",null," "]
[64982,null,null,null,null,null,null,null,null,null,null,null,null,null,1,null,null,null,null,null,null,null,null,null,null,null,null,null,null,null,null,null,"--",null," "]
[65067,null,null,null,null,null,null,null,null,null,null,null,null,null,1,null,null,null,null,null,null,null,null,null,null,null,null,null,null,null,null,null,"--",null," "]
[65128,null,null,null,null,null,null,null,null,null,null,null,null,null,1,null,null,null,null,null,null,null,null,null,null,null,null,null,null,null,null,null,"--",null," "]
[65211,null,null,null,null,null,null,null,null,null,null,null,null,null,1,null,null,null,null,null,null,null,null,null,null,null,null,null,null,null,null,null,"--",null," "]
[65227,null,null,null,null,null,null,null,null,null,null,null,null,null,1,null,null,null,null,null,null,null,null,null,null,null,null,null,null,null,null,null,"--",null," "]
[65358,null,null,null,null,null,null,null,null,null,null,null,null,null,1,null,null,null,null,null,null,null,null,null,null,null,null,null,null,null,null,null,"--",null," "]
[65373,null,null,null,null,null,null,null,null,null,null,null,null,null,1,null,null,null,null,null,null,null,null,null,null,null,null,null,null,null,null,null,"--",null," "]
[65452,null,null,null,null,null,null,null,null,null,null,null,null,null,1,null,null,null,null,null,null,null,null,null,null,null,null,null,null,null,null,null,"--",null," "]
[65518,null,null,null,null,null,null,null,null,null,null,null,null,null,1,null,null,null,null,null,null,null,null,null,null,null,null,null,null,null,null,null,"--",null," "]
[65603,null,null,null,null,null,null,null,null,null,null,null,null,null,1,null,null,null,null,null,null,null,null,null,null,null,null,null,null,null,null,null,"--",null," "]
[65664,null,null,null,null,null,null,null,null,null,null,null,null,null,1,null,null,null,null,null,null,null,null,null,null,null,null,null,null,null,null,null,"--",null," "]
[65751,null,null,null,null,null,null,null,null,null,null,null,null,null,1,null,null,null,null,null,null,null,null,null,null,null,null,null,null,null,null,null,"--",null," "]
[65833,null,null,null,null,null,null,null,null,null,null,null,null,null,1,null,null,null,null,null,null,null,null,null,null,null,null,null,null,null,null,null,"--",null," "]
[65894,null,null,null,null,null,null,null,null,null,null,null,null,null,1,null,null,null,null,null,null,null,null,null,null,null,null,null,null,null,null,null,"--",null," "]
[65979,null,null,null,null,null,null,null,null,null,null,null,null,null,1,null,null,null,null,null,null,null,null,null,null,null,null,null,null,null,null,null,"--",null," "]
[66061,null,null,null,null,null,null,null,null,null,null,null,null,null,1,null,null,null,null,null,null,null,null,null,null,null,null,null,null,null,null,null,"--",null," "]
[66124,null,null,null,null,null,null,null,null,null,null,null,null,null,1,null,null,null,null,null,null,null,null,null,null,null,null,null,null,null,null,null,"--",null," "]
[66139,null,null,null,null,null,null,null,null,null,null,null,null,null,1,null,null,null,null,null,null,null,null,null,null,null,null,null,null,null,null,null,"--",null," "]
[66270,null,null,null,null,null,null,null,null,null,null,null,null,null,1,null,null,null,null,null,null,null,null,null,null,null,null,null,null,null,null,null,"--",null," "]
[66291,null,null,null,null,null,null,null,null,null,null,null,null,null,1,null,null,null,null,null,null,null,null,null,null,null,null,null,null,null,null,null,"--",null," "]
[66369,null,null,null,null,null,null,null,null,null,null,null,null,null,1,null,null,null,null,null,null,null,null,null,null,null,null,null,null,null,null,null,{"$f":"CONCATENATE(L66384,\"-\",M66384,\"-\",N66384)","v":"--"},null," "]
[66430,null,null,null,null,null,null,null,null,null,null,null,null,null,1,null,null,null,null,null,null,null,null,null,null,null,null,null,null,null,null,null,"--",null," "]
[66515,null,null,null,null,null,null,null,null,null,null,null,null,null,1,null,null,null,null,null,null,null,null,null,null,null,null,null,null,null,null,null,"--",null," "]
[66590,null,null,null,null,null,null,null,null,null,null,null,null,null,1,null,null,null,null,null,null,null,null,null,null,null,null,null,null,null,null,null,"--",null," "]
[66660,null,null,null,null,null,null,null,null,null,null,null,null,null,1,null,null,null,null,null,null,null,null,null,null,null,null,null,null,null,null,null,"--",null," "]
[66745,null,null,null,null,null,null,null,null,null,null,null,null,null,1,null,null,null,null,null,null,null,null,null,null,null,null,null,null,null,null,null,"--",null," "]
[66806,null,null,null,null,null,null,null,null,null,null,null,null,null,1,null,null,null,null,null,null,null,null,null,null,null,null,null,null,null,null,null,"--",null," "]
[66831,null,null,null,null,null,null,null,null,null,null,null,null,null,1,null,null,null,null,null,null,null,null,null,null,null,null,null,null,null,null,null,"--",null," "]
[66905,null,null,null,null,null,null,null,null,null,null,null,null,null,1,null,null,null,null,null,null,null,null,null,null,null,null,null,null,null,null,null,"--",null," "]
[67036,null,null,null,null,null,null,null,null,null,null,null,null,null,1,null,null,null,null,null,null,null,null,null,null,null,null,null,null,null,null,null,"--",null," "]
[67051,null,null,null,null,null,null,null,null,null,null,null,null,null,1,null,null,null,null,null,null,null,null,null,null,null,null,null,null,null,null,null,"--",null," "]
[67130,null,null,null,null,null,null,null,null,null,null,null,null,null,1,null,null,null,null,null,null,null,null,null,null,null,null,null,null,null,null,null,"--",null," "]
[67196,null,null,null,null,null,null,null,null,null,null,null,null,null,1,null,null,null,null,null,null,null,null,null,null,null,null,null,null,null,null,null,"--",null," "]
[67281,null,null,null,null,null,null,null,null,null,null,null,null,null,1,null,null,null,null,null,null,null,null,null,null,null,null,null,null,null,null,null,"--",null," "]
[67342,null,null,null,null,null,null,null,null,null,null,null,null,null,1,null,null,null,null,null,null,null,null,null,null,null,null,null,null,null,null,null,"--",null," "]
[67440,null,null,null,null,null,null,null,null,null,null,null,null,null,1,null,null,null,null,null,null,null,null,null,null,null,null,null,null,null,null,null,"--",null," "]
[67487,null,null,null,null,null,null,null,null,null,null,null,null,null,1,null,null,null,null,null,null,null,null,null,null,null,null,null,null,null,null,null,"--",null," "]
[67572,null,null,null,null,null,null,null,null,null,null,null,null,null,1,null,null,null,null,null,null,null,null,null,null,null,null,null,null,null,null,null,"--",null," "]
[67657,null,null,null,null,null,null,null,null,null,null,null,null,null,1,null,null,null,null,null,null,null,null,null,null,null,null,null,null,null,null,null,"--",null," "]
[67670,null,null,null,null,null,null,null,null,null,null,null,null,null,1,null,null,null,null,null,null,null,null,null,null,null,null,null,null,null,null,null,"--",null," "]
[67802,null,null,null,null,null,null,null,null,null,null,null,null,null,1,null,null,null,null,null,null,null,null,null,null,null,null,null,null,null,null,null,"--",null," "]
[67817,null,null,null,null,null,null,null,null,null,null,null,null,null,1,null,null,null,null,null,null,null,null,null,null,null,null,null,null,null,null,null,"--",null," "]
[67878,null,null,null,null,null,null,null,null,null,null,null,null,null,1,null,null,null,null,null,null,null,null,null,null,null,null,null,null,null,null,null,"--",null," "]
[67980,null,null,null,null,null,null,null,null,null,null,null,null,null,1,null,null,null,null,null,null,null,null,null,null,null,null,null,null,null,null,null,"--",null," "]
[68023,null,null,null,null,null,null,null,null,null,null,null,null,null,1,null,null,null,null,null,null,null,null,null,null,null,null,null,null,null,null,null,"--",null," "]
[68108,null,null,null,null,null,null,null,null,null,null,null,null,null,1,null,null,null,null,null,null,null,null,null,null,null,null,null,null,null,null,null,"--",null," "]
[68193,null,null,null,null,null,null,null,null,null,null,null,null,null,1,null,null,null,null,null,null,null,null,null,null,null,null,null,null,null,null,null,"--",null," "]
[68279,null,null,null,null,null,null,null,null,null,null,null,null,null,1,null,null,null,null,null,null,null,null,null,null,null,null,null,null,null,null,null,"--",null," "]
[68338,null,null,null,null,null,null,null,null,null,null,null,null,null,1,null,null,null,null,null,null,null,null,null,null,null,null,null,null,null,null,null,"--",null," "]
[68423,null,null,null,null,null,null,null,null,null,null,null,null,null,1,null,null,null,null,null,null,null,null,null,null,null,null,null,null,null,null,null,"--",null," "]
[68484,null,null,null,null,null,null,null,null,null,null,null,null,null,1,null,null,null,null,null,null,null,null,null,null,null,null,null,null,null,null,null,"--",null," "]
[68520,null,null,null,null,null,null,null,null,null,null,null,null,null,1,null,null,null,null,null,null,null,null,null,null,null,null,null,null,null,null,null,"--",null," "]
[68629,null,null,null,null,null,null,null,null,null,null,null,null,null,1,null,null,null,null,null,null,null,null,null,null,null,null,null,null,null,null,null,"--",null," "]
[68644,null,null,null,null,null,null,null,null,null,null,null,null,null,1,null,null,null,null,null,null,null,null,null,null,null,null,null,null,null,null,null,"--",null," "]
[68729,null,null,null,null,null,null,null,null,null,null,null,null,null,1,null,null,null,null,null,null,null,null,null,null,null,null,null,null,null,null,null,"--",null," "]
[68819,null,null,null,null,null,null,null,null,null,null,null,null,null,1,null,null,null,null,null,null,null,null,null,null,null,null,null,null,null,null,null,"--",null," "]
[68874,null,null,null,null,null,null,null,null,null,null,null,null,null,1,null,null,null,null,null,null,null,null,null,null,null,null,null,null,null,null,null,"--",null," "]
[68935,null,null,null,null,null,null,null,null,null,null,null,null,null,1,null,null,null,null,null,null,null,null,null,null,null,null,null,null,null,null,null,"--",null," "]
[69020,null,null,null,null,null,null,null,null,null,null,null,null,null,1,null,null,null,null,null,null,null,null,null,null,null,null,null,null,null,null,null,"--",null," "]
[69129,null,null,null,null,null,null,null,null,null,null,null,null,null,1,null,null,null,null,null,null,null,null,null,null,null,null,null,null,null,null,null,"--",null," "]
[69165,null,null,null,null,null,null,null,null,null,null,null,null,null,1,null,null,null,null,null,null,null,null,null,null,null,null,null,null,null,null,null,"--",null," "]
[69250,null,null,null,null,null,null,null,null,null,null,null,null,null,1,null,null,null,null,null,null,null,null,null,null,null,null,null,null,null,null,null,"--",null,{"$f":"IF(B69265=\"M\",\"LOCALIZADO\",IF(B69265=\"OK\",\"LOCALIZADO\",IF(B69265=\"D\",\"LOCALIZADO\",IF(B69265=\"BT\",\"LOCALIZADO\",IF(B69265=\"NR\",\"LOCALIZADO PENDIENTE DE INVENTARIAR\",IF(B69265=\"REU\",\"LOCALIZADO\",IF(B69265=\"NO_L\",\"NO_LOCALIZADO\",IF(ISBLANK(B69265),\" \",\"NO\"))))))))","v":" "}]
[69335,null,null,null,null,null,null,null,null,null,null,null,null,null,1,null,null,null,null,null,null,null,null,null,null,null,null,null,null,null,null,null,"--",null," "]
[69359,null,null,null,null,null,null,null,null,null,null,null,null,null,1,null,null,null,null,null,null,null,null,null,null,null,null,null,null,null,null,null,"--",null," "]
[69410,null,null,null,null,null,null,null,null,null,null,null,null,null,1,null,null,null,null,null,null,null,null,null,null,null,null,null,null,null,null,null,"--",null," "]
[69541,null,null,null,null,null,null,null,null,null,null,null,null,null,1,null,null,null,null,null,null,null,null,null,null,null,null,null,null,null,null,null,"--",null," "]
[69556,null,null,null,null,null,null,null,null,null,null,null,null,null,1,null,null,null,null,null,null,null,null,null,null,null,null,null,null,null,null,null,"--",null," "]
[69669,null,null,null,null,null,null,null,null,null,null,null,null,null,1,null,null,null,null,null,null,null,null,null,null,null,null,null,null,null,null,null,"--",null," "]
[69701,null,null,null,null,null,null,null,null,null,null,null,null,null,1,null,null,null,null,null,null,null,null,null,null,null,null,null,null,null,null,null,"--",null," "]
[69786,null,null,null,null,null,null,null,null,null,null,null,null,null,1,null,null,null,null,null,null,null,null,null,null,null,null,null,null,null,null,null,"--",null," "]
[69847,null,null,null,null,null,null,null,null,null,null,null,null,null,1,null,null,null,null,null,null,null,null,null,null,null,null,null,null,null,null,null,"--",null," "]
[69899,null,null,null,null,null,null,null,null,null,null,null,null,null,1,null,null,null,null,null,null,null,null,null,null,null,null,null,null,null,null,null,"--",null," "]
[70016,null,null,null,null,null,null,null,null,null,null,null,null,null,1,null,null,null,null,null,null,null,null,null,null,null,null,null,null,null,null,null,"--",null," "]
[70077,null,null,null,null,null,null,null,null,null,null,null,null,null,1,null,null,null,null,null,null,null,null,null,null,null,null,null,null,null,null,null,"--",null," "]
[70162,null,null,null,null,null,null,null,null,null,null,null,null,null,1,null,null,null,null,null,null,null,null,null,null,null,null,null,null,null,null,null,"--",null," "]
[70209,null,null,null,null,null,null,null,null,null,null,null,null,null,1,null,null,null,null,null,null,null,null,null,null,null,null,null,null,null,null,null,{"$f":"CONCATENATE(L70224,\"-\",M70224,\"-\",N70224)","v":"--"},null," "]
[70307,null,null,null,null,null,null,null,null,null,null,null,null,null,1,null,null,null,null,null,null,null,null,null,null,null,null,null,null,null,null,null,"--",null," "]
[70322,null,null,null,null,null,null,null,null,null,null,null,null,null,1,null,null,null,null,null,null,null,null,null,null,null,null,null,null,null,null,null,"--",null," "]
[70453,null,null,null,null,null,null,null,null,null,null,null,null,null,1,null,null,null,null,null,null,null,null,null,null,null,null,null,null,null,null,null,"--",null," "]
[70508,null,null,null,null,null,null,null,null,null,null,null,null,null,1,null,null,null,null,null,null,null,null,null,null,null,null,null,null,null,null,null,"--",null," "]
[70552,null,null,null,null,null,null,null,null,null,null,null,null,null,1,null,null,null,null,null,null,null,null,null,null,null,null,null,null,null,null,null,"--",null," "]
[70613,null,null,null,null,null,null,null,null,null,null,null,null,null,1,null,null,null,null,null,null,null,null,null,null,null,null,null,null,null,null,null,"--",null," "]
[70698,null,null,null,null,null,null,null,null,null,null,null,null,null,1,null,null,null,null,null,null,null,null,null,null,null,null,null,null,null,null,null,"--",null," "]
[70736,null,null,null,null,null,null,null,null,null,null,null,null,null,1,null,null,null,null,null,null,null,null,null,null,null,null,null,null,null,null,null,"--",null," "]
[70737,null,null,null,null,null,null,null,null,null,null,null,null,null,1,null,null,null,null,null,null,null,null,null,null,null,null,null,null,null,null,null,"--",null," "]
[70738,null,null,null,null,null,null,null,null,null,null,null,null,null,1,null,null,null,null,null,null,null,null,null,null,null,null,null,null,null,null,null,"--",null," "]
[70739,null,null,null,null,null,null,null,null,null,null,null,null,null,1,null,null,null,null,null,null,null,null,null,null,null,null,null,null,null,null,null,"--",null," "]
[70740,null,null,null,null,null,null,null,null,null,null,null,null,null,1,null,null,null,null,null,null,null,null,null,null,null,null,null,null,null,null,null,"--",null," "]
[70741,null,null,null,null,null,null,null,null,null,null,null,null,null,1,null,null,null,null,null,null,null,null,null,null,null,null,null,null,null,null,null,"--",null," "]
[70742,null,null,null,null,null,null,null,null,null,null,null,null,null,1,null,null,null,null,null,null,null,null,null,null,null,null,null,null,null,null,null,"--",null," "]
[70743,null,null,null,null,null,null,null,null,null,null,null,null,null,1,null,null,null,null,null,null,null,null,null,null,null,null,null,null,null,null,null,"--",null," "]
[70744,null,null,null,null,null,null,null,null,null,null,null,null,null,1,null,null,null,null,null,null,null,null,null,null,null,null,null,null,null,null,null,"--",null," "]
[70745,null,null,null,null,null,null,null,null,null,null,null,null,null,1,null,null,null,null,null,null,null,null,null,null,null,null,null,null,null,null,null,"--",null," "]
[70746,null,null,null,null,null,null,null,null,null,null,null,null,null,1,null,null,null,null,null,null,null,null,null,null,null,null,null,null,null,null,null,"--",null," "]
[70747,null,null,null,null,null,null,null,null,null,null,null,null,null,1,null,null,null,null,null,null,null,null,null,null,null,null,null,null,null,null,null,"--",null," "]
[70748,null,null,null,null,null,null,null,null,null,null,null,null,null,1,null,null,null,null,null,null,null,null,null,null,null,null,null,null,null,null,null,"--",null," "]
[70749,null,null,null,null,null,null,null,null,null,null,null,null,null,1,null,null,null,null,null,null,null,null,null,null,null,null,null,null,null,null,null,"--",null," "]
[70750,null,null,null,null,null,null,null,null,null,null,null,null,null,1,null,null,null,null,null,null,null,null,null,null,null,null,null,null,null,null,null,"--",null," "]
[70751,null,null,null,null,null,null,null,null,null,null,null,null,null,1,null,null,null,null,null,null,null,null,null,null,null,null,null,null,null,null,null,"--",null," "]
[70752,null,null,null,null,null,null,null,null,null,null,null,null,null,1,null,null,null,null,null,null,null,null,null,null,null,null,null,null,null,null,null,"--",null," "]
[70753,null,null,null,null,null,null,null,null,null,null,null,null,null,1,null,null,null,null,null,null,null,null,null,null,null,null,null,null,null,null,null,"--",null," "]
[70754,null,null,null,null,null,null,null,null,null,null,null,null,null,1,null,null,null,null,null,null,null,null,null,null,null,null,null,null,null,null,null,"--",null," "]
[70755,null,null,null,null,null,null,null,null,null,null,null,null,null,1,null,null,null,null,null,null,null,null,null,null,null,null,null,null,null,null,null,"--",null," "]
[70756,null,null,null,null,null,null,null,null,null,null,null,null,null,1,null,null,null,null,null,null,null,null,null,null,null,null,null,null,null,null,null,"--",null," "]
[70757,null,null,null,null,null,null,null,null,null,null,null,null,null,1,null,null,null,null,null,null,null,null,null,null,null,null,null,null,null,null,null,"--",null," "]
[70758,null,null,null,null,null,null,null,null,null,null,null,null,null,1,null,null,null,null,null,null,null,null,null,null,null,null,null,null,null,null,null,"--",null," "]
[70759,null,null,null,null,null,null,null,null,null,null,null,null,null,1,null,null,null,null,null,null,null,null,null,null,null,null,null,null,null,null,null,"--",null," "]
[70760,null,null,null,null,null,null,null,null,null,null,null,null,null,1,null,null,null,null,null,null,null,null,null,null,null,null,null,null,null,null,null,"--",null," "]
[70761,null,null,null,null,null,null,null,null,null,null,null,null,null,1,null,null,null,null,null,null,null,null,null,null,null,null,null,null,null,null,null,"--",null," "]
[70762,null,null,null,null,null,null,null,null,null,null,null,null,null,1,null,null,null,null,null,null,null,null,null,null,null,null,null,null,null,null,null,"--",null," "]
[70763,null,null,null,null,null,null,null,null,null,null,null,null,null,1,null,null,null,null,null,null,null,null,null,null,null,null,null,null,null,null,null,"--",null," "]
[70764,null,null,null,null,null,null,null,null,null,null,null,null,null,1,null,null,null,null,null,null,null,null,null,null,null,null,null,null,null,null,null,"--",null," "]
[70765,null,null,null,null,null,null,null,null,null,null,null,null,null,1,null,null,null,null,null,null,null,null,null,null,null,null,null,null,null,null,null,"--",null," "]
[70766,null,null,null,null,null,null,null,null,null,null,null,null,null,1,null,null,null,null,null,null,null,null,null,null,null,null,null,null,null,null,null,"--",null," "]
[70767,null,null,null,null,null,null,null,null,null,null,null,null,null,1,null,null,null,null,null,null,null,null,null,null,null,null,null,null,null,null,null,"--",null," "]
[70768,null,null,null,null,null,null,null,null,null,null,null,null,null,1,null,null,null,null,null,null,null,null,null,null,null,null,null,null,null,null,null,"--",null," "]
[70769,null,null,null,null,null,null,null,null,null,null,null,null,null,1,null,null,null,null,null,null,null,null,null,null,null,null,null,null,null,null,null,"--",null," "]
[70770,null,null,null,null,null,null,null,null,null,null,null,null,null,1,null,null,null,null,null,null,null,null,null,null,null,null,null,null,null,null,null,"--",null," "]
[70771,null,null,null,null,null,null,null,null,null,null,null,null,null,1,null,null,null,null,null,null,null,null,null,null,null,null,null,null,null,null,null,"--",null," "]
[70772,null,null,null,null,null,null,null,null,null,null,null,null,null,1,null,null,null,null,null,null,null,null,null,null,null,null,null,null,null,null,null,"--",null," "]
[70773,null,null,null,null,null,null,null,null,null,null,null,null,null,1,null,null,null,null,null,null,null,null,null,null,null,null,null,null,null,null,null,"--",null," "]
[70774,null,null,null,null,null,null,null,null,null,null,null,null,null,1,null,null,null,null,null,null,null,null,null,null,null,null,null,null,null,null,null,"--",null," "]
[70775,null,null,null,null,null,null,null,null,null,null,null,null,null,1,null,null,null,null,null,null,null,null,null,null,null,null,null,null,null,null,null,"--",null," "]
[70776,null,null,null,null,null,null,null,null,null,null,null,null,null,1,null,null,null,null,null,null,null,null,null,null,null,null,null,null,null,null,null,"--",null," "]
[70777,null,null,null,null,null,null,null,null,null,null,null,null,null,1,null,null,null,null,null,null,null,null,null,null,null,null,null,null,null,null,null,"--",null," "]
[70778,null,null,null,null,null,null,null,null,null,null,null,null,null,1,null,null,null,null,null,null,null,null,null,null,null,null,null,null,null,null,null,"--",null," "]
[70779,null,null,null,null,null,null,null,null,null,null,null,null,null,1,null,null,null,null,null,null,null,null,null,null,null,null,null,null,null,null,null,"--",null," "]
[70780,null,null,null,null,null,null,null,null,null,null,null,null,null,1,null,null,null,null,null,null,null,null,null,null,null,null,null,null,null,null,null,"--",null," "]
[70781,null,null,null,null,null,null,null,null,null,null,null,null,null,1,null,null,null,null,null,null,null,null,null,null,null,null,null,null,null,null,null,"--",null," "]
[70782,null,null,null,null,null,null,null,null,null,null,null,null,null,1,null,null,null,null,null,null,null,null,null,null,null,null,null,null,null,null,null,"--",null," "]
[70783,null,null,null,null,null,null,null,null,null,null,null,null,null,1,null,null,null,null,null,null,null,null,null,null,null,null,null,null,null,null,null,"--",null," "]
[70784,null,null,null,null,null,null,null,null,null,null,null,null,null,1,null,null,null,null,null,null,null,null,null,null,null,null,null,null,null,null,null,"--",null," "]
[70785,null,null,null,null,null,null,null,null,null,null,null,null,null,1,null,null,null,null,null,null,null,null,null,null,null,null,null,null,null,null,null,{"$f":"CONCATENATE(L70800,\"-\",M70800,\"-\",N70800)","v":"--"},null," "]
[70786,null,null,null,null,null,null,null,null,null,null,null,null,null,1,null,null,null,null,null,null,null,null,null,null,null,null,null,null,null,null,null,"--",null,{"$f":"IF(B70801=\"M\",\"LOCALIZADO\",IF(B70801=\"OK\",\"LOCALIZADO\",IF(B70801=\"D\",\"LOCALIZADO\",IF(B70801=\"BT\",\"LOCALIZADO\",IF(B70801=\"NR\",\"LOCALIZADO PENDIENTE DE INVENTARIAR\",IF(B70801=\"REU\",\"LOCALIZADO\",IF(B70801=\"NO_L\",\"NO_LOCALIZADO\",IF(ISBLANK(B70801),\" \",\"NO\"))))))))","v":" "}]
[70787,null,null,null,null,null,null,null,null,null,null,null,null,null,1,null,null,null,null,null,null,null,null,null,null,null,null,null,null,null,null,null,"--",null," "]
[70788,null,null,null,null,null,null,null,null,null,null,null,null,null,1,null,null,null,null,null,null,null,null,null,null,null,null,null,null,null,null,null,"--",null," "]
[70789,null,null,null,null,null,null,null,null,null,null,null,null,null,1,null,null,null,null,null,null,null,null,null,null,null,null,null,null,null,null,null,"--",null," "]
[70790,null,null,null,null,null,null,null,null,null,null,null,null,null,1,null,null,null,null,null,null,null,null,null,null,null,null,null,null,null,null,null,"--",null," "]
[70791,null,null,null,null,null,null,null,null,null,null,null,null,null,1,null,null,null,null,null,null,null,null,null,null,null,null,null,null,null,null,null,"--",null," "]
[70792,null,null,null,null,null,null,null,null,null,null,null,null,null,1,null,null,null,null,null,null,null,null,null,null,null,null,null,null,null,null,null,"--",null," "]
[70793,null,null,null,null,null,null,null,null,null,null,null,null,null,1,null,null,null,null,null,null,null,null,null,null,null,null,null,null,null,null,null,"--",null," "]
[70794,null,null,null,null,null,null,null,null,null,null,null,null,null,1,null,null,null,null,null,null,null,null,null,null,null,null,null,null,null,null,null,"--",null," "]
[70795,null,null,null,null,null,null,null,null,null,null,null,null,null,1,null,null,null,null,null,null,null,null,null,null,null,null,null,null,null,null,null,"--",null," "]
[70796,null,null,null,null,null,null,null,null,null,null,null,null,null,1,null,null,null,null,null,null,null,null,null,null,null,null,null,null,null,null,null,"--",null," "]
[70797,null,null,null,null,null,null,null,null,null,null,null,null,null,1,null,null,null,null,null,null,null,null,null,null,null,null,null,null,null,null,null,"--",null," "]
[70798,null,null,null,null,null,null,null,null,null,null,null,null,null,1,null,null,null,null,null,null,null,null,null,null,null,null,null,null,null,null,null,"--",null," "]
[70799,null,null,null,null,null,null,null,null,null,null,null,null,null,1,null,null,null,null,null,null,null,null,null,null,null,null,null,null,null,null,null,"--",null," "]
[70800,null,null,null,null,null,null,null,null,null,null,null,null,null,1,null,null,null,null,null,null,null,null,null,null,null,null,null,null,null,null,null,"--",null," "]
[70801,null,null,null,null,null,null,null,null,null,null,null,null,null,1,null,null,null,null,null,null,null,null,null,null,null,null,null,null,null,null,null,"--",null," "]
[70802,null,null,null,null,null,null,null,null,null,null,null,null,null,1,null,null,null,null,null,null,null,null,null,null,null,null,null,null,null,null,null,"--",null," "]
[70803,null,null,null,null,null,null,null,null,null,null,null,null,null,1,null,null,null,null,null,null,null,null,null,null,null,null,null,null,null,null,null,"--",null," "]
[70804,null,null,null,null,null,null,null,null,null,null,null,null,null,1,null,null,null,null,null,null,null,null,null,null,null,null,null,null,null,null,null,"--",null," "]
[70805,null,null,null,null,null,null,null,null,null,null,null,null,null,1,null,null,null,null,null,null,null,null,null,null,null,null,null,null,null,null,null,"--",null," "]
[70806,null,null,null,null,null,null,null,null,null,null,null,null,null,1,null,null,null,null,null,null,null,null,null,null,null,null,null,null,null,null,null,"--",null," "]
[70807,null,null,null,null,null,null,null,null,null,null,null,null,null,1,null,null,null,null,null,null,null,null,null,null,null,null,null,null,null,null,null,"--",null," "]
[70808,null,null,null,null,null,null,null,null,null,null,null,null,null,1,null,null,null,null,null,null,null,null,null,null,null,null,null,null,null,null,null,"--",null," "]
[70809,null,null,null,null,null,null,null,null,null,null,null,null,null,1,null,null,null,null,null,null,null,null,null,null,null,null,null,null,null,null,null,"--",null," "]
[70810,null,null,null,null,null,null,null,null,null,null,null,null,null,1,null,null,null,null,null,null,null,null,null,null,null,null,null,null,null,null,null,"--",null," "]
[70811,null,null,null,null,null,null,null,null,null,null,null,null,null,1,null,null,null,null,null,null,null,null,null,null,null,null,null,null,null,null,null,"--",null," "]
[70812,null,null,null,null,null,null,null,null,null,null,null,null,null,1,null,null,null,null,null,null,null,null,null,null,null,null,null,null,null,null,null,"--",null," "]
[70813,null,null,null,null,null,null,null,null,null,null,null,null,null,1,null,null,null,null,null,null,null,null,null,null,null,null,null,null,null,null,null,"--",null," "]
[70814,null,null,null,null,null,null,null,null,null,null,null,null,null,1,null,null,null,null,null,null,null,null,null,null,null,null,null,null,null,null,null,"--",null," "]
[70815,null,null,null,null,null,null,null,null,null,null,null,null,null,1,null,null,null,null,null,null,null,null,null,null,null,null,null,null,null,null,null,"--",null," "]
[70816,null,null,null,null,null,null,null,null,null,null,null,null,null,1,null,null,null,null,null,null,null,null,null,null,null,null,null,null,null,null,null,"--",null," "]
[70817,null,null,null,null,null,null,null,null,null,null,null,null,null,1,null,null,null,null,null,null,null,null,null,null,null,null,null,null,null,null,null,"--",null," "]
[70818,null,null,null,null,null,null,null,null,null,null,null,null,null,1,null,null,null,null,null,null,null,null,null,null,null,null,null,null,null,null,null,"--",null," "]
[70819,null,null,null,null,null,null,null,null,null,null,null,null,null,1,null,null,null,null,null,null,null,null,null,null,null,null,null,null,null,null,null,"--",null," "]
[70820,null,null,null,null,null,null,null,null,null,null,null,null,null,1,null,null,null,null,null,null,null,null,null,null,null,null,null,null,null,null,null,"--",null," "]
[70821,null,null,null,null,null,null,null,null,null,null,null,null,null,1,null,null,null,null,null,null,null,null,null,null,null,null,null,null,null,null,null,"--",null," "]
[70822,null,null,null,null,null,null,null,null,null,null,null,null,null,1,null,null,null,null,null,null,null,null,null,null,null,null,null,null,null,null,null,"--",null," "]
[70823,null,null,null,null,null,null,null,null,null,null,null,null,null,1,null,null,null,null,null,null,null,null,null,null,null,null,null,null,null,null,null,"--",null," "]
[70824,null,null,null,null,null,null,null,null,null,null,null,null,null,1,null,null,null,null,null,null,null,null,null,null,null,null,null,null,null,null,null,"--",null," "]
[70825,null,null,null,null,null,null,null,null,null,null,null,null,null,1,null,null,null,null,null,null,null,null,null,null,null,null,null,null,null,null,null,"--",null," "]
[70826,null,null,null,null,null,null,null,null,null,null,null,null,null,1,null,null,null,null,null,null,null,null,null,null,null,null,null,null,null,null,null,"--",null," "]
[70827,null,null,null,null,null,null,null,null,null,null,null,null,null,1,null,null,null,null,null,null,null,null,null,null,null,null,null,null,null,null,null,"--",null," "]
[70828,null,null,null,null,null,null,null,null,null,null,null,null,null,1,null,null,null,null,null,null,null,null,null,null,null,null,null,null,null,null,null,"--",null," "]
[70829,null,null,null,null,null,null,null,null,null,null,null,null,null,1,null,null,null,null,null,null,null,null,null,null,null,null,null,null,null,null,null,"--",null," "]
[70830,null,null,null,null,null,null,null,null,null,null,null,null,null,1,null,null,null,null,null,null,null,null,null,null,null,null,null,null,null,null,null,"--",null," "]
[70831,null,null,null,null,null,null,null,null,null,null,null,null,null,1,null,null,null,null,null,null,null,null,null,null,null,null,null,null,null,null,null,"--",null," "]
[70832,null,null,null,null,null,null,null,null,null,null,null,null,null,1,null,null,null,null,null,null,null,null,null,null,null,null,null,null,null,null,null,"--",null," "]
[70833,null,null,null,null,null,null,null,null,null,null,null,null,null,1,null,null,null,null,null,null,null,null,null,null,null,null,null,null,null,null,null,"--",null," "]
[70834,null,null,null,null,null,null,null,null,null,null,null,null,null,1,null,null,null,null,null,null,null,null,null,null,null,null,null,null,null,null,null,"--",null," "]
[70835,null,null,null,null,null,null,null,null,null,null,null,null,null,1,null,null,null,null,null,null,null,null,null,null,null,null,null,null,null,null,null,"--",null," "]
[70836,null,null,null,null,null,null,null,null,null,null,null,null,null,1,null,null,null,null,null,null,null,null,null,null,null,null,null,null,null,null,null,"--",null," "]
[70837,null,null,null,null,null,null,null,null,null,null,null,null,null,1,null,null,null,null,null,null,null,null,null,null,null,null,null,null,null,null,null,"--",null," "]
[70838,null,null,null,null,null,null,null,null,null,null,null,null,null,1,null,null,null,null,null,null,null,null,null,null,null,null,null,null,null,null,null,"--",null," "]
[70839,null,null,null,null,null,null,null,null,null,null,null,null,null,1,null,null,null,null,null,null,null,null,null,null,null,null,null,null,null,null,null,"--",null," "]
[70840,null,null,null,null,null,null,null,null,null,null,null,null,null,1,null,null,null,null,null,null,null,null,null,null,null,null,null,null,null,null,null,"--",null," "]
[70841,null,null,null,null,null,null,null,null,null,null,null,null,null,1,null,null,null,null,null,null,null,null,null,null,null,null,null,null,null,null,null,"--",null," "]
[70842,null,null,null,null,null,null,null,null,null,null,null,null,null,1,null,null,null,null,null,null,null,null,null,null,null,null,null,null,null,null,null,"--",null," "]
[70843,null,null,null,null,null,null,null,null,null,null,null,null,null,1,null,null,null,null,null,null,null,null,null,null,null,null,null,null,null,null,null,"--",null," "]
[70844,null,null,null,null,null,null,null,null,null,null,null,null,null,1,null,null,null,null,null,null,null,null,null,null,null,null,null,null,null,null,null,"--",null," "]
[70845,null,null,null,null,null,null,null,null,null,null,null,null,null,1,null,null,null,null,null,null,null,null,null,null,null,null,null,null,null,null,null,"--",null," "]
[70846,null,null,null,null,null,null,null,null,null,null,null,null,null,1,null,null,null,null,null,null,null,null,null,null,null,null,null,null,null,null,null,"--",null," "]
[70847,null,null,null,null,null,null,null,null,null,null,null,null,null,1,null,null,null,null,null,null,null,null,null,null,null,null,null,null,null,null,null,"--",null," "]
[70848,null,null,null,null,null,null,null,null,null,null,null,null,null,1,null,null,null,null,null,null,null,null,null,null,null,null,null,null,null,null,null,"--",null," "]
[70849,null,null,null,null,null,null,null,null,null,null,null,null,null,1,null,null,null,null,null,null,null,null,null,null,null,null,null,null,null,null,null,{"$f":"CONCATENATE(L70864,\"-\",M70864,\"-\",N70864)","v":"--"},null," "]
[70850,null,null,null,null,null,null,null,null,null,null,null,null,null,1,null,null,null,null,null,null,null,null,null,null,null,null,null,null,null,null,null,"--",null,{"$f":"IF(B70865=\"M\",\"LOCALIZADO\",IF(B70865=\"OK\",\"LOCALIZADO\",IF(B70865=\"D\",\"LOCALIZADO\",IF(B70865=\"BT\",\"LOCALIZADO\",IF(B70865=\"NR\",\"LOCALIZADO PENDIENTE DE INVENTARIAR\",IF(B70865=\"REU\",\"LOCALIZADO\",IF(B70865=\"NO_L\",\"NO_LOCALIZADO\",IF(ISBLANK(B70865),\" \",\"NO\"))))))))","v":" "}]
[70851,null,null,null,null,null,null,null,null,null,null,null,null,null,1,null,null,null,null,null,null,null,null,null,null,null,null,null,null,null,null,null,"--",null," "]
[70852,null,null,null,null,null,null,null,null,null,null,null,null,null,1,null,null,null,null,null,null,null,null,null,null,null,null,null,null,null,null,null,"--",null," "]
[70853,null,null,null,null,null,null,null,null,null,null,null,null,null,1,null,null,null,null,null,null,null,null,null,null,null,null,null,null,null,null,null,"--",null," "]
[70854,null,null,null,null,null,null,null,null,null,null,null,null,null,1,null,null,null,null,null,null,null,null,null,null,null,null,null,null,null,null,null,"--",null," "]
[70855,null,null,null,null,null,null,null,null,null,null,null,null,null,1,null,null,null,null,null,null,null,null,null,null,null,null,null,null,null,null,null,"--",null," "]
[70856,null,null,null,null,null,null,null,null,null,null,null,null,null,1,null,null,null,null,null,null,null,null,null,null,null,null,null,null,null,null,null,"--",null," "]
[70857,null,null,null,null,null,null,null,null,null,null,null,null,null,1,null,null,null,null,null,null,null,null,null,null,null,null,null,null,null,null,null,"--",null," "]
[70858,null,null,null,null,null,null,null,null,null,null,null,null,null,1,null,null,null,null,null,null,null,null,null,null,null,null,null,null,null,null,null,"--",null," "]
[70859,null,null,null,null,null,null,null,null,null,null,null,null,null,1,null,null,null,null,null,null,null,null,null,null,null,null,null,null,null,null,null,"--",null," "]
[70860,null,null,null,null,null,null,null,null,null,null,null,null,null,1,null,null,null,null,null,null,null,null,null,null,null,null,null,null,null,null,null,"--",null," "]
[70861,null,null,null,null,null,null,null,null,null,null,null,null,null,1,null,null,null,null,null,null,null,null,null,null,null,null,null,null,null,null,null,"--",null," "]
[70862,null,null,null,null,null,null,null,null,null,null,null,null,null,1,null,null,null,null,null,null,null,null,null,null,null,null,null,null,null,null,null,"--",null," "]
[70863,null,null,null,null,null,null,null,null,null,null,null,null,null,1,null,null,null,null,null,null,null,null,null,null,null,null,null,null,null,null,null,"--",null," "]
[70864,null,null,null,null,null,null,null,null,null,null,null,null,null,1,null,null,null,null,null,null,null,null,null,null,null,null,null,null,null,null,null,"--",null," "]
[70865,null,null,null,null,null,null,null,null,null,null,null,null,null,1,null,null,null,null,null,null,null,null,null,null,null,null,null,null,null,null,null,"--",null," "]
[70866,null,null,null,null,null,null,null,null,null,null,null,null,null,1,null,null,null,null,null,null,null,null,null,null,null,null,null,null,null,null,null,"--",null," "]
[70867,null,null,null,null,null,null,null,null,null,null,null,null,null,1,null,null,null,null,null,null,null,null,null,null,null,null,null,null,null,null,null,"--",null," "]
[70868,null,null,null,null,null,null,null,null,null,null,null,null,null,1,null,null,null,null,null,null,null,null,null,null,null,null,null,null,null,null,null,"--",null," "]
[70869,null,null,null,null,null,null,null,null,null,null,null,null,null,1,null,null,null,null,null,null,null,null,null,null,null,null,null,null,null,null,null,"--",null," "]
[70870,null,null,null,null,null,null,null,null,null,null,null,null,null,1,null,null,null,null,null,null,null,null,null,null,null,null,null,null,null,null,null,"--",null," "]
[70871,null,null,null,null,null,null,null,null,null,null,null,null,null,1,null,null,null,null,null,null,null,null,null,null,null,null,null,null,null,null,null,"--",null," "]
[70872,null,null,null,null,null,null,null,null,null,null,null,null,null,1,null,null,null,null,null,null,null,null,null,null,null,null,null,null,null,null,null,"--",null," "]
[70873,null,null,null,null,null,null,null,null,null,null,null,null,null,1,null,null,null,null,null,null,null,null,null,null,null,null,null,null,null,null,null,"--",null," "]
[70874,null,null,null,null,null,null,null,null,null,null,null,null,null,1,null,null,null,null,null,null,null,null,null,null,null,null,null,null,null,null,null,"--",null," "]
[70875,null,null,null,null,null,null,null,null,null,null,null,null,null,1,null,null,null,null,null,null,null,null,null,null,null,null,null,null,null,null,null,"--",null," "]
[70876,null,null,null,null,null,null,null,null,null,null,null,null,null,1,null,null,null,null,null,null,null,null,null,null,null,null,null,null,null,null,null,"--",null," "]
[70877,null,null,null,null,null,null,null,null,null,null,null,null,null,1,null,null,null,null,null,null,null,null,null,null,null,null,null,null,null,null,null,"--",null," "]
[70878,null,null,null,null,null,null,null,null,null,null,null,null,null,1,null,null,null,null,null,null,null,null,null,null,null,null,null,null,null,null,null,"--",null," "]
[70879,null,null,null,null,null,null,null,null,null,null,null,null,null,1,null,null,null,null,null,null,null,null,null,null,null,null,null,null,null,null,null,"--",null," "]
[70880,null,null,null,null,null,null,null,null,null,null,null,null,null,1,null,null,null,null,null,null,null,null,null,null,null,null,null,null,null,null,null,"--",null," "]
[70881,null,null,null,null,null,null,null,null,null,null,null,null,null,1,null,null,null,null,null,null,null,null,null,null,null,null,null,null,null,null,null,"--",null," "]
[70882,null,null,null,null,null,null,null,null,null,null,null,null,null,1,null,null,null,null,null,null,null,null,null,null,null,null,null,null,null,null,null,"--",null," "]
[70883,null,null,null,null,null,null,null,null,null,null,null,null,null,1,null,null,null,null,null,null,null,null,null,null,null,null,null,null,null,null,null,"--",null," "]
[70884,null,null,null,null,null,null,null,null,null,null,null,null,null,1,null,null,null,null,null,null,null,null,null,null,null,null,null,null,null,null,null,"--",null," "]
[70885,null,null,null,null,null,null,null,null,null,null,null,null,null,1,null,null,null,null,null,null,null,null,null,null,null,null,null,null,null,null,null,"--",null," "]
[70886,null,null,null,null,null,null,null,null,null,null,null,null,null,1,null,null,null,null,null,null,null,null,null,null,null,null,null,null,null,null,null,"--",null," "]
[70887,null,null,null,null,null,null,null,null,null,null,null,null,null,1,null,null,null,null,null,null,null,null,null,null,null,null,null,null,null,null,null,"--",null," "]
[70888,null,null,null,null,null,null,null,null,null,null,null,null,null,1,null,null,null,null,null,null,null,null,null,null,null,null,null,null,null,null,null,"--",null," "]
[70889,null,null,null,null,null,null,null,null,null,null,null,null,null,1,null,null,null,null,null,null,null,null,null,null,null,null,null,null,null,null,null,"--",null," "]
[70890,null,null,null,null,null,null,null,null,null,null,null,null,null,1,null,null,null,null,null,null,null,null,null,null,null,null,null,null,null,null,null,"--",null," "]
[70891,null,null,null,null,null,null,null,null,null,null,null,null,null,1,null,null,null,null,null,null,null,null,null,null,null,null,null,null,null,null,null,"--",null," "]
[70892,null,null,null,null,null,null,null,null,null,null,null,null,null,1,null,null,null,null,null,null,null,null,null,null,null,null,null,null,null,null,null,"--",null," "]
[70893,null,null,null,null,null,null,null,null,null,null,null,null,null,1,null,null,null,null,null,null,null,null,null,null,null,null,null,null,null,null,null,"--",null," "]
[70894,null,null,null,null,null,null,null,null,null,null,null,null,null,1,null,null,null,null,null,null,null,null,null,null,null,null,null,null,null,null,null,"--",null," "]
[70895,null,null,null,null,null,null,null,null,null,null,null,null,null,1,null,null,null,null,null,null,null,null,null,null,null,null,null,null,null,null,null,"--",null," "]
[70896,null,null,null,null,null,null,null,null,null,null,null,null,null,1,null,null,null,null,null,null,null,null,null,null,null,null,null,null,null,null,null,"--",null," "]
[70897,null,null,null,null,null,null,null,null,null,null,null,null,null,1,null,null,null,null,null,null,null,null,null,null,null,null,null,null,null,null,null,"--",null," "]
[70898,null,null,null,null,null,null,null,null,null,null,null,null,null,1,null,null,null,null,null,null,null,null,null,null,null,null,null,null,null,null,null,"--",null," "]
[70899,null,null,null,null,null,null,null,null,null,null,null,null,null,1,null,null,null,null,null,null,null,null,null,null,null,null,null,null,null,null,null,"--",null," "]
[70900,null,null,null,null,null,null,null,null,null,null,null,null,null,1,null,null,null,null,null,null,null,null,null,null,null,null,null,null,null,null,null,"--",null," "]
[70901,null,null,null,null,null,null,null,null,null,null,null,null,null,1,null,null,null,null,null,null,null,null,null,null,null,null,null,null,null,null,null,"--",null," "]
[70902,null,null,null,null,null,null,null,null,null,null,null,null,null,1,null,null,null,null,null,null,null,null,null,null,null,null,null,null,null,null,null,"--",null," "]
[70903,null,null,null,null,null,null,null,null,null,null,null,null,null,1,null,null,null,null,null,null,null,null,null,null,null,null,null,null,null,null,null,"--",null," "]
[70904,null,null,null,null,null,null,null,null,null,null,null,null,null,1,null,null,null,null,null,null,null,null,null,null,null,null,null,null,null,null,null,"--",null," "]
[70905,null,null,null,null,null,null,null,null,null,null,null,null,null,1,null,null,null,null,null,null,null,null,null,null,null,null,null,null,null,null,null,"--",null," "]
[70906,null,null,null,null,null,null,null,null,null,null,null,null,null,1,null,null,null,null,null,null,null,null,null,null,null,null,null,null,null,null,null,"--",null," "]
[70907,null,null,null,null,null,null,null,null,null,null,null,null,null,1,null,null,null,null,null,null,null,null,null,null,null,null,null,null,null,null,null,"--",null," "]
[70908,null,null,null,null,null,null,null,null,null,null,null,null,null,1,null,null,null,null,null,null,null,null,null,null,null,null,null,null,null,null,null,"--",null," "]
[70909,null,null,null,null,null,null,null,null,null,null,null,null,null,1,null,null,null,null,null,null,null,null,null,null,null,null,null,null,null,null,null,"--",null," "]
[70910,null,null,null,null,null,null,null,null,null,null,null,null,null,1,null,null,null,null,null,null,null,null,null,null,null,null,null,null,null,null,null,"--",null," "]
[70911,null,null,null,null,null,null,null,null,null,null,null,null,null,1,null,null,null,null,null,null,null,null,null,null,null,null,null,null,null,null,null,"--",null," "]
[70912,null,null,null,null,null,null,null,null,null,null,null,null,null,1,null,null,null,null,null,null,null,null,null,null,null,null,null,null,null,null,null,"--",null," "]
[70913,null,null,null,null,null,null,null,null,null,null,null,null,null,1,null,null,null,null,null,null,null,null,null,null,null,null,null,null,null,null,null,{"$f":"CONCATENATE(L70928,\"-\",M70928,\"-\",N70928)","v":"--"},null," "]
[70914,null,null,null,null,null,null,null,null,null,null,null,null,null,1,null,null,null,null,null,null,null,null,null,null,null,null,null,null,null,null,null,"--",null,{"$f":"IF(B70929=\"M\",\"LOCALIZADO\",IF(B70929=\"OK\",\"LOCALIZADO\",IF(B70929=\"D\",\"LOCALIZADO\",IF(B70929=\"BT\",\"LOCALIZADO\",IF(B70929=\"NR\",\"LOCALIZADO PENDIENTE DE INVENTARIAR\",IF(B70929=\"REU\",\"LOCALIZADO\",IF(B70929=\"NO_L\",\"NO_LOCALIZADO\",IF(ISBLANK(B70929),\" \",\"NO\"))))))))","v":" "}]
[70915,null,null,null,null,null,null,null,null,null,null,null,null,null,1,null,null,null,null,null,null,null,null,null,null,null,null,null,null,null,null,null,"--",null," "]
[70916,null,null,null,null,null,null,null,null,null,null,null,null,null,1,null,null,null,null,null,null,null,null,null,null,null,null,null,null,null,null,null,"--",null," "]
[70917,null,null,null,null,null,null,null,null,null,null,null,null,null,1,null,null,null,null,null,null,null,null,null,null,null,null,null,null,null,null,null,"--",null," "]
[70918,null,null,null,null,null,null,null,null,null,null,null,null,null,1,null,null,null,null,null,null,null,null,null,null,null,null,null,null,null,null,null,"--",null," "]
[70919,null,null,null,null,null,null,null,null,null,null,null,null,null,1,null,null,null,null,null,null,null,null,null,null,null,null,null,null,null,null,null,"--",null," "]
[70920,null,null,null,null,null,null,null,null,null,null,null,null,null,1,null,null,null,null,null,null,null,null,null,null,null,null,null,null,null,null,null,"--",null," "]
[70921,null,null,null,null,null,null,null,null,null,null,null,null,null,1,null,null,null,null,null,null,null,null,null,null,null,null,null,null,null,null,null,"--",null," "]
[70922,null,null,null,null,null,null,null,null,null,null,null,null,null,1,null,null,null,null,null,null,null,null,null,null,null,null,null,null,null,null,null,"--",null," "]
[70923,null,null,null,null,null,null,null,null,null,null,null,null,null,1,null,null,null,null,null,null,null,null,null,null,null,null,null,null,null,null,null,"--",null," "]
[70924,null,null,null,null,null,null,null,null,null,null,null,null,null,1,null,null,null,null,null,null,null,null,null,null,null,null,null,null,null,null,null,"--",null," "]
[70925,null,null,null,null,null,null,null,null,null,null,null,null,null,1,null,null,null,null,null,null,null,null,null,null,null,null,null,null,null,null,null,"--",null," "]
[70926,null,null,null,null,null,null,null,null,null,null,null,null,null,1,null,null,null,null,null,null,null,null,null,null,null,null,null,null,null,null,null,"--",null," "]
[70927,null,null,null,null,null,null,null,null,null,null,null,null,null,1,null,null,null,null,null,null,null,null,null,null,null,null,null,null,null,null,null,"--",null," "]
[70928,null,null,null,null,null,null,null,null,null,null,null,null,null,1,null,null,null,null,null,null,null,null,null,null,null,null,null,null,null,null,null,"--",null," "]
[70929,null,null,null,null,null,null,null,null,null,null,null,null,null,1,null,null,null,null,null,null,null,null,null,null,null,null,null,null,null,null,null,"--",null," "]
[70930,null,null,null,null,null,null,null,null,null,null,null,null,null,1,null,null,null,null,null,null,null,null,null,null,null,null,null,null,null,null,null,"--",null," "]
[70931,null,null,null,null,null,null,null,null,null,null,null,null,null,1,null,null,null,null,null,null,null,null,null,null,null,null,null,null,null,null,null,"--",null," "]
[70932,null,null,null,null,null,null,null,null,null,null,null,null,null,1,null,null,null,null,null,null,null,null,null,null,null,null,null,null,null,null,null,"--",null," "]
[70933,null,null,null,null,null,null,null,null,null,null,null,null,null,1,null,null,null,null,null,null,null,null,null,null,null,null,null,null,null,null,null,"--",null," "]
[70934,null,null,null,null,null,null,null,null,null,null,null,null,null,1,null,null,null,null,null,null,null,null,null,null,null,null,null,null,null,null,null,"--",null," "]
[70935,null,null,null,null,null,null,null,null,null,null,null,null,null,1,null,null,null,null,null,null,null,null,null,null,null,null,null,null,null,null,null,"--",null," "]
[70936,null,null,null,null,null,null,null,null,null,null,null,null,null,1,null,null,null,null,null,null,null,null,null,null,null,null,null,null,null,null,null,"--",null," "]
[70937,null,null,null,null,null,null,null,null,null,null,null,null,null,1,null,null,null,null,null,null,null,null,null,null,null,null,null,null,null,null,null,"--",null," "]
[70938,null,null,null,null,null,null,null,null,null,null,null,null,null,1,null,null,null,null,null,null,null,null,null,null,null,null,null,null,null,null,null,"--",null," "]
[70939,null,null,null,null,null,null,null,null,null,null,null,null,null,1,null,null,null,null,null,null,null,null,null,null,null,null,null,null,null,null,null,"--",null," "]
[70940,null,null,null,null,null,null,null,null,null,null,null,null,null,1,null,null,null,null,null,null,null,null,null,null,null,null,null,null,null,null,null,"--",null," "]
[70941,null,null,null,null,null,null,null,null,null,null,null,null,null,1,null,null,null,null,null,null,null,null,null,null,null,null,null,null,null,null,null,"--",null," "]
[70942,null,null,null,null,null,null,null,null,null,null,null,null,null,1,null,null,null,null,null,null,null,null,null,null,null,null,null,null,null,null,null,"--",null," "]
[70943,null,null,null,null,null,null,null,null,null,null,null,null,null,1,null,null,null,null,null,null,null,null,null,null,null,null,null,null,null,null,null,"--",null," "]
[70944,null,null,null,null,null,null,null,null,null,null,null,null,null,1,null,null,null,null,null,null,null,null,null,null,null,null,null,null,null,null,null,"--",null," "]
[70945,null,null,null,null,null,null,null,null,null,null,null,null,null,1,null,null,null,null,null,null,null,null,null,null,null,null,null,null,null,null,null,"--",null," "]
[70946,null,null,null,null,null,null,null,null,null,null,null,null,null,1,null,null,null,null,null,null,null,null,null,null,null,null,null,null,null,null,null,"--",null," "]
[70947,null,null,null,null,null,null,null,null,null,null,null,null,null,1,null,null,null,null,null,null,null,null,null,null,null,null,null,null,null,null,null,"--",null," "]
[70948,null,null,null,null,null,null,null,null,null,null,null,null,null,1,null,null,null,null,null,null,null,null,null,null,null,null,null,null,null,null,null,"--",null," "]
[70949,null,null,null,null,null,null,null,null,null,null,null,null,null,1,null,null,null,null,null,null,null,null,null,null,null,null,null,null,null,null,null,"--",null," "]
[70950,null,null,null,null,null,null,null,null,null,null,null,null,null,1,null,null,null,null,null,null,null,null,null,null,null,null,null,null,null,null,null,"--",null," "]
[70951,null,null,null,null,null,null,null,null,null,null,null,null,null,1,null,null,null,null,null,null,null,null,null,null,null,null,null,null,null,null,null,"--",null," "]
[70952,null,null,null,null,null,null,null,null,null,null,null,null,null,1,null,null,null,null,null,null,null,null,null,null,null,null,null,null,null,null,null,"--",null," "]
[70953,null,null,null,null,null,null,null,null,null,null,null,null,null,1,null,null,null,null,null,null,null,null,null,null,null,null,null,null,null,null,null,"--",null," "]
[70954,null,null,null,null,null,null,null,null,null,null,null,null,null,1,null,null,null,null,null,null,null,null,null,null,null,null,null,null,null,null,null,"--",null," "]
[70955,null,null,null,null,null,null,null,null,null,null,null,null,null,1,null,null,null,null,null,null,null,null,null,null,null,null,null,null,null,null,null,"--",null," "]
[70956,null,null,null,null,null,null,null,null,null,null,null,null,null,1,null,null,null,null,null,null,null,null,null,null,null,null,null,null,null,null,null,"--",null," "]
[70957,null,null,null,null,null,null,null,null,null,null,null,null,null,1,null,null,null,null,null,null,null,null,null,null,null,null,null,null,null,null,null,"--",null," "]
[70958,null,null,null,null,null,null,null,null,null,null,null,null,null,1,null,null,null,null,null,null,null,null,null,null,null,null,null,null,null,null,null,"--",null," "]
[70959,null,null,null,null,null,null,null,null,null,null,null,null,null,1,null,null,null,null,null,null,null,null,null,null,null,null,null,null,null,null,null,"--",null," "]
[70960,null,null,null,null,null,null,null,null,null,null,null,null,null,1,null,null,null,null,null,null,null,null,null,null,null,null,null,null,null,null,null,"--",null," "]
[70961,null,null,null,null,null,null,null,null,null,null,null,null,null,1,null,null,null,null,null,null,null,null,null,null,null,null,null,null,null,null,null,"--",null," "]
[70962,null,null,null,null,null,null,null,null,null,null,null,null,null,1,null,null,null,null,null,null,null,null,null,null,null,null,null,null,null,null,null,"--",null," "]
[70963,null,null,null,null,null,null,null,null,null,null,null,null,null,1,null,null,null,null,null,null,null,null,null,null,null,null,null,null,null,null,null,"--",null," "]
[70964,null,null,null,null,null,null,null,null,null,null,null,null,null,1,null,null,null,null,null,null,null,null,null,null,null,null,null,null,null,null,null,"--",null," "]
[70965,null,null,null,null,null,null,null,null,null,null,null,null,null,1,null,null,null,null,null,null,null,null,null,null,null,null,null,null,null,null,null,"--",null," "]
[70966,null,null,null,null,null,null,null,null,null,null,null,null,null,1,null,null,null,null,null,null,null,null,null,null,null,null,null,null,null,null,null,"--",null," "]
[70967,null,null,null,null,null,null,null,null,null,null,null,null,null,1,null,null,null,null,null,null,null,null,null,null,null,null,null,null,null,null,null,"--",null," "]
[70968,null,null,null,null,null,null,null,null,null,null,null,null,null,1,null,null,null,null,null,null,null,null,null,null,null,null,null,null,null,null,null,"--",null," "]
[70969,null,null,null,null,null,null,null,null,null,null,null,null,null,1,null,null,null,null,null,null,null,null,null,null,null,null,null,null,null,null,null,"--",null," "]
[70970,null,null,null,null,null,null,null,null,null,null,null,null,null,1,null,null,null,null,null,null,null,null,null,null,null,null,null,null,null,null,null,"--",null," "]
[70971,null,null,null,null,null,null,null,null,null,null,null,null,null,1,null,null,null,null,null,null,null,null,null,null,null,null,null,null,null,null,null,"--",null," "]
[70972,null,null,null,null,null,null,null,null,null,null,null,null,null,1,null,null,null,null,null,null,null,null,null,null,null,null,null,null,null,null,null,"--",null," "]
[70973,null,null,null,null,null,null,null,null,null,null,null,null,null,1,null,null,null,null,null,null,null,null,null,null,null,null,null,null,null,null,null,"--",null," "]
[70974,null,null,null,null,null,null,null,null,null,null,null,null,null,1,null,null,null,null,null,null,null,null,null,null,null,null,null,null,null,null,null,"--",null," "]
[70975,null,null,null,null,null,null,null,null,null,null,null,null,null,1,null,null,null,null,null,null,null,null,null,null,null,null,null,null,null,null,null,"--",null," "]
[70976,null,null,null,null,null,null,null,null,null,null,null,null,null,1,null,null,null,null,null,null,null,null,null,null,null,null,null,null,null,null,null,"--",null," "]
[70977,null,null,null,null,null,null,null,null,null,null,null,null,null,1,null,null,null,null,null,null,null,null,null,null,null,null,null,null,null,null,null,{"$f":"CONCATENATE(L70992,\"-\",M70992,\"-\",N70992)","v":"--"},null," "]
[70978,null,null,null,null,null,null,null,null,null,null,null,null,null,1,null,null,null,null,null,null,null,null,null,null,null,null,null,null,null,null,null,"--",null,{"$f":"IF(B70993=\"M\",\"LOCALIZADO\",IF(B70993=\"OK\",\"LOCALIZADO\",IF(B70993=\"D\",\"LOCALIZADO\",IF(B70993=\"BT\",\"LOCALIZADO\",IF(B70993=\"NR\",\"LOCALIZADO PENDIENTE DE INVENTARIAR\",IF(B70993=\"REU\",\"LOCALIZADO\",IF(B70993=\"NO_L\",\"NO_LOCALIZADO\",IF(ISBLANK(B70993),\" \",\"NO\"))))))))","v":" "}]
[70979,null,null,null,null,null,null,null,null,null,null,null,null,null,1,null,null,null,null,null,null,null,null,null,null,null,null,null,null,null,null,null,"--",null," "]
[70980,null,null,null,null,null,null,null,null,null,null,null,null,null,1,null,null,null,null,null,null,null,null,null,null,null,null,null,null,null,null,null,"--",null," "]
[70981,null,null,null,null,null,null,null,null,null,null,null,null,null,1,null,null,null,null,null,null,null,null,null,null,null,null,null,null,null,null,null,"--",null," "]
[70982,null,null,null,null,null,null,null,null,null,null,null,null,null,1,null,null,null,null,null,null,null,null,null,null,null,null,null,null,null,null,null,"--",null," "]
[70983,null,null,null,null,null,null,null,null,null,null,null,null,null,1,null,null,null,null,null,null,null,null,null,null,null,null,null,null,null,null,null,"--",null," "]
[70984,null,null,null,null,null,null,null,null,null,null,null,null,null,1,null,null,null,null,null,null,null,null,null,null,null,null,null,null,null,null,null,"--",null," "]
[70985,null,null,null,null,null,null,null,null,null,null,null,null,null,1,null,null,null,null,null,null,null,null,null,null,null,null,null,null,null,null,null,"--",null," "]

{"sheet":"Cédula de Totales","index":2,"n_rows":46,"n_cols":13,"rows_kept":46,"cut":false,"hidden":true,"merged":[[6,6,6,10],[14,2,14,10],[0,0,0,11],[1,0,1,11],[2,0,2,11],[3,0,3,11],[4,0,4,11],[5,0,5,11],[7,0,7,2],[10,2,10,10],[11,2,11,10],[12,2,12,10],[13,2,13,10],[6,0,6,5],[26,0,26,3],[34,7,34,10],[34,1,34,4],[43,1,43,4],[43,7,43,10],[36,1,36,4],[36,7,36,10],[15,2,15,10],[19,2,19,10],[20,2,20,10],[21,2,21,10],[24,2,24,10],[45,1,45,4],[45,7,45,10],[28,5,28,10],[30,5,30,10],[35,1,35,4],[35,7,35,10],[44,1,44,4],[44,7,44,10]]}
["INSTITUTO DE SALUD PÚBLICA DEL ESTADO DE GUANAJUATO"]
["COORDINACIÓN GENERAL DE ADMINISTRACIÓN Y FINANZAS"]
["DIRECCIÓN GENERAL DE ADMINISTRACIÓN"]
["DIRECCIÓN DE RECURSOS MATERIALES Y SERVICIOS GENERALES"]
["DEPARTAMENTO DE INVENTARIOS"]
["RESULTADO DEL LEVANTAMIENTO DE BIENES MUEBLES "]
["DE LA UNIDAD:",null,null,null,null,null,{"$f":"'Hoja de Trabajo '!G6","v":""},null,null,null,null,"TOTAL"]
["TOTAL DE BIENES LOCALIZADOS",null,null,"SUMA (OK + M + D + REU +BT)  -  (NR  NO REGISTRADOS)",null,null,null,null,null,null,null,{"$f":"M8","v":0},{"$f":"+L15+L14+L13+L12+L11","v":0}]
[]
[null,"Marcas de Verificación"]
[null,"OK","Existe físicamente el bien y se encuentra utilizado en condiciones buenas.",null,null,null,null,null,null,null,null,{"$f":"M11","v":0},{"$f":"COUNTIF('Hoja de Trabajo '!$B$15:$B$71000,\"OK\")","v":0}]
[null,"M","Existe físicamente el bien y se encuentra sin uso por estar inservible, inutil o incosteable reparación, para baja.",null,null,null,null,null,null,null,null,{"$f":"M12","v":0},{"$f":"COUNTIF('Hoja de Trabajo '!$B$15:$B$71000,\"M\")","v":0}]
[null,"D","Existe físicamente el bien y se encuentra sin uso y  en condiciones buenas para disposición.",null,null,null,null,null,null,null,null,0,{"$f":"COUNTIF('Hoja de Trabajo '!$B$15:$B$71000,\"D\")","v":0}]
[null,"REU","El bien fue reubicado y presenta formato y/o soporte documental. En caso de que la Reubicación sea dentro de la Unidad se anotará en la columna \"Observaciones MV\" la marca Reu_Int; si la reubicación es fuera de la unidad se anotará Reu_ext; en ambos casos se deben llenar las columnas \"Cambio de Unidad/Hospital\" , \"Cambio de Clave de Adscripción\" , \"nombre\" y \"RFC\" así como copia de los soportes, En caso de seleccionar las columnas \"D\" y \"E\" y no figure la Unidad responsable, anotara en la columnas de observaciones los datos de la Unidad responsable de la ubicacion del bien mueble",null,null,null,null,null,null,null,null,0,{"$f":"COUNTIF('Hoja de Trabajo '!$B$15:$B$71000,\"REU\")","v":0}]
[null,"BT","El bien se encuentra en el Taller para mantenimiento o reparación. Al respecto deberá concentrar la información de la salida de la UR y el ingreso al Taller, en donde se verifique la descripción del activo que se esta verificando. A los documentos se le debe indicar el número consecutivo que se señala en la base, el cual puede obtener de la columna \"B\" de esta hoja.",null,null,null,null,null,null,null,null,0,{"$f":"COUNTIF('Hoja de Trabajo '!$B$15:$B$71000,\"BT\")","v":0}]
[null,"NR","Bien existente físicamente, sin embargo no se encuentra en la relación de activos que se encuentran bajo resguardo del resguardatario. Al respecto se registra de manera manual el activo a partir de la columna \"J\" hasta la \"L\" y N, en la columna \"AC\" se anotará el RFC Y Nombre de la persona a quien se le registrará el activo  y en la columna de \"Observaciones MV\" debe indicar los datos de la procedencia del activo. Ejemplo: COMPRA DIRECTA, COMODATO, DONACIÓN, REUBICACIÓN, PRESTAMO, DESCONOCIDO.\nEn los casos de COMPRA DIRECTA, COMODATO, DONACIÓN, REUBICACIÓN y PRESTAMO, deberá integrar el soporte documental de cada caso señalando a los documentos el número consecutivo que se señala en la base, el cual puede obtener de la columna \"A\" de esta hoja.",null,null,null,null,null,null,null,null,0,{"$f":"COUNTIF('Hoja de Trabajo '!$B$15:$B$71000,\"NR*\")","v":0}]
[null,"Total de Marcas LOCALIZADOS Y NO REGISTRADOS",null,null,null,null,"SUMA (OK + M + D + REU + BT + NR + NO_L)",null,null,null,null,{"$f":"+L16+L8+L27","v":0}]
[]
[null,"Marcas de Etiqueta"]
[null,"CE","El bien se encuentra con etiqueta y ésta corresponde al activo registrado.",null,null,null,null,null,null,null,null,0,{"$f":"COUNTIF('Hoja de Trabajo '!$H$15:$H$71000,\"CE*\")","v":0}]
[null,"CX","El bien se encuentra con etiqueta y ésta no corresponde al activo registrado.",null,null,null,null,null,null,null,null,0,{"$f":"COUNTIF('Hoja de Trabajo '!$H$15:$H$71000,\"CX*\")","v":0}]
[null,"SE","El bien sin etiqueta o etiqueta dañada.",null,null,null,null,null,null,null,null,0,{"$f":"COUNTIF('Hoja de Trabajo '!$H$15:$H$71000,\"SE*\")","v":0}]
[]
[null,"Marca de Serie"]
[null,"#S","El número de serie que indica el formato no corresponde al verificado en el activo. Se debe anotar en la columna de \"Serie Verificada\" el número de serie que se observa en físico. Obtener fotografía.",null,null,null,null,null,null,null,null,0,{"$f":"COUNTIF('Hoja de Trabajo '!$I$15:$I$71000,\"#S*\")","v":0}]
[]
["TOTAL DE BIENES NO LOCALIZADOS",null,null,null,null,null,null,null,null,null,null,0,{"$f":"COUNTIF('Hoja de Trabajo '!$B$15:$B$71000,\"NO_L\")","v":0}]
[]
["REALIZO:"]
[]
["FECHA DE CIERRE DE LEVANTAMIENTO DE INVENTARIO: "]
[]
[]
[]
[]
[]
[null,"Nombre Y firma de quien elaboro\nRealizó el Inventario Físico",null,null,null,null,null,"Nombre, Firma del Director de la Unidad"]
[]
[]
[]
[]
[]
[]
[]
[]
[null,"Testigo",null,null,null,null,null,"Testigo"]

{"sheet":"Hoja consulta","index":3,"n_rows":128,"n_cols":15,"rows_kept":128,"cut":false,"hidden":true,"merged":[]}
["UNIDADES",null,"JURISDICCION_I","JURISDICCION_II ","JURISDICCION_III ","JURISDICCION_IV ","JURISDICCION_V","URISDICCION_VI","JURISDICCION_VII","JURISDICCION_VIII ","HOSPITAL_COMUNITARIO","HOSPITAL_GENERAL","HOSPITAL_ESPECIALIDADES","HOSPITAL_MATERNO","OFICINAS_CENTRALES"]
["JURISDICCION_I",null,"JURISDICCION SANITARIA 1 GTO.    110100000 ","JURIS.SANIT.II SAN MIGUEL ALLENDE     1102000000","JURIS.SANITARIA III CELAYA     1103000000","JURIS.SANIT.IV ACAMBARO     1104000000","JURISDICCION SANITARIA V     1105000000","JURIS.SANIT. VI IRAPUATO     1106000000","C.S. RIVERA DE LA PRESA     1107200500","JURISD. SANIT. VIII - SAN FCO.DEL RINCON     1108000000","HOSPITAL COMUNITARIO APASEO EL ALTO     1146040000","HOSPITAL GENERAL ACAMBARO     1120020000","HOSPITAL DE ESPECIALIDADES PEDIATRICO LEON     1152200000","HOSPITAL MATERNO CELAYA     1153070000","AREA BIOMEDICOS     1100154201"]
["JURISDICCION_II ",null," C.A.I.S.E.S. (ANTES C.S.U.)  DOLORES HIDALGO    1101140000","C.A.I.S.E.S. DE SAN LUIS DE LA PAZ.     1102330000","C.A.I.S.E.S. (ANTES C.S.R.C.) TARIMORO     1103390000","AGOSTADERO     1104190170","ARCHIVO CLINICO     1105460060","BIENES SIN DISTRIBUCION; JUR. VI     1106000001","C.A.I.S.E.S. (ANTES C.S.U.) CASA BLANCA     1107200590","CAISES CD.MANUEL DOBLADO     1108080000","HOSPITAL COMUNITARIO ABASOLO     1156010000","HOSPITAL GENERAL CELAYA     1122070000","HOSPITAL DE ESPECIALIDADES MATERNO INFANTIL DE LEON     1107200001","HOSPITAL MATERNO INFANTIL IRAPUATO     1151170000","ATENCION A AUDITORIAS     1100154325"]
["JURISDICCION_III ",null," C.A.I.S.E.S. (ANTES C.S.U.) GUANAJUATO    1101150000","C.A.I.S.E.S. DE SAN MIGUEL ALLENDE     1102030000","C.A.I.S.E.S. (ANTES C.S.U.) APASEO EL ALTO     1103040000","BIENES SIN DISTRIBUCION, JUR. IV     1104000001","C.A.I.S.E.S. MOROLEON     1105210000","C.S. CUEVAS DE MORELOS; PENJAMO     1106230460","C.A.I.S.E.S. (ANTES C.S.U.) LA FLORESTA     1107200260","CAISES ROMITA     1108260000","HOSPITAL COMUNITARIO APASEO EL GRANDE     1147050000","HOSPITAL GENERAL DE PENJAMO     1126230000",null,"HOSPITAL MATERNO SAN LUIS DE LA PAZ     1141330000","AULA - SERVICIOS GENERALES OF.CEN.     1100154243"]
["JURISDICCION_IV ",null," C.S. CATALAN; SAN DIEGO U.    1101290060","C.S. ESI 13     1102330130","C.A.I.S.E.S. (ANTES C.S.U.) CELAYA     1103070000","C.S.R.C. CORONEO     1104100000","C.A.I.S.E.S. URIANGATO     1105410000","C.S. ESTACION PENJAMO     1106230470","C.A.I.S.E.S. (ANTES C.S.U.) LAS TROJES     1107200290","CAISES SILAO     1108370000","HOSPITAL COMUNITARIO COMONFORT     1148090000","HOSPITAL GENERAL DOLORES HIDALGO     1123140000",null,null,"CAISAME LEÓN GTO     1136200000"]
["JURISDICCION_V",null," C.S. LA CANTERA    1101140120","CASA DE SALUD CALABAZAS (E.S.I. 2)     1102450110","C.A.I.S.E.S. (ANTES C.S.U.) CORTAZAR     1103110000","C.S.R.C. EL TEPOZAN     1104190140","CAISES JARAL DEL PROGRESO     1105180000","C.S. PLAZUELAS     1106230480","C.S. LOMAS DE GUADALUPE     1107200510","CARAVANA EL SALTO-SAN FRANCISCO     1108310150","HOSPITAL COMUNITARIO CORTAZAR     1144110000","HOSPITAL GENERAL GUANAJUATO     1124150000",null,null,"CEMT     1137200000"]
["JURISDICCION_VI",null," C.S. LA VENTA    1101140130","CASA DE SALUD CORRAL DE PIEDRA     1102430100","C.A.I.S.E.S. (ANTES C.S.U.) VILLAGRAN     1103440000","C.S.R.C. HUIZACHE     1104190160","CAISES LA LOMA     1105420150","C.S. SAN ANTONIO EL RICO     1106170180","C.S. PROLONGACION LA ERMITA - LEON     1107200610","CARAVANAS AGUAS BUENAS - SILAO     1108370090","HOSPITAL COMUNITARIO CUERAMARO     1106120000","HOSPITAL GENERAL IRAPUATO     1125170000",null,null,"CENTRO ESTATAL DE CUIDADOS CRITICOS.- SALAMANCA     1140270000"]
["JURISDICCION_VII",null," C.S. LOS LORENZOS    1101150180","CASA DE SALUD EL MALINTO     1102430040","C.S. CORTAZAR COLONIA ALAMEDA     1103110090","C.S.R.C. OJO DE AGUA     1104190150","CAISES SALAMANCA     1105270000","C.S.R.C. HUANIMARO     1106160000","C.S. PROLONGACION SAN FRANCISCO DE ASIS - LEON     1107200600","E.S.I. 36 SAN RAFAEL     1108310120","HOSPITAL COMUNITARIO DE SANTA CATARINA     1102340000","HOSPITAL GENERAL LEON     1129200000",null,null,"CLINICA DE DESINTOXICACION.- LEON     1142200000"]
["JURISDICCION_VIII ",null," C.S. SAN JOSE DE LOS BARCOS - SAN FELIPE    1101300210","CASA DE SALUD EL REFUGIO     1102430110","C.S. EL PEÑON     1103050120","C.S.R.C. SANTIAGO MARAVATIO     1104360010","CAISES YURIRIA     1105460000","C.S.R.C. MEZQUITE DE LUNA     1106230270","C.S. VALLE DE SAN BERNARDO     1107200520","E.S.I. 37 VISTA HERMOSA     1108310140","HOSPITAL COMUNITARIO DE TIERRA BLANCA     1102400000","HOSPITAL GENERAL REGIONAL DE CELAYA     1131070000",null,null,"CONSEJO ESTATAL DE TRANSPLANTES (COETRA)     1100150006"]
["HOSPITAL_COMUNITARIO",null," C.S. YERBABUENA; GTO.    1101150190","CASA DE SALUD HIZACHEZ     1102430130","C.S. LLANO GRANDE     1103390130","C.S.R.C. URIREO     1104280020","CALERA     1105460040","C.S.R.C. SAN AGUSTIN DE LOS TORDOS     1106170160","C.S. VALLE DE SAN JOSE     1107200530","UMAPS  SAN JUAN DE LA PUERTA     1108080040","HOSPITAL COMUNITARIO HUANIMARO     1106160001","HOSPITAL GENERAL SALAMANCA     1127270000",null,null,"COORDINACION CONVENIOS FEDERALES; REC. FINANCIEROS     1100154361"]
["HOSPITAL_GENERAL",null," C.S.R. EL CAPULIN    1101140100","CASA DE SALUD LA LAJA (E.S.I. 1)     1102450120","C.S.R.C. BORUNDA     1103090080","C.S.R.D. CUPAREO     1104280030","CASA DE SALUD CERRO BLANCO     1105420160","C.S.R.C. SAN ANTONIO DE ACEVES     1106230260","C.S.R.C. ALFARO     1107200490","UMAPS BAJIO DE BONILLAS - SILAO     1108370070","HOSPITAL COMUNITARIO JARAL DEL PROGRESO     1143180000","HOSPITAL GENERAL SALVATIERRA     1128280000",null,null,"COORDINACIÓN DE ASUNTOS JURÍDICOS     1100150200"]
["HOSPITAL_ESPECIALIDADES",null," C.S.R. SAN FRANCISCO    1101220070","CASA DE SALUD MEMBRILLO (E.S.I. 3)     1102450140","C.S.R.C. CAÑADA TIRADOS DE ARRIBA     1103390120","C.S.R.D. EL CAPULIN     1104280160","CASA DE SALUD CERRO BLANCO     1105420210","C.S.R.D. BUENAVISTA DE CORTEZ     1106230010","C.S.R.C. JACINTO LOPEZ     1107200470","UMAPS CALZADA DEL TEPOZAN     1108080010","HOSPITAL COMUNITARIO JERECUARO     1104190001","HOSPITAL GENERAL SAN JOSE ITURBIDE     1132320000",null,null,"COORDINACION DE COMUNICACION SOCIAL     1100150400"]
["HOSPITAL_MATERNO",null," C.S.R. SAN MARCOS DE ABAJO    1101140090","CASA DE SALUD MESA PRIETA     1102430090","C.S.R.C. CERRO PRIETO     1103390110","C.S.R.D. EL FRESNO     1104190010","CASA DE SALUD EL ARMADILLO     1105420180","C.S.R.D. CAÃ‘ADA DE CORRALEJO     1106230030","C.S.R.C. LOS CASTILLOS     1107200390","UMAPS CAÑADA DE NEGROS - PURISIMA     1108250010","HOSPITAL COMUNITARIO JUVENTINO ROSAS     1145350000","HOSPITAL GENERAL SAN LUIS DE LA PAZ     1130330000",null,null,"COORDINACION DE ENFERMERIA ESTATAL     1100151170"]
["OFICINAS_CENTRALES",null," C.S.R. TORREON    1101220080","CASA DE SALUD MESITA DEL TIGRE     1102430120","C.S.R.C. CHINACO     1103440060","C.S.R.D. EL SABINO     1104280090","CASA DE SALUD EL BORREGO     1105420120","C.S.R.D. CERRITOS BLANCOS     1106230040","C.S.R.C. SAN JOSE DE LOS SAPOS     1107200450","UMAPS CHICHIMEQUILLAS - SILAO     1108370020","HOSPITAL COMUNITARIO MANUEL DOBLADO     1108080001","HOSPITAL GENERAL SAN MIGUEL DE ALLENDE     1121030000",null,null,"COORDINACION DE ENLACE DE PATRONATOS Y VOLUNTARIADO     1100154030"]
[null,null," C.S.R.C. OCAMPO    1101220000","CASA DE SALUD MEZQUITAL (E.S.I. 3)     1102450150","C.S.R.C. EL CASTILLO     1103050110","C.S.R.D. ESTANCIA DEL CARMEN     1104280140","CASA DE SALUD LAGUNILLA DE MOGOTES      1105420170","C.S.R.D. COLONIA MORELOS     1106230050","C.S.R.C. SAN JUAN DE OTATES     1107200480","UMAPS COL. EL CARMEN - PURISIMA     1108250060","HOSPITAL COMUNITARIO MOROLEON     1155210000","HOSPITAL GENERAL SILAO     1134370000",null,null,"COORDINACION DE MANTENIMIENTO A BIENES INMUEBLES     1100154260"]
[null,null," C.S.R.C.SAN DIEGO DE LA UNION    1101290000","CASA DE SALUD MEZQUITAL (E.S.I. 3)     1102450150","C.S.R.C. EMPALME ESCOBEDO     1103090010","C.S.R.D. JERECUARO     1104190000","CASACUARAN     1105460020","C.S.R.D. EJIDO TACUBAYA     1106230140","C.S.R.C. SAN JUDAS     1107200460","UMAPS COL. NUEVO MEXICO - CAISES SILAO     1108370110","HOSPITAL COMUNITARIO PENJAMO     1106230001","HOSPITAL GENERAL URIANGATO     1138410000",null,null,"COORDINACION DE PAGOS - RECURSOS FINANCIEROS     1100154362"]
[null,null," C.S.R.D. CALVILLO    1101150100","CASA DE SALUD MEZQUITAL (E.S.I. 3)     1102450150","C.S.R.C. GUADALUPE     1103390100","C.S.R.D. LA LUZ     1104280060","CERANO     1105460010","C.S.R.D. EL VARAL     1106010050","C.S.R.D. DUARTE     1107200300","UMAPS COMANJILLA - SILAO     1108370050","HOSPITAL COMUNITARIO PURISIMA DEL RINCON     1108250001","HOSPITAL GENERAL VALLE DE SANTIAGO     1139420000",null,null,"COORDINACION DE SEGURO POPULAR ; REC. FINANCIEROS     1100154360"]
[null,null," C.S.R.D. CAÑADA DE BUSTOS    1101150050","CASA DE SALUD MEZQUITAL (E.S.I. 3)     1102450150","C.S.R.C. LAS MINILLAS     1103390090","C.S.R.D. LA SABANILLA     1104190030","CERECUARO     1105460050","C.S.R.D. ESTACION JOAQUIN     1106010010","C.S.R.D. LA JOYA     1107200440","UMAPS CORRALES AYALA - ROMITA     1108260100","HOSPITAL COMUNITARIO ROMITA     1108260001",null,null,null,"COORDINACIÓN DE SISTEMAS DE INFORMACIÓN FINANCIERA     1100154350"]
[null,null," C.S.R.D. CAÑADA DE CHAVEZ    1101300010","CASA DE SALUD MEZQUITAL (E.S.I. 3)     1102450150","C.S.R.C. RINCON DE TAMAYO     1103070030","C.S.R.D. MARAVATIO DEL ENCINAL     1104280070","CESSA VALTIERRILLA     1105270011","C.S.R.D. HACIENDA DE MARQUEZ     1106170070","C.S.R.D. LA SANDIA     1107200410","UMAPS CRUZ DE AGUILAR - ROMITA     1108260080","HOSPITAL COMUNITARIO SAN DIEGO DE LA UNION     1101290001",null,null,null,"COORDINACION GENERAL DE ADMINISTRACION Y FINANZAS     1100154000"]
[null,null," C.S.R.D. EL CUBO    1101300020","CASA DE SALUD MEZQUITAL (E.S.I. 3)     1102450150","C.S.R.C. SAN JUAN DE LA VEGA     1103070050","C.S.R.D. PUERTA DEL MONTE     1104280080","JUAN LUCAS     1105460120","C.S.R.D. LA CALLE     1106230020","C.S.R.D. LOS RAMIREZ     1107200320","UMAPS EL ESPEJO - SILAO     1108370060","HOSPITAL COMUNITARIO SAN FELIPE     1101300001",null,null,null,"COORDINACION GENERAL DE SALUD PUBLICA     1100150999"]
[null,null," C.S.R.D. FABRICA DE MELCHOR    1101300050","CASA DE SALUD MEZQUITAL (E.S.I. 3)     1102450150","C.S.R.C. TUNAL     1103050100","C.S.R.D. PURUAGUA     1104190020","MESA DE SAN AGUSTIN     1105420220","C.S.R.D. LA MARAÑA     1106230070","C.S.R.D. LOS SAUCES     1107200350","UMAPS EL TECOLOTE - PURISIMA     1108250090","HOSPITAL COMUNITARIO SAN FRANCISCO DEL RINCON     1108310001",null,null,null,"COORDINACION INTERSECTORIAL     1100150004"]
[null,null," C.S.R.D. JARAL DE BERRIO    1101300030","CASA DE SALUD MEZQUITAL (E.S.I. 3)     1102450150","C.S.R.C.LA MONCADA     1103390060","C.S.R.D. RANCHITO DE SAN JOSE DEL CARMEN     1104280100","MONTE DE LOS JUAREZ     1105460070","C.S.R.D. LABOR DE PERALTA     1106010080","C.S.R.D. LOZA DE LOS PADRES     1107200400","UMAPS EL TORO; PURISIMA     1108250050","HOSPITAL COMUNITARIO TARIMORO     1149390000",null,null,null,"DEPARTAMENTO  ADQUISICIONES     1100154210"]
[null,null," C.S.R.D. LA SAUCEDA    1101290020","CASA DE SALUD MEZQUITAL (E.S.I. 3)     1102450150","C.S.R.C.SAN MIGUEL OCTOPAN     1103070040","C.S.R.D. SALTO DE PEÑA     1104190040","OZUMBILLA     1105460090","C.S.R.D. LAGUNA LARGA DE CORTEZ     1106230060","C.S.R.D. NUEVO VALLE DE MORENO     1107200310","UMAPS FRIAS     1108080020","HOSPITAL COMUNITARIO VILLAGRAN     1150440000",null,null,null,"DEPARTAMENTO  DE ADMINISTRACION SANITARIA     1100153030"]
[null,null," C.S.R.D. LAGUNA DE GUADALUPE    1101300040","CASA DE SALUD OJO DE AGUA (E.S.I. 3)     1102450130","C.S.R.D COL. 18 DE MARZO     1103440050","C.S.R.D. SAN JOSE DE HIDALGO     1104380010","PORULLO     1105460080","C.S.R.D. LOS OCOTES     1106230080","C.S.R.D. PLAN DE AYALA     1107200330","UMAPS HACIENDA DE TREJO -CAISES SILAO     1108370080","HOSPITAL COMUNITARIO YURIRIA     1154460000",null,null,null,"DEPARTAMENTO  DE ALMACEN     1100154220"]
[null,null," C.S.R.D. MARFIL    1101150010","JURISDICCION SANITARIA II.-(P.A.C.)     1102000100","C.S.R.D. 2DA. FRACC.DE CRESPO     1103070130","C.S.R.D. SAN LUCAS     1104190050","TEJOCOTE DE CALERA     1105460100","C.S.R.D. MONTE BLANCO     1106160010","C.S.R.D. SAN PEDRO DE LOS HDEZ     1107200360","UMAPS JAGUEY - ROMITA     1108260030",null,null,null,null,"DEPARTAMENTO  DE ATENCION A LA INFANCIA Y ADOLESCENCIA     1100151240"]
[null,null," C.S.R.D. MINERAL DE LA LUZ; GTO.    1101150150","U.M.A.P.S. DE AGUSTIN GONZALEZ     1102030100","C.S.R.D. AMECHE     1103050010","C.S.R.D. SAN MIGUEL EMENGUARO     1104280040","TIMBINAL     1105460110","C.S.R.D. ORDEÑA DE BARAJAS     1106230090","C.S.R.D. SANTA ANA DEL CONDE     1107200340","UMAPS JALPA DE CANOVAS - PURISIMA     1108250020",null,null,null,null,"DEPARTAMENTO  DE BIENES SERVICIOS Y SALUD AMBIENTAL     1100153010"]
[null,null," C.S.R.D. MINERAL SANTA ROSA; GTO.    1101150160","U.M.A.P.S. DE ALCOCER     1102030090","C.S.R.D. CALERAS DE AMECHE     1103050020","C.S.R.D. SAN NICOLAS DE LOS AGUSTINOS     1104280010","U.M.A.P.S. EL CERRO     1105410010","C.S.R.D. PALO ALTO DE ABAJO     1106230100","C.S.U. BALCONES DE LA JOYA - LEON     1107200620","UMAPS JESUS DEL MONTE     1108310080",null,null,null,null,"DEPARTAMENTO  DE CONTROL DE ENFERMEDADES     1100151130"]
[null,null," C.S.R.D. PUENTECILLAS.    1101150030","U.M.A.P.S. DE ALDAMA     1102060010","C.S.R.D. CAÑADA DE CARACHEO     1103110010","C.S.R.D. SAN PABLO     1104190060","U.M.A.P.S. EL CHARCO     1105410020","C.S.R.D. PERALTA     1106010030","C.S.U. BARRIO DE GUADALUPE     1107200020","UMAPS LA ALDEA - SILAO     1108370010",null,null,null,null,"DEPARTAMENTO  DE EPIDEMIOLOGIA Y MED. PREVENTIVA     1100151210"]
[null,null," C.S.R.D. SAN BARTOLO DE BERRIO    1101300060","U.M.A.P.S. DE ATARJEA     1102060000","C.S.R.D. EL ACEBUCHE     1103390010","C.S.R.D. SAN PABLO PEJO     1104280120","U.M.A.P.S. EL DERRAMADERO     1105410030","C.S.R.D. POTRERILLOS DEL RIO     1106230190","C.S.U. CERRITO DE JEREZ     1107200150","UMAPS LA GAVIA DE RIONDA - ROMITA     1108260090",null,null,null,null,"DEPARTAMENTO  DE INSUMOS Y REGULACION DE SERVICIOS DE SALUD     1100153020"]
[null,null," C.S.R.D. SAN JOSE DE LLANOS    1101150120","U.M.A.P.S. DE ATOTONILCO     1102030170","C.S.R.D. EL BECERRO (SAN.DEG)     1103070120","C.S.R.D. SAN PEDRO DE LOSNARANJOS     1104280130","UMAPS  LA CAPILLA     1105270020","C.S.R.D. POTREROS     1106230120","C.S.U. CHAPALITA     1107200170","UMAPS LA PRADERA - PURISIMA     1108250070",null,null,null,null,"DEPARTAMENTO  DE INTEGRACION Y CONTROL PRESUPUESTAL  GTO     1100154310"]
[null,null," C.S.R.D. SAN JUAN DE LLANOS    1101300070","U.M.A.P.S. DE CARRICILLOS     1102060020","C.S.R.D. EL ESPEJO     1103040050","C.S.R.D. SANTO TOMAS HUATZINDEO     1104280050","UMAPS  MOGOTES      1105420060","C.S.R.D. RIVERA DE GUADALUPE     1106170060","C.S.U. COL. 8 DE MARZO-11 DE JUNIO - LEON     1107200640","UMAPS LA SARDINA - ROMITA     1108260020",null,null,null,null,"DEPARTAMENTO  DE INTEGRACION Y CONTROL PRESUPUESTAL - GTO.     1100154310"]
[null,null," C.S.R.D. SANTA ROSA    1101300100","U.M.A.P.S. DE CIENEGA     1102330090","C.S.R.D. EL HUIZACHE     1103110030","C.S.R.D.SN PEDRO DE LOS AGUSTINOS     1104190110","UMAPS CERRITO DE CAMARGO     1105180030","C.S.R.D. SAN FELIPE CHILARILLO     1106230200","C.S.U. EL PAISAJE     1107200140","UMAPS MEDRANOS - SILAO     1108370030",null,null,null,null,"DEPARTAMENTO  DE INVENTARIOS     1100154230"]
[null,null," C.S.R.D. SANTA TERESA    1101150020","U.M.A.P.S. DE CIENEGUILLAS     1102430010","C.S.R.D. GALVANES     1103070140","C.S.U. ACAMBARO     1104020000","UMAPS CERRO GORDO     1105270130","C.S.R.D. SAN JOSE DE AYALA     1106160020","C.S.U. ESPAÑITA     1107200160","UMAPS MEZQUITE GORDO - ROMITA     1108260040",null,null,null,null,"DEPARTAMENTO  DE MANTENIMIENTO     1100155200"]
[null,null," C.S.R.D. ZANGARRO    1101150040","U.M.A.P.S. DE CIENEGULLA (S.IDELFONSO     1102400030","C.S.R.D. HUAPANGO     1103390020","CESSA CORONEO     1104360000","UMAPS CHARCO DE PANTOJA     1105420010","C.S.R.D. SANTA ANA PACUECO     1106230130","C.S.U. LA LUZ     1107200030","UMAPS MONTE DE HOYOS - ROMITA     1108260050",null,null,null,null,"DEPARTAMENTO  DE OPERACION     1100154110"]
[null,null," C.S.R.D.LA PRESITA    1101290010","U.M.A.P.S. DE CORRAL DE PIEDRAS     1102030010","C.S.R.D. IXTLA     1103050080","CSU SALVATIERRA      1104280000","UMAPS CONGREGACION DE CARDENAS     1105270120","C.S.R.D. ZAPOTE DE CESTAU     1106230150","C.S.U. LA ORIENTAL     1107200050","UMAPS NUEVO JESUS DEL MONTE     1108310050",null,null,null,null,"DEPARTAMENTO  DE ORGANIZACION Y METODOS     1100152040"]
[null,null," CARAVANAS PARA LA SALUD DOLORES HGO.    1101140320","U.M.A.P.S. DE CORRALEJO     1102030110","C.S.R.D. JUAN MARTIN     1103070060","HOSPITAL COMUNITARIO CORONEO     1104100001","UMAPS COPALES      1105420030","C.S.R.D.RANCHO NUEVO DE LA CRUZ     1106010040","C.S.U. LA PISCINA     1107200130","UMAPS PAXTLE - SILAO     1108370120",null,null,null,null,"DEPARTAMENTO  DE PAGOS     1100154120"]
[null,null," CARAVANAS PARA LA SALUD SAN FELIPE    1101300320","U.M.A.P.S. DE CRUZ DEL PALMAR     1102030020","C.S.R.D. LA CUEVITA     1103040010","HOSPITAL COMUNITARIO TARANDACUAO     1104380001","UMAPS EL SALTO     1105210030","C.S.U. IRAPUATO (TORRES LANDA)     1106170000","C.S.U. LAS AMERICAS     1107200010","UMAPS PEÑUELAS     1108310040",null,null,null,null,"DEPARTAMENTO  DE RELACIONES LABORALES     1100154130"]
[null,null," CASA DE SALUD  EL LAUREL    1101150200","U.M.A.P.S. DE CUESTA DE PEÑONES     1102400010","C.S.R.D. LA GAVIA     1103110020","LA SALITRERA     1104190180","UMAPS EL TAMBOR      1105420130","CAISES ABASOLO     1106010000","C.S.U. LIBERTAD - LEON     1107200650","UMAPS POTRERILLOS - PURISIMA     1108250030",null,null,null,null,"DEPARTAMENTO  DE SERVICIOS GENERALES     1100154240"]
[null,null," CASA DE SALUD AGUA COLORADA    1101150240","U.M.A.P.S. DE DERRAMADEROS     1102430070","C.S.R.D. LA LABOR     1103050070","U MOVIL ESI CUTARO     1104020210","UMAPS ESTANCO     1105270140","CAISES COL. JUAREZ; IRAPUATO     1106170010","C.S.U. LINDA VISTA     1107200190","UMAPS SAN ANTONIO CERRO PRIETO - ROMITA     1108260070",null,null,null,null,"DEPARTAMENTO  DE SISTEMATIZACION DEL PAGO     1100154140"]
[null,null," CASA DE SALUD BARRANCA DE CANO SDU.;GTO.    1101290120","U.M.A.P.S. DE EL AGUACATE     1102450050","C.S.R.D. LA MOCHA     1103110070","U.A.S. CANDELAS     1104190070","UMAPS JARDINES DEL SOL     1105270170","CAISES COLON      1106170140","C.S.U. LOMAS DE LA TRINIDAD     1107200200","UMAPS SAN BERNARDO - PURISIMA     1108250080",null,null,null,null,"DEPARTAMENTO  DE TESORERIA GTO     1100154330"]
[null,null," CASA DE SALUD CARAVANA LA CEJA S.F.;GTO.    1101300230","U.M.A.P.S. DE EL MILAGRO - XICHU     1102450100","C.S.R.D. LANDIN     1103090060","U.A.S. CANOAS     1104190080","UMAPS JOYITA DE VILLAFAÑA     1105270070","CAISES PURISIMA DEL JARDIN RAPUATO     1106170210","C.S.U. LOS PINOS     1107200120","UMAPS SAN CRISTOBAL     1108310100",null,null,null,null,"DEPARTAMENTO  ENSEÑANZA Y CAPACITACION     1100151120"]
[null,null," CASA DE SALUD CERRO BLANCO D.H.; GTO.    1101140460","U.M.A.P.S. DE EL REFUGIO     1102330040","C.S.R.D. MEXICANOS     1103440010","U.A.S. CEBOLLETAS     1104100010","UMAPS LA ORDEÑA     1105210020","CESSA CUERAMARO     1106120000","C.S.U. MA DOLORES     1107200040","UMAPS SAN IGNACIO DE HIDALGO     1108310130",null,null,null,null,"DEPARTAMENTO  INVESTIGACION Y DESARROLLO TEC.     1100151110"]
[null,null," CASA DE SALUD CIENEGA DE NEGROS    1101150290","U.M.A.P.S. DE ESTACION LOURDES     1102330010","C.S.R.D. NEUTLA     1103090030","U.A.S. ENREDADORA     1104190100","UMAPS LABOR DE VALTIERRA     1105270060","CESSA PENJAMO     1106230000","C.S.U. PALOMARES     1107200210","UMAPS SAN ISIDRO DE LOS PALOMINOS     1108310110",null,null,null,null,"DEPARTAMENTO  MED. PREVENT. Y CONTROL DE ENFERM.     1100151230"]
[null,null," CASA DE SALUD DELGADILLO D.H.;GTO.    1101140280","U.M.A.P.S. DE FAJARDO DE BOCAS     1102030030","C.S.R.D. OBRAJUELOS     1103050030","U.A.S. GERVACIO MENDOZA     1104280150","UMAPS LAS CAÑAS      1105420020","CESSA SANTA ANA PACUECO     1106230131","C.S.U. PILETAS     1107200280","UMAPS SAN ISIDRO OJO DE AGUA - ROMITA     1108260110",null,null,null,null,"DEPARTAMENTO  PROCEDIMIENTOS Y SANCIONES, GTO.     1100154250"]
[null,null," CASA DE SALUD EL CUERVITO    1101150300","U.M.A.P.S. DE GALVANES     1102030040","C.S.R.D. OJO DE AGUA     1103040020","U.A.S. LAS CRUCES     1104280110","UMAPS LAS JICAMAS     1105420040","ESI 21 MANGAS DE CORRALEJO     1106230490","C.S.U. SAN CARLOS DE ROMO     1107200220","UMAPS SAN JOSE DE OTATES     1108080030",null,null,null,null,"DEPARTAMENTO  PROMOCION DE LA SALUD     1100151220"]
[null,null," CASA DE SALUD EL DURAZNO D.H.; GTO.    1101140430","U.M.A.P.S. DE HUAMUCHIL     1102450010","C.S.R.D. RANCHO MORALES     1103090020","U.A.S. PASO DE OVEJAS     1104380020","UMAPS LOMA DE FLORES     1105270030","SAN NICOLAS TEMASCATIO     1106170190","C.S.U. SAN FELIPE DE JESUS     1107200230","UMAPS SAN PABLO     1108080050",null,null,null,null,"DEPARTAMENTO D/SELECCION Y CAPACITACION D/PERSONAL     1100158010"]
[null,null," CASA DE SALUD EL FALSO S.F.;GTO.    1101300240","U.M.A.P.S. DE JALPA     1102030050","C.S.R.D. ROQUE     1103070070","U.A.S. PIEDRA LARGA     1104100020","UMAPS LOMA DE SAN ANTONIO     1105270190","U.A.S. COMALILLO     1106230160","C.S.U. SAN JOSE DE CEMENTOS     1107200070","UMAPS SAN ROQUE DE TORRES     1108310010",null,null,null,null,"DEPARTAMENTO DE ARCHIVO DE PERSONAL     1100154115"]
[null,null," CASA DE SALUD EL HUIZACHE S.F.; GTO.    1101300400","U.M.A.P.S. DE JOFRE     1102330100","C.S.R.D. SAN ANTONIO CORRALES     1103090050","U.A.S. PIEDRAS DE LUMBRE     1104190120","UMAPS MAGDALENA     1105420050","U.A.S. CORRALEJO DE HIDALGO     1106230170","C.S.U. SAN JOSE DEL CONSUELO     1107200060","UMAPS SANTA ROSA DE RIVAS - ROMITA     1108260010",null,null,null,null,"DEPARTAMENTO DE ATENCION PRIMARIA A LA SALUD - 1er. NIVEL     1100151150"]
[null,null," CASA DE SALUD EL MASTRANTO S.F.; GTO.    1101300410","U.M.A.P.S. DE LA CIENEGUITA     1102030190","C.S.R.D. SAN BARTOLOME     1103040070","U.A.S. SAN ANTONIO     1104380030","UMAPS NORIA DE MOSQUEDA     1105420080","U.A.S. EL MARMOL     1106230180","C.S.U. SAN JUAN BOSCO     1107200240","UMAPS SAUZ DE ARMENTA     1108310030",null,null,null,null,"DEPARTAMENTO DE ESTADISTICA     1100152030"]
[null,null," CASA DE SALUD EL SOCORRO SDU.;GTO.    1101290110","U.M.A.P.S. DE LA ESTANCIA     1102400020","C.S.R.D. SAN JOSE AGUA AZUL     1103050040","U.A.S. ZATEMAYE     1104190090","UMAPS PIÑICUARO     1105210010","U.A.S. EL SAUCILLO     1106120020","C.S.U. SAN NICOLAS     1107200110","UMAPS ZAPOTE DE ADJUNTAS     1108080060",null,null,null,null,"DEPARTAMENTO DE INFORMATICA     1100152020"]
[null,null," CASA DE SALUD EL TABLON    1101150310","U.M.A.P.S. DE LA PALMILLA     1102030080","C.S.R.D. SAN JUAN DEL LLANITO     1103040030","U.A.S.SANTA TERESA (LA MAJADA)     1104360020","UMAPS PROVIDENCIA     1105180050","U.A.S. HUITZATARITO     1106010070","C.S.U. SANTA MARIA DE CEMENTOS     1107200100","UMAPS. LOS RODRIGUEZ - SILAO     1108370040",null,null,null,null,"DEPARTAMENTO DE PROGRAMACION Y EVALUACION     1100152010"]
[null,null," CASA DE SALUD EL TERRERO    1101150220","U.M.A.P.S. DE LA REDONDA     1102130030","C.S.R.D. SAN LORENZO     1103070080","U.M. LA MINA     1104190130","UMAPS PUERTA DE ANDARACUA      1105420100","U.A.S. JOYA DE CALVILLO     1106010020","C.S.U. SANTA RITA     1107200080","UNIDAD MEDICA MOVIL (ESI 35)     1108080070",null,null,null,null,"DEPARTAMENTO.DE CONTABILIDAD Y CONTROL PRESUPUESTAL     1100154320"]
[null,null," CASA DE SALUD EL TERRERO S.F.; GTO.    1101300360","U.M.A.P.S. DE LA SABILA     1102450040","C.S.R.D. SAN NICOLAS DE ESQUIROS     1103070090","UMAPS ANDOCUTIN     1104020030","UMAPS RINCON DE PARANGUEO      1105420090","U.A.S. LA CARROZA     1106010060","C.S.U. STA.ROSA DE LIMA     1107200090",null,null,null,null,null,"DIRECCION DE ADMON Y CTROL DE SERVICIOS PERSONALES     1100158005"]
[null,null," CASA DE SALUD EL TULILLO - S.F.;GTO.    1101300340","U.M.A.P.S. DE LA TALEGA     1102030180","C.S.R.D. SAN PEDRO TENANGO     1103050050","UMAPS ARROYO DE LUNA     1104020190","UMAPS SALITRE DE AGUILARES     1105420070","U.A.S. PALO VERDE     1106230110","ESI - 34     1107200540",null,null,null,null,null,"DIRECCION DE ATENCION MEDICA     1100151140"]
[null,null," CASA DE SALUD EL VARAL    1101150250","U.M.A.P.S. DE LOMA DE BUENA VISTA     1102130010","C.S.R.D. SAN SALVADOR TORRECILLAS     1103440030","UMAPS CHAMACUARO     1104020010","UMAPS SAN BERNARDO     1105270090","U.A.S. PANALES     1106240020","JURISDICCION SANITARIA VII     1107000000",null,null,null,null,null,"DIRECCION DE CONTRALORIA INTERNA GTO     1100150300"]
[null,null," CASA DE SALUD EL ZAPOTE S.F.; GTO.    1101300370","U.M.A.P.S. DE LOS RODRIGUEZ     1102030070","C.S.R.D. SANTA CRUZ DE GAMBOA     1103040060","UMAPS CHUPICUARO     1104020040","UMAPS SAN JOSE DE MENDOZA      1105270050","U.A.S. PURISIMA DE RAMIREZ     1106230220","SECTOR I - PEÑITAS     1107000001",null,null,null,null,null,"DIRECCION DE DESARROLLO HUMANO     1100154235"]
[null,null," CASA DE SALUD ESTANCIA DEL MAGUEY S.F.;GTO.    1101300250","U.M.A.P.S. DE MANGAS CUATAS     1102060030","C.S.R.D. SANTA FE DE PURISIMA     1103110060","UMAPS EL JARAL     1104020050","UMAPS SANTIAGO CAPITIRO     1105180010","U.A.S. SAN GABRIEL     1106230210","SECTOR II - TROJES     1107000002",null,null,null,null,null,"DIRECCION DE DESARROLLO INSTITUCIONAL     1100152070"]
[null,null," CASA DE SALUD FABRICA GUADALUPE S.F.;GTO.    1101300260","U.M.A.P.S. DE MILPILLAS DE SANTIAGO     1102430020","C.S.R.D. SANTA TERESA     1103070100","UMAPS EL MAGUEY     1104020060","UMAPS URUETARO     1105270080","U.A.S. SAN GREGORIO     1106120010","SECTOR III - FLORESTA     1107000003",null,null,null,null,null,"DIRECCION DE ENSEÑANZA E INVESTIGACION     1100151100"]
[null,null," CASA DE SALUD LA CONCEPCION;GTO.    1101150230","U.M.A.P.S. DE MINERAL DE REALITO     1102330030","C.S.R.D. TENANGO EL NUEVO     1103050060","UMAPS GAYTAN     1104020170","UMAPS VICTORIA DE CORTAZAR     1105180020","U.A.S. YOSTIRO     1106240010","SECTOR IV - LEON     1107000004",null,null,null,null,null,"DIRECCION DE INFRAESTRUCTURA     1100152050"]
[null,null," CASA DE SALUD LA FRONTERA S.F.;GTO.    1101300310","U.M.A.P.S. DE MISION DE CHICHIMECAS     1102330120","C.S.R.D. TENERIA DEL SANTUARIO     1103070110","UMAPS IRAMUCO     1104020020","UMAPS ZEMPOALA     1105180040","U.M. GUANGUITIRO     1106230240","U.A.S. HACIENDA DE ARRIBA     1107200380",null,null,null,null,null,"DIRECCION DE INGENIERIA BIOMEDICA     1100152100"]
[null,null," CASA DE SALUD LAS PEREAS D.H.;GTO.    1101140640","U.M.A.P.S. DE MISION DE SANTA ROSA     1102450020","C.S.R.D. TIERRA FRIA     1103110040","UMAPS LA CONCEPCION     1104020140","UNEME CAPA-CENTRO NUEVA VIDA SALAMANCA     1105270180","U.M. ORDEÑA DE BARAJAS     1106230250","U.A.S. NUEVO LINDERO     1107200370",null,null,null,null,null,"DIRECCION DE PLANEACION     1100152001"]
[null,null," CASA DE SALUD LAS YERBAS D.H.; GTO.    1101140680","U.M.A.P.S. DE MORISQUILLAS     1102130020","C.S.R.D.NORIA DE GALLEGOS     1103390050","UMAPS LLANOS DE SAN FRANCISCO; JERECUARO     1104190190","XOCONOXTLE     1105460030","U.M.A.P.S. (ANTES C.S.R.C.) PUEBLO NUEVO     1106240000","UMAPS ARBOLEDAS DE LOS CASTILLOS -LEON     1107200430",null,null,null,null,null,"DIRECCION DE RECURSOS FINANCIEROS     1100154300"]
[null,null," CASA DE SALUD LLANOS DE LA FRAGUA    1101150320","U.M.A.P.S. DE OBRAJITOS     1102130040","C.S.U. COLONIA EMILIANO ZAPATA     1103070010","UMAPS LOMA DORADA     1104020220",null,"UMAPS ALDAMA     1106170020","UNEME CAPA (CENTRO NUEVA VIDA) - LEON BALCONES     1107200441",null,null,null,null,null,"DIRECCION DE RECURSOS MATERIALES     1100154200"]
[null,null," CASA DE SALUD LOS RANGELES Y LAS TORTUGAS S.F.; GTO.    1101300440","U.M.A.P.S. DE PALOMAS     1102450030","C.S.U. SANTA MARIA DEL REFUGIO; CELAYA     1103070150","UMAPS LOS ORGANOS     1104020080",null,"UMAPS CUCHICUATO     1106170090","UNEME CAPA (CENTRO NUEVA VIDA) - LEON II     1107200661",null,null,null,null,null,"DIRECCION DE REGULACION Y FOMENTO SANITARIO     1100153001"]
[null,null," CASA DE SALUD MESACUATA    1101150330","U.M.A.P.S. DE PASO DE GUILLERMO - XICHU     1102450090","CAISES JUVENTINO ROSAS     1103350000","UMAPS MONTE PRIETO     1104020070",null,"UMAPS LA CAJA     1106170100","UNEME CAPASITS - LEON     1107200680",null,null,null,null,null,"DIRECCION DE SALUD MENTAL     1100151300"]
[null,null," CASA DE SALUD MILPILLAS S.F. GTO.    1101300420","U.M.A.P.S. DE POZOS     1102330020","U.A.S. EL POTRERO     1103090040","UMAPS MUNGUIA     1104020130",null,"UMAPS LAGUNA LARGA     1106170080",null,null,null,null,null,null,"DIRECCION EPID.MED. PREV.SERVS. MED. (SALUD PUBLICA)     1100151200"]
[null,null," CASA DE SALUD MULATOS SDU.;GTO.    1101290150","U.M.A.P.S. DE PUERTO DE NIETO     1102030060","U.A.S. PARRA     1103110050","UMAPS PARACUARO     1104020090",null,"UMAPS PEÑUELAS     1106170030",null,null,null,null,null,null,"DIRECCION GENERAL DE ADMINISTRACION     1100154002"]
[null,null," CASA DE SALUD OJUELOS SDU.;GTO.    1101290130","U.M.A.P.S. DE PUERTO DE PALMAS     1102430030","U.A.S. SAN ANTONIO CALICHAL     1103040040","UMAPS SAN DIEGO     1104020160",null,"UMAPS SAN ANTONIO DE CHICO     1106170050",null,null,null,null,null,null,"DIRECCION GENERAL DE PLANEACION Y DESARROLLO     1100152000"]
[null,null," CASA DE SALUD PEÑA PRIETA D.H.;GTO.    1101140310","U.M.A.P.S. DE RANCHO VIEJO     1102430080","U.A.S. SAN NICOLAS CONDESA     1103390030","UMAPS SAN ISIDRO     1104020200",null,"UMAPS SAN ROQUE     1106170170",null,null,null,null,null,null,"DIRECCION GENERAL DE PROTECCION CONTRA  RIESGOS SANITARIOS     1100153000"]
[null,null," CASA DE SALUD PUERTA DE LA CARRETA - S.F.;GTO.    1101300330","U.M.A.P.S. DE RINCON DE CANO     1102400050","UMAPS COLONIA LAGOS - CELAYA     1103070180","UMAPS SAN JUAN JARIPEO     1104020100",null,"UMAPS SANTA ROSA     1106170150",null,null,null,null,null,null,"DIRECCION GENERAL DE RECURSOS HUMANOS     1100158000"]
[null,null," CASA DE SALUD PUERTA DE SAN FCO. D.H.;GTO.    1101140270","U.M.A.P.S. DE SAN ANTON DE LOS MARTINEZ     1102330070","UMAPS COLONIA TECNOLOGICO - CELAYA     1103070160","UMAPS SANTIAGUILLO     1104020110",null,"UMAPS TOMELOPEZ     1106170040",null,null,null,null,null,null,"DIRECCION GENERAL DE SERVICIOS DE SALUD     1100151000"]
[null,null," CASA DE SALUD PUERTA DEL SERROTE D.H.; GTO.    1101140650","U.M.A.P.S. DE SAN ISIDRO     1102330050","UMAPS FRANCO TAVERA     1103350040","UMAPS TOCUARO     1104020120",null,"UMAPS VALENCIANITA     1106170110",null,null,null,null,null,null,"DIRECCION PROGRAMA CARAVANAS DE LA SALUD     1100151002"]
[null,null," CASA DE SALUD PUERTO ALTO S.F.;GTO.    1101300270","U.M.A.P.S. DE SAN JUAN DE LOS RANGELES     1102330110","UMAPS LA NORITA     1103050140","UMAPS VELASCO IBARRA     1104020180",null,"UNEME CAPA (CENTRO NUEVA VIDA)- IRAPUATO     1106170211",null,null,null,null,null,null,"JEFATURA DE ATENCION CLINICA - SALUD MENTAL     1100151320"]
[null,null," CASA DE SALUD PURISIMA DEL MONTE SDU.;GTO.    1101290140","U.M.A.P.S. DE SAN MIGUELITO     1102030120","UMAPS LOS FIERROS     1103390040","     ",null,"UNEME CAPASITS (TORRES LANDA)     1106170240",null,null,null,null,null,null,"JEFATURA DE RIESGO PSICOSOCIAL - SALUD MENTAL     1100151310"]
[null,null," CASA DE SALUD RANCHO LOS RAMIREZ D.H.;GTO.    1101140220","U.M.A.P.S. DE SANTA ANA Y LOBOS     1102330060","UMAPS MESAS DE ACOSTA     1103350010","     ",null,"UNEME CISAME (SALUD MENTAL) - IRAPUATO     1106170230",null,null,null,null,null,null,"LABORATORIO ESTATAL DE SALUD PÚBLICA     1135200000"]
[null,null," CASA DE SALUD RANCHO NUEVO S.F.;GTO.    1101300280","U.M.A.P.S. DE VERGEL DE GUADALUPE     1102330080","UMAPS POZOS     1103350050","     ",null,"UNEME ENFERMEDADES CRONICAS     1106170250",null,null,null,null,null,null,"OFICINA DEL SECRETARIO DE SALUD PÚBLICA     1100150000"]
[null,null," CASA DE SALUD SAN ANTONIO DEL MAGUEY - S.F.; GTO.    1101300350","U.M.A.P.S. DE VICTORIA     1102430000","UMAPS PROGRESO SOLIDARIDAD - CELAYA     1103070170","     ",null,null,null,null,null,null,null,null,"OFICINA. DE ARCHIVO Y CORRESPONDENCIA     1100154242"]
[null,null," CASA DE SALUD SAN ISIDRO S.F.;GTO.    1101300290","U.M.A.P.S. DE VILLA DR. MORA     1102130000","UMAPS RINCON DE CENTENO     1103350020","     ",null,null,null,null,null,null,null,null,"SECRETARIA PARTICULAR; GTO.     1100150100"]
[null,null," CASA DE SALUD SAN JOSE DE LA CAMPANA D.H.; GTO.    1101140380","U.M.A.P.S. DE XICHU     1102450000","UMAPS SAN JOSE DEL LLANO     1103050130","     ",null,null,null,null,null,null,null,null,"SECRETARIO TECNICO     1100150002"]
[null,null," CASA DE SALUD SAN JOSE DEL TANQUE S.F.;GTO.    1101300300","U.M.A.P.S. SAN JOSE DE LOS ALLENDES     1102030210","UMAPS SANTIAGO DE CUENDA     1103350030","     ",null,null,null,null,null,null,null,null,"SISTEMA DE URGENCIAS DEL ESTADO DE GUANAJUATO     1138150000"]
[null,null," CASA DE SALUD SANTIAGUILLO S.F.; GTO.    1101300450","U.M.A.P.S. SAN MIGUEL DE LAS CASITAS (PUERTO PILON)     1102450060","UNEME CAPA (CENTRO NUEVA VIDA) - CELAYA     1103070200","     ",null,null,null,null,null,null,null,null,"TRABAJO SOCIAL     1100151180"]
[null,null," CASA DE SALUD SANTO DOMINGO    1101150260","UMAPS LA RUSIA (ANTES EL AGUACATE)     1102340010","UNEME CAPASITS - CELAYA     1103070210","     "]
[null,null," CASA DE SALUD VERGEL DE LA SIERRA S.F.; GTO.    1101300460","UMAPS PAREDES     1102340020","UNEME CISAME (SALUD MENTAL) - CELAYA     1103070220","     "]
[null,null," ESI 14 DOLORES    1101140200","UNEM-CAPA     1102030200","UNEME SORID (ENFERMEDADES CRONICAS) - CELAYA     1103070190","     "]
[null,null," ESI 15 DOLORES    1101140160",null,"     ","     "]
[null,null," ESI 16 MINAS VIEJAS (LA FRONTERA)SAN FELIPE     1101300190",null,"     ","     "]
[null,null," ESI 23 DOLORES    1101140140",null,"     ","     "]
[null,null," ESI 24 DOLORES    1101140170",null,"     ","     "]
[null,null," ESI 25 SAN FELIPE    1101300180",null,"     ","     "]
[null,null," ESI 39    1101150210",null,"     ","     "]
[null,null," ESI 40 DOLORES    1101140150",null,"     ","     "]
[null,null," ESI 41 SAN DIEGO U.    1101290070",null,"     ","     "]
[null,null," ESI XVI    1101140180",null,"     ","     "]
[null,null," H.I. C-12 SAN FELIPE    1101300000",null,"     ","     "]
[null,null," U.A.S. ADJUNTAS DEL MONTE    1101140040",null,"     ","     "]
[null,null," U.A.S. ADJUNTAS DEL RIO    1101140070",null,"     ","     "]
[null,null," U.A.S. EL CARRETON    1101300170",null,"     ","     "]
[null,null," U.A.S. EX-HACIENDA DE MONJAS    1101290040",null,"     ","     "]
[null,null," U.A.S. JAMAICA    1101140020",null,"     ","     "]
[null,null," U.A.S. LA CALIFORNIA    1101140060",null,"     ","     "]
[null,null," U.A.S. LA LABOR    1101300110",null,"     ","     "]
[null,null," U.A.S. LA LAGUNITA    1101300080",null,"     ","     "]
[null,null," U.A.S. LOS MARTINEZ    1101300120",null,"     ","     "]
[null,null," U.A.S. PALMA PRIETA    1101140030",null,"     ","     "]
[null,null," U.A.S. SALTO DEL AHOGADO    1101300130",null,"     ","     "]
[null,null," U.A.S. SAN JUAN    1101290030",null,"     ","     "]
[null,null," U.A.S. SAN PEDRO ALMOLOYAN    1101300090",null,"     ","     "]
[null,null," U.A.S. SANTO DOMINGO DE GUZMAN    1101300160",null,"     ","     "]
[null,null," U.A.S. SAUCEDA DE LA LUZ    1101300150",null,"     ","     "]
[null,null," U.A.S. SOLEDAD NUEVA    1101140050",null,"     ","     "]
[null,null," U.A.S. XOCONOXTLE EL GRANDE    1101140010",null,"     ","     "]
[null,null," U.M. EL COLORADO; SN DIEGO U.    1101290050",null,"     ","     "]
[null,null," U.M. PAREDONES; DOLORES; HGO.    1101140110",null,"     ","     "]
[null,null," U.M. SAN ELIAS    1101140080",null,"     ","     "]
[null,null," UMAPS ARPEROS    1101150070",null,"     ","     "]
[null,null," UMAPS CAMPUZANO    1101150080",null,"     ","     "]
[null,null," UMAPS EL ROSALITO - SAN DIEGO DE LA UNION    1101290100",null,"     ","     "]
[null,null," UMAPS GACHUPINES    1101220040",null,"     ","     "]
[null,null," UMAPS IBARRA    1101220030",null,"     ","     "]
[null,null," UMAPS LA LABOR    1103050070",null,"     ","     "]
[null,null," UMAPS MINERAL DEL CUBO    1101150110",null,"     ","     "]
[null,null," UMAPS POZO ADEMADO; SAN DIEGO U.    1101290080",null,"     ","     "]
[null,null," UMAPS SAUCEDA    1101150060",null,"     ","     "]
[null,null," UMAPS. LA HACIENDITA    1101220050",null,"     ","     "]
[null,null," UMAPS. SANTA BARBARA    1101220020",null,"     ","     "]
[null,null," UNEME CAPA (CENTRO NUEVA VIDA) - DOLORES HGO    1101140330",null,"     ","     "]
[null,null," UNEME CAPA (CENTRO NUEVA VIDA) - GTO    1101150270",null,"     ","     "]
[null,null," UNEME CISAME (CENTRO DE SALUD MENTAL) - GTO    1101150280",null,"     ","     "]